Workbook

Sheet Data_Input
A1: IOL: | B1: ZCBOO | E1: Formula 1: | F1: Barrett UII | G1: Formula 2: | H1: Haigis | J1: Formula 3: | K1: Holladay 1 | L1: Formula 4: | M1: SRK/T | O1: Examination lane length (m): | R1: 6 | T1: meters | X1: Error Check: | Y1: =IF(OR(Y4>0,B1="",R1=""),"Error","OK") -> OK
X2: Empty Rows: | Y2: =IF(MAX(U5:U3004)>Y5,"Error","OK") -> OK
A3: No. | C3: IOL Power | E3: Post-op Prediction (SEQ) | J3: Post-operative refraction | O3: Post-op SEQ Numerical Error | T3: Post-op BCDVA | V3: Integrity check | X3: # of eyes "OK": | Y3: =COUNTIF(V5:V3004,"OK") -> 85
E4: =F1 -> Barrett UII | F4: =H1 -> Haigis | G4: =K1 -> Holladay 1 | H4: =M1 -> SRK/T | J4: Sphere | K4: Cylinder | L4: Axis | M4: SEQ | O4: =F1 -> Barrett UII | P4: =H1 -> Haigis | Q4: =K1 -> Holladay 1 | R4: =M1 -> SRK/T | T4: =IF(T1="","",IF(T1="meters","6/","20/")) -> 6/ | X4: # of eyes "Error": | Y4: =COUNTIF(V5:V3004,"Error") -> 0
A5: 1 | C5: 23 | E5: -0.25 | F5: 0.02 | G5: -0.23 | H5: -0.38 | J5: 0 | K5: -0.5 | L5: 80 | M5: =IF(OR(J5="",K5="",L5=""),"",(J5+K5/2)+(1/6-1/$R$1)) -> -0.25 | O5: =IF(OR(E5="",$M5=""),"",$M5-E5) -> 0 | P5: =IF(OR(F5="",$M5=""),"",$M5-F5) -> -0.27 | Q5: =IF(OR(G5="",$M5=""),"",$M5-G5) -> -0.02 | R5: =IF(OR(H5="",$M5=""),"",$M5-H5) -> 0.13 | T5: 6 | U5: =IF(V5<>"",A5,"") -> 1 | V5: =IF(AND(C5="",E5="",F5="",G5="",H5="",J5="",K5="",L5="",T5=""),"",IF(OR(C5="",J5="",K5="",L5="",T5="",AND($T$1="meters",T5>12),AND($T$1="feet",T5>40)),"Error","OK")) -> OK | X5: # of eyes Total: | Y5: =Y4+Y3 -> 85
A6: 2 | C6: 24 | E6: -0.16 | F6: -0.16 | G6: -0.16 | H6: -0.22 | J6: 0 | K6: -0.75 | L6: 175 | M6: -0.375 | O6: -0.215 | P6: -0.215 | Q6: -0.215 | R6: -0.155 | T6: 6 | U6: 2 | V6: OK
A7: 3 | C7: 23 | E7: -0.48 | F7: -0.47 | G7: -0.46 | H7: -0.43 | J7: -1.5 | K7: 0 | L7: 0 | M7: -1.5 | O7: -1.02 | P7: -1.03 | Q7: -1.04 | R7: -1.07 | T7: 7.5 | U7: 3 | V7: OK
A8: 4 | C8: 29.5 | E8: -0.46 | F8: -0.4 | G8: -0.33 | H8: -0.52 | J8: -1.75 | K8: 0 | L8: 0 | M8: -1.75 | O8: -1.29 | P8: -1.35 | Q8: -1.42 | R8: -1.23 | T8: 6 | U8: 4 | V8: OK
A9: 5 | C9: 9 | E9: -0.53 | F9: -0.57 | G9: -1.04 | H9: -0.57 | J9: 0 | K9: -0.25 | L9: 20 | M9: -0.125 | O9: 0.405 | P9: 0.445 | Q9: 0.915 | R9: 0.445 | T9: 6 | U9: 5 | V9: OK
A10: 6 | C10: 16.5 | E10: -0.34 | F10: -0.46 | G10: -0.25 | H10: 0.13 | J10: -0.5 | K10: -0.5 | L10: 150 | M10: -0.75 | O10: -0.41 | P10: -0.29 | Q10: -0.5 | R10: -0.88 | T10: 6 | U10: 6 | V10: OK
A11: 7 | C11: 16 | E11: -2.65 | F11: -2.57 | G11: -3.36 | H11: -2.98 | J11: -1.5 | K11: -2 | L11: 80 | M11: -2.5 | O11: 0.15 | P11: 0.07 | Q11: 0.86 | R11: 0.48 | T11: 6 | U11: 7 | V11: OK
A12: 8 | C12: 22 | E12: -0.12 | F12: -0.07 | G12: -0.2 | H12: -0.27 | J12: 0.75 | K12: -0.75 | L12: 70 | M12: 0.375 | O12: 0.495 | P12: 0.445 | Q12: 0.575 | R12: 0.645 | T12: 7.5 | U12: 8 | V12: OK
A13: 9 | C13: 17 | E13: -1.39 | F13: -1.13 | G13: -1.34 | H13: -1.59 | J13: -0.5 | K13: -1.5 | L13: 80 | M13: -1.25 | O13: 0.14 | P13: -0.12 | Q13: 0.09 | R13: 0.34 | T13: 6 | U13: 9 | V13: OK
A14: 10 | C14: 20 | E14: -0.38 | F14: -0.43 | G14: -0.15 | H14: 0 | J14: 0 | K14: -0.5 | L14: 70 | M14: -0.25 | O14: 0.13 | P14: 0.18 | Q14: -0.1 | R14: -0.25 | T14: 6 | U14: 10 | V14: OK
A15: 11 | C15: 23 | E15: -0.08 | F15: -0.32 | G15: -0.34 | H15: -0.27 | J15: 0 | K15: -0.75 | L15: 40 | M15: -0.375 | O15: -0.295 | P15: -0.055 | Q15: -0.035 | R15: -0.105 | T15: 6 | U15: 11 | V15: OK
A16: 12 | C16: 22.5 | E16: -0.33 | F16: -0.05 | G16: -0.14 | H16: -0.12 | J16: 0 | K16: -0.5 | L16: 60 | M16: -0.25 | O16: 0.08 | P16: -0.2 | Q16: -0.11 | R16: -0.13 | T16: 7.5 | U16: 12 | V16: OK
A17: 13 | C17: 22.5 | E17: 0.2 | F17: 0.06 | G17: 0.35 | H17: 0.53 | J17: 0 | K17: -0.5 | L17: 60 | M17: -0.25 | O17: -0.45 | P17: -0.31 | Q17: -0.6 | R17: -0.78 | T17: 7.5 | U17: 13 | V17: OK
A18: 14 | C18: 22.5 | E18: -0.69 | F18: -0.81 | G18: -0.5 | H18: -0.38 | J18: -0.25 | K18: -0.5 | L18: 80 | M18: -0.5 | O18: 0.19 | P18: 0.31 | Q18: 0 | R18: -0.12 | T18: 6 | U18: 14 | V18: OK
A19: 15 | C19: 23.5 | E19: -1.41 | F19: -1.46 | G19: -1.18 | H19: -0.93 | J19: -1.25 | K19: -0.5 | L19: 70 | M19: -1.5 | O19: -0.09 | P19: -0.04 | Q19: -0.32 | R19: -0.57 | T19: 6 | U19: 15 | V19: OK
A20: 16 | C20: 14 | E20: -0.1 | F20: 0.11 | G20: 0 | H20: 0.01 | J20: -0.5 | K20: -0.5 | L20: 90 | M20: -0.75 | O20: -0.65 | P20: -0.86 | Q20: -0.75 | R20: -0.76 | T20: 6 | U20: 16 | V20: OK
A21: 17 | C21: 22 | E21: -0.32 | F21: -0.79 | G21: -0.53 | H21: -0.15 | J21: -0.5 | K21: -0.75 | L21: 100 | M21: -0.875 | O21: -0.555 | P21: -0.085 | Q21: -0.345 | R21: -0.725 | T21: 7.5 | U21: 17 | V21: OK
A22: 18 | C22: 20.5 | E22: -1.36 | F22: -1.15 | G22: -1.29 | H22: -1.32 | J22: 0 | K22: -2 | L22: 60 | M22: -1 | O22: 0.36 | P22: 0.15 | Q22: 0.29 | R22: 0.32 | T22: 6 | U22: 18 | V22: OK
A23: 19 | C23: 21.5 | E23: -0.02 | F23: -0.15 | G23: 0.15 | H23: 0.46 | J23: 0 | K23: -0.5 | L23: 90 | M23: -0.25 | O23: -0.23 | P23: -0.1 | Q23: -0.4 | R23: -0.71 | T23: 6 | U23: 19 | V23: OK
A24: 20 | C24: 20 | E24: -0.33 | F24: -0.44 | G24: -0.24 | H24: -0.19 | J24: 0 | K24: -0.5 | L24: 80 | M24: -0.25 | O24: 0.08 | P24: 0.19 | Q24: -0.01 | R24: -0.06 | T24: 6 | U24: 20 | V24: OK
A25: 21 | C25: 21 | E25: -0.17 | F25: -0.31 | G25: -0.14 | H25: -0.07 | J25: 0 | K25: 0 | L25: 0 | M25: 0 | O25: 0.17 | P25: 0.31 | Q25: 0.14 | R25: 0.07 | T25: 6 | U25: 21 | V25: OK
A26: 22 | C26: 24 | E26: -0.08 | F26: 0.1 | G26: -0.11 | H26: 0 | J26: 0 | K26: 0 | L26: 0 | M26: 0 | O26: 0.08 | P26: -0.1 | Q26: 0.11 | R26: 0 | T26: 6 | U26: 22 | V26: OK
A27: 23 | C27: 21.5 | E27: -0.61 | F27: -0.72 | G27: -0.39 | H27: -0.24 | J27: -1 | K27: -0.75 | L27: 130 | M27: -1.375 | O27: -0.765 | P27: -0.655 | Q27: -0.985 | R27: -1.135 | T27: 6 | U27: 23 | V27: OK
A28: 24 | C28: 21.5 | E28: -1.55 | F28: -1.16 | G28: -1.33 | H28: -1.49 | J28: 0 | K28: -1.75 | L28: 170 | M28: -0.875 | O28: 0.675 | P28: 0.285 | Q28: 0.455 | R28: 0.615 | T28: 6 | U28: 24 | V28: OK
A29: 25 | C29: 19.5 | E29: -0.21 | F29: 0.11 | G29: -0.13 | H29: -0.18 | J29: -0.25 | K29: -0.5 | L29: 10 | M29: -0.5 | O29: -0.29 | P29: -0.61 | Q29: -0.37 | R29: -0.32 | T29: 6 | U29: 25 | V29: OK
A30: 26 | C30: 23.5 | E30: -0.24 | F30: 0.24 | G30: 0.06 | H30: -0.15 | J30: 0.25 | K30: -0.5 | L30: 45 | M30: 0 | O30: 0.24 | P30: -0.24 | Q30: -0.06 | R30: 0.15 | T30: 6 | U30: 26 | V30: OK
A31: 27 | C31: 22.5 | E31: -0.61 | F31: -0.7 | G31: -0.49 | H31: -0.44 | J31: 0 | K31: -0.75 | L31: 90 | M31: -0.375 | O31: 0.235 | P31: 0.325 | Q31: 0.115 | R31: 0.065 | T31: 6 | U31: 27 | V31: OK
A32: 28 | C32: 24 | E32: -0.13 | F32: -0.09 | G32: -0.19 | H32: -0.08 | J32: 0.5 | K32: -1 | L32: 70 | M32: 0 | O32: 0.13 | P32: 0.09 | Q32: 0.19 | R32: 0.08 | T32: 6 | U32: 28 | V32: OK
A33: 29 | C33: 26 | E33: -0.38 | F33: -0.02 | G33: -0.18 | H33: -0.28 | J33: -0.5 | K33: 0 | L33: 0 | M33: -0.5 | O33: -0.12 | P33: -0.48 | Q33: -0.32 | R33: -0.22 | T33: 6 | U33: 29 | V33: OK
A34: 30 | C34: 25 | E34: -0.56 | F34: -0.64 | G34: -0.35 | H34: -0.06 | J34: 0 | K34: 0 | L34: 0 | M34: 0 | O34: 0.56 | P34: 0.64 | Q34: 0.35 | R34: 0.06 | T34: 6 | U34: 30 | V34: OK
A35: 31 | C35: 14.5 | E35: -1.74 | F35: -1.4 | G35: -1.56 | H35: -1.74 | J35: -0.75 | K35: 0 | L35: 0 | M35: -0.75 | O35: 0.99 | P35: 0.65 | Q35: 0.81 | R35: 0.99 | T35: 7.5 | U35: 31 | V35: OK
A36: 32 | C36: 23.5 | E36: -0.45 | F36: 0.05 | G36: -0.21 | H36: -0.32 | J36: 0 | K36: 0 | L36: 0 | M36: 0 | O36: 0.45 | P36: -0.05 | Q36: 0.21 | R36: 0.32 | T36: 6 | U36: 32 | V36: OK
A37: 33 | C37: 13.5 | E37: -2.68 | F37: -2.69 | G37: -2.31 | H37: -2.14 | J37: -2.75 | K37: 0 | L37: 0 | M37: -2.75 | O37: -0.07 | P37: -0.06 | Q37: -0.44 | R37: -0.61 | T37: 9 | U37: 33 | V37: OK
A38: 34 | C38: 21 | E38: -0.47 | F38: -0.4 | G38: -0.29 | H38: -0.28 | J38: 0 | K38: -0.75 | L38: 75 | M38: -0.375 | O38: 0.095 | P38: 0.025 | Q38: -0.085 | R38: -0.095 | T38: 6 | U38: 34 | V38: OK
A39: 35 | C39: 23.5 | E39: -0.13 | F39: -0.28 | G39: 0.03 | H39: 0.48 | J39: 0.5 | K39: -0.75 | L39: 65 | M39: 0.125 | O39: 0.255 | P39: 0.405 | Q39: 0.095 | R39: -0.355 | T39: 6 | U39: 35 | V39: OK
A40: 36 | C40: 22 | E40: -0.25 | F40: -0.32 | G40: -0.35 | H40: -0.22 | J40: 0 | K40: -0.75 | L40: 70 | M40: -0.375 | O40: -0.125 | P40: -0.055 | Q40: -0.025 | R40: -0.155 | T40: 6 | U40: 36 | V40: OK
A41: 37 | C41: 23.5 | E41: -0.37 | F41: -0.43 | G41: -0.32 | H41: -0.05 | J41: -0.25 | K41: -0.75 | L41: 120 | M41: -0.625 | O41: -0.255 | P41: -0.195 | Q41: -0.305 | R41: -0.575 | T41: 6 | U41: 37 | V41: OK
A42: 38 | C42: 16.5 | E42: -0.46 | F42: -0.68 | G42: -0.35 | H42: -0.28 | J42: -1 | K42: 0 | L42: 0 | M42: -1 | O42: -0.54 | P42: -0.32 | Q42: -0.65 | R42: -0.72 | T42: 9 | U42: 38 | V42: OK
A43: 39 | C43: 21 | E43: -0.11 | F43: -0.29 | G43: -0.11 | H43: -0.04 | J43: 0 | K43: -0.5 | L43: 140 | M43: -0.25 | O43: -0.14 | P43: 0.04 | Q43: -0.14 | R43: -0.21 | T43: 6 | U43: 39 | V43: OK
A44: 40 | C44: 20.5 | E44: -0.19 | F44: -0.13 | G44: -0.15 | H44: -0.11 | J44: 0 | K44: -0.5 | L44: 80 | M44: -0.25 | O44: -0.06 | P44: -0.12 | Q44: -0.1 | R44: -0.14 | T44: 6 | U44: 40 | V44: OK
A45: 41 | C45: 17.5 | E45: -0.03 | F45: -0.06 | G45: -0.17 | H45: -0.13 | J45: -0.25 | K45: 0 | L45: 0 | M45: -0.25 | O45: -0.22 | P45: -0.19 | Q45: -0.08 | R45: -0.12 | T45: 6 | U45: 41 | V45: OK
A46: 42 | C46: 25 | E46: -0.08 | F46: -0.26 | G46: -0.24 | H46: -0.01 | J46: 0 | K46: -0.5 | L46: 90 | M46: -0.25 | O46: -0.17 | P46: 0.01 | Q46: -0.01 | R46: -0.24 | T46: 6 | U46: 42 | V46: OK
A47: 43 | C47: 21.5 | E47: -1.26 | F47: -1.35 | G47: -1.42 | H47: -1.29 | J47: -1.25 | K47: 0 | L47: 0 | M47: -1.25 | O47: 0.01 | P47: 0.1 | Q47: 0.17 | R47: 0.04 | T47: 6 | U47: 43 | V47: OK
A48: 44 | C48: 19 | E48: -0.35 | F48: -0.3 | G48: -0.32 | H48: -0.16 | J48: -0.25 | K48: 0 | L48: 0 | M48: -0.25 | O48: 0.1 | P48: 0.05 | Q48: 0.07 | R48: -0.09 | T48: 6 | U48: 44 | V48: OK
A49: 45 | C49: 23.5 | E49: -0.16 | F49: -0.11 | G49: -0.06 | H49: 0.02 | J49: -0.25 | K49: 0 | L49: 0 | M49: -0.25 | O49: -0.09 | P49: -0.14 | Q49: -0.19 | R49: -0.27 | T49: 6 | U49: 45 | V49: OK
A50: 46 | C50: 20.5 | E50: -2.75 | F50: -2.64 | G50: -2.47 | H50: -2.44 | J50: -3 | K50: -0.5 | L50: 150 | M50: -3.25 | O50: -0.5 | P50: -0.61 | Q50: -0.78 | R50: -0.81 | T50: 7.5 | U50: 46 | V50: OK
A51: 47 | C51: 23.5 | E51: -0.42 | F51: -0.34 | G51: -0.43 | H51: -0.46 | J51: -0.5 | K51: 0 | L51: 0 | M51: -0.5 | O51: -0.08 | P51: -0.16 | Q51: -0.07 | R51: -0.04 | T51: 6 | U51: 47 | V51: OK
A52: 48 | C52: 19.5 | E52: -0.48 | F52: -0.37 | G52: -0.32 | H52: -0.24 | J52: 0 | K52: -0.5 | L52: 30 | M52: -0.25 | O52: 0.23 | P52: 0.12 | Q52: 0.07 | R52: -0.01 | T52: 6 | U52: 48 | V52: OK
A53: 49 | C53: 16.5 | E53: -0.18 | F53: 0.04 | G53: -0.21 | H53: -0.38 | J53: -0.5 | K53: 0 | L53: 0 | M53: -0.5 | O53: -0.32 | P53: -0.54 | Q53: -0.29 | R53: -0.12 | T53: 7.5 | U53: 49 | V53: OK
A54: 50 | C54: 20 | E54: -0.3 | F54: -0.33 | G54: -0.06 | H54: 0.23 | J54: -0.25 | K54: 0 | L54: 0 | M54: -0.25 | O54: 0.05 | P54: 0.08 | Q54: -0.19 | R54: -0.48 | T54: 6 | U54: 50 | V54: OK
A55: 51 | C55: 18 | E55: -0.8 | F55: -0.59 | G55: -0.95 | H55: -1.05 | J55: 0.25 | K55: -0.75 | L55: 70 | M55: -0.125 | O55: 0.675 | P55: 0.465 | Q55: 0.825 | R55: 0.925 | T55: 6 | U55: 51 | V55: OK
A56: 52 | C56: 20 | E56: -0.21 | F56: -0.46 | G56: -0.23 | H56: 0.18 | J56: -0.5 | K56: -0.75 | L56: 80 | M56: -0.875 | O56: -0.665 | P56: -0.415 | Q56: -0.645 | R56: -1.055 | T56: 6 | U56: 52 | V56: OK
A57: 53 | C57: 19.5 | E57: -0.15 | F57: 0.27 | G57: -0.06 | H57: -0.17 | J57: -0.5 | K57: -0.5 | L57: 90 | M57: -0.75 | O57: -0.6 | P57: -1.02 | Q57: -0.69 | R57: -0.58 | T57: 6 | U57: 53 | V57: OK
A58: 54 | C58: 12 | E58: -2.05 | F58: -2.11 | G58: -2.34 | H58: -1.97 | J58: -2 | K58: 0 | L58: 0 | M58: -2 | O58: 0.05 | P58: 0.11 | Q58: 0.34 | R58: -0.03 | T58: 6 | U58: 54 | V58: OK
A59: 55 | C59: 18.5 | E59: -1.6 | F59: -1.5 | G59: -1.44 | H59: -1.29 | J59: -1.5 | K59: -0.5 | L59: 60 | M59: -1.75 | O59: -0.15 | P59: -0.25 | Q59: -0.31 | R59: -0.46 | T59: 6 | U59: 55 | V59: OK
A60: 56 | C60: 18.5 | E60: -0.38 | F60: -0.6 | G60: -0.25 | H60: 0.18 | J60: 0 | K60: -0.5 | L60: 150 | M60: -0.25 | O60: 0.13 | P60: 0.35 | Q60: 0 | R60: -0.43 | T60: 6 | U60: 56 | V60: OK
A61: 57 | C61: 22 | E61: -1.35 | F61: -1.28 | G61: -1.28 | H61: -1.2 | J61: -1.5 | K61: 0 | L61: 0 | M61: -1.5 | O61: -0.15 | P61: -0.22 | Q61: -0.22 | R61: -0.3 | T61: 6 | U61: 57 | V61: OK
A62: 58 | C62: 14.5 | E62: -0.51 | F62: -0.45 | G62: -0.47 | H62: -0.47 | J62: 1 | K62: -2.25 | L62: 110 | M62: -0.125 | O62: 0.385 | P62: 0.325 | Q62: 0.345 | R62: 0.345 | T62: 6 | U62: 58 | V62: OK
A63: 59 | C63: 22 | E63: -0.4 | F63: -0.17 | G63: -0.55 | H63: -0.59 | J63: -0.5 | K63: 0 | L63: 0 | M63: -0.5 | O63: -0.1 | P63: -0.33 | Q63: 0.05 | R63: 0.09 | T63: 6 | U63: 59 | V63: OK
A64: 60 | C64: 14.5 | E64: -0.46 | F64: -0.71 | G64: -0.49 | H64: -0.26 | J64: 0 | K64: -1.5 | L64: 90 | M64: -0.75 | O64: -0.29 | P64: -0.04 | Q64: -0.26 | R64: -0.49 | T64: 7.5 | U64: 60 | V64: OK
A65: 61 | C65: 16.5 | E65: -2.67 | F65: -2.59 | G65: -2.49 | H65: -2.4 | J65: -2.5 | K65: 0 | L65: 0 | M65: -2.5 | O65: 0.17 | P65: 0.09 | Q65: -0.01 | R65: -0.1 | T65: 6 | U65: 61 | V65: OK
A66: 62 | C66: 22.5 | E66: -0.41 | F66: -0.64 | G66: -0.41 | H66: -0.21 | J66: -1 | K66: 0 | L66: 0 | M66: -1 | O66: -0.59 | P66: -0.36 | Q66: -0.59 | R66: -0.79 | T66: 6 | U66: 62 | V66: OK
A67: 63 | C67: 17.5 | E67: -0.09 | F67: -0.12 | G67: -0.03 | H67: 0.12 | J67: 0 | K67: -0.5 | L67: 60 | M67: -0.25 | O67: -0.16 | P67: -0.13 | Q67: -0.22 | R67: -0.37 | T67: 6 | U67: 63 | V67: OK
A68: 64 | C68: 22 | E68: -2.05 | F68: -2.11 | G68: -2.34 | H68: -1.97 | J68: -2 | K68: 0 | L68: 0 | M68: -2 | O68: 0.05 | P68: 0.11 | Q68: 0.34 | R68: -0.03 | T68: 6 | U68: 64 | V68: OK
A69: 65 | C69: 20.5 | E69: -0.68 | F69: -0.46 | G69: -0.91 | H69: -0.96 | J69: 0 | K69: -0.75 | L69: 90 | M69: =IF(OR(J69="",K69="",L69=""),"",(J69+K69/2)+(1/6-1/$R$1)) -> -0.375 | O69: =IF(OR(E69="",$M69=""),"",$M69-E69) -> 0.305 | P69: =IF(OR(F69="",$M69=""),"",$M69-F69) -> 0.085 | Q69: =IF(OR(G69="",$M69=""),"",$M69-G69) -> 0.535 | R69: =IF(OR(H69="",$M69=""),"",$M69-H69) -> 0.585 | T69: 7.5 | U69: =IF(V69<>"",A69,"") -> 65 | V69: =IF(AND(C69="",E69="",F69="",G69="",H69="",J69="",K69="",L69="",T69=""),"",IF(OR(C69="",J69="",K69="",L69="",T69="",AND($T$1="meters",T69>12),AND($T$1="feet",T69>40)),"Error","OK")) -> OK
A70: 66 | C70: 22.5 | E70: -2.37 | F70: -2.22 | G70: -2.56 | H70: -2.44 | J70: -1.25 | K70: -1 | L70: 170 | M70: -1.75 | O70: 0.62 | P70: 0.47 | Q70: 0.81 | R70: 0.69 | T70: 6 | U70: 66 | V70: OK
A71: 67 | C71: 20.5 | E71: -0.55 | F71: -0.54 | G71: -0.44 | H71: -0.31 | J71: 0 | K71: -1.75 | L71: 90 | M71: -0.875 | O71: -0.325 | P71: -0.335 | Q71: -0.435 | R71: -0.565 | T71: 6 | U71: 67 | V71: OK
A72: 68 | C72: 14.5 | E72: -0.3 | F72: -0.21 | G72: -0.09 | H72: -0.06 | J72: 0 | K72: -0.75 | L72: 100 | M72: -0.375 | O72: -0.075 | P72: -0.165 | Q72: -0.285 | R72: -0.315 | T72: 6 | U72: 68 | V72: OK
A73: 69 | C73: 18 | E73: -0.31 | F73: -0.26 | G73: -0.5 | H73: -0.45 | J73: -0.25 | K73: 0 | L73: 0 | M73: -0.25 | O73: 0.06 | P73: 0.01 | Q73: 0.25 | R73: 0.2 | T73: 4.5 | U73: 69 | V73: OK
A74: 70 | C74: 18 | E74: -1.67 | F74: -1.1 | G74: -1.24 | H74: -1.39 | J74: -1.75 | K74: 0 | L74: 0 | M74: -1.75 | O74: -0.08 | P74: -0.65 | Q74: -0.51 | R74: -0.36 | T74: 6 | U74: 70 | V74: OK
A75: 71 | C75: 22.5 | E75: -0.28 | F75: -0.27 | G75: -0.9 | H75: -0.41 | J75: -0.25 | K75: 0 | L75: 0 | M75: -0.25 | O75: 0.03 | P75: 0.02 | Q75: 0.65 | R75: 0.16 | T75: 6 | U75: 71 | V75: OK
A76: 72 | C76: 16.5 | E76: -1.08 | F76: -1.01 | G76: -1.22 | H76: -1.28 | J76: -1.25 | K76: -0.5 | L76: 30 | M76: -1.5 | O76: -0.42 | P76: -0.49 | Q76: -0.28 | R76: -0.22 | T76: 6 | U76: 72 | V76: OK
A77: 73 | C77: 22 | E77: -1.71 | F77: -1.55 | G77: -1.95 | H77: -1.86 | J77: -1.5 | K77: 0 | L77: 0 | M77: -1.5 | O77: 0.21 | P77: 0.05 | Q77: 0.45 | R77: 0.36 | T77: 6 | U77: 73 | V77: OK
A78: 74 | C78: 25 | E78: -0.1 | F78: 0.16 | G78: -0.48 | H78: -0.39 | J78: 0 | K78: 0 | L78: 0 | M78: 0 | O78: 0.1 | P78: -0.16 | Q78: 0.48 | R78: 0.39 | T78: 6 | U78: 74 | V78: OK
A79: 75 | C79: 7.5 | E79: -0.44 | F79: -0.39 | G79: -0.28 | H79: -0.13 | J79: -0.25 | K79: -0.5 | L79: 90 | M79: -0.5 | O79: -0.06 | P79: -0.11 | Q79: -0.22 | R79: -0.37 | T79: 6 | U79: 75 | V79: OK
A80: 76 | C80: 19.5 | E80: -0.43 | F80: -0.17 | G80: -0.39 | H80: -0.39 | J80: 0.25 | K80: -0.5 | L80: 60 | M80: 0 | O80: 0.43 | P80: 0.17 | Q80: 0.39 | R80: 0.39 | T80: 6 | U80: 76 | V80: OK
A81: 77 | C81: 17.5 | E81: -0.5 | F81: -0.56 | G81: -0.38 | H81: -0.22 | J81: -0.25 | K81: 0 | L81: 0 | M81: -0.25 | O81: 0.25 | P81: 0.31 | Q81: 0.13 | R81: -0.03 | T81: 6 | U81: 77 | V81: OK
A82: 78 | C82: 16 | E82: -0.14 | F82: -0.01 | G82: 0.13 | H82: 0.2 | J82: 0 | K82: -0.5 | L82: 80 | M82: -0.25 | O82: -0.11 | P82: -0.24 | Q82: -0.38 | R82: -0.45 | T82: 6 | U82: 78 | V82: OK
A83: 79 | C83: 20.5 | E83: -0.27 | F83: -0.43 | G83: -0.16 | H83: 0.04 | J83: -0.5 | K83: -0.5 | L83: 160 | M83: -0.75 | O83: -0.48 | P83: -0.32 | Q83: -0.59 | R83: -0.79 | T83: 6 | U83: 79 | V83: OK
A84: 80 | C84: 19 | E84: -0.41 | F84: -0.3 | G84: -0.27 | H84: -0.27 | J84: 0 | K84: -1 | L84: 70 | M84: -0.5 | O84: -0.09 | P84: -0.2 | Q84: -0.23 | R84: -0.23 | T84: 9 | U84: 80 | V84: OK
A85: 81 | C85: 24 | E85: -0.37 | F85: -0.33 | G85: -0.58 | H85: -0.65 | J85: 0 | K85: -0.25 | L85: 40 | M85: -0.125 | O85: 0.245 | P85: 0.205 | Q85: 0.455 | R85: 0.525 | T85: 6 | U85: 81 | V85: OK
A86: 82 | C86: 23.5 | E86: -0.38 | F86: -0.14 | G86: -0.23 | H86: -0.19 | J86: 0.5 | K86: -1 | L86: 60 | M86: 0 | O86: 0.38 | P86: 0.14 | Q86: 0.23 | R86: 0.19 | T86: 6 | U86: 82 | V86: OK
A87: 83 | C87: 22 | E87: -2.13 | F87: -2.18 | G87: -2.85 | H87: -2.29 | J87: -1.5 | K87: -1 | L87: 50 | M87: -2 | O87: 0.13 | P87: 0.18 | Q87: 0.85 | R87: 0.29 | T87: 6 | U87: 83 | V87: OK
A88: 84 | C88: 24 | E88: -0.25 | F88: 0.03 | G88: -0.11 | H88: -0.16 | J88: -0.5 | K88: 0 | L88: 0 | M88: -0.5 | O88: -0.25 | P88: -0.53 | Q88: -0.39 | R88: -0.34 | T88: 6 | U88: 84 | V88: OK
A89: 85 | C89: 24.5 | E89: -0.35 | F89: -0.25 | G89: -0.19 | H89: -0.24 | J89: 0 | K89: -0.5 | L89: 70 | M89: -0.25 | O89: 0.1 | P89: 0 | Q89: -0.06 | R89: -0.01 | T89: 6 | U89: 85 | V89: OK
A90: 86
A91: 87
A92: 88
A93: 89
A94: 90
A95: 91
A96: 92
A97: 93
A98: 94
A99: 95
A100: 96
A101: 97
A102: 98
A103: 99
A104: 100
A105: 101
A106: 102
A107: 103
A108: 104
A109: 105
A110: 106
A111: 107
A112: 108
A113: 109
A114: 110
A115: 111
A116: 112
A117: 113
A118: 114
A119: 115
A120: 116
A121: 117
A122: 118
A123: 119
A124: 120
A125: 121
A126: 122
A127: 123
A128: 124
A129: 125
A130: 126
A131: 127
A132: 128
A133: 129 | M133: =IF(OR(J133="",K133="",L133=""),"",(J133+K133/2)+(1/6-1/$R$1)) ->  | O133: =IF(OR(E133="",$M133=""),"",$M133-E133) ->  | P133: =IF(OR(F133="",$M133=""),"",$M133-F133) ->  | Q133: =IF(OR(G133="",$M133=""),"",$M133-G133) ->  | R133: =IF(OR(H133="",$M133=""),"",$M133-H133) ->  | U133: =IF(V133<>"",A133,"") ->  | V133: =IF(AND(C133="",E133="",F133="",G133="",H133="",J133="",K133="",L133="",T133=""),"",IF(OR(C133="",J133="",K133="",L133="",T133="",AND($T$1="meters",T133>12),AND($T$1="feet",T133>40)),"Error","OK")) -> 
A134: 130
A135: 131
A136: 132
A137: 133
A138: 134
A139: 135
A140: 136
A141: 137
A142: 138
A143: 139
A144: 140
A145: 141
A146: 142
A147: 143
A148: 144
A149: 145
A150: 146
A151: 147
A152: 148
A153: 149
A154: 150
A155: 151
A156: 152
A157: 153
A158: 154
A159: 155
A160: 156
A161: 157
A162: 158
A163: 159
A164: 160
A165: 161
A166: 162
A167: 163
A168: 164
A169: 165
A170: 166
A171: 167
A172: 168
A173: 169
A174: 170
A175: 171
A176: 172
A177: 173
A178: 174
A179: 175
A180: 176
A181: 177
A182: 178
A183: 179
A184: 180
A185: 181
A186: 182
A187: 183
A188: 184
A189: 185
A190: 186
A191: 187
A192: 188
A193: 189
A194: 190
A195: 191
A196: 192
A197: 193 | M197: =IF(OR(J197="",K197="",L197=""),"",(J197+K197/2)+(1/6-1/$R$1)) ->  | O197: =IF(OR(E197="",$M197=""),"",$M197-E197) ->  | P197: =IF(OR(F197="",$M197=""),"",$M197-F197) ->  | Q197: =IF(OR(G197="",$M197=""),"",$M197-G197) ->  | R197: =IF(OR(H197="",$M197=""),"",$M197-H197) ->  | U197: =IF(V197<>"",A197,"") ->  | V197: =IF(AND(C197="",E197="",F197="",G197="",H197="",J197="",K197="",L197="",T197=""),"",IF(OR(C197="",J197="",K197="",L197="",T197="",AND($T$1="meters",T197>12),AND($T$1="feet",T197>40)),"Error","OK")) -> 
A198: 194
A199: 195
A200: 196
... 2804 more rows

Sheet Figures
AC2: N =
C21: MNE | D21: SD | E21: Min | F21: Max | G21: MAE | H21: MedAE | N21: MNE | O21: SD | P21: Min | Q21: Max | R21: MAE | S21: MedAE | X21: E-SD
C22: =Postoperative_data!W3 -> -0.03441176471 | D22: =Postoperative_data!W4 -> 0.3745683098 | E22: =Postoperative_data!W5 -> -1.29 | F22: =Postoperative_data!W6 -> 0.99 | G22: =Postoperative_data!W7 -> 0.2842941176 | H22: =Postoperative_data!W8 -> 0.215 | N22: =Postoperative_data!X3 -> -0.08711764706 | O22: =Postoperative_data!X4 -> 0.3613759461 | P22: =Postoperative_data!X5 -> -1.35 | Q22: =Postoperative_data!X6 -> 0.65 | R22: =Postoperative_data!X7 -> 0.2755882353 | S22: =Postoperative_data!X8 -> 0.2 | X22: 4
C45: MNE | D45: SD | E45: Min | F45: Max | G45: MAE | H45: MedAE | N45: MNE | O45: SD | P45: Min | Q45: Max | R45: MAE | S45: MedAE
C46: =Postoperative_data!Y3 -> -0.05452941176 | D46: =Postoperative_data!Y4 -> 0.4507174826 | E46: =Postoperative_data!Y5 -> -1.42 | F46: =Postoperative_data!Y6 -> 0.915 | G46: =Postoperative_data!Y7 -> 0.3520588235 | H46: =Postoperative_data!Y8 -> 0.29 | N46: =Postoperative_data!Z3 -> -0.1492352941 | O46: =Postoperative_data!Z4 -> 0.4615654347 | P46: =Postoperative_data!Z5 -> -1.23 | Q46: =Postoperative_data!Z6 -> 0.99 | R46: =Postoperative_data!Z7 -> 0.3819411765 | S46: =Postoperative_data!Z8 -> 0.32

Sheet Postoperative_data (hidden)
B1: =Data_Input!O3 -> Post-op SEQ Numerical Error | G1: SD | L1: New Post-op SEQ Numerical Error | Q1: New Post-op AE | W1: New Post-op SEQ Numerical Error
A2: No. | B2: =Data_Input!O4 -> Barrett UII | C2: =Data_Input!P4 -> Haigis | D2: =Data_Input!Q4 -> Holladay 1 | E2: =Data_Input!R4 -> SRK/T | G2: =B2 -> Barrett UII | H2: =C2 -> Haigis | I2: Holladay 1 | J2: SRK/T | L2: =B2 -> Barrett UII | M2: =C2 -> Haigis | N2: Holladay 1 | O2: SRK/T | Q2: =G2 -> Barrett UII | R2: =H2 -> Haigis | S2: =I2 -> Holladay 1 | T2: =J2 -> SRK/T | W2: =L2 -> Barrett UII | X2: =M2 -> Haigis | Y2: Holladay 1 | Z2: SRK/T
A3: 1 | B3: =Data_Input!O5 -> 0 | C3: =Data_Input!P5 -> -0.27 | D3: =Data_Input!Q5 -> -0.02 | E3: =Data_Input!R5 -> 0.13 | G3: =_xlfn.STDEV.P(B3:B3002) -> 0.3745683098 | H3: =_xlfn.STDEV.P(C3:C3002) -> 0.3613759461 | I3: =_xlfn.STDEV.P(D3:D3002) -> 0.4507174826 | J3: 0.4615654347 | L3: =IFERROR(IF(OR(AND(Data_Input!$T$1="meters",Data_Input!$T5>12),(AND(Data_Input!$T$1="feet",Data_Input!$T5>40)),ABS(B3)>$G$4),"",B3),"") -> 0 | M3: =IFERROR(IF(OR(AND(Data_Input!$T$1="meters",Data_Input!$T5>12),(AND(Data_Input!$T$1="feet",Data_Input!$T5>40)),ABS(C3)>$G$4),"",C3),"") -> -0.27 | N3: =IFERROR(IF(OR(AND(Data_Input!$T$1="meters",Data_Input!$T5>12),(AND(Data_Input!$T$1="feet",Data_Input!$T5>40)),ABS(D3)>$G$4),"",D3),"") -> -0.02 | O3: =IFERROR(IF(OR(AND(Data_Input!$T$1="meters",Data_Input!$T5>12),(AND(Data_Input!$T$1="feet",Data_Input!$T5>40)),ABS(E3)>$G$4),"",E3),"") -> 0.13 | Q3: =IFERROR(ABS(L3),"") -> 0 | R3: =IFERROR(ABS(M3),"") -> 0.27 | S3: 0.02 | T3: 0.13 | V3: MNE | W3: =AVERAGE(L3:L3002) -> -0.03441176471 | X3: =AVERAGE(M3:M3002) -> -0.08711764706 | Y3: =AVERAGE(N3:N3002) -> -0.05452941176 | Z3: =AVERAGE(O3:O3002) -> -0.1492352941 | AC3: meters
A4: 2 | B4: =Data_Input!O6 -> -0.215 | C4: =Data_Input!P6 -> -0.215 | D4: =Data_Input!Q6 -> -0.215 | E4: =Data_Input!R6 -> -0.155 | G4: =G3*Figures!$X$22 -> 1.498273239 | H4: =H3*Figures!$X$22 -> 1.445503784 | I4: =I3*Figures!$X$22 -> 1.80286993 | J4: =J3*Figures!$X$22 -> 1.846261739 | L4: =IFERROR(IF(OR(AND(Data_Input!$T$1="meters",Data_Input!$T6>12),(AND(Data_Input!$T$1="feet",Data_Input!$T6>40)),ABS(B4)>$G$4),"",B4),"") -> -0.215 | M4: =IFERROR(IF(OR(AND(Data_Input!$T$1="meters",Data_Input!$T6>12),(AND(Data_Input!$T$1="feet",Data_Input!$T6>40)),ABS(C4)>$G$4),"",C4),"") -> -0.215 | N4: =IFERROR(IF(OR(AND(Data_Input!$T$1="meters",Data_Input!$T6>12),(AND(Data_Input!$T$1="feet",Data_Input!$T6>40)),ABS(D4)>$G$4),"",D4),"") -> -0.215 | O4: =IFERROR(IF(OR(AND(Data_Input!$T$1="meters",Data_Input!$T6>12),(AND(Data_Input!$T$1="feet",Data_Input!$T6>40)),ABS(E4)>$G$4),"",E4),"") -> -0.155 | Q4: =IFERROR(ABS(L4),"") -> 0.215 | R4: =IFERROR(ABS(M4),"") -> 0.215 | S4: =IFERROR(ABS(N4),"") -> 0.215 | T4: =IFERROR(ABS(O4),"") -> 0.155 | V4: SD | W4: =_xlfn.STDEV.P(L3:L3002) -> 0.3745683098 | X4: =_xlfn.STDEV.P(M3:M3002) -> 0.3613759461 | Y4: =_xlfn.STDEV.P(N3:N3002) -> 0.4507174826 | Z4: =_xlfn.STDEV.P(O3:O3002) -> 0.4615654347 | AC4: feet
A5: 3 | B5: =Data_Input!O7 -> -1.02 | C5: =Data_Input!P7 -> -1.03 | D5: =Data_Input!Q7 -> -1.04 | E5: =Data_Input!R7 -> -1.07 | L5: =IFERROR(IF(OR(AND(Data_Input!$T$1="meters",Data_Input!$T7>12),(AND(Data_Input!$T$1="feet",Data_Input!$T7>40)),ABS(B5)>$G$4),"",B5),"") -> -1.02 | M5: =IFERROR(IF(OR(AND(Data_Input!$T$1="meters",Data_Input!$T7>12),(AND(Data_Input!$T$1="feet",Data_Input!$T7>40)),ABS(C5)>$G$4),"",C5),"") -> -1.03 | N5: =IFERROR(IF(OR(AND(Data_Input!$T$1="meters",Data_Input!$T7>12),(AND(Data_Input!$T$1="feet",Data_Input!$T7>40)),ABS(D5)>$G$4),"",D5),"") -> -1.04 | O5: =IFERROR(IF(OR(AND(Data_Input!$T$1="meters",Data_Input!$T7>12),(AND(Data_Input!$T$1="feet",Data_Input!$T7>40)),ABS(E5)>$G$4),"",E5),"") -> -1.07 | Q5: 1.02 | R5: 1.03 | S5: 1.04 | T5: 1.07 | V5: Min | W5: =MIN(L3:L3002) -> -1.29 | X5: =MIN(M3:M3002) -> -1.35 | Y5: =MIN(N3:N3002) -> -1.42 | Z5: =MIN(O3:O3002) -> -1.23
A6: 4 | B6: =Data_Input!O8 -> -1.29 | C6: =Data_Input!P8 -> -1.35 | D6: =Data_Input!Q8 -> -1.42 | E6: =Data_Input!R8 -> -1.23 | L6: =IFERROR(IF(OR(AND(Data_Input!$T$1="meters",Data_Input!$T8>12),(AND(Data_Input!$T$1="feet",Data_Input!$T8>40)),ABS(B6)>$G$4),"",B6),"") -> -1.29 | M6: =IFERROR(IF(OR(AND(Data_Input!$T$1="meters",Data_Input!$T8>12),(AND(Data_Input!$T$1="feet",Data_Input!$T8>40)),ABS(C6)>$G$4),"",C6),"") -> -1.35 | N6: =IFERROR(IF(OR(AND(Data_Input!$T$1="meters",Data_Input!$T8>12),(AND(Data_Input!$T$1="feet",Data_Input!$T8>40)),ABS(D6)>$G$4),"",D6),"") -> -1.42 | O6: =IFERROR(IF(OR(AND(Data_Input!$T$1="meters",Data_Input!$T8>12),(AND(Data_Input!$T$1="feet",Data_Input!$T8>40)),ABS(E6)>$G$4),"",E6),"") -> -1.23 | Q6: 1.29 | R6: 1.35 | S6: 1.42 | T6: 1.23 | V6: Max | W6: =MAX(L3:L3002) -> 0.99 | X6: =MAX(M3:M3002) -> 0.65 | Y6: =MAX(N3:N3002) -> 0.915 | Z6: =MAX(O3:O3002) -> 0.99
A7: 5 | B7: =Data_Input!O9 -> 0.405 | C7: =Data_Input!P9 -> 0.445 | D7: =Data_Input!Q9 -> 0.915 | E7: =Data_Input!R9 -> 0.445 | L7: =IFERROR(IF(OR(AND(Data_Input!$T$1="meters",Data_Input!$T9>12),(AND(Data_Input!$T$1="feet",Data_Input!$T9>40)),ABS(B7)>$G$4),"",B7),"") -> 0.405 | M7: =IFERROR(IF(OR(AND(Data_Input!$T$1="meters",Data_Input!$T9>12),(AND(Data_Input!$T$1="feet",Data_Input!$T9>40)),ABS(C7)>$G$4),"",C7),"") -> 0.445 | N7: =IFERROR(IF(OR(AND(Data_Input!$T$1="meters",Data_Input!$T9>12),(AND(Data_Input!$T$1="feet",Data_Input!$T9>40)),ABS(D7)>$G$4),"",D7),"") -> 0.915 | O7: =IFERROR(IF(OR(AND(Data_Input!$T$1="meters",Data_Input!$T9>12),(AND(Data_Input!$T$1="feet",Data_Input!$T9>40)),ABS(E7)>$G$4),"",E7),"") -> 0.445 | Q7: 0.405 | R7: 0.445 | S7: 0.915 | T7: 0.445 | V7: MAE | W7: =AVERAGE(Q3:Q3002) -> 0.2842941176 | X7: =AVERAGE(R3:R3002) -> 0.2755882353 | Y7: =AVERAGE(S3:S3002) -> 0.3520588235 | Z7: =AVERAGE(T3:T3002) -> 0.3819411765
A8: 6 | B8: =Data_Input!O10 -> -0.41 | C8: =Data_Input!P10 -> -0.29 | D8: =Data_Input!Q10 -> -0.5 | E8: =Data_Input!R10 -> -0.88 | L8: =IFERROR(IF(OR(AND(Data_Input!$T$1="meters",Data_Input!$T10>12),(AND(Data_Input!$T$1="feet",Data_Input!$T10>40)),ABS(B8)>$G$4),"",B8),"") -> -0.41 | M8: =IFERROR(IF(OR(AND(Data_Input!$T$1="meters",Data_Input!$T10>12),(AND(Data_Input!$T$1="feet",Data_Input!$T10>40)),ABS(C8)>$G$4),"",C8),"") -> -0.29 | N8: =IFERROR(IF(OR(AND(Data_Input!$T$1="meters",Data_Input!$T10>12),(AND(Data_Input!$T$1="feet",Data_Input!$T10>40)),ABS(D8)>$G$4),"",D8),"") -> -0.5 | O8: =IFERROR(IF(OR(AND(Data_Input!$T$1="meters",Data_Input!$T10>12),(AND(Data_Input!$T$1="feet",Data_Input!$T10>40)),ABS(E8)>$G$4),"",E8),"") -> -0.88 | Q8: 0.41 | R8: 0.29 | S8: 0.5 | T8: 0.88 | V8: Median AE | W8: =MEDIAN(Q3:Q3002) -> 0.215 | X8: =MEDIAN(R3:R3002) -> 0.2 | Y8: =MEDIAN(S3:S3002) -> 0.29 | Z8: =MEDIAN(T3:T3002) -> 0.32
A9: 7 | B9: =Data_Input!O11 -> 0.15 | C9: =Data_Input!P11 -> 0.07 | D9: =Data_Input!Q11 -> 0.86 | E9: =Data_Input!R11 -> 0.48 | L9: =IFERROR(IF(OR(AND(Data_Input!$T$1="meters",Data_Input!$T11>12),(AND(Data_Input!$T$1="feet",Data_Input!$T11>40)),ABS(B9)>$G$4),"",B9),"") -> 0.15 | M9: =IFERROR(IF(OR(AND(Data_Input!$T$1="meters",Data_Input!$T11>12),(AND(Data_Input!$T$1="feet",Data_Input!$T11>40)),ABS(C9)>$G$4),"",C9),"") -> 0.07 | N9: =IFERROR(IF(OR(AND(Data_Input!$T$1="meters",Data_Input!$T11>12),(AND(Data_Input!$T$1="feet",Data_Input!$T11>40)),ABS(D9)>$G$4),"",D9),"") -> 0.86 | O9: =IFERROR(IF(OR(AND(Data_Input!$T$1="meters",Data_Input!$T11>12),(AND(Data_Input!$T$1="feet",Data_Input!$T11>40)),ABS(E9)>$G$4),"",E9),"") -> 0.48 | Q9: 0.15 | R9: 0.07 | S9: 0.86 | T9: 0.48 | V9: ± 0.25D : | W9: =COUNTIF(Q$3:Q$3002,"<=0.25")/COUNT(Q$3:Q$3002) -> 0.6 | X9: =COUNTIF(R$3:R$3002,"<=0.25")/COUNT(R$3:R$3002) -> 0.5882352941 | Y9: =COUNTIF(S$3:S$3002,"<=0.25")/COUNT(S$3:S$3002) -> 0.4470588235 | Z9: =COUNTIF(T$3:T$3002,"<=0.25")/COUNT(T$3:T$3002) -> 0.4235294118
A10: 8 | B10: =Data_Input!O12 -> 0.495 | C10: =Data_Input!P12 -> 0.445 | D10: =Data_Input!Q12 -> 0.575 | E10: =Data_Input!R12 -> 0.645 | L10: =IFERROR(IF(OR(AND(Data_Input!$T$1="meters",Data_Input!$T12>12),(AND(Data_Input!$T$1="feet",Data_Input!$T12>40)),ABS(B10)>$G$4),"",B10),"") -> 0.495 | M10: =IFERROR(IF(OR(AND(Data_Input!$T$1="meters",Data_Input!$T12>12),(AND(Data_Input!$T$1="feet",Data_Input!$T12>40)),ABS(C10)>$G$4),"",C10),"") -> 0.445 | N10: =IFERROR(IF(OR(AND(Data_Input!$T$1="meters",Data_Input!$T12>12),(AND(Data_Input!$T$1="feet",Data_Input!$T12>40)),ABS(D10)>$G$4),"",D10),"") -> 0.575 | O10: =IFERROR(IF(OR(AND(Data_Input!$T$1="meters",Data_Input!$T12>12),(AND(Data_Input!$T$1="feet",Data_Input!$T12>40)),ABS(E10)>$G$4),"",E10),"") -> 0.645 | Q10: 0.495 | R10: 0.445 | S10: 0.575 | T10: 0.645 | V10: ± 0.50D : | W10: =COUNTIF(Q$3:Q$3002,"<=0.50")/COUNT(Q$3:Q$3002) -> 0.8352941176 | X10: =COUNTIF(R$3:R$3002,"<=0.50")/COUNT(R$3:R$3002) -> 0.8588235294 | Y10: =COUNTIF(S$3:S$3002,"<=0.50")/COUNT(S$3:S$3002) -> 0.7529411765 | Z10: =COUNTIF(T$3:T$3002,"<=0.50")/COUNT(T$3:T$3002) -> 0.7058823529
A11: 9 | B11: =Data_Input!O13 -> 0.14 | C11: =Data_Input!P13 -> -0.12 | D11: =Data_Input!Q13 -> 0.09 | E11: =Data_Input!R13 -> 0.34 | L11: =IFERROR(IF(OR(AND(Data_Input!$T$1="meters",Data_Input!$T13>12),(AND(Data_Input!$T$1="feet",Data_Input!$T13>40)),ABS(B11)>$G$4),"",B11),"") -> 0.14 | M11: =IFERROR(IF(OR(AND(Data_Input!$T$1="meters",Data_Input!$T13>12),(AND(Data_Input!$T$1="feet",Data_Input!$T13>40)),ABS(C11)>$G$4),"",C11),"") -> -0.12 | N11: =IFERROR(IF(OR(AND(Data_Input!$T$1="meters",Data_Input!$T13>12),(AND(Data_Input!$T$1="feet",Data_Input!$T13>40)),ABS(D11)>$G$4),"",D11),"") -> 0.09 | O11: =IFERROR(IF(OR(AND(Data_Input!$T$1="meters",Data_Input!$T13>12),(AND(Data_Input!$T$1="feet",Data_Input!$T13>40)),ABS(E11)>$G$4),"",E11),"") -> 0.34 | Q11: 0.14 | R11: 0.12 | S11: 0.09 | T11: 0.34 | V11: ± 1.00D : | W11: =COUNTIF(Q$3:Q$3002,"<=1")/COUNT(Q$3:Q$3002) -> 0.9764705882 | X11: =COUNTIF(R$3:R$3002,"<=1")/COUNT(R$3:R$3002) -> 0.9647058824 | Y11: =COUNTIF(S$3:S$3002,"<=1")/COUNT(S$3:S$3002) -> 0.9764705882 | Z11: =COUNTIF(T$3:T$3002,"<=1")/COUNT(T$3:T$3002) -> 0.9529411765
A12: 10 | B12: =Data_Input!O14 -> 0.13 | C12: =Data_Input!P14 -> 0.18 | D12: =Data_Input!Q14 -> -0.1 | E12: =Data_Input!R14 -> -0.25 | L12: =IFERROR(IF(OR(AND(Data_Input!$T$1="meters",Data_Input!$T14>12),(AND(Data_Input!$T$1="feet",Data_Input!$T14>40)),ABS(B12)>$G$4),"",B12),"") -> 0.13 | M12: =IFERROR(IF(OR(AND(Data_Input!$T$1="meters",Data_Input!$T14>12),(AND(Data_Input!$T$1="feet",Data_Input!$T14>40)),ABS(C12)>$G$4),"",C12),"") -> 0.18 | N12: =IFERROR(IF(OR(AND(Data_Input!$T$1="meters",Data_Input!$T14>12),(AND(Data_Input!$T$1="feet",Data_Input!$T14>40)),ABS(D12)>$G$4),"",D12),"") -> -0.1 | O12: =IFERROR(IF(OR(AND(Data_Input!$T$1="meters",Data_Input!$T14>12),(AND(Data_Input!$T$1="feet",Data_Input!$T14>40)),ABS(E12)>$G$4),"",E12),"") -> -0.25 | Q12: 0.13 | R12: 0.18 | S12: 0.1 | T12: 0.25
A13: 11 | B13: =Data_Input!O15 -> -0.295 | C13: =Data_Input!P15 -> -0.055 | D13: =Data_Input!Q15 -> -0.035 | E13: =Data_Input!R15 -> -0.105 | L13: =IFERROR(IF(OR(AND(Data_Input!$T$1="meters",Data_Input!$T15>12),(AND(Data_Input!$T$1="feet",Data_Input!$T15>40)),ABS(B13)>$G$4),"",B13),"") -> -0.295 | M13: =IFERROR(IF(OR(AND(Data_Input!$T$1="meters",Data_Input!$T15>12),(AND(Data_Input!$T$1="feet",Data_Input!$T15>40)),ABS(C13)>$G$4),"",C13),"") -> -0.055 | N13: =IFERROR(IF(OR(AND(Data_Input!$T$1="meters",Data_Input!$T15>12),(AND(Data_Input!$T$1="feet",Data_Input!$T15>40)),ABS(D13)>$G$4),"",D13),"") -> -0.035 | O13: =IFERROR(IF(OR(AND(Data_Input!$T$1="meters",Data_Input!$T15>12),(AND(Data_Input!$T$1="feet",Data_Input!$T15>40)),ABS(E13)>$G$4),"",E13),"") -> -0.105 | Q13: 0.295 | R13: 0.055 | S13: 0.035 | T13: 0.105 | V13: < -1.50D | W13: =COUNTIF(L3:L3002,"<-1.50")/COUNT(L3:L3002) -> 0 | X13: =COUNTIF(M3:M3002,"<-1.50")/COUNT(M3:M3002) -> 0 | Y13: =COUNTIF(N3:N3002,"<-1.50")/COUNT(N3:N3002) -> 0 | Z13: =COUNTIF(O3:O3002,"<-1.50")/COUNT(O3:O3002) -> 0
A14: 12 | B14: =Data_Input!O16 -> 0.08 | C14: =Data_Input!P16 -> -0.2 | D14: =Data_Input!Q16 -> -0.11 | E14: =Data_Input!R16 -> -0.13 | L14: =IFERROR(IF(OR(AND(Data_Input!$T$1="meters",Data_Input!$T16>12),(AND(Data_Input!$T$1="feet",Data_Input!$T16>40)),ABS(B14)>$G$4),"",B14),"") -> 0.08 | M14: =IFERROR(IF(OR(AND(Data_Input!$T$1="meters",Data_Input!$T16>12),(AND(Data_Input!$T$1="feet",Data_Input!$T16>40)),ABS(C14)>$G$4),"",C14),"") -> -0.2 | N14: =IFERROR(IF(OR(AND(Data_Input!$T$1="meters",Data_Input!$T16>12),(AND(Data_Input!$T$1="feet",Data_Input!$T16>40)),ABS(D14)>$G$4),"",D14),"") -> -0.11 | O14: =IFERROR(IF(OR(AND(Data_Input!$T$1="meters",Data_Input!$T16>12),(AND(Data_Input!$T$1="feet",Data_Input!$T16>40)),ABS(E14)>$G$4),"",E14),"") -> -0.13 | Q14: 0.08 | R14: 0.2 | S14: 0.11 | T14: 0.13 | V14: -1.50D to -1.01D | W14: =COUNTIFS(L3:L3002,">=-1.50",L3:L3002, "<-1.0")/COUNT(L3:L3002) -> 0.02352941176 | X14: =COUNTIFS(M3:M3002,">=-1.50",M3:M3002, "<-1.0")/COUNT(M3:M3002) -> 0.03529411765 | Y14: =COUNTIFS(N3:N3002,">=-1.50",N3:N3002, "<-1.0")/COUNT(N3:N3002) -> 0.02352941176 | Z14: =COUNTIFS(O3:O3002,">=-1.50",O3:O3002, "<-1.0")/COUNT(O3:O3002) -> 0.04705882353
A15: 13 | B15: =Data_Input!O17 -> -0.45 | C15: =Data_Input!P17 -> -0.31 | D15: =Data_Input!Q17 -> -0.6 | E15: =Data_Input!R17 -> -0.78 | L15: =IFERROR(IF(OR(AND(Data_Input!$T$1="meters",Data_Input!$T17>12),(AND(Data_Input!$T$1="feet",Data_Input!$T17>40)),ABS(B15)>$G$4),"",B15),"") -> -0.45 | M15: =IFERROR(IF(OR(AND(Data_Input!$T$1="meters",Data_Input!$T17>12),(AND(Data_Input!$T$1="feet",Data_Input!$T17>40)),ABS(C15)>$G$4),"",C15),"") -> -0.31 | N15: =IFERROR(IF(OR(AND(Data_Input!$T$1="meters",Data_Input!$T17>12),(AND(Data_Input!$T$1="feet",Data_Input!$T17>40)),ABS(D15)>$G$4),"",D15),"") -> -0.6 | O15: =IFERROR(IF(OR(AND(Data_Input!$T$1="meters",Data_Input!$T17>12),(AND(Data_Input!$T$1="feet",Data_Input!$T17>40)),ABS(E15)>$G$4),"",E15),"") -> -0.78 | Q15: 0.45 | R15: 0.31 | S15: 0.6 | T15: 0.78 | V15: -1.00D to -0.51D | W15: =COUNTIFS(L3:L3002,">=-1.00",L3:L3002, "<-0.50")/COUNT(L3:L3002) -> 0.08235294118 | X15: =COUNTIFS(M3:M3002,">=-1.00",M3:M3002, "<-0.50")/COUNT(M3:M3002) -> 0.08235294118 | Y15: =COUNTIFS(N3:N3002,">=-1.00",N3:N3002, "<-0.50")/COUNT(N3:N3002) -> 0.1176470588 | Z15: =COUNTIFS(O3:O3002,">=-1.00",O3:O3002, "<-0.50")/COUNT(O3:O3002) -> 0.1647058824
A16: 14 | B16: =Data_Input!O18 -> 0.19 | C16: =Data_Input!P18 -> 0.31 | D16: =Data_Input!Q18 -> 0 | E16: =Data_Input!R18 -> -0.12 | L16: =IFERROR(IF(OR(AND(Data_Input!$T$1="meters",Data_Input!$T18>12),(AND(Data_Input!$T$1="feet",Data_Input!$T18>40)),ABS(B16)>$G$4),"",B16),"") -> 0.19 | M16: =IFERROR(IF(OR(AND(Data_Input!$T$1="meters",Data_Input!$T18>12),(AND(Data_Input!$T$1="feet",Data_Input!$T18>40)),ABS(C16)>$G$4),"",C16),"") -> 0.31 | N16: =IFERROR(IF(OR(AND(Data_Input!$T$1="meters",Data_Input!$T18>12),(AND(Data_Input!$T$1="feet",Data_Input!$T18>40)),ABS(D16)>$G$4),"",D16),"") -> 0 | O16: =IFERROR(IF(OR(AND(Data_Input!$T$1="meters",Data_Input!$T18>12),(AND(Data_Input!$T$1="feet",Data_Input!$T18>40)),ABS(E16)>$G$4),"",E16),"") -> -0.12 | Q16: 0.19 | R16: 0.31 | S16: 0 | T16: 0.12 | V16: -0.50D to -0.26D | W16: =COUNTIFS(L3:L3002,">=-0.50",L3:L3002, "<-0.25")/COUNT(L3:L3002) -> 0.1294117647 | X16: =COUNTIFS(M3:M3002,">=-0.50",M3:M3002, "<-0.25")/COUNT(M3:M3002) -> 0.1294117647 | Y16: =COUNTIFS(N3:N3002,">=-0.50",N3:N3002, "<-0.25")/COUNT(N3:N3002) -> 0.1882352941 | Z16: =COUNTIFS(O3:O3002,">=-0.50",O3:O3002, "<-0.25")/COUNT(O3:O3002) -> 0.1647058824
A17: 15 | B17: =Data_Input!O19 -> -0.09 | C17: =Data_Input!P19 -> -0.04 | D17: =Data_Input!Q19 -> -0.32 | E17: =Data_Input!R19 -> -0.57 | L17: =IFERROR(IF(OR(AND(Data_Input!$T$1="meters",Data_Input!$T19>12),(AND(Data_Input!$T$1="feet",Data_Input!$T19>40)),ABS(B17)>$G$4),"",B17),"") -> -0.09 | M17: =IFERROR(IF(OR(AND(Data_Input!$T$1="meters",Data_Input!$T19>12),(AND(Data_Input!$T$1="feet",Data_Input!$T19>40)),ABS(C17)>$G$4),"",C17),"") -> -0.04 | N17: =IFERROR(IF(OR(AND(Data_Input!$T$1="meters",Data_Input!$T19>12),(AND(Data_Input!$T$1="feet",Data_Input!$T19>40)),ABS(D17)>$G$4),"",D17),"") -> -0.32 | O17: =IFERROR(IF(OR(AND(Data_Input!$T$1="meters",Data_Input!$T19>12),(AND(Data_Input!$T$1="feet",Data_Input!$T19>40)),ABS(E17)>$G$4),"",E17),"") -> -0.57 | Q17: 0.09 | R17: 0.04 | S17: 0.32 | T17: 0.57 | V17: -0.25D to 0.25D | W17: =COUNTIFS(L3:L3002,">=-0.25",L3:L3002, "<=0.25")/COUNT(L3:L3002) -> 0.6 | X17: =COUNTIFS(M3:M3002,">=-0.25",M3:M3002, "<=0.25")/COUNT(M3:M3002) -> 0.5882352941 | Y17: =COUNTIFS(N3:N3002,">=-0.25",N3:N3002, "<=0.25")/COUNT(N3:N3002) -> 0.4470588235 | Z17: =COUNTIFS(O3:O3002,">=-0.25",O3:O3002, "<=0.25")/COUNT(O3:O3002) -> 0.4235294118
A18: 16 | B18: =Data_Input!O20 -> -0.65 | C18: =Data_Input!P20 -> -0.86 | D18: =Data_Input!Q20 -> -0.75 | E18: =Data_Input!R20 -> -0.76 | L18: =IFERROR(IF(OR(AND(Data_Input!$T$1="meters",Data_Input!$T20>12),(AND(Data_Input!$T$1="feet",Data_Input!$T20>40)),ABS(B18)>$G$4),"",B18),"") -> -0.65 | M18: =IFERROR(IF(OR(AND(Data_Input!$T$1="meters",Data_Input!$T20>12),(AND(Data_Input!$T$1="feet",Data_Input!$T20>40)),ABS(C18)>$G$4),"",C18),"") -> -0.86 | N18: =IFERROR(IF(OR(AND(Data_Input!$T$1="meters",Data_Input!$T20>12),(AND(Data_Input!$T$1="feet",Data_Input!$T20>40)),ABS(D18)>$G$4),"",D18),"") -> -0.75 | O18: =IFERROR(IF(OR(AND(Data_Input!$T$1="meters",Data_Input!$T20>12),(AND(Data_Input!$T$1="feet",Data_Input!$T20>40)),ABS(E18)>$G$4),"",E18),"") -> -0.76 | Q18: 0.65 | R18: 0.86 | S18: 0.75 | T18: 0.76 | V18: 0.26D to 0.50D | W18: =COUNTIFS(L3:L3002,">0.25",L3:L3002, "<=0.50")/COUNT(L3:L3002) -> 0.1058823529 | X18: =COUNTIFS(M3:M3002,">0.25",M3:M3002, "<=0.50")/COUNT(M3:M3002) -> 0.1411764706 | Y18: =COUNTIFS(N3:N3002,">0.25",N3:N3002, "<=0.50")/COUNT(N3:N3002) -> 0.1176470588 | Z18: =COUNTIFS(O3:O3002,">0.25",O3:O3002, "<=0.50")/COUNT(O3:O3002) -> 0.1176470588
A19: 17 | B19: =Data_Input!O21 -> -0.555 | C19: =Data_Input!P21 -> -0.085 | D19: =Data_Input!Q21 -> -0.345 | E19: =Data_Input!R21 -> -0.725 | L19: =IFERROR(IF(OR(AND(Data_Input!$T$1="meters",Data_Input!$T21>12),(AND(Data_Input!$T$1="feet",Data_Input!$T21>40)),ABS(B19)>$G$4),"",B19),"") -> -0.555 | M19: =IFERROR(IF(OR(AND(Data_Input!$T$1="meters",Data_Input!$T21>12),(AND(Data_Input!$T$1="feet",Data_Input!$T21>40)),ABS(C19)>$G$4),"",C19),"") -> -0.085 | N19: =IFERROR(IF(OR(AND(Data_Input!$T$1="meters",Data_Input!$T21>12),(AND(Data_Input!$T$1="feet",Data_Input!$T21>40)),ABS(D19)>$G$4),"",D19),"") -> -0.345 | O19: =IFERROR(IF(OR(AND(Data_Input!$T$1="meters",Data_Input!$T21>12),(AND(Data_Input!$T$1="feet",Data_Input!$T21>40)),ABS(E19)>$G$4),"",E19),"") -> -0.725 | Q19: 0.555 | R19: 0.085 | S19: 0.345 | T19: 0.725 | V19: 0.51D to 1.00D | W19: =COUNTIFS(L3:L3002,">0.5",L3:L3002, "<=1.0")/COUNT(L3:L3002) -> 0.05882352941 | X19: =COUNTIFS(M3:M3002,">0.5",M3:M3002, "<=1.0")/COUNT(M3:M3002) -> 0.02352941176 | Y19: =COUNTIFS(N3:N3002,">0.5",N3:N3002, "<=1.0")/COUNT(N3:N3002) -> 0.1058823529 | Z19: =COUNTIFS(O3:O3002,">0.5",O3:O3002, "<=1.0")/COUNT(O3:O3002) -> 0.08235294118
A20: 18 | B20: =Data_Input!O22 -> 0.36 | C20: =Data_Input!P22 -> 0.15 | D20: =Data_Input!Q22 -> 0.29 | E20: =Data_Input!R22 -> 0.32 | L20: =IFERROR(IF(OR(AND(Data_Input!$T$1="meters",Data_Input!$T22>12),(AND(Data_Input!$T$1="feet",Data_Input!$T22>40)),ABS(B20)>$G$4),"",B20),"") -> 0.36 | M20: =IFERROR(IF(OR(AND(Data_Input!$T$1="meters",Data_Input!$T22>12),(AND(Data_Input!$T$1="feet",Data_Input!$T22>40)),ABS(C20)>$G$4),"",C20),"") -> 0.15 | N20: =IFERROR(IF(OR(AND(Data_Input!$T$1="meters",Data_Input!$T22>12),(AND(Data_Input!$T$1="feet",Data_Input!$T22>40)),ABS(D20)>$G$4),"",D20),"") -> 0.29 | O20: =IFERROR(IF(OR(AND(Data_Input!$T$1="meters",Data_Input!$T22>12),(AND(Data_Input!$T$1="feet",Data_Input!$T22>40)),ABS(E20)>$G$4),"",E20),"") -> 0.32 | Q20: 0.36 | R20: 0.15 | S20: 0.29 | T20: 0.32 | V20: 1.01D to 1.50D | W20: =COUNTIFS(L3:L3002,">1",L3:L3002, "<=1.5")/COUNT(L3:L3002) -> 0 | X20: =COUNTIFS(M3:M3002,">1",M3:M3002, "<=1.5")/COUNT(M3:M3002) -> 0 | Y20: =COUNTIFS(N3:N3002,">1",N3:N3002, "<=1.5")/COUNT(N3:N3002) -> 0 | Z20: =COUNTIFS(O3:O3002,">1",O3:O3002, "<=1.5")/COUNT(O3:O3002) -> 0
A21: 19 | B21: =Data_Input!O23 -> -0.23 | C21: =Data_Input!P23 -> -0.1 | D21: =Data_Input!Q23 -> -0.4 | E21: =Data_Input!R23 -> -0.71 | L21: =IFERROR(IF(OR(AND(Data_Input!$T$1="meters",Data_Input!$T23>12),(AND(Data_Input!$T$1="feet",Data_Input!$T23>40)),ABS(B21)>$G$4),"",B21),"") -> -0.23 | M21: =IFERROR(IF(OR(AND(Data_Input!$T$1="meters",Data_Input!$T23>12),(AND(Data_Input!$T$1="feet",Data_Input!$T23>40)),ABS(C21)>$G$4),"",C21),"") -> -0.1 | N21: =IFERROR(IF(OR(AND(Data_Input!$T$1="meters",Data_Input!$T23>12),(AND(Data_Input!$T$1="feet",Data_Input!$T23>40)),ABS(D21)>$G$4),"",D21),"") -> -0.4 | O21: =IFERROR(IF(OR(AND(Data_Input!$T$1="meters",Data_Input!$T23>12),(AND(Data_Input!$T$1="feet",Data_Input!$T23>40)),ABS(E21)>$G$4),"",E21),"") -> -0.71 | Q21: 0.23 | R21: 0.1 | S21: 0.4 | T21: 0.71 | V21: > 1.50D | W21: =COUNTIF(L3:L3002,">1.50")/COUNT(L3:L3002) -> 0 | X21: =COUNTIF(M3:M3002,">1.50")/COUNT(M3:M3002) -> 0 | Y21: =COUNTIF(N3:N3002,">1.50")/COUNT(N3:N3002) -> 0 | Z21: =COUNTIF(O3:O3002,">1.50")/COUNT(O3:O3002) -> 0
A22: 20 | B22: =Data_Input!O24 -> 0.08 | C22: =Data_Input!P24 -> 0.19 | D22: =Data_Input!Q24 -> -0.01 | E22: =Data_Input!R24 -> -0.06 | L22: =IFERROR(IF(OR(AND(Data_Input!$T$1="meters",Data_Input!$T24>12),(AND(Data_Input!$T$1="feet",Data_Input!$T24>40)),ABS(B22)>$G$4),"",B22),"") -> 0.08 | M22: =IFERROR(IF(OR(AND(Data_Input!$T$1="meters",Data_Input!$T24>12),(AND(Data_Input!$T$1="feet",Data_Input!$T24>40)),ABS(C22)>$G$4),"",C22),"") -> 0.19 | N22: =IFERROR(IF(OR(AND(Data_Input!$T$1="meters",Data_Input!$T24>12),(AND(Data_Input!$T$1="feet",Data_Input!$T24>40)),ABS(D22)>$G$4),"",D22),"") -> -0.01 | O22: =IFERROR(IF(OR(AND(Data_Input!$T$1="meters",Data_Input!$T24>12),(AND(Data_Input!$T$1="feet",Data_Input!$T24>40)),ABS(E22)>$G$4),"",E22),"") -> -0.06 | Q22: 0.08 | R22: 0.19 | S22: 0.01 | T22: 0.06
A23: 21 | B23: =Data_Input!O25 -> 0.17 | C23: =Data_Input!P25 -> 0.31 | D23: =Data_Input!Q25 -> 0.14 | E23: =Data_Input!R25 -> 0.07 | L23: =IFERROR(IF(OR(AND(Data_Input!$T$1="meters",Data_Input!$T25>12),(AND(Data_Input!$T$1="feet",Data_Input!$T25>40)),ABS(B23)>$G$4),"",B23),"") -> 0.17 | M23: =IFERROR(IF(OR(AND(Data_Input!$T$1="meters",Data_Input!$T25>12),(AND(Data_Input!$T$1="feet",Data_Input!$T25>40)),ABS(C23)>$G$4),"",C23),"") -> 0.31 | N23: =IFERROR(IF(OR(AND(Data_Input!$T$1="meters",Data_Input!$T25>12),(AND(Data_Input!$T$1="feet",Data_Input!$T25>40)),ABS(D23)>$G$4),"",D23),"") -> 0.14 | O23: =IFERROR(IF(OR(AND(Data_Input!$T$1="meters",Data_Input!$T25>12),(AND(Data_Input!$T$1="feet",Data_Input!$T25>40)),ABS(E23)>$G$4),"",E23),"") -> 0.07 | Q23: 0.17 | R23: 0.31 | S23: 0.14 | T23: 0.07 | V23: Eyes-All | W23: =COUNT(B3:B3002) -> 85 | X23: =COUNT(C3:C3002) -> 85 | Y23: 85 | Z23: 85
A24: 22 | B24: =Data_Input!O26 -> 0.08 | C24: =Data_Input!P26 -> -0.1 | D24: =Data_Input!Q26 -> 0.11 | E24: =Data_Input!R26 -> 0 | L24: =IFERROR(IF(OR(AND(Data_Input!$T$1="meters",Data_Input!$T26>12),(AND(Data_Input!$T$1="feet",Data_Input!$T26>40)),ABS(B24)>$G$4),"",B24),"") -> 0.08 | M24: =IFERROR(IF(OR(AND(Data_Input!$T$1="meters",Data_Input!$T26>12),(AND(Data_Input!$T$1="feet",Data_Input!$T26>40)),ABS(C24)>$G$4),"",C24),"") -> -0.1 | N24: =IFERROR(IF(OR(AND(Data_Input!$T$1="meters",Data_Input!$T26>12),(AND(Data_Input!$T$1="feet",Data_Input!$T26>40)),ABS(D24)>$G$4),"",D24),"") -> 0.11 | O24: =IFERROR(IF(OR(AND(Data_Input!$T$1="meters",Data_Input!$T26>12),(AND(Data_Input!$T$1="feet",Data_Input!$T26>40)),ABS(E24)>$G$4),"",E24),"") -> 0 | Q24: 0.08 | R24: 0.1 | S24: 0.11 | T24: 0 | V24: No. of Eyes final | W24: =COUNT(L3:L3002) -> 85 | X24: =COUNT(M3:M3002) -> 85 | Y24: 85 | Z24: 85
A25: 23 | B25: =Data_Input!O27 -> -0.765 | C25: =Data_Input!P27 -> -0.655 | D25: =Data_Input!Q27 -> -0.985 | E25: =Data_Input!R27 -> -1.135 | L25: =IFERROR(IF(OR(AND(Data_Input!$T$1="meters",Data_Input!$T27>12),(AND(Data_Input!$T$1="feet",Data_Input!$T27>40)),ABS(B25)>$G$4),"",B25),"") -> -0.765 | M25: =IFERROR(IF(OR(AND(Data_Input!$T$1="meters",Data_Input!$T27>12),(AND(Data_Input!$T$1="feet",Data_Input!$T27>40)),ABS(C25)>$G$4),"",C25),"") -> -0.655 | N25: =IFERROR(IF(OR(AND(Data_Input!$T$1="meters",Data_Input!$T27>12),(AND(Data_Input!$T$1="feet",Data_Input!$T27>40)),ABS(D25)>$G$4),"",D25),"") -> -0.985 | O25: =IFERROR(IF(OR(AND(Data_Input!$T$1="meters",Data_Input!$T27>12),(AND(Data_Input!$T$1="feet",Data_Input!$T27>40)),ABS(E25)>$G$4),"",E25),"") -> -1.135 | Q25: 0.765 | R25: 0.655 | S25: 0.985 | T25: 1.135
A26: 24 | B26: =Data_Input!O28 -> 0.675 | C26: =Data_Input!P28 -> 0.285 | D26: =Data_Input!Q28 -> 0.455 | E26: =Data_Input!R28 -> 0.615 | L26: =IFERROR(IF(OR(AND(Data_Input!$T$1="meters",Data_Input!$T28>12),(AND(Data_Input!$T$1="feet",Data_Input!$T28>40)),ABS(B26)>$G$4),"",B26),"") -> 0.675 | M26: =IFERROR(IF(OR(AND(Data_Input!$T$1="meters",Data_Input!$T28>12),(AND(Data_Input!$T$1="feet",Data_Input!$T28>40)),ABS(C26)>$G$4),"",C26),"") -> 0.285 | N26: =IFERROR(IF(OR(AND(Data_Input!$T$1="meters",Data_Input!$T28>12),(AND(Data_Input!$T$1="feet",Data_Input!$T28>40)),ABS(D26)>$G$4),"",D26),"") -> 0.455 | O26: =IFERROR(IF(OR(AND(Data_Input!$T$1="meters",Data_Input!$T28>12),(AND(Data_Input!$T$1="feet",Data_Input!$T28>40)),ABS(E26)>$G$4),"",E26),"") -> 0.615 | Q26: 0.675 | R26: 0.285 | S26: 0.455 | T26: 0.615
A27: 25 | B27: =Data_Input!O29 -> -0.29 | C27: =Data_Input!P29 -> -0.61 | D27: =Data_Input!Q29 -> -0.37 | E27: =Data_Input!R29 -> -0.32 | L27: =IFERROR(IF(OR(AND(Data_Input!$T$1="meters",Data_Input!$T29>12),(AND(Data_Input!$T$1="feet",Data_Input!$T29>40)),ABS(B27)>$G$4),"",B27),"") -> -0.29 | M27: =IFERROR(IF(OR(AND(Data_Input!$T$1="meters",Data_Input!$T29>12),(AND(Data_Input!$T$1="feet",Data_Input!$T29>40)),ABS(C27)>$G$4),"",C27),"") -> -0.61 | N27: =IFERROR(IF(OR(AND(Data_Input!$T$1="meters",Data_Input!$T29>12),(AND(Data_Input!$T$1="feet",Data_Input!$T29>40)),ABS(D27)>$G$4),"",D27),"") -> -0.37 | O27: =IFERROR(IF(OR(AND(Data_Input!$T$1="meters",Data_Input!$T29>12),(AND(Data_Input!$T$1="feet",Data_Input!$T29>40)),ABS(E27)>$G$4),"",E27),"") -> -0.32 | Q27: 0.29 | R27: 0.61 | S27: 0.37 | T27: 0.32
A28: 26 | B28: =Data_Input!O30 -> 0.24 | C28: =Data_Input!P30 -> -0.24 | D28: =Data_Input!Q30 -> -0.06 | E28: =Data_Input!R30 -> 0.15 | L28: =IFERROR(IF(OR(AND(Data_Input!$T$1="meters",Data_Input!$T30>12),(AND(Data_Input!$T$1="feet",Data_Input!$T30>40)),ABS(B28)>$G$4),"",B28),"") -> 0.24 | M28: =IFERROR(IF(OR(AND(Data_Input!$T$1="meters",Data_Input!$T30>12),(AND(Data_Input!$T$1="feet",Data_Input!$T30>40)),ABS(C28)>$G$4),"",C28),"") -> -0.24 | N28: =IFERROR(IF(OR(AND(Data_Input!$T$1="meters",Data_Input!$T30>12),(AND(Data_Input!$T$1="feet",Data_Input!$T30>40)),ABS(D28)>$G$4),"",D28),"") -> -0.06 | O28: =IFERROR(IF(OR(AND(Data_Input!$T$1="meters",Data_Input!$T30>12),(AND(Data_Input!$T$1="feet",Data_Input!$T30>40)),ABS(E28)>$G$4),"",E28),"") -> 0.15 | Q28: 0.24 | R28: 0.24 | S28: 0.06 | T28: 0.15
A29: 27 | B29: =Data_Input!O31 -> 0.235 | C29: =Data_Input!P31 -> 0.325 | D29: =Data_Input!Q31 -> 0.115 | E29: =Data_Input!R31 -> 0.065 | L29: =IFERROR(IF(OR(AND(Data_Input!$T$1="meters",Data_Input!$T31>12),(AND(Data_Input!$T$1="feet",Data_Input!$T31>40)),ABS(B29)>$G$4),"",B29),"") -> 0.235 | M29: =IFERROR(IF(OR(AND(Data_Input!$T$1="meters",Data_Input!$T31>12),(AND(Data_Input!$T$1="feet",Data_Input!$T31>40)),ABS(C29)>$G$4),"",C29),"") -> 0.325 | N29: =IFERROR(IF(OR(AND(Data_Input!$T$1="meters",Data_Input!$T31>12),(AND(Data_Input!$T$1="feet",Data_Input!$T31>40)),ABS(D29)>$G$4),"",D29),"") -> 0.115 | O29: =IFERROR(IF(OR(AND(Data_Input!$T$1="meters",Data_Input!$T31>12),(AND(Data_Input!$T$1="feet",Data_Input!$T31>40)),ABS(E29)>$G$4),"",E29),"") -> 0.065 | Q29: 0.235 | R29: 0.325 | S29: 0.115 | T29: 0.065
A30: 28 | B30: =Data_Input!O32 -> 0.13 | C30: =Data_Input!P32 -> 0.09 | D30: =Data_Input!Q32 -> 0.19 | E30: =Data_Input!R32 -> 0.08 | L30: =IFERROR(IF(OR(AND(Data_Input!$T$1="meters",Data_Input!$T32>12),(AND(Data_Input!$T$1="feet",Data_Input!$T32>40)),ABS(B30)>$G$4),"",B30),"") -> 0.13 | M30: =IFERROR(IF(OR(AND(Data_Input!$T$1="meters",Data_Input!$T32>12),(AND(Data_Input!$T$1="feet",Data_Input!$T32>40)),ABS(C30)>$G$4),"",C30),"") -> 0.09 | N30: =IFERROR(IF(OR(AND(Data_Input!$T$1="meters",Data_Input!$T32>12),(AND(Data_Input!$T$1="feet",Data_Input!$T32>40)),ABS(D30)>$G$4),"",D30),"") -> 0.19 | O30: =IFERROR(IF(OR(AND(Data_Input!$T$1="meters",Data_Input!$T32>12),(AND(Data_Input!$T$1="feet",Data_Input!$T32>40)),ABS(E30)>$G$4),"",E30),"") -> 0.08 | Q30: 0.13 | R30: 0.09 | S30: 0.19 | T30: 0.08
A31: 29 | B31: =Data_Input!O33 -> -0.12 | C31: =Data_Input!P33 -> -0.48 | D31: =Data_Input!Q33 -> -0.32 | E31: =Data_Input!R33 -> -0.22 | L31: =IFERROR(IF(OR(AND(Data_Input!$T$1="meters",Data_Input!$T33>12),(AND(Data_Input!$T$1="feet",Data_Input!$T33>40)),ABS(B31)>$G$4),"",B31),"") -> -0.12 | M31: =IFERROR(IF(OR(AND(Data_Input!$T$1="meters",Data_Input!$T33>12),(AND(Data_Input!$T$1="feet",Data_Input!$T33>40)),ABS(C31)>$G$4),"",C31),"") -> -0.48 | N31: =IFERROR(IF(OR(AND(Data_Input!$T$1="meters",Data_Input!$T33>12),(AND(Data_Input!$T$1="feet",Data_Input!$T33>40)),ABS(D31)>$G$4),"",D31),"") -> -0.32 | O31: =IFERROR(IF(OR(AND(Data_Input!$T$1="meters",Data_Input!$T33>12),(AND(Data_Input!$T$1="feet",Data_Input!$T33>40)),ABS(E31)>$G$4),"",E31),"") -> -0.22 | Q31: 0.12 | R31: 0.48 | S31: 0.32 | T31: 0.22
A32: 30 | B32: =Data_Input!O34 -> 0.56 | C32: =Data_Input!P34 -> 0.64 | D32: =Data_Input!Q34 -> 0.35 | E32: =Data_Input!R34 -> 0.06 | L32: =IFERROR(IF(OR(AND(Data_Input!$T$1="meters",Data_Input!$T34>12),(AND(Data_Input!$T$1="feet",Data_Input!$T34>40)),ABS(B32)>$G$4),"",B32),"") -> 0.56 | M32: =IFERROR(IF(OR(AND(Data_Input!$T$1="meters",Data_Input!$T34>12),(AND(Data_Input!$T$1="feet",Data_Input!$T34>40)),ABS(C32)>$G$4),"",C32),"") -> 0.64 | N32: =IFERROR(IF(OR(AND(Data_Input!$T$1="meters",Data_Input!$T34>12),(AND(Data_Input!$T$1="feet",Data_Input!$T34>40)),ABS(D32)>$G$4),"",D32),"") -> 0.35 | O32: =IFERROR(IF(OR(AND(Data_Input!$T$1="meters",Data_Input!$T34>12),(AND(Data_Input!$T$1="feet",Data_Input!$T34>40)),ABS(E32)>$G$4),"",E32),"") -> 0.06 | Q32: 0.56 | R32: 0.64 | S32: 0.35 | T32: 0.06
A33: 31 | B33: =Data_Input!O35 -> 0.99 | C33: =Data_Input!P35 -> 0.65 | D33: =Data_Input!Q35 -> 0.81 | E33: =Data_Input!R35 -> 0.99 | L33: =IFERROR(IF(OR(AND(Data_Input!$T$1="meters",Data_Input!$T35>12),(AND(Data_Input!$T$1="feet",Data_Input!$T35>40)),ABS(B33)>$G$4),"",B33),"") -> 0.99 | M33: =IFERROR(IF(OR(AND(Data_Input!$T$1="meters",Data_Input!$T35>12),(AND(Data_Input!$T$1="feet",Data_Input!$T35>40)),ABS(C33)>$G$4),"",C33),"") -> 0.65 | N33: =IFERROR(IF(OR(AND(Data_Input!$T$1="meters",Data_Input!$T35>12),(AND(Data_Input!$T$1="feet",Data_Input!$T35>40)),ABS(D33)>$G$4),"",D33),"") -> 0.81 | O33: =IFERROR(IF(OR(AND(Data_Input!$T$1="meters",Data_Input!$T35>12),(AND(Data_Input!$T$1="feet",Data_Input!$T35>40)),ABS(E33)>$G$4),"",E33),"") -> 0.99 | Q33: 0.99 | R33: 0.65 | S33: 0.81 | T33: 0.99
A34: 32 | B34: =Data_Input!O36 -> 0.45 | C34: =Data_Input!P36 -> -0.05 | D34: =Data_Input!Q36 -> 0.21 | E34: =Data_Input!R36 -> 0.32 | L34: =IFERROR(IF(OR(AND(Data_Input!$T$1="meters",Data_Input!$T36>12),(AND(Data_Input!$T$1="feet",Data_Input!$T36>40)),ABS(B34)>$G$4),"",B34),"") -> 0.45 | M34: =IFERROR(IF(OR(AND(Data_Input!$T$1="meters",Data_Input!$T36>12),(AND(Data_Input!$T$1="feet",Data_Input!$T36>40)),ABS(C34)>$G$4),"",C34),"") -> -0.05 | N34: =IFERROR(IF(OR(AND(Data_Input!$T$1="meters",Data_Input!$T36>12),(AND(Data_Input!$T$1="feet",Data_Input!$T36>40)),ABS(D34)>$G$4),"",D34),"") -> 0.21 | O34: =IFERROR(IF(OR(AND(Data_Input!$T$1="meters",Data_Input!$T36>12),(AND(Data_Input!$T$1="feet",Data_Input!$T36>40)),ABS(E34)>$G$4),"",E34),"") -> 0.32 | Q34: 0.45 | R34: 0.05 | S34: 0.21 | T34: 0.32
A35: 33 | B35: =Data_Input!O37 -> -0.07 | C35: =Data_Input!P37 -> -0.06 | D35: =Data_Input!Q37 -> -0.44 | E35: =Data_Input!R37 -> -0.61 | L35: =IFERROR(IF(OR(AND(Data_Input!$T$1="meters",Data_Input!$T37>12),(AND(Data_Input!$T$1="feet",Data_Input!$T37>40)),ABS(B35)>$G$4),"",B35),"") -> -0.07 | M35: =IFERROR(IF(OR(AND(Data_Input!$T$1="meters",Data_Input!$T37>12),(AND(Data_Input!$T$1="feet",Data_Input!$T37>40)),ABS(C35)>$G$4),"",C35),"") -> -0.06 | N35: =IFERROR(IF(OR(AND(Data_Input!$T$1="meters",Data_Input!$T37>12),(AND(Data_Input!$T$1="feet",Data_Input!$T37>40)),ABS(D35)>$G$4),"",D35),"") -> -0.44 | O35: =IFERROR(IF(OR(AND(Data_Input!$T$1="meters",Data_Input!$T37>12),(AND(Data_Input!$T$1="feet",Data_Input!$T37>40)),ABS(E35)>$G$4),"",E35),"") -> -0.61 | Q35: 0.07 | R35: 0.06 | S35: 0.44 | T35: 0.61
A36: 34 | B36: =Data_Input!O38 -> 0.095 | C36: =Data_Input!P38 -> 0.025 | D36: =Data_Input!Q38 -> -0.085 | E36: =Data_Input!R38 -> -0.095 | L36: =IFERROR(IF(OR(AND(Data_Input!$T$1="meters",Data_Input!$T38>12),(AND(Data_Input!$T$1="feet",Data_Input!$T38>40)),ABS(B36)>$G$4),"",B36),"") -> 0.095 | M36: =IFERROR(IF(OR(AND(Data_Input!$T$1="meters",Data_Input!$T38>12),(AND(Data_Input!$T$1="feet",Data_Input!$T38>40)),ABS(C36)>$G$4),"",C36),"") -> 0.025 | N36: =IFERROR(IF(OR(AND(Data_Input!$T$1="meters",Data_Input!$T38>12),(AND(Data_Input!$T$1="feet",Data_Input!$T38>40)),ABS(D36)>$G$4),"",D36),"") -> -0.085 | O36: =IFERROR(IF(OR(AND(Data_Input!$T$1="meters",Data_Input!$T38>12),(AND(Data_Input!$T$1="feet",Data_Input!$T38>40)),ABS(E36)>$G$4),"",E36),"") -> -0.095 | Q36: 0.095 | R36: 0.025 | S36: 0.085 | T36: 0.095
A37: 35 | B37: =Data_Input!O39 -> 0.255 | C37: =Data_Input!P39 -> 0.405 | D37: =Data_Input!Q39 -> 0.095 | E37: =Data_Input!R39 -> -0.355 | L37: =IFERROR(IF(OR(AND(Data_Input!$T$1="meters",Data_Input!$T39>12),(AND(Data_Input!$T$1="feet",Data_Input!$T39>40)),ABS(B37)>$G$4),"",B37),"") -> 0.255 | M37: =IFERROR(IF(OR(AND(Data_Input!$T$1="meters",Data_Input!$T39>12),(AND(Data_Input!$T$1="feet",Data_Input!$T39>40)),ABS(C37)>$G$4),"",C37),"") -> 0.405 | N37: =IFERROR(IF(OR(AND(Data_Input!$T$1="meters",Data_Input!$T39>12),(AND(Data_Input!$T$1="feet",Data_Input!$T39>40)),ABS(D37)>$G$4),"",D37),"") -> 0.095 | O37: =IFERROR(IF(OR(AND(Data_Input!$T$1="meters",Data_Input!$T39>12),(AND(Data_Input!$T$1="feet",Data_Input!$T39>40)),ABS(E37)>$G$4),"",E37),"") -> -0.355 | Q37: 0.255 | R37: 0.405 | S37: 0.095 | T37: 0.355
A38: 36 | B38: =Data_Input!O40 -> -0.125 | C38: =Data_Input!P40 -> -0.055 | D38: =Data_Input!Q40 -> -0.025 | E38: =Data_Input!R40 -> -0.155 | L38: =IFERROR(IF(OR(AND(Data_Input!$T$1="meters",Data_Input!$T40>12),(AND(Data_Input!$T$1="feet",Data_Input!$T40>40)),ABS(B38)>$G$4),"",B38),"") -> -0.125 | M38: =IFERROR(IF(OR(AND(Data_Input!$T$1="meters",Data_Input!$T40>12),(AND(Data_Input!$T$1="feet",Data_Input!$T40>40)),ABS(C38)>$G$4),"",C38),"") -> -0.055 | N38: =IFERROR(IF(OR(AND(Data_Input!$T$1="meters",Data_Input!$T40>12),(AND(Data_Input!$T$1="feet",Data_Input!$T40>40)),ABS(D38)>$G$4),"",D38),"") -> -0.025 | O38: =IFERROR(IF(OR(AND(Data_Input!$T$1="meters",Data_Input!$T40>12),(AND(Data_Input!$T$1="feet",Data_Input!$T40>40)),ABS(E38)>$G$4),"",E38),"") -> -0.155 | Q38: 0.125 | R38: 0.055 | S38: 0.025 | T38: 0.155
A39: 37 | B39: =Data_Input!O41 -> -0.255 | C39: =Data_Input!P41 -> -0.195 | D39: =Data_Input!Q41 -> -0.305 | E39: =Data_Input!R41 -> -0.575 | L39: =IFERROR(IF(OR(AND(Data_Input!$T$1="meters",Data_Input!$T41>12),(AND(Data_Input!$T$1="feet",Data_Input!$T41>40)),ABS(B39)>$G$4),"",B39),"") -> -0.255 | M39: =IFERROR(IF(OR(AND(Data_Input!$T$1="meters",Data_Input!$T41>12),(AND(Data_Input!$T$1="feet",Data_Input!$T41>40)),ABS(C39)>$G$4),"",C39),"") -> -0.195 | N39: =IFERROR(IF(OR(AND(Data_Input!$T$1="meters",Data_Input!$T41>12),(AND(Data_Input!$T$1="feet",Data_Input!$T41>40)),ABS(D39)>$G$4),"",D39),"") -> -0.305 | O39: =IFERROR(IF(OR(AND(Data_Input!$T$1="meters",Data_Input!$T41>12),(AND(Data_Input!$T$1="feet",Data_Input!$T41>40)),ABS(E39)>$G$4),"",E39),"") -> -0.575 | Q39: 0.255 | R39: 0.195 | S39: 0.305 | T39: 0.575
A40: 38 | B40: =Data_Input!O42 -> -0.54 | C40: =Data_Input!P42 -> -0.32 | D40: =Data_Input!Q42 -> -0.65 | E40: =Data_Input!R42 -> -0.72 | L40: =IFERROR(IF(OR(AND(Data_Input!$T$1="meters",Data_Input!$T42>12),(AND(Data_Input!$T$1="feet",Data_Input!$T42>40)),ABS(B40)>$G$4),"",B40),"") -> -0.54 | M40: =IFERROR(IF(OR(AND(Data_Input!$T$1="meters",Data_Input!$T42>12),(AND(Data_Input!$T$1="feet",Data_Input!$T42>40)),ABS(C40)>$G$4),"",C40),"") -> -0.32 | N40: =IFERROR(IF(OR(AND(Data_Input!$T$1="meters",Data_Input!$T42>12),(AND(Data_Input!$T$1="feet",Data_Input!$T42>40)),ABS(D40)>$G$4),"",D40),"") -> -0.65 | O40: =IFERROR(IF(OR(AND(Data_Input!$T$1="meters",Data_Input!$T42>12),(AND(Data_Input!$T$1="feet",Data_Input!$T42>40)),ABS(E40)>$G$4),"",E40),"") -> -0.72 | Q40: 0.54 | R40: 0.32 | S40: 0.65 | T40: 0.72
A41: 39 | B41: =Data_Input!O43 -> -0.14 | C41: =Data_Input!P43 -> 0.04 | D41: =Data_Input!Q43 -> -0.14 | E41: =Data_Input!R43 -> -0.21 | L41: =IFERROR(IF(OR(AND(Data_Input!$T$1="meters",Data_Input!$T43>12),(AND(Data_Input!$T$1="feet",Data_Input!$T43>40)),ABS(B41)>$G$4),"",B41),"") -> -0.14 | M41: =IFERROR(IF(OR(AND(Data_Input!$T$1="meters",Data_Input!$T43>12),(AND(Data_Input!$T$1="feet",Data_Input!$T43>40)),ABS(C41)>$G$4),"",C41),"") -> 0.04 | N41: =IFERROR(IF(OR(AND(Data_Input!$T$1="meters",Data_Input!$T43>12),(AND(Data_Input!$T$1="feet",Data_Input!$T43>40)),ABS(D41)>$G$4),"",D41),"") -> -0.14 | O41: =IFERROR(IF(OR(AND(Data_Input!$T$1="meters",Data_Input!$T43>12),(AND(Data_Input!$T$1="feet",Data_Input!$T43>40)),ABS(E41)>$G$4),"",E41),"") -> -0.21 | Q41: 0.14 | R41: 0.04 | S41: 0.14 | T41: 0.21
A42: 40 | B42: =Data_Input!O44 -> -0.06 | C42: =Data_Input!P44 -> -0.12 | D42: =Data_Input!Q44 -> -0.1 | E42: =Data_Input!R44 -> -0.14 | L42: =IFERROR(IF(OR(AND(Data_Input!$T$1="meters",Data_Input!$T44>12),(AND(Data_Input!$T$1="feet",Data_Input!$T44>40)),ABS(B42)>$G$4),"",B42),"") -> -0.06 | M42: =IFERROR(IF(OR(AND(Data_Input!$T$1="meters",Data_Input!$T44>12),(AND(Data_Input!$T$1="feet",Data_Input!$T44>40)),ABS(C42)>$G$4),"",C42),"") -> -0.12 | N42: =IFERROR(IF(OR(AND(Data_Input!$T$1="meters",Data_Input!$T44>12),(AND(Data_Input!$T$1="feet",Data_Input!$T44>40)),ABS(D42)>$G$4),"",D42),"") -> -0.1 | O42: =IFERROR(IF(OR(AND(Data_Input!$T$1="meters",Data_Input!$T44>12),(AND(Data_Input!$T$1="feet",Data_Input!$T44>40)),ABS(E42)>$G$4),"",E42),"") -> -0.14 | Q42: 0.06 | R42: 0.12 | S42: 0.1 | T42: 0.14
A43: 41 | B43: =Data_Input!O45 -> -0.22 | C43: =Data_Input!P45 -> -0.19 | D43: =Data_Input!Q45 -> -0.08 | E43: =Data_Input!R45 -> -0.12 | L43: =IFERROR(IF(OR(AND(Data_Input!$T$1="meters",Data_Input!$T45>12),(AND(Data_Input!$T$1="feet",Data_Input!$T45>40)),ABS(B43)>$G$4),"",B43),"") -> -0.22 | M43: =IFERROR(IF(OR(AND(Data_Input!$T$1="meters",Data_Input!$T45>12),(AND(Data_Input!$T$1="feet",Data_Input!$T45>40)),ABS(C43)>$G$4),"",C43),"") -> -0.19 | N43: =IFERROR(IF(OR(AND(Data_Input!$T$1="meters",Data_Input!$T45>12),(AND(Data_Input!$T$1="feet",Data_Input!$T45>40)),ABS(D43)>$G$4),"",D43),"") -> -0.08 | O43: =IFERROR(IF(OR(AND(Data_Input!$T$1="meters",Data_Input!$T45>12),(AND(Data_Input!$T$1="feet",Data_Input!$T45>40)),ABS(E43)>$G$4),"",E43),"") -> -0.12 | Q43: 0.22 | R43: 0.19 | S43: 0.08 | T43: 0.12
A44: 42 | B44: =Data_Input!O46 -> -0.17 | C44: =Data_Input!P46 -> 0.01 | D44: =Data_Input!Q46 -> -0.01 | E44: =Data_Input!R46 -> -0.24 | L44: =IFERROR(IF(OR(AND(Data_Input!$T$1="meters",Data_Input!$T46>12),(AND(Data_Input!$T$1="feet",Data_Input!$T46>40)),ABS(B44)>$G$4),"",B44),"") -> -0.17 | M44: =IFERROR(IF(OR(AND(Data_Input!$T$1="meters",Data_Input!$T46>12),(AND(Data_Input!$T$1="feet",Data_Input!$T46>40)),ABS(C44)>$G$4),"",C44),"") -> 0.01 | N44: =IFERROR(IF(OR(AND(Data_Input!$T$1="meters",Data_Input!$T46>12),(AND(Data_Input!$T$1="feet",Data_Input!$T46>40)),ABS(D44)>$G$4),"",D44),"") -> -0.01 | O44: =IFERROR(IF(OR(AND(Data_Input!$T$1="meters",Data_Input!$T46>12),(AND(Data_Input!$T$1="feet",Data_Input!$T46>40)),ABS(E44)>$G$4),"",E44),"") -> -0.24 | Q44: 0.17 | R44: 0.01 | S44: 0.01 | T44: 0.24
A45: 43 | B45: =Data_Input!O47 -> 0.01 | C45: =Data_Input!P47 -> 0.1 | D45: =Data_Input!Q47 -> 0.17 | E45: =Data_Input!R47 -> 0.04 | L45: =IFERROR(IF(OR(AND(Data_Input!$T$1="meters",Data_Input!$T47>12),(AND(Data_Input!$T$1="feet",Data_Input!$T47>40)),ABS(B45)>$G$4),"",B45),"") -> 0.01 | M45: =IFERROR(IF(OR(AND(Data_Input!$T$1="meters",Data_Input!$T47>12),(AND(Data_Input!$T$1="feet",Data_Input!$T47>40)),ABS(C45)>$G$4),"",C45),"") -> 0.1 | N45: =IFERROR(IF(OR(AND(Data_Input!$T$1="meters",Data_Input!$T47>12),(AND(Data_Input!$T$1="feet",Data_Input!$T47>40)),ABS(D45)>$G$4),"",D45),"") -> 0.17 | O45: =IFERROR(IF(OR(AND(Data_Input!$T$1="meters",Data_Input!$T47>12),(AND(Data_Input!$T$1="feet",Data_Input!$T47>40)),ABS(E45)>$G$4),"",E45),"") -> 0.04 | Q45: 0.01 | R45: 0.1 | S45: 0.17 | T45: 0.04
A46: 44 | B46: =Data_Input!O48 -> 0.1 | C46: =Data_Input!P48 -> 0.05 | D46: =Data_Input!Q48 -> 0.07 | E46: =Data_Input!R48 -> -0.09 | L46: =IFERROR(IF(OR(AND(Data_Input!$T$1="meters",Data_Input!$T48>12),(AND(Data_Input!$T$1="feet",Data_Input!$T48>40)),ABS(B46)>$G$4),"",B46),"") -> 0.1 | M46: =IFERROR(IF(OR(AND(Data_Input!$T$1="meters",Data_Input!$T48>12),(AND(Data_Input!$T$1="feet",Data_Input!$T48>40)),ABS(C46)>$G$4),"",C46),"") -> 0.05 | N46: =IFERROR(IF(OR(AND(Data_Input!$T$1="meters",Data_Input!$T48>12),(AND(Data_Input!$T$1="feet",Data_Input!$T48>40)),ABS(D46)>$G$4),"",D46),"") -> 0.07 | O46: =IFERROR(IF(OR(AND(Data_Input!$T$1="meters",Data_Input!$T48>12),(AND(Data_Input!$T$1="feet",Data_Input!$T48>40)),ABS(E46)>$G$4),"",E46),"") -> -0.09 | Q46: 0.1 | R46: 0.05 | S46: 0.07 | T46: 0.09
A47: 45 | B47: =Data_Input!O49 -> -0.09 | C47: =Data_Input!P49 -> -0.14 | D47: =Data_Input!Q49 -> -0.19 | E47: =Data_Input!R49 -> -0.27 | L47: =IFERROR(IF(OR(AND(Data_Input!$T$1="meters",Data_Input!$T49>12),(AND(Data_Input!$T$1="feet",Data_Input!$T49>40)),ABS(B47)>$G$4),"",B47),"") -> -0.09 | M47: =IFERROR(IF(OR(AND(Data_Input!$T$1="meters",Data_Input!$T49>12),(AND(Data_Input!$T$1="feet",Data_Input!$T49>40)),ABS(C47)>$G$4),"",C47),"") -> -0.14 | N47: =IFERROR(IF(OR(AND(Data_Input!$T$1="meters",Data_Input!$T49>12),(AND(Data_Input!$T$1="feet",Data_Input!$T49>40)),ABS(D47)>$G$4),"",D47),"") -> -0.19 | O47: =IFERROR(IF(OR(AND(Data_Input!$T$1="meters",Data_Input!$T49>12),(AND(Data_Input!$T$1="feet",Data_Input!$T49>40)),ABS(E47)>$G$4),"",E47),"") -> -0.27 | Q47: 0.09 | R47: 0.14 | S47: 0.19 | T47: 0.27
A48: 46 | B48: =Data_Input!O50 -> -0.5 | C48: =Data_Input!P50 -> -0.61 | D48: =Data_Input!Q50 -> -0.78 | E48: =Data_Input!R50 -> -0.81 | L48: =IFERROR(IF(OR(AND(Data_Input!$T$1="meters",Data_Input!$T50>12),(AND(Data_Input!$T$1="feet",Data_Input!$T50>40)),ABS(B48)>$G$4),"",B48),"") -> -0.5 | M48: =IFERROR(IF(OR(AND(Data_Input!$T$1="meters",Data_Input!$T50>12),(AND(Data_Input!$T$1="feet",Data_Input!$T50>40)),ABS(C48)>$G$4),"",C48),"") -> -0.61 | N48: =IFERROR(IF(OR(AND(Data_Input!$T$1="meters",Data_Input!$T50>12),(AND(Data_Input!$T$1="feet",Data_Input!$T50>40)),ABS(D48)>$G$4),"",D48),"") -> -0.78 | O48: =IFERROR(IF(OR(AND(Data_Input!$T$1="meters",Data_Input!$T50>12),(AND(Data_Input!$T$1="feet",Data_Input!$T50>40)),ABS(E48)>$G$4),"",E48),"") -> -0.81 | Q48: 0.5 | R48: 0.61 | S48: 0.78 | T48: 0.81
A49: 47 | B49: =Data_Input!O51 -> -0.08 | C49: =Data_Input!P51 -> -0.16 | D49: =Data_Input!Q51 -> -0.07 | E49: =Data_Input!R51 -> -0.04 | L49: =IFERROR(IF(OR(AND(Data_Input!$T$1="meters",Data_Input!$T51>12),(AND(Data_Input!$T$1="feet",Data_Input!$T51>40)),ABS(B49)>$G$4),"",B49),"") -> -0.08 | M49: =IFERROR(IF(OR(AND(Data_Input!$T$1="meters",Data_Input!$T51>12),(AND(Data_Input!$T$1="feet",Data_Input!$T51>40)),ABS(C49)>$G$4),"",C49),"") -> -0.16 | N49: =IFERROR(IF(OR(AND(Data_Input!$T$1="meters",Data_Input!$T51>12),(AND(Data_Input!$T$1="feet",Data_Input!$T51>40)),ABS(D49)>$G$4),"",D49),"") -> -0.07 | O49: =IFERROR(IF(OR(AND(Data_Input!$T$1="meters",Data_Input!$T51>12),(AND(Data_Input!$T$1="feet",Data_Input!$T51>40)),ABS(E49)>$G$4),"",E49),"") -> -0.04 | Q49: 0.08 | R49: 0.16 | S49: 0.07 | T49: 0.04
A50: 48 | B50: =Data_Input!O52 -> 0.23 | C50: =Data_Input!P52 -> 0.12 | D50: =Data_Input!Q52 -> 0.07 | E50: =Data_Input!R52 -> -0.01 | L50: =IFERROR(IF(OR(AND(Data_Input!$T$1="meters",Data_Input!$T52>12),(AND(Data_Input!$T$1="feet",Data_Input!$T52>40)),ABS(B50)>$G$4),"",B50),"") -> 0.23 | M50: =IFERROR(IF(OR(AND(Data_Input!$T$1="meters",Data_Input!$T52>12),(AND(Data_Input!$T$1="feet",Data_Input!$T52>40)),ABS(C50)>$G$4),"",C50),"") -> 0.12 | N50: =IFERROR(IF(OR(AND(Data_Input!$T$1="meters",Data_Input!$T52>12),(AND(Data_Input!$T$1="feet",Data_Input!$T52>40)),ABS(D50)>$G$4),"",D50),"") -> 0.07 | O50: =IFERROR(IF(OR(AND(Data_Input!$T$1="meters",Data_Input!$T52>12),(AND(Data_Input!$T$1="feet",Data_Input!$T52>40)),ABS(E50)>$G$4),"",E50),"") -> -0.01 | Q50: 0.23 | R50: 0.12 | S50: 0.07 | T50: 0.01
A51: 49 | B51: =Data_Input!O53 -> -0.32 | C51: =Data_Input!P53 -> -0.54 | D51: =Data_Input!Q53 -> -0.29 | E51: =Data_Input!R53 -> -0.12 | L51: =IFERROR(IF(OR(AND(Data_Input!$T$1="meters",Data_Input!$T53>12),(AND(Data_Input!$T$1="feet",Data_Input!$T53>40)),ABS(B51)>$G$4),"",B51),"") -> -0.32 | M51: =IFERROR(IF(OR(AND(Data_Input!$T$1="meters",Data_Input!$T53>12),(AND(Data_Input!$T$1="feet",Data_Input!$T53>40)),ABS(C51)>$G$4),"",C51),"") -> -0.54 | N51: =IFERROR(IF(OR(AND(Data_Input!$T$1="meters",Data_Input!$T53>12),(AND(Data_Input!$T$1="feet",Data_Input!$T53>40)),ABS(D51)>$G$4),"",D51),"") -> -0.29 | O51: =IFERROR(IF(OR(AND(Data_Input!$T$1="meters",Data_Input!$T53>12),(AND(Data_Input!$T$1="feet",Data_Input!$T53>40)),ABS(E51)>$G$4),"",E51),"") -> -0.12 | Q51: 0.32 | R51: 0.54 | S51: 0.29 | T51: 0.12
A52: 50 | B52: =Data_Input!O54 -> 0.05 | C52: =Data_Input!P54 -> 0.08 | D52: =Data_Input!Q54 -> -0.19 | E52: =Data_Input!R54 -> -0.48 | L52: =IFERROR(IF(OR(AND(Data_Input!$T$1="meters",Data_Input!$T54>12),(AND(Data_Input!$T$1="feet",Data_Input!$T54>40)),ABS(B52)>$G$4),"",B52),"") -> 0.05 | M52: =IFERROR(IF(OR(AND(Data_Input!$T$1="meters",Data_Input!$T54>12),(AND(Data_Input!$T$1="feet",Data_Input!$T54>40)),ABS(C52)>$G$4),"",C52),"") -> 0.08 | N52: =IFERROR(IF(OR(AND(Data_Input!$T$1="meters",Data_Input!$T54>12),(AND(Data_Input!$T$1="feet",Data_Input!$T54>40)),ABS(D52)>$G$4),"",D52),"") -> -0.19 | O52: =IFERROR(IF(OR(AND(Data_Input!$T$1="meters",Data_Input!$T54>12),(AND(Data_Input!$T$1="feet",Data_Input!$T54>40)),ABS(E52)>$G$4),"",E52),"") -> -0.48 | Q52: 0.05 | R52: 0.08 | S52: 0.19 | T52: 0.48
A53: 51 | B53: =Data_Input!O55 -> 0.675 | C53: =Data_Input!P55 -> 0.465 | D53: =Data_Input!Q55 -> 0.825 | E53: =Data_Input!R55 -> 0.925 | L53: =IFERROR(IF(OR(AND(Data_Input!$T$1="meters",Data_Input!$T55>12),(AND(Data_Input!$T$1="feet",Data_Input!$T55>40)),ABS(B53)>$G$4),"",B53),"") -> 0.675 | M53: =IFERROR(IF(OR(AND(Data_Input!$T$1="meters",Data_Input!$T55>12),(AND(Data_Input!$T$1="feet",Data_Input!$T55>40)),ABS(C53)>$G$4),"",C53),"") -> 0.465 | N53: =IFERROR(IF(OR(AND(Data_Input!$T$1="meters",Data_Input!$T55>12),(AND(Data_Input!$T$1="feet",Data_Input!$T55>40)),ABS(D53)>$G$4),"",D53),"") -> 0.825 | O53: =IFERROR(IF(OR(AND(Data_Input!$T$1="meters",Data_Input!$T55>12),(AND(Data_Input!$T$1="feet",Data_Input!$T55>40)),ABS(E53)>$G$4),"",E53),"") -> 0.925 | Q53: 0.675 | R53: 0.465 | S53: 0.825 | T53: 0.925
A54: 52 | B54: =Data_Input!O56 -> -0.665 | C54: =Data_Input!P56 -> -0.415 | D54: =Data_Input!Q56 -> -0.645 | E54: =Data_Input!R56 -> -1.055 | L54: =IFERROR(IF(OR(AND(Data_Input!$T$1="meters",Data_Input!$T56>12),(AND(Data_Input!$T$1="feet",Data_Input!$T56>40)),ABS(B54)>$G$4),"",B54),"") -> -0.665 | M54: =IFERROR(IF(OR(AND(Data_Input!$T$1="meters",Data_Input!$T56>12),(AND(Data_Input!$T$1="feet",Data_Input!$T56>40)),ABS(C54)>$G$4),"",C54),"") -> -0.415 | N54: =IFERROR(IF(OR(AND(Data_Input!$T$1="meters",Data_Input!$T56>12),(AND(Data_Input!$T$1="feet",Data_Input!$T56>40)),ABS(D54)>$G$4),"",D54),"") -> -0.645 | O54: =IFERROR(IF(OR(AND(Data_Input!$T$1="meters",Data_Input!$T56>12),(AND(Data_Input!$T$1="feet",Data_Input!$T56>40)),ABS(E54)>$G$4),"",E54),"") -> -1.055 | Q54: 0.665 | R54: 0.415 | S54: 0.645 | T54: 1.055
A55: 53 | B55: =Data_Input!O57 -> -0.6 | C55: =Data_Input!P57 -> -1.02 | D55: =Data_Input!Q57 -> -0.69 | E55: =Data_Input!R57 -> -0.58 | L55: =IFERROR(IF(OR(AND(Data_Input!$T$1="meters",Data_Input!$T57>12),(AND(Data_Input!$T$1="feet",Data_Input!$T57>40)),ABS(B55)>$G$4),"",B55),"") -> -0.6 | M55: =IFERROR(IF(OR(AND(Data_Input!$T$1="meters",Data_Input!$T57>12),(AND(Data_Input!$T$1="feet",Data_Input!$T57>40)),ABS(C55)>$G$4),"",C55),"") -> -1.02 | N55: =IFERROR(IF(OR(AND(Data_Input!$T$1="meters",Data_Input!$T57>12),(AND(Data_Input!$T$1="feet",Data_Input!$T57>40)),ABS(D55)>$G$4),"",D55),"") -> -0.69 | O55: =IFERROR(IF(OR(AND(Data_Input!$T$1="meters",Data_Input!$T57>12),(AND(Data_Input!$T$1="feet",Data_Input!$T57>40)),ABS(E55)>$G$4),"",E55),"") -> -0.58 | Q55: 0.6 | R55: 1.02 | S55: 0.69 | T55: 0.58
A56: 54 | B56: =Data_Input!O58 -> 0.05 | C56: =Data_Input!P58 -> 0.11 | D56: =Data_Input!Q58 -> 0.34 | E56: =Data_Input!R58 -> -0.03 | L56: =IFERROR(IF(OR(AND(Data_Input!$T$1="meters",Data_Input!$T58>12),(AND(Data_Input!$T$1="feet",Data_Input!$T58>40)),ABS(B56)>$G$4),"",B56),"") -> 0.05 | M56: =IFERROR(IF(OR(AND(Data_Input!$T$1="meters",Data_Input!$T58>12),(AND(Data_Input!$T$1="feet",Data_Input!$T58>40)),ABS(C56)>$G$4),"",C56),"") -> 0.11 | N56: =IFERROR(IF(OR(AND(Data_Input!$T$1="meters",Data_Input!$T58>12),(AND(Data_Input!$T$1="feet",Data_Input!$T58>40)),ABS(D56)>$G$4),"",D56),"") -> 0.34 | O56: =IFERROR(IF(OR(AND(Data_Input!$T$1="meters",Data_Input!$T58>12),(AND(Data_Input!$T$1="feet",Data_Input!$T58>40)),ABS(E56)>$G$4),"",E56),"") -> -0.03 | Q56: 0.05 | R56: 0.11 | S56: 0.34 | T56: 0.03
A57: 55 | B57: =Data_Input!O59 -> -0.15 | C57: =Data_Input!P59 -> -0.25 | D57: =Data_Input!Q59 -> -0.31 | E57: =Data_Input!R59 -> -0.46 | L57: =IFERROR(IF(OR(AND(Data_Input!$T$1="meters",Data_Input!$T59>12),(AND(Data_Input!$T$1="feet",Data_Input!$T59>40)),ABS(B57)>$G$4),"",B57),"") -> -0.15 | M57: =IFERROR(IF(OR(AND(Data_Input!$T$1="meters",Data_Input!$T59>12),(AND(Data_Input!$T$1="feet",Data_Input!$T59>40)),ABS(C57)>$G$4),"",C57),"") -> -0.25 | N57: =IFERROR(IF(OR(AND(Data_Input!$T$1="meters",Data_Input!$T59>12),(AND(Data_Input!$T$1="feet",Data_Input!$T59>40)),ABS(D57)>$G$4),"",D57),"") -> -0.31 | O57: =IFERROR(IF(OR(AND(Data_Input!$T$1="meters",Data_Input!$T59>12),(AND(Data_Input!$T$1="feet",Data_Input!$T59>40)),ABS(E57)>$G$4),"",E57),"") -> -0.46 | Q57: 0.15 | R57: 0.25 | S57: 0.31 | T57: 0.46
A58: 56 | B58: =Data_Input!O60 -> 0.13 | C58: =Data_Input!P60 -> 0.35 | D58: =Data_Input!Q60 -> 0 | E58: =Data_Input!R60 -> -0.43 | L58: =IFERROR(IF(OR(AND(Data_Input!$T$1="meters",Data_Input!$T60>12),(AND(Data_Input!$T$1="feet",Data_Input!$T60>40)),ABS(B58)>$G$4),"",B58),"") -> 0.13 | M58: =IFERROR(IF(OR(AND(Data_Input!$T$1="meters",Data_Input!$T60>12),(AND(Data_Input!$T$1="feet",Data_Input!$T60>40)),ABS(C58)>$G$4),"",C58),"") -> 0.35 | N58: =IFERROR(IF(OR(AND(Data_Input!$T$1="meters",Data_Input!$T60>12),(AND(Data_Input!$T$1="feet",Data_Input!$T60>40)),ABS(D58)>$G$4),"",D58),"") -> 0 | O58: =IFERROR(IF(OR(AND(Data_Input!$T$1="meters",Data_Input!$T60>12),(AND(Data_Input!$T$1="feet",Data_Input!$T60>40)),ABS(E58)>$G$4),"",E58),"") -> -0.43 | Q58: 0.13 | R58: 0.35 | S58: 0 | T58: 0.43
A59: 57 | B59: =Data_Input!O61 -> -0.15 | C59: =Data_Input!P61 -> -0.22 | D59: =Data_Input!Q61 -> -0.22 | E59: =Data_Input!R61 -> -0.3 | L59: =IFERROR(IF(OR(AND(Data_Input!$T$1="meters",Data_Input!$T61>12),(AND(Data_Input!$T$1="feet",Data_Input!$T61>40)),ABS(B59)>$G$4),"",B59),"") -> -0.15 | M59: =IFERROR(IF(OR(AND(Data_Input!$T$1="meters",Data_Input!$T61>12),(AND(Data_Input!$T$1="feet",Data_Input!$T61>40)),ABS(C59)>$G$4),"",C59),"") -> -0.22 | N59: =IFERROR(IF(OR(AND(Data_Input!$T$1="meters",Data_Input!$T61>12),(AND(Data_Input!$T$1="feet",Data_Input!$T61>40)),ABS(D59)>$G$4),"",D59),"") -> -0.22 | O59: =IFERROR(IF(OR(AND(Data_Input!$T$1="meters",Data_Input!$T61>12),(AND(Data_Input!$T$1="feet",Data_Input!$T61>40)),ABS(E59)>$G$4),"",E59),"") -> -0.3 | Q59: 0.15 | R59: 0.22 | S59: 0.22 | T59: 0.3
A60: 58 | B60: =Data_Input!O62 -> 0.385 | C60: =Data_Input!P62 -> 0.325 | D60: =Data_Input!Q62 -> 0.345 | E60: =Data_Input!R62 -> 0.345 | L60: =IFERROR(IF(OR(AND(Data_Input!$T$1="meters",Data_Input!$T62>12),(AND(Data_Input!$T$1="feet",Data_Input!$T62>40)),ABS(B60)>$G$4),"",B60),"") -> 0.385 | M60: =IFERROR(IF(OR(AND(Data_Input!$T$1="meters",Data_Input!$T62>12),(AND(Data_Input!$T$1="feet",Data_Input!$T62>40)),ABS(C60)>$G$4),"",C60),"") -> 0.325 | N60: =IFERROR(IF(OR(AND(Data_Input!$T$1="meters",Data_Input!$T62>12),(AND(Data_Input!$T$1="feet",Data_Input!$T62>40)),ABS(D60)>$G$4),"",D60),"") -> 0.345 | O60: =IFERROR(IF(OR(AND(Data_Input!$T$1="meters",Data_Input!$T62>12),(AND(Data_Input!$T$1="feet",Data_Input!$T62>40)),ABS(E60)>$G$4),"",E60),"") -> 0.345 | Q60: 0.385 | R60: 0.325 | S60: 0.345 | T60: 0.345
A61: 59 | B61: =Data_Input!O63 -> -0.1 | C61: =Data_Input!P63 -> -0.33 | D61: =Data_Input!Q63 -> 0.05 | E61: =Data_Input!R63 -> 0.09 | L61: =IFERROR(IF(OR(AND(Data_Input!$T$1="meters",Data_Input!$T63>12),(AND(Data_Input!$T$1="feet",Data_Input!$T63>40)),ABS(B61)>$G$4),"",B61),"") -> -0.1 | M61: =IFERROR(IF(OR(AND(Data_Input!$T$1="meters",Data_Input!$T63>12),(AND(Data_Input!$T$1="feet",Data_Input!$T63>40)),ABS(C61)>$G$4),"",C61),"") -> -0.33 | N61: =IFERROR(IF(OR(AND(Data_Input!$T$1="meters",Data_Input!$T63>12),(AND(Data_Input!$T$1="feet",Data_Input!$T63>40)),ABS(D61)>$G$4),"",D61),"") -> 0.05 | O61: =IFERROR(IF(OR(AND(Data_Input!$T$1="meters",Data_Input!$T63>12),(AND(Data_Input!$T$1="feet",Data_Input!$T63>40)),ABS(E61)>$G$4),"",E61),"") -> 0.09 | Q61: 0.1 | R61: 0.33 | S61: 0.05 | T61: 0.09
A62: 60 | B62: =Data_Input!O64 -> -0.29 | C62: =Data_Input!P64 -> -0.04 | D62: =Data_Input!Q64 -> -0.26 | E62: =Data_Input!R64 -> -0.49 | L62: =IFERROR(IF(OR(AND(Data_Input!$T$1="meters",Data_Input!$T64>12),(AND(Data_Input!$T$1="feet",Data_Input!$T64>40)),ABS(B62)>$G$4),"",B62),"") -> -0.29 | M62: =IFERROR(IF(OR(AND(Data_Input!$T$1="meters",Data_Input!$T64>12),(AND(Data_Input!$T$1="feet",Data_Input!$T64>40)),ABS(C62)>$G$4),"",C62),"") -> -0.04 | N62: =IFERROR(IF(OR(AND(Data_Input!$T$1="meters",Data_Input!$T64>12),(AND(Data_Input!$T$1="feet",Data_Input!$T64>40)),ABS(D62)>$G$4),"",D62),"") -> -0.26 | O62: =IFERROR(IF(OR(AND(Data_Input!$T$1="meters",Data_Input!$T64>12),(AND(Data_Input!$T$1="feet",Data_Input!$T64>40)),ABS(E62)>$G$4),"",E62),"") -> -0.49 | Q62: 0.29 | R62: 0.04 | S62: 0.26 | T62: 0.49
A63: 61 | B63: =Data_Input!O65 -> 0.17 | C63: =Data_Input!P65 -> 0.09 | D63: =Data_Input!Q65 -> -0.01 | E63: =Data_Input!R65 -> -0.1 | L63: =IFERROR(IF(OR(AND(Data_Input!$T$1="meters",Data_Input!$T65>12),(AND(Data_Input!$T$1="feet",Data_Input!$T65>40)),ABS(B63)>$G$4),"",B63),"") -> 0.17 | M63: =IFERROR(IF(OR(AND(Data_Input!$T$1="meters",Data_Input!$T65>12),(AND(Data_Input!$T$1="feet",Data_Input!$T65>40)),ABS(C63)>$G$4),"",C63),"") -> 0.09 | N63: =IFERROR(IF(OR(AND(Data_Input!$T$1="meters",Data_Input!$T65>12),(AND(Data_Input!$T$1="feet",Data_Input!$T65>40)),ABS(D63)>$G$4),"",D63),"") -> -0.01 | O63: =IFERROR(IF(OR(AND(Data_Input!$T$1="meters",Data_Input!$T65>12),(AND(Data_Input!$T$1="feet",Data_Input!$T65>40)),ABS(E63)>$G$4),"",E63),"") -> -0.1 | Q63: 0.17 | R63: 0.09 | S63: 0.01 | T63: 0.1
A64: 62 | B64: =Data_Input!O66 -> -0.59 | C64: =Data_Input!P66 -> -0.36 | D64: =Data_Input!Q66 -> -0.59 | E64: =Data_Input!R66 -> -0.79 | L64: =IFERROR(IF(OR(AND(Data_Input!$T$1="meters",Data_Input!$T66>12),(AND(Data_Input!$T$1="feet",Data_Input!$T66>40)),ABS(B64)>$G$4),"",B64),"") -> -0.59 | M64: =IFERROR(IF(OR(AND(Data_Input!$T$1="meters",Data_Input!$T66>12),(AND(Data_Input!$T$1="feet",Data_Input!$T66>40)),ABS(C64)>$G$4),"",C64),"") -> -0.36 | N64: =IFERROR(IF(OR(AND(Data_Input!$T$1="meters",Data_Input!$T66>12),(AND(Data_Input!$T$1="feet",Data_Input!$T66>40)),ABS(D64)>$G$4),"",D64),"") -> -0.59 | O64: =IFERROR(IF(OR(AND(Data_Input!$T$1="meters",Data_Input!$T66>12),(AND(Data_Input!$T$1="feet",Data_Input!$T66>40)),ABS(E64)>$G$4),"",E64),"") -> -0.79 | Q64: 0.59 | R64: 0.36 | S64: 0.59 | T64: 0.79
A65: 63 | B65: =Data_Input!O67 -> -0.16 | C65: =Data_Input!P67 -> -0.13 | D65: =Data_Input!Q67 -> -0.22 | E65: =Data_Input!R67 -> -0.37 | L65: =IFERROR(IF(OR(AND(Data_Input!$T$1="meters",Data_Input!$T67>12),(AND(Data_Input!$T$1="feet",Data_Input!$T67>40)),ABS(B65)>$G$4),"",B65),"") -> -0.16 | M65: =IFERROR(IF(OR(AND(Data_Input!$T$1="meters",Data_Input!$T67>12),(AND(Data_Input!$T$1="feet",Data_Input!$T67>40)),ABS(C65)>$G$4),"",C65),"") -> -0.13 | N65: =IFERROR(IF(OR(AND(Data_Input!$T$1="meters",Data_Input!$T67>12),(AND(Data_Input!$T$1="feet",Data_Input!$T67>40)),ABS(D65)>$G$4),"",D65),"") -> -0.22 | O65: =IFERROR(IF(OR(AND(Data_Input!$T$1="meters",Data_Input!$T67>12),(AND(Data_Input!$T$1="feet",Data_Input!$T67>40)),ABS(E65)>$G$4),"",E65),"") -> -0.37 | Q65: 0.16 | R65: 0.13 | S65: 0.22 | T65: 0.37
A66: 64 | B66: =Data_Input!O68 -> 0.05 | C66: =Data_Input!P68 -> 0.11 | D66: =Data_Input!Q68 -> 0.34 | E66: =Data_Input!R68 -> -0.03 | L66: =IFERROR(IF(OR(AND(Data_Input!$T$1="meters",Data_Input!$T68>12),(AND(Data_Input!$T$1="feet",Data_Input!$T68>40)),ABS(B66)>$G$4),"",B66),"") -> 0.05 | M66: =IFERROR(IF(OR(AND(Data_Input!$T$1="meters",Data_Input!$T68>12),(AND(Data_Input!$T$1="feet",Data_Input!$T68>40)),ABS(C66)>$G$4),"",C66),"") -> 0.11 | N66: =IFERROR(IF(OR(AND(Data_Input!$T$1="meters",Data_Input!$T68>12),(AND(Data_Input!$T$1="feet",Data_Input!$T68>40)),ABS(D66)>$G$4),"",D66),"") -> 0.34 | O66: =IFERROR(IF(OR(AND(Data_Input!$T$1="meters",Data_Input!$T68>12),(AND(Data_Input!$T$1="feet",Data_Input!$T68>40)),ABS(E66)>$G$4),"",E66),"") -> -0.03 | Q66: 0.05 | R66: 0.11 | S66: 0.34 | T66: 0.03
A67: 65 | B67: =Data_Input!O69 -> 0.305 | C67: =Data_Input!P69 -> 0.085 | D67: =Data_Input!Q69 -> 0.535 | E67: =Data_Input!R69 -> 0.585 | L67: =IFERROR(IF(OR(AND(Data_Input!$T$1="meters",Data_Input!$T69>12),(AND(Data_Input!$T$1="feet",Data_Input!$T69>40)),ABS(B67)>$G$4),"",B67),"") -> 0.305 | M67: =IFERROR(IF(OR(AND(Data_Input!$T$1="meters",Data_Input!$T69>12),(AND(Data_Input!$T$1="feet",Data_Input!$T69>40)),ABS(C67)>$G$4),"",C67),"") -> 0.085 | N67: =IFERROR(IF(OR(AND(Data_Input!$T$1="meters",Data_Input!$T69>12),(AND(Data_Input!$T$1="feet",Data_Input!$T69>40)),ABS(D67)>$G$4),"",D67),"") -> 0.535 | O67: =IFERROR(IF(OR(AND(Data_Input!$T$1="meters",Data_Input!$T69>12),(AND(Data_Input!$T$1="feet",Data_Input!$T69>40)),ABS(E67)>$G$4),"",E67),"") -> 0.585 | Q67: 0.305 | R67: 0.085 | S67: 0.535 | T67: 0.585
A68: 66 | B68: =Data_Input!O70 -> 0.62 | C68: =Data_Input!P70 -> 0.47 | D68: =Data_Input!Q70 -> 0.81 | E68: =Data_Input!R70 -> 0.69 | L68: =IFERROR(IF(OR(AND(Data_Input!$T$1="meters",Data_Input!$T70>12),(AND(Data_Input!$T$1="feet",Data_Input!$T70>40)),ABS(B68)>$G$4),"",B68),"") -> 0.62 | M68: =IFERROR(IF(OR(AND(Data_Input!$T$1="meters",Data_Input!$T70>12),(AND(Data_Input!$T$1="feet",Data_Input!$T70>40)),ABS(C68)>$G$4),"",C68),"") -> 0.47 | N68: =IFERROR(IF(OR(AND(Data_Input!$T$1="meters",Data_Input!$T70>12),(AND(Data_Input!$T$1="feet",Data_Input!$T70>40)),ABS(D68)>$G$4),"",D68),"") -> 0.81 | O68: =IFERROR(IF(OR(AND(Data_Input!$T$1="meters",Data_Input!$T70>12),(AND(Data_Input!$T$1="feet",Data_Input!$T70>40)),ABS(E68)>$G$4),"",E68),"") -> 0.69 | Q68: =IFERROR(ABS(L68),"") -> 0.62 | R68: =IFERROR(ABS(M68),"") -> 0.47 | S68: =IFERROR(ABS(N68),"") -> 0.81 | T68: =IFERROR(ABS(O68),"") -> 0.69
A69: 67 | B69: =Data_Input!O71 -> -0.325 | C69: =Data_Input!P71 -> -0.335 | D69: =Data_Input!Q71 -> -0.435 | E69: =Data_Input!R71 -> -0.565 | L69: =IFERROR(IF(OR(AND(Data_Input!$T$1="meters",Data_Input!$T71>12),(AND(Data_Input!$T$1="feet",Data_Input!$T71>40)),ABS(B69)>$G$4),"",B69),"") -> -0.325 | M69: =IFERROR(IF(OR(AND(Data_Input!$T$1="meters",Data_Input!$T71>12),(AND(Data_Input!$T$1="feet",Data_Input!$T71>40)),ABS(C69)>$G$4),"",C69),"") -> -0.335 | N69: =IFERROR(IF(OR(AND(Data_Input!$T$1="meters",Data_Input!$T71>12),(AND(Data_Input!$T$1="feet",Data_Input!$T71>40)),ABS(D69)>$G$4),"",D69),"") -> -0.435 | O69: =IFERROR(IF(OR(AND(Data_Input!$T$1="meters",Data_Input!$T71>12),(AND(Data_Input!$T$1="feet",Data_Input!$T71>40)),ABS(E69)>$G$4),"",E69),"") -> -0.565 | Q69: 0.325 | R69: 0.335 | S69: 0.435 | T69: 0.565
A70: 68 | B70: =Data_Input!O72 -> -0.075 | C70: =Data_Input!P72 -> -0.165 | D70: =Data_Input!Q72 -> -0.285 | E70: =Data_Input!R72 -> -0.315 | L70: =IFERROR(IF(OR(AND(Data_Input!$T$1="meters",Data_Input!$T72>12),(AND(Data_Input!$T$1="feet",Data_Input!$T72>40)),ABS(B70)>$G$4),"",B70),"") -> -0.075 | M70: =IFERROR(IF(OR(AND(Data_Input!$T$1="meters",Data_Input!$T72>12),(AND(Data_Input!$T$1="feet",Data_Input!$T72>40)),ABS(C70)>$G$4),"",C70),"") -> -0.165 | N70: =IFERROR(IF(OR(AND(Data_Input!$T$1="meters",Data_Input!$T72>12),(AND(Data_Input!$T$1="feet",Data_Input!$T72>40)),ABS(D70)>$G$4),"",D70),"") -> -0.285 | O70: =IFERROR(IF(OR(AND(Data_Input!$T$1="meters",Data_Input!$T72>12),(AND(Data_Input!$T$1="feet",Data_Input!$T72>40)),ABS(E70)>$G$4),"",E70),"") -> -0.315 | Q70: 0.075 | R70: 0.165 | S70: 0.285 | T70: 0.315
A71: 69 | B71: =Data_Input!O73 -> 0.06 | C71: =Data_Input!P73 -> 0.01 | D71: =Data_Input!Q73 -> 0.25 | E71: =Data_Input!R73 -> 0.2 | L71: =IFERROR(IF(OR(AND(Data_Input!$T$1="meters",Data_Input!$T73>12),(AND(Data_Input!$T$1="feet",Data_Input!$T73>40)),ABS(B71)>$G$4),"",B71),"") -> 0.06 | M71: =IFERROR(IF(OR(AND(Data_Input!$T$1="meters",Data_Input!$T73>12),(AND(Data_Input!$T$1="feet",Data_Input!$T73>40)),ABS(C71)>$G$4),"",C71),"") -> 0.01 | N71: =IFERROR(IF(OR(AND(Data_Input!$T$1="meters",Data_Input!$T73>12),(AND(Data_Input!$T$1="feet",Data_Input!$T73>40)),ABS(D71)>$G$4),"",D71),"") -> 0.25 | O71: =IFERROR(IF(OR(AND(Data_Input!$T$1="meters",Data_Input!$T73>12),(AND(Data_Input!$T$1="feet",Data_Input!$T73>40)),ABS(E71)>$G$4),"",E71),"") -> 0.2 | Q71: 0.06 | R71: 0.01 | S71: 0.25 | T71: 0.2
A72: 70 | B72: =Data_Input!O74 -> -0.08 | C72: =Data_Input!P74 -> -0.65 | D72: =Data_Input!Q74 -> -0.51 | E72: =Data_Input!R74 -> -0.36 | L72: =IFERROR(IF(OR(AND(Data_Input!$T$1="meters",Data_Input!$T74>12),(AND(Data_Input!$T$1="feet",Data_Input!$T74>40)),ABS(B72)>$G$4),"",B72),"") -> -0.08 | M72: =IFERROR(IF(OR(AND(Data_Input!$T$1="meters",Data_Input!$T74>12),(AND(Data_Input!$T$1="feet",Data_Input!$T74>40)),ABS(C72)>$G$4),"",C72),"") -> -0.65 | N72: =IFERROR(IF(OR(AND(Data_Input!$T$1="meters",Data_Input!$T74>12),(AND(Data_Input!$T$1="feet",Data_Input!$T74>40)),ABS(D72)>$G$4),"",D72),"") -> -0.51 | O72: =IFERROR(IF(OR(AND(Data_Input!$T$1="meters",Data_Input!$T74>12),(AND(Data_Input!$T$1="feet",Data_Input!$T74>40)),ABS(E72)>$G$4),"",E72),"") -> -0.36 | Q72: 0.08 | R72: 0.65 | S72: 0.51 | T72: 0.36
A73: 71 | B73: =Data_Input!O75 -> 0.03 | C73: =Data_Input!P75 -> 0.02 | D73: =Data_Input!Q75 -> 0.65 | E73: =Data_Input!R75 -> 0.16 | L73: =IFERROR(IF(OR(AND(Data_Input!$T$1="meters",Data_Input!$T75>12),(AND(Data_Input!$T$1="feet",Data_Input!$T75>40)),ABS(B73)>$G$4),"",B73),"") -> 0.03 | M73: =IFERROR(IF(OR(AND(Data_Input!$T$1="meters",Data_Input!$T75>12),(AND(Data_Input!$T$1="feet",Data_Input!$T75>40)),ABS(C73)>$G$4),"",C73),"") -> 0.02 | N73: =IFERROR(IF(OR(AND(Data_Input!$T$1="meters",Data_Input!$T75>12),(AND(Data_Input!$T$1="feet",Data_Input!$T75>40)),ABS(D73)>$G$4),"",D73),"") -> 0.65 | O73: =IFERROR(IF(OR(AND(Data_Input!$T$1="meters",Data_Input!$T75>12),(AND(Data_Input!$T$1="feet",Data_Input!$T75>40)),ABS(E73)>$G$4),"",E73),"") -> 0.16 | Q73: 0.03 | R73: 0.02 | S73: 0.65 | T73: 0.16
A74: 72 | B74: =Data_Input!O76 -> -0.42 | C74: =Data_Input!P76 -> -0.49 | D74: =Data_Input!Q76 -> -0.28 | E74: =Data_Input!R76 -> -0.22 | L74: =IFERROR(IF(OR(AND(Data_Input!$T$1="meters",Data_Input!$T76>12),(AND(Data_Input!$T$1="feet",Data_Input!$T76>40)),ABS(B74)>$G$4),"",B74),"") -> -0.42 | M74: =IFERROR(IF(OR(AND(Data_Input!$T$1="meters",Data_Input!$T76>12),(AND(Data_Input!$T$1="feet",Data_Input!$T76>40)),ABS(C74)>$G$4),"",C74),"") -> -0.49 | N74: =IFERROR(IF(OR(AND(Data_Input!$T$1="meters",Data_Input!$T76>12),(AND(Data_Input!$T$1="feet",Data_Input!$T76>40)),ABS(D74)>$G$4),"",D74),"") -> -0.28 | O74: =IFERROR(IF(OR(AND(Data_Input!$T$1="meters",Data_Input!$T76>12),(AND(Data_Input!$T$1="feet",Data_Input!$T76>40)),ABS(E74)>$G$4),"",E74),"") -> -0.22 | Q74: 0.42 | R74: 0.49 | S74: 0.28 | T74: 0.22
A75: 73 | B75: =Data_Input!O77 -> 0.21 | C75: =Data_Input!P77 -> 0.05 | D75: =Data_Input!Q77 -> 0.45 | E75: =Data_Input!R77 -> 0.36 | L75: =IFERROR(IF(OR(AND(Data_Input!$T$1="meters",Data_Input!$T77>12),(AND(Data_Input!$T$1="feet",Data_Input!$T77>40)),ABS(B75)>$G$4),"",B75),"") -> 0.21 | M75: =IFERROR(IF(OR(AND(Data_Input!$T$1="meters",Data_Input!$T77>12),(AND(Data_Input!$T$1="feet",Data_Input!$T77>40)),ABS(C75)>$G$4),"",C75),"") -> 0.05 | N75: =IFERROR(IF(OR(AND(Data_Input!$T$1="meters",Data_Input!$T77>12),(AND(Data_Input!$T$1="feet",Data_Input!$T77>40)),ABS(D75)>$G$4),"",D75),"") -> 0.45 | O75: =IFERROR(IF(OR(AND(Data_Input!$T$1="meters",Data_Input!$T77>12),(AND(Data_Input!$T$1="feet",Data_Input!$T77>40)),ABS(E75)>$G$4),"",E75),"") -> 0.36 | Q75: 0.21 | R75: 0.05 | S75: 0.45 | T75: 0.36
A76: 74 | B76: =Data_Input!O78 -> 0.1 | C76: =Data_Input!P78 -> -0.16 | D76: =Data_Input!Q78 -> 0.48 | E76: =Data_Input!R78 -> 0.39 | L76: =IFERROR(IF(OR(AND(Data_Input!$T$1="meters",Data_Input!$T78>12),(AND(Data_Input!$T$1="feet",Data_Input!$T78>40)),ABS(B76)>$G$4),"",B76),"") -> 0.1 | M76: =IFERROR(IF(OR(AND(Data_Input!$T$1="meters",Data_Input!$T78>12),(AND(Data_Input!$T$1="feet",Data_Input!$T78>40)),ABS(C76)>$G$4),"",C76),"") -> -0.16 | N76: =IFERROR(IF(OR(AND(Data_Input!$T$1="meters",Data_Input!$T78>12),(AND(Data_Input!$T$1="feet",Data_Input!$T78>40)),ABS(D76)>$G$4),"",D76),"") -> 0.48 | O76: =IFERROR(IF(OR(AND(Data_Input!$T$1="meters",Data_Input!$T78>12),(AND(Data_Input!$T$1="feet",Data_Input!$T78>40)),ABS(E76)>$G$4),"",E76),"") -> 0.39 | Q76: 0.1 | R76: 0.16 | S76: 0.48 | T76: 0.39
A77: 75 | B77: =Data_Input!O79 -> -0.06 | C77: =Data_Input!P79 -> -0.11 | D77: =Data_Input!Q79 -> -0.22 | E77: =Data_Input!R79 -> -0.37 | L77: =IFERROR(IF(OR(AND(Data_Input!$T$1="meters",Data_Input!$T79>12),(AND(Data_Input!$T$1="feet",Data_Input!$T79>40)),ABS(B77)>$G$4),"",B77),"") -> -0.06 | M77: =IFERROR(IF(OR(AND(Data_Input!$T$1="meters",Data_Input!$T79>12),(AND(Data_Input!$T$1="feet",Data_Input!$T79>40)),ABS(C77)>$G$4),"",C77),"") -> -0.11 | N77: =IFERROR(IF(OR(AND(Data_Input!$T$1="meters",Data_Input!$T79>12),(AND(Data_Input!$T$1="feet",Data_Input!$T79>40)),ABS(D77)>$G$4),"",D77),"") -> -0.22 | O77: =IFERROR(IF(OR(AND(Data_Input!$T$1="meters",Data_Input!$T79>12),(AND(Data_Input!$T$1="feet",Data_Input!$T79>40)),ABS(E77)>$G$4),"",E77),"") -> -0.37 | Q77: 0.06 | R77: 0.11 | S77: 0.22 | T77: 0.37
A78: 76 | B78: =Data_Input!O80 -> 0.43 | C78: =Data_Input!P80 -> 0.17 | D78: =Data_Input!Q80 -> 0.39 | E78: =Data_Input!R80 -> 0.39 | L78: =IFERROR(IF(OR(AND(Data_Input!$T$1="meters",Data_Input!$T80>12),(AND(Data_Input!$T$1="feet",Data_Input!$T80>40)),ABS(B78)>$G$4),"",B78),"") -> 0.43 | M78: =IFERROR(IF(OR(AND(Data_Input!$T$1="meters",Data_Input!$T80>12),(AND(Data_Input!$T$1="feet",Data_Input!$T80>40)),ABS(C78)>$G$4),"",C78),"") -> 0.17 | N78: =IFERROR(IF(OR(AND(Data_Input!$T$1="meters",Data_Input!$T80>12),(AND(Data_Input!$T$1="feet",Data_Input!$T80>40)),ABS(D78)>$G$4),"",D78),"") -> 0.39 | O78: =IFERROR(IF(OR(AND(Data_Input!$T$1="meters",Data_Input!$T80>12),(AND(Data_Input!$T$1="feet",Data_Input!$T80>40)),ABS(E78)>$G$4),"",E78),"") -> 0.39 | Q78: 0.43 | R78: 0.17 | S78: 0.39 | T78: 0.39
A79: 77 | B79: =Data_Input!O81 -> 0.25 | C79: =Data_Input!P81 -> 0.31 | D79: =Data_Input!Q81 -> 0.13 | E79: =Data_Input!R81 -> -0.03 | L79: =IFERROR(IF(OR(AND(Data_Input!$T$1="meters",Data_Input!$T81>12),(AND(Data_Input!$T$1="feet",Data_Input!$T81>40)),ABS(B79)>$G$4),"",B79),"") -> 0.25 | M79: =IFERROR(IF(OR(AND(Data_Input!$T$1="meters",Data_Input!$T81>12),(AND(Data_Input!$T$1="feet",Data_Input!$T81>40)),ABS(C79)>$G$4),"",C79),"") -> 0.31 | N79: =IFERROR(IF(OR(AND(Data_Input!$T$1="meters",Data_Input!$T81>12),(AND(Data_Input!$T$1="feet",Data_Input!$T81>40)),ABS(D79)>$G$4),"",D79),"") -> 0.13 | O79: =IFERROR(IF(OR(AND(Data_Input!$T$1="meters",Data_Input!$T81>12),(AND(Data_Input!$T$1="feet",Data_Input!$T81>40)),ABS(E79)>$G$4),"",E79),"") -> -0.03 | Q79: 0.25 | R79: 0.31 | S79: 0.13 | T79: 0.03
A80: 78 | B80: =Data_Input!O82 -> -0.11 | C80: =Data_Input!P82 -> -0.24 | D80: =Data_Input!Q82 -> -0.38 | E80: =Data_Input!R82 -> -0.45 | L80: =IFERROR(IF(OR(AND(Data_Input!$T$1="meters",Data_Input!$T82>12),(AND(Data_Input!$T$1="feet",Data_Input!$T82>40)),ABS(B80)>$G$4),"",B80),"") -> -0.11 | M80: =IFERROR(IF(OR(AND(Data_Input!$T$1="meters",Data_Input!$T82>12),(AND(Data_Input!$T$1="feet",Data_Input!$T82>40)),ABS(C80)>$G$4),"",C80),"") -> -0.24 | N80: =IFERROR(IF(OR(AND(Data_Input!$T$1="meters",Data_Input!$T82>12),(AND(Data_Input!$T$1="feet",Data_Input!$T82>40)),ABS(D80)>$G$4),"",D80),"") -> -0.38 | O80: =IFERROR(IF(OR(AND(Data_Input!$T$1="meters",Data_Input!$T82>12),(AND(Data_Input!$T$1="feet",Data_Input!$T82>40)),ABS(E80)>$G$4),"",E80),"") -> -0.45 | Q80: 0.11 | R80: 0.24 | S80: 0.38 | T80: 0.45
A81: 79 | B81: =Data_Input!O83 -> -0.48 | C81: =Data_Input!P83 -> -0.32 | D81: =Data_Input!Q83 -> -0.59 | E81: =Data_Input!R83 -> -0.79 | L81: =IFERROR(IF(OR(AND(Data_Input!$T$1="meters",Data_Input!$T83>12),(AND(Data_Input!$T$1="feet",Data_Input!$T83>40)),ABS(B81)>$G$4),"",B81),"") -> -0.48 | M81: =IFERROR(IF(OR(AND(Data_Input!$T$1="meters",Data_Input!$T83>12),(AND(Data_Input!$T$1="feet",Data_Input!$T83>40)),ABS(C81)>$G$4),"",C81),"") -> -0.32 | N81: =IFERROR(IF(OR(AND(Data_Input!$T$1="meters",Data_Input!$T83>12),(AND(Data_Input!$T$1="feet",Data_Input!$T83>40)),ABS(D81)>$G$4),"",D81),"") -> -0.59 | O81: =IFERROR(IF(OR(AND(Data_Input!$T$1="meters",Data_Input!$T83>12),(AND(Data_Input!$T$1="feet",Data_Input!$T83>40)),ABS(E81)>$G$4),"",E81),"") -> -0.79 | Q81: 0.48 | R81: 0.32 | S81: 0.59 | T81: 0.79
A82: 80 | B82: =Data_Input!O84 -> -0.09 | C82: =Data_Input!P84 -> -0.2 | D82: =Data_Input!Q84 -> -0.23 | E82: =Data_Input!R84 -> -0.23 | L82: =IFERROR(IF(OR(AND(Data_Input!$T$1="meters",Data_Input!$T84>12),(AND(Data_Input!$T$1="feet",Data_Input!$T84>40)),ABS(B82)>$G$4),"",B82),"") -> -0.09 | M82: =IFERROR(IF(OR(AND(Data_Input!$T$1="meters",Data_Input!$T84>12),(AND(Data_Input!$T$1="feet",Data_Input!$T84>40)),ABS(C82)>$G$4),"",C82),"") -> -0.2 | N82: =IFERROR(IF(OR(AND(Data_Input!$T$1="meters",Data_Input!$T84>12),(AND(Data_Input!$T$1="feet",Data_Input!$T84>40)),ABS(D82)>$G$4),"",D82),"") -> -0.23 | O82: =IFERROR(IF(OR(AND(Data_Input!$T$1="meters",Data_Input!$T84>12),(AND(Data_Input!$T$1="feet",Data_Input!$T84>40)),ABS(E82)>$G$4),"",E82),"") -> -0.23 | Q82: 0.09 | R82: 0.2 | S82: 0.23 | T82: 0.23
A83: 81 | B83: =Data_Input!O85 -> 0.245 | C83: =Data_Input!P85 -> 0.205 | D83: =Data_Input!Q85 -> 0.455 | E83: =Data_Input!R85 -> 0.525 | L83: =IFERROR(IF(OR(AND(Data_Input!$T$1="meters",Data_Input!$T85>12),(AND(Data_Input!$T$1="feet",Data_Input!$T85>40)),ABS(B83)>$G$4),"",B83),"") -> 0.245 | M83: =IFERROR(IF(OR(AND(Data_Input!$T$1="meters",Data_Input!$T85>12),(AND(Data_Input!$T$1="feet",Data_Input!$T85>40)),ABS(C83)>$G$4),"",C83),"") -> 0.205 | N83: =IFERROR(IF(OR(AND(Data_Input!$T$1="meters",Data_Input!$T85>12),(AND(Data_Input!$T$1="feet",Data_Input!$T85>40)),ABS(D83)>$G$4),"",D83),"") -> 0.455 | O83: =IFERROR(IF(OR(AND(Data_Input!$T$1="meters",Data_Input!$T85>12),(AND(Data_Input!$T$1="feet",Data_Input!$T85>40)),ABS(E83)>$G$4),"",E83),"") -> 0.525 | Q83: 0.245 | R83: 0.205 | S83: 0.455 | T83: 0.525
A84: 82 | B84: =Data_Input!O86 -> 0.38 | C84: =Data_Input!P86 -> 0.14 | D84: =Data_Input!Q86 -> 0.23 | E84: =Data_Input!R86 -> 0.19 | L84: =IFERROR(IF(OR(AND(Data_Input!$T$1="meters",Data_Input!$T86>12),(AND(Data_Input!$T$1="feet",Data_Input!$T86>40)),ABS(B84)>$G$4),"",B84),"") -> 0.38 | M84: =IFERROR(IF(OR(AND(Data_Input!$T$1="meters",Data_Input!$T86>12),(AND(Data_Input!$T$1="feet",Data_Input!$T86>40)),ABS(C84)>$G$4),"",C84),"") -> 0.14 | N84: =IFERROR(IF(OR(AND(Data_Input!$T$1="meters",Data_Input!$T86>12),(AND(Data_Input!$T$1="feet",Data_Input!$T86>40)),ABS(D84)>$G$4),"",D84),"") -> 0.23 | O84: =IFERROR(IF(OR(AND(Data_Input!$T$1="meters",Data_Input!$T86>12),(AND(Data_Input!$T$1="feet",Data_Input!$T86>40)),ABS(E84)>$G$4),"",E84),"") -> 0.19 | Q84: 0.38 | R84: 0.14 | S84: 0.23 | T84: 0.19
A85: 83 | B85: =Data_Input!O87 -> 0.13 | C85: =Data_Input!P87 -> 0.18 | D85: =Data_Input!Q87 -> 0.85 | E85: =Data_Input!R87 -> 0.29 | L85: =IFERROR(IF(OR(AND(Data_Input!$T$1="meters",Data_Input!$T87>12),(AND(Data_Input!$T$1="feet",Data_Input!$T87>40)),ABS(B85)>$G$4),"",B85),"") -> 0.13 | M85: =IFERROR(IF(OR(AND(Data_Input!$T$1="meters",Data_Input!$T87>12),(AND(Data_Input!$T$1="feet",Data_Input!$T87>40)),ABS(C85)>$G$4),"",C85),"") -> 0.18 | N85: =IFERROR(IF(OR(AND(Data_Input!$T$1="meters",Data_Input!$T87>12),(AND(Data_Input!$T$1="feet",Data_Input!$T87>40)),ABS(D85)>$G$4),"",D85),"") -> 0.85 | O85: =IFERROR(IF(OR(AND(Data_Input!$T$1="meters",Data_Input!$T87>12),(AND(Data_Input!$T$1="feet",Data_Input!$T87>40)),ABS(E85)>$G$4),"",E85),"") -> 0.29 | Q85: 0.13 | R85: 0.18 | S85: 0.85 | T85: 0.29
A86: 84 | B86: =Data_Input!O88 -> -0.25 | C86: =Data_Input!P88 -> -0.53 | D86: =Data_Input!Q88 -> -0.39 | E86: =Data_Input!R88 -> -0.34 | L86: =IFERROR(IF(OR(AND(Data_Input!$T$1="meters",Data_Input!$T88>12),(AND(Data_Input!$T$1="feet",Data_Input!$T88>40)),ABS(B86)>$G$4),"",B86),"") -> -0.25 | M86: =IFERROR(IF(OR(AND(Data_Input!$T$1="meters",Data_Input!$T88>12),(AND(Data_Input!$T$1="feet",Data_Input!$T88>40)),ABS(C86)>$G$4),"",C86),"") -> -0.53 | N86: =IFERROR(IF(OR(AND(Data_Input!$T$1="meters",Data_Input!$T88>12),(AND(Data_Input!$T$1="feet",Data_Input!$T88>40)),ABS(D86)>$G$4),"",D86),"") -> -0.39 | O86: =IFERROR(IF(OR(AND(Data_Input!$T$1="meters",Data_Input!$T88>12),(AND(Data_Input!$T$1="feet",Data_Input!$T88>40)),ABS(E86)>$G$4),"",E86),"") -> -0.34 | Q86: 0.25 | R86: 0.53 | S86: 0.39 | T86: 0.34
A87: 85 | B87: =Data_Input!O89 -> 0.1 | C87: =Data_Input!P89 -> 0 | D87: =Data_Input!Q89 -> -0.06 | E87: =Data_Input!R89 -> -0.01 | L87: =IFERROR(IF(OR(AND(Data_Input!$T$1="meters",Data_Input!$T89>12),(AND(Data_Input!$T$1="feet",Data_Input!$T89>40)),ABS(B87)>$G$4),"",B87),"") -> 0.1 | M87: =IFERROR(IF(OR(AND(Data_Input!$T$1="meters",Data_Input!$T89>12),(AND(Data_Input!$T$1="feet",Data_Input!$T89>40)),ABS(C87)>$G$4),"",C87),"") -> 0 | N87: =IFERROR(IF(OR(AND(Data_Input!$T$1="meters",Data_Input!$T89>12),(AND(Data_Input!$T$1="feet",Data_Input!$T89>40)),ABS(D87)>$G$4),"",D87),"") -> -0.06 | O87: =IFERROR(IF(OR(AND(Data_Input!$T$1="meters",Data_Input!$T89>12),(AND(Data_Input!$T$1="feet",Data_Input!$T89>40)),ABS(E87)>$G$4),"",E87),"") -> -0.01 | Q87: 0.1 | R87: 0 | S87: 0.06 | T87: 0.01
A88: 86 | B88: =Data_Input!O90 ->  | C88: =Data_Input!P90 ->  | D88: =Data_Input!Q90 ->  | E88: =Data_Input!R90 ->  | L88: =IFERROR(IF(OR(AND(Data_Input!$T$1="meters",Data_Input!$T90>12),(AND(Data_Input!$T$1="feet",Data_Input!$T90>40)),ABS(B88)>$G$4),"",B88),"") ->  | M88: =IFERROR(IF(OR(AND(Data_Input!$T$1="meters",Data_Input!$T90>12),(AND(Data_Input!$T$1="feet",Data_Input!$T90>40)),ABS(C88)>$G$4),"",C88),"") ->  | N88: =IFERROR(IF(OR(AND(Data_Input!$T$1="meters",Data_Input!$T90>12),(AND(Data_Input!$T$1="feet",Data_Input!$T90>40)),ABS(D88)>$G$4),"",D88),"") ->  | O88: =IFERROR(IF(OR(AND(Data_Input!$T$1="meters",Data_Input!$T90>12),(AND(Data_Input!$T$1="feet",Data_Input!$T90>40)),ABS(E88)>$G$4),"",E88),"") -> 
A89: 87 | B89: =Data_Input!O91 ->  | C89: =Data_Input!P91 ->  | D89: =Data_Input!Q91 ->  | E89: =Data_Input!R91 ->  | L89: =IFERROR(IF(OR(AND(Data_Input!$T$1="meters",Data_Input!$T91>12),(AND(Data_Input!$T$1="feet",Data_Input!$T91>40)),ABS(B89)>$G$4),"",B89),"") ->  | M89: =IFERROR(IF(OR(AND(Data_Input!$T$1="meters",Data_Input!$T91>12),(AND(Data_Input!$T$1="feet",Data_Input!$T91>40)),ABS(C89)>$G$4),"",C89),"") ->  | N89: =IFERROR(IF(OR(AND(Data_Input!$T$1="meters",Data_Input!$T91>12),(AND(Data_Input!$T$1="feet",Data_Input!$T91>40)),ABS(D89)>$G$4),"",D89),"") ->  | O89: =IFERROR(IF(OR(AND(Data_Input!$T$1="meters",Data_Input!$T91>12),(AND(Data_Input!$T$1="feet",Data_Input!$T91>40)),ABS(E89)>$G$4),"",E89),"") -> 
A90: 88 | B90: =Data_Input!O92 ->  | C90: =Data_Input!P92 ->  | D90: =Data_Input!Q92 ->  | E90: =Data_Input!R92 ->  | L90: =IFERROR(IF(OR(AND(Data_Input!$T$1="meters",Data_Input!$T92>12),(AND(Data_Input!$T$1="feet",Data_Input!$T92>40)),ABS(B90)>$G$4),"",B90),"") ->  | M90: =IFERROR(IF(OR(AND(Data_Input!$T$1="meters",Data_Input!$T92>12),(AND(Data_Input!$T$1="feet",Data_Input!$T92>40)),ABS(C90)>$G$4),"",C90),"") ->  | N90: =IFERROR(IF(OR(AND(Data_Input!$T$1="meters",Data_Input!$T92>12),(AND(Data_Input!$T$1="feet",Data_Input!$T92>40)),ABS(D90)>$G$4),"",D90),"") ->  | O90: =IFERROR(IF(OR(AND(Data_Input!$T$1="meters",Data_Input!$T92>12),(AND(Data_Input!$T$1="feet",Data_Input!$T92>40)),ABS(E90)>$G$4),"",E90),"") -> 
A91: 89 | B91: =Data_Input!O93 ->  | C91: =Data_Input!P93 ->  | D91: =Data_Input!Q93 ->  | E91: =Data_Input!R93 ->  | L91: =IFERROR(IF(OR(AND(Data_Input!$T$1="meters",Data_Input!$T93>12),(AND(Data_Input!$T$1="feet",Data_Input!$T93>40)),ABS(B91)>$G$4),"",B91),"") ->  | M91: =IFERROR(IF(OR(AND(Data_Input!$T$1="meters",Data_Input!$T93>12),(AND(Data_Input!$T$1="feet",Data_Input!$T93>40)),ABS(C91)>$G$4),"",C91),"") ->  | N91: =IFERROR(IF(OR(AND(Data_Input!$T$1="meters",Data_Input!$T93>12),(AND(Data_Input!$T$1="feet",Data_Input!$T93>40)),ABS(D91)>$G$4),"",D91),"") ->  | O91: =IFERROR(IF(OR(AND(Data_Input!$T$1="meters",Data_Input!$T93>12),(AND(Data_Input!$T$1="feet",Data_Input!$T93>40)),ABS(E91)>$G$4),"",E91),"") -> 
A92: 90 | B92: =Data_Input!O94 ->  | C92: =Data_Input!P94 ->  | D92: =Data_Input!Q94 ->  | E92: =Data_Input!R94 ->  | L92: =IFERROR(IF(OR(AND(Data_Input!$T$1="meters",Data_Input!$T94>12),(AND(Data_Input!$T$1="feet",Data_Input!$T94>40)),ABS(B92)>$G$4),"",B92),"") ->  | M92: =IFERROR(IF(OR(AND(Data_Input!$T$1="meters",Data_Input!$T94>12),(AND(Data_Input!$T$1="feet",Data_Input!$T94>40)),ABS(C92)>$G$4),"",C92),"") ->  | N92: =IFERROR(IF(OR(AND(Data_Input!$T$1="meters",Data_Input!$T94>12),(AND(Data_Input!$T$1="feet",Data_Input!$T94>40)),ABS(D92)>$G$4),"",D92),"") ->  | O92: =IFERROR(IF(OR(AND(Data_Input!$T$1="meters",Data_Input!$T94>12),(AND(Data_Input!$T$1="feet",Data_Input!$T94>40)),ABS(E92)>$G$4),"",E92),"") -> 
A93: 91 | B93: =Data_Input!O95 ->  | C93: =Data_Input!P95 ->  | D93: =Data_Input!Q95 ->  | E93: =Data_Input!R95 ->  | L93: =IFERROR(IF(OR(AND(Data_Input!$T$1="meters",Data_Input!$T95>12),(AND(Data_Input!$T$1="feet",Data_Input!$T95>40)),ABS(B93)>$G$4),"",B93),"") ->  | M93: =IFERROR(IF(OR(AND(Data_Input!$T$1="meters",Data_Input!$T95>12),(AND(Data_Input!$T$1="feet",Data_Input!$T95>40)),ABS(C93)>$G$4),"",C93),"") ->  | N93: =IFERROR(IF(OR(AND(Data_Input!$T$1="meters",Data_Input!$T95>12),(AND(Data_Input!$T$1="feet",Data_Input!$T95>40)),ABS(D93)>$G$4),"",D93),"") ->  | O93: =IFERROR(IF(OR(AND(Data_Input!$T$1="meters",Data_Input!$T95>12),(AND(Data_Input!$T$1="feet",Data_Input!$T95>40)),ABS(E93)>$G$4),"",E93),"") -> 
A94: 92 | B94: =Data_Input!O96 ->  | C94: =Data_Input!P96 ->  | D94: =Data_Input!Q96 ->  | E94: =Data_Input!R96 ->  | L94: =IFERROR(IF(OR(AND(Data_Input!$T$1="meters",Data_Input!$T96>12),(AND(Data_Input!$T$1="feet",Data_Input!$T96>40)),ABS(B94)>$G$4),"",B94),"") ->  | M94: =IFERROR(IF(OR(AND(Data_Input!$T$1="meters",Data_Input!$T96>12),(AND(Data_Input!$T$1="feet",Data_Input!$T96>40)),ABS(C94)>$G$4),"",C94),"") ->  | N94: =IFERROR(IF(OR(AND(Data_Input!$T$1="meters",Data_Input!$T96>12),(AND(Data_Input!$T$1="feet",Data_Input!$T96>40)),ABS(D94)>$G$4),"",D94),"") ->  | O94: =IFERROR(IF(OR(AND(Data_Input!$T$1="meters",Data_Input!$T96>12),(AND(Data_Input!$T$1="feet",Data_Input!$T96>40)),ABS(E94)>$G$4),"",E94),"") -> 
A95: 93 | B95: =Data_Input!O97 ->  | C95: =Data_Input!P97 ->  | D95: =Data_Input!Q97 ->  | E95: =Data_Input!R97 ->  | L95: =IFERROR(IF(OR(AND(Data_Input!$T$1="meters",Data_Input!$T97>12),(AND(Data_Input!$T$1="feet",Data_Input!$T97>40)),ABS(B95)>$G$4),"",B95),"") ->  | M95: =IFERROR(IF(OR(AND(Data_Input!$T$1="meters",Data_Input!$T97>12),(AND(Data_Input!$T$1="feet",Data_Input!$T97>40)),ABS(C95)>$G$4),"",C95),"") ->  | N95: =IFERROR(IF(OR(AND(Data_Input!$T$1="meters",Data_Input!$T97>12),(AND(Data_Input!$T$1="feet",Data_Input!$T97>40)),ABS(D95)>$G$4),"",D95),"") ->  | O95: =IFERROR(IF(OR(AND(Data_Input!$T$1="meters",Data_Input!$T97>12),(AND(Data_Input!$T$1="feet",Data_Input!$T97>40)),ABS(E95)>$G$4),"",E95),"") -> 
A96: 94 | B96: =Data_Input!O98 ->  | C96: =Data_Input!P98 ->  | D96: =Data_Input!Q98 ->  | E96: =Data_Input!R98 ->  | L96: =IFERROR(IF(OR(AND(Data_Input!$T$1="meters",Data_Input!$T98>12),(AND(Data_Input!$T$1="feet",Data_Input!$T98>40)),ABS(B96)>$G$4),"",B96),"") ->  | M96: =IFERROR(IF(OR(AND(Data_Input!$T$1="meters",Data_Input!$T98>12),(AND(Data_Input!$T$1="feet",Data_Input!$T98>40)),ABS(C96)>$G$4),"",C96),"") ->  | N96: =IFERROR(IF(OR(AND(Data_Input!$T$1="meters",Data_Input!$T98>12),(AND(Data_Input!$T$1="feet",Data_Input!$T98>40)),ABS(D96)>$G$4),"",D96),"") ->  | O96: =IFERROR(IF(OR(AND(Data_Input!$T$1="meters",Data_Input!$T98>12),(AND(Data_Input!$T$1="feet",Data_Input!$T98>40)),ABS(E96)>$G$4),"",E96),"") -> 
A97: 95 | B97: =Data_Input!O99 ->  | C97: =Data_Input!P99 ->  | D97: =Data_Input!Q99 ->  | E97: =Data_Input!R99 ->  | L97: =IFERROR(IF(OR(AND(Data_Input!$T$1="meters",Data_Input!$T99>12),(AND(Data_Input!$T$1="feet",Data_Input!$T99>40)),ABS(B97)>$G$4),"",B97),"") ->  | M97: =IFERROR(IF(OR(AND(Data_Input!$T$1="meters",Data_Input!$T99>12),(AND(Data_Input!$T$1="feet",Data_Input!$T99>40)),ABS(C97)>$G$4),"",C97),"") ->  | N97: =IFERROR(IF(OR(AND(Data_Input!$T$1="meters",Data_Input!$T99>12),(AND(Data_Input!$T$1="feet",Data_Input!$T99>40)),ABS(D97)>$G$4),"",D97),"") ->  | O97: =IFERROR(IF(OR(AND(Data_Input!$T$1="meters",Data_Input!$T99>12),(AND(Data_Input!$T$1="feet",Data_Input!$T99>40)),ABS(E97)>$G$4),"",E97),"") -> 
A98: 96 | B98: =Data_Input!O100 ->  | C98: =Data_Input!P100 ->  | D98: =Data_Input!Q100 ->  | E98: =Data_Input!R100 ->  | L98: =IFERROR(IF(OR(AND(Data_Input!$T$1="meters",Data_Input!$T100>12),(AND(Data_Input!$T$1="feet",Data_Input!$T100>40)),ABS(B98)>$G$4),"",B98),"") ->  | M98: =IFERROR(IF(OR(AND(Data_Input!$T$1="meters",Data_Input!$T100>12),(AND(Data_Input!$T$1="feet",Data_Input!$T100>40)),ABS(C98)>$G$4),"",C98),"") ->  | N98: =IFERROR(IF(OR(AND(Data_Input!$T$1="meters",Data_Input!$T100>12),(AND(Data_Input!$T$1="feet",Data_Input!$T100>40)),ABS(D98)>$G$4),"",D98),"") ->  | O98: =IFERROR(IF(OR(AND(Data_Input!$T$1="meters",Data_Input!$T100>12),(AND(Data_Input!$T$1="feet",Data_Input!$T100>40)),ABS(E98)>$G$4),"",E98),"") -> 
A99: 97 | B99: =Data_Input!O101 ->  | C99: =Data_Input!P101 ->  | D99: =Data_Input!Q101 ->  | E99: =Data_Input!R101 ->  | L99: =IFERROR(IF(OR(AND(Data_Input!$T$1="meters",Data_Input!$T101>12),(AND(Data_Input!$T$1="feet",Data_Input!$T101>40)),ABS(B99)>$G$4),"",B99),"") ->  | M99: =IFERROR(IF(OR(AND(Data_Input!$T$1="meters",Data_Input!$T101>12),(AND(Data_Input!$T$1="feet",Data_Input!$T101>40)),ABS(C99)>$G$4),"",C99),"") ->  | N99: =IFERROR(IF(OR(AND(Data_Input!$T$1="meters",Data_Input!$T101>12),(AND(Data_Input!$T$1="feet",Data_Input!$T101>40)),ABS(D99)>$G$4),"",D99),"") ->  | O99: =IFERROR(IF(OR(AND(Data_Input!$T$1="meters",Data_Input!$T101>12),(AND(Data_Input!$T$1="feet",Data_Input!$T101>40)),ABS(E99)>$G$4),"",E99),"") -> 
A100: 98 | B100: =Data_Input!O102 ->  | C100: =Data_Input!P102 ->  | D100: =Data_Input!Q102 ->  | E100: =Data_Input!R102 ->  | L100: =IFERROR(IF(OR(AND(Data_Input!$T$1="meters",Data_Input!$T102>12),(AND(Data_Input!$T$1="feet",Data_Input!$T102>40)),ABS(B100)>$G$4),"",B100),"") ->  | M100: =IFERROR(IF(OR(AND(Data_Input!$T$1="meters",Data_Input!$T102>12),(AND(Data_Input!$T$1="feet",Data_Input!$T102>40)),ABS(C100)>$G$4),"",C100),"") ->  | N100: =IFERROR(IF(OR(AND(Data_Input!$T$1="meters",Data_Input!$T102>12),(AND(Data_Input!$T$1="feet",Data_Input!$T102>40)),ABS(D100)>$G$4),"",D100),"") ->  | O100: =IFERROR(IF(OR(AND(Data_Input!$T$1="meters",Data_Input!$T102>12),(AND(Data_Input!$T$1="feet",Data_Input!$T102>40)),ABS(E100)>$G$4),"",E100),"") -> 
A101: 99 | B101: =Data_Input!O103 ->  | C101: =Data_Input!P103 ->  | D101: =Data_Input!Q103 ->  | E101: =Data_Input!R103 ->  | L101: =IFERROR(IF(OR(AND(Data_Input!$T$1="meters",Data_Input!$T103>12),(AND(Data_Input!$T$1="feet",Data_Input!$T103>40)),ABS(B101)>$G$4),"",B101),"") ->  | M101: =IFERROR(IF(OR(AND(Data_Input!$T$1="meters",Data_Input!$T103>12),(AND(Data_Input!$T$1="feet",Data_Input!$T103>40)),ABS(C101)>$G$4),"",C101),"") ->  | N101: =IFERROR(IF(OR(AND(Data_Input!$T$1="meters",Data_Input!$T103>12),(AND(Data_Input!$T$1="feet",Data_Input!$T103>40)),ABS(D101)>$G$4),"",D101),"") ->  | O101: =IFERROR(IF(OR(AND(Data_Input!$T$1="meters",Data_Input!$T103>12),(AND(Data_Input!$T$1="feet",Data_Input!$T103>40)),ABS(E101)>$G$4),"",E101),"") -> 
A102: 100 | B102: =Data_Input!O104 ->  | C102: =Data_Input!P104 ->  | D102: =Data_Input!Q104 ->  | E102: =Data_Input!R104 ->  | L102: =IFERROR(IF(OR(AND(Data_Input!$T$1="meters",Data_Input!$T104>12),(AND(Data_Input!$T$1="feet",Data_Input!$T104>40)),ABS(B102)>$G$4),"",B102),"") ->  | M102: =IFERROR(IF(OR(AND(Data_Input!$T$1="meters",Data_Input!$T104>12),(AND(Data_Input!$T$1="feet",Data_Input!$T104>40)),ABS(C102)>$G$4),"",C102),"") ->  | N102: =IFERROR(IF(OR(AND(Data_Input!$T$1="meters",Data_Input!$T104>12),(AND(Data_Input!$T$1="feet",Data_Input!$T104>40)),ABS(D102)>$G$4),"",D102),"") ->  | O102: =IFERROR(IF(OR(AND(Data_Input!$T$1="meters",Data_Input!$T104>12),(AND(Data_Input!$T$1="feet",Data_Input!$T104>40)),ABS(E102)>$G$4),"",E102),"") -> 
A103: 101 | B103: =Data_Input!O105 ->  | C103: =Data_Input!P105 ->  | D103: =Data_Input!Q105 ->  | E103: =Data_Input!R105 ->  | L103: =IFERROR(IF(OR(AND(Data_Input!$T$1="meters",Data_Input!$T105>12),(AND(Data_Input!$T$1="feet",Data_Input!$T105>40)),ABS(B103)>$G$4),"",B103),"") ->  | M103: =IFERROR(IF(OR(AND(Data_Input!$T$1="meters",Data_Input!$T105>12),(AND(Data_Input!$T$1="feet",Data_Input!$T105>40)),ABS(C103)>$G$4),"",C103),"") ->  | N103: =IFERROR(IF(OR(AND(Data_Input!$T$1="meters",Data_Input!$T105>12),(AND(Data_Input!$T$1="feet",Data_Input!$T105>40)),ABS(D103)>$G$4),"",D103),"") ->  | O103: =IFERROR(IF(OR(AND(Data_Input!$T$1="meters",Data_Input!$T105>12),(AND(Data_Input!$T$1="feet",Data_Input!$T105>40)),ABS(E103)>$G$4),"",E103),"") -> 
A104: 102 | B104: =Data_Input!O106 ->  | C104: =Data_Input!P106 ->  | D104: =Data_Input!Q106 ->  | E104: =Data_Input!R106 ->  | L104: =IFERROR(IF(OR(AND(Data_Input!$T$1="meters",Data_Input!$T106>12),(AND(Data_Input!$T$1="feet",Data_Input!$T106>40)),ABS(B104)>$G$4),"",B104),"") ->  | M104: =IFERROR(IF(OR(AND(Data_Input!$T$1="meters",Data_Input!$T106>12),(AND(Data_Input!$T$1="feet",Data_Input!$T106>40)),ABS(C104)>$G$4),"",C104),"") ->  | N104: =IFERROR(IF(OR(AND(Data_Input!$T$1="meters",Data_Input!$T106>12),(AND(Data_Input!$T$1="feet",Data_Input!$T106>40)),ABS(D104)>$G$4),"",D104),"") ->  | O104: =IFERROR(IF(OR(AND(Data_Input!$T$1="meters",Data_Input!$T106>12),(AND(Data_Input!$T$1="feet",Data_Input!$T106>40)),ABS(E104)>$G$4),"",E104),"") -> 
A105: 103 | B105: =Data_Input!O107 ->  | C105: =Data_Input!P107 ->  | D105: =Data_Input!Q107 ->  | E105: =Data_Input!R107 ->  | L105: =IFERROR(IF(OR(AND(Data_Input!$T$1="meters",Data_Input!$T107>12),(AND(Data_Input!$T$1="feet",Data_Input!$T107>40)),ABS(B105)>$G$4),"",B105),"") ->  | M105: =IFERROR(IF(OR(AND(Data_Input!$T$1="meters",Data_Input!$T107>12),(AND(Data_Input!$T$1="feet",Data_Input!$T107>40)),ABS(C105)>$G$4),"",C105),"") ->  | N105: =IFERROR(IF(OR(AND(Data_Input!$T$1="meters",Data_Input!$T107>12),(AND(Data_Input!$T$1="feet",Data_Input!$T107>40)),ABS(D105)>$G$4),"",D105),"") ->  | O105: =IFERROR(IF(OR(AND(Data_Input!$T$1="meters",Data_Input!$T107>12),(AND(Data_Input!$T$1="feet",Data_Input!$T107>40)),ABS(E105)>$G$4),"",E105),"") -> 
A106: 104 | B106: =Data_Input!O108 ->  | C106: =Data_Input!P108 ->  | D106: =Data_Input!Q108 ->  | E106: =Data_Input!R108 ->  | L106: =IFERROR(IF(OR(AND(Data_Input!$T$1="meters",Data_Input!$T108>12),(AND(Data_Input!$T$1="feet",Data_Input!$T108>40)),ABS(B106)>$G$4),"",B106),"") ->  | M106: =IFERROR(IF(OR(AND(Data_Input!$T$1="meters",Data_Input!$T108>12),(AND(Data_Input!$T$1="feet",Data_Input!$T108>40)),ABS(C106)>$G$4),"",C106),"") ->  | N106: =IFERROR(IF(OR(AND(Data_Input!$T$1="meters",Data_Input!$T108>12),(AND(Data_Input!$T$1="feet",Data_Input!$T108>40)),ABS(D106)>$G$4),"",D106),"") ->  | O106: =IFERROR(IF(OR(AND(Data_Input!$T$1="meters",Data_Input!$T108>12),(AND(Data_Input!$T$1="feet",Data_Input!$T108>40)),ABS(E106)>$G$4),"",E106),"") -> 
A107: 105 | B107: =Data_Input!O109 ->  | C107: =Data_Input!P109 ->  | D107: =Data_Input!Q109 ->  | E107: =Data_Input!R109 ->  | L107: =IFERROR(IF(OR(AND(Data_Input!$T$1="meters",Data_Input!$T109>12),(AND(Data_Input!$T$1="feet",Data_Input!$T109>40)),ABS(B107)>$G$4),"",B107),"") ->  | M107: =IFERROR(IF(OR(AND(Data_Input!$T$1="meters",Data_Input!$T109>12),(AND(Data_Input!$T$1="feet",Data_Input!$T109>40)),ABS(C107)>$G$4),"",C107),"") ->  | N107: =IFERROR(IF(OR(AND(Data_Input!$T$1="meters",Data_Input!$T109>12),(AND(Data_Input!$T$1="feet",Data_Input!$T109>40)),ABS(D107)>$G$4),"",D107),"") ->  | O107: =IFERROR(IF(OR(AND(Data_Input!$T$1="meters",Data_Input!$T109>12),(AND(Data_Input!$T$1="feet",Data_Input!$T109>40)),ABS(E107)>$G$4),"",E107),"") -> 
A108: 106 | B108: =Data_Input!O110 ->  | C108: =Data_Input!P110 ->  | D108: =Data_Input!Q110 ->  | E108: =Data_Input!R110 ->  | L108: =IFERROR(IF(OR(AND(Data_Input!$T$1="meters",Data_Input!$T110>12),(AND(Data_Input!$T$1="feet",Data_Input!$T110>40)),ABS(B108)>$G$4),"",B108),"") ->  | M108: =IFERROR(IF(OR(AND(Data_Input!$T$1="meters",Data_Input!$T110>12),(AND(Data_Input!$T$1="feet",Data_Input!$T110>40)),ABS(C108)>$G$4),"",C108),"") ->  | N108: =IFERROR(IF(OR(AND(Data_Input!$T$1="meters",Data_Input!$T110>12),(AND(Data_Input!$T$1="feet",Data_Input!$T110>40)),ABS(D108)>$G$4),"",D108),"") ->  | O108: =IFERROR(IF(OR(AND(Data_Input!$T$1="meters",Data_Input!$T110>12),(AND(Data_Input!$T$1="feet",Data_Input!$T110>40)),ABS(E108)>$G$4),"",E108),"") -> 
A109: 107 | B109: =Data_Input!O111 ->  | C109: =Data_Input!P111 ->  | D109: =Data_Input!Q111 ->  | E109: =Data_Input!R111 ->  | L109: =IFERROR(IF(OR(AND(Data_Input!$T$1="meters",Data_Input!$T111>12),(AND(Data_Input!$T$1="feet",Data_Input!$T111>40)),ABS(B109)>$G$4),"",B109),"") ->  | M109: =IFERROR(IF(OR(AND(Data_Input!$T$1="meters",Data_Input!$T111>12),(AND(Data_Input!$T$1="feet",Data_Input!$T111>40)),ABS(C109)>$G$4),"",C109),"") ->  | N109: =IFERROR(IF(OR(AND(Data_Input!$T$1="meters",Data_Input!$T111>12),(AND(Data_Input!$T$1="feet",Data_Input!$T111>40)),ABS(D109)>$G$4),"",D109),"") ->  | O109: =IFERROR(IF(OR(AND(Data_Input!$T$1="meters",Data_Input!$T111>12),(AND(Data_Input!$T$1="feet",Data_Input!$T111>40)),ABS(E109)>$G$4),"",E109),"") -> 
A110: 108 | B110: =Data_Input!O112 ->  | C110: =Data_Input!P112 ->  | D110: =Data_Input!Q112 ->  | E110: =Data_Input!R112 ->  | L110: =IFERROR(IF(OR(AND(Data_Input!$T$1="meters",Data_Input!$T112>12),(AND(Data_Input!$T$1="feet",Data_Input!$T112>40)),ABS(B110)>$G$4),"",B110),"") ->  | M110: =IFERROR(IF(OR(AND(Data_Input!$T$1="meters",Data_Input!$T112>12),(AND(Data_Input!$T$1="feet",Data_Input!$T112>40)),ABS(C110)>$G$4),"",C110),"") ->  | N110: =IFERROR(IF(OR(AND(Data_Input!$T$1="meters",Data_Input!$T112>12),(AND(Data_Input!$T$1="feet",Data_Input!$T112>40)),ABS(D110)>$G$4),"",D110),"") ->  | O110: =IFERROR(IF(OR(AND(Data_Input!$T$1="meters",Data_Input!$T112>12),(AND(Data_Input!$T$1="feet",Data_Input!$T112>40)),ABS(E110)>$G$4),"",E110),"") -> 
A111: 109 | B111: =Data_Input!O113 ->  | C111: =Data_Input!P113 ->  | D111: =Data_Input!Q113 ->  | E111: =Data_Input!R113 ->  | L111: =IFERROR(IF(OR(AND(Data_Input!$T$1="meters",Data_Input!$T113>12),(AND(Data_Input!$T$1="feet",Data_Input!$T113>40)),ABS(B111)>$G$4),"",B111),"") ->  | M111: =IFERROR(IF(OR(AND(Data_Input!$T$1="meters",Data_Input!$T113>12),(AND(Data_Input!$T$1="feet",Data_Input!$T113>40)),ABS(C111)>$G$4),"",C111),"") ->  | N111: =IFERROR(IF(OR(AND(Data_Input!$T$1="meters",Data_Input!$T113>12),(AND(Data_Input!$T$1="feet",Data_Input!$T113>40)),ABS(D111)>$G$4),"",D111),"") ->  | O111: =IFERROR(IF(OR(AND(Data_Input!$T$1="meters",Data_Input!$T113>12),(AND(Data_Input!$T$1="feet",Data_Input!$T113>40)),ABS(E111)>$G$4),"",E111),"") -> 
A112: 110 | B112: =Data_Input!O114 ->  | C112: =Data_Input!P114 ->  | D112: =Data_Input!Q114 ->  | E112: =Data_Input!R114 ->  | L112: =IFERROR(IF(OR(AND(Data_Input!$T$1="meters",Data_Input!$T114>12),(AND(Data_Input!$T$1="feet",Data_Input!$T114>40)),ABS(B112)>$G$4),"",B112),"") ->  | M112: =IFERROR(IF(OR(AND(Data_Input!$T$1="meters",Data_Input!$T114>12),(AND(Data_Input!$T$1="feet",Data_Input!$T114>40)),ABS(C112)>$G$4),"",C112),"") ->  | N112: =IFERROR(IF(OR(AND(Data_Input!$T$1="meters",Data_Input!$T114>12),(AND(Data_Input!$T$1="feet",Data_Input!$T114>40)),ABS(D112)>$G$4),"",D112),"") ->  | O112: =IFERROR(IF(OR(AND(Data_Input!$T$1="meters",Data_Input!$T114>12),(AND(Data_Input!$T$1="feet",Data_Input!$T114>40)),ABS(E112)>$G$4),"",E112),"") -> 
A113: 111 | B113: =Data_Input!O115 ->  | C113: =Data_Input!P115 ->  | D113: =Data_Input!Q115 ->  | E113: =Data_Input!R115 ->  | L113: =IFERROR(IF(OR(AND(Data_Input!$T$1="meters",Data_Input!$T115>12),(AND(Data_Input!$T$1="feet",Data_Input!$T115>40)),ABS(B113)>$G$4),"",B113),"") ->  | M113: =IFERROR(IF(OR(AND(Data_Input!$T$1="meters",Data_Input!$T115>12),(AND(Data_Input!$T$1="feet",Data_Input!$T115>40)),ABS(C113)>$G$4),"",C113),"") ->  | N113: =IFERROR(IF(OR(AND(Data_Input!$T$1="meters",Data_Input!$T115>12),(AND(Data_Input!$T$1="feet",Data_Input!$T115>40)),ABS(D113)>$G$4),"",D113),"") ->  | O113: =IFERROR(IF(OR(AND(Data_Input!$T$1="meters",Data_Input!$T115>12),(AND(Data_Input!$T$1="feet",Data_Input!$T115>40)),ABS(E113)>$G$4),"",E113),"") -> 
A114: 112 | B114: =Data_Input!O116 ->  | C114: =Data_Input!P116 ->  | D114: =Data_Input!Q116 ->  | E114: =Data_Input!R116 ->  | L114: =IFERROR(IF(OR(AND(Data_Input!$T$1="meters",Data_Input!$T116>12),(AND(Data_Input!$T$1="feet",Data_Input!$T116>40)),ABS(B114)>$G$4),"",B114),"") ->  | M114: =IFERROR(IF(OR(AND(Data_Input!$T$1="meters",Data_Input!$T116>12),(AND(Data_Input!$T$1="feet",Data_Input!$T116>40)),ABS(C114)>$G$4),"",C114),"") ->  | N114: =IFERROR(IF(OR(AND(Data_Input!$T$1="meters",Data_Input!$T116>12),(AND(Data_Input!$T$1="feet",Data_Input!$T116>40)),ABS(D114)>$G$4),"",D114),"") ->  | O114: =IFERROR(IF(OR(AND(Data_Input!$T$1="meters",Data_Input!$T116>12),(AND(Data_Input!$T$1="feet",Data_Input!$T116>40)),ABS(E114)>$G$4),"",E114),"") -> 
A115: 113 | B115: =Data_Input!O117 ->  | C115: =Data_Input!P117 ->  | D115: =Data_Input!Q117 ->  | E115: =Data_Input!R117 ->  | L115: =IFERROR(IF(OR(AND(Data_Input!$T$1="meters",Data_Input!$T117>12),(AND(Data_Input!$T$1="feet",Data_Input!$T117>40)),ABS(B115)>$G$4),"",B115),"") ->  | M115: =IFERROR(IF(OR(AND(Data_Input!$T$1="meters",Data_Input!$T117>12),(AND(Data_Input!$T$1="feet",Data_Input!$T117>40)),ABS(C115)>$G$4),"",C115),"") ->  | N115: =IFERROR(IF(OR(AND(Data_Input!$T$1="meters",Data_Input!$T117>12),(AND(Data_Input!$T$1="feet",Data_Input!$T117>40)),ABS(D115)>$G$4),"",D115),"") ->  | O115: =IFERROR(IF(OR(AND(Data_Input!$T$1="meters",Data_Input!$T117>12),(AND(Data_Input!$T$1="feet",Data_Input!$T117>40)),ABS(E115)>$G$4),"",E115),"") -> 
A116: 114 | B116: =Data_Input!O118 ->  | C116: =Data_Input!P118 ->  | D116: =Data_Input!Q118 ->  | E116: =Data_Input!R118 ->  | L116: =IFERROR(IF(OR(AND(Data_Input!$T$1="meters",Data_Input!$T118>12),(AND(Data_Input!$T$1="feet",Data_Input!$T118>40)),ABS(B116)>$G$4),"",B116),"") ->  | M116: =IFERROR(IF(OR(AND(Data_Input!$T$1="meters",Data_Input!$T118>12),(AND(Data_Input!$T$1="feet",Data_Input!$T118>40)),ABS(C116)>$G$4),"",C116),"") ->  | N116: =IFERROR(IF(OR(AND(Data_Input!$T$1="meters",Data_Input!$T118>12),(AND(Data_Input!$T$1="feet",Data_Input!$T118>40)),ABS(D116)>$G$4),"",D116),"") ->  | O116: =IFERROR(IF(OR(AND(Data_Input!$T$1="meters",Data_Input!$T118>12),(AND(Data_Input!$T$1="feet",Data_Input!$T118>40)),ABS(E116)>$G$4),"",E116),"") -> 
A117: 115 | B117: =Data_Input!O119 ->  | C117: =Data_Input!P119 ->  | D117: =Data_Input!Q119 ->  | E117: =Data_Input!R119 ->  | L117: =IFERROR(IF(OR(AND(Data_Input!$T$1="meters",Data_Input!$T119>12),(AND(Data_Input!$T$1="feet",Data_Input!$T119>40)),ABS(B117)>$G$4),"",B117),"") ->  | M117: =IFERROR(IF(OR(AND(Data_Input!$T$1="meters",Data_Input!$T119>12),(AND(Data_Input!$T$1="feet",Data_Input!$T119>40)),ABS(C117)>$G$4),"",C117),"") ->  | N117: =IFERROR(IF(OR(AND(Data_Input!$T$1="meters",Data_Input!$T119>12),(AND(Data_Input!$T$1="feet",Data_Input!$T119>40)),ABS(D117)>$G$4),"",D117),"") ->  | O117: =IFERROR(IF(OR(AND(Data_Input!$T$1="meters",Data_Input!$T119>12),(AND(Data_Input!$T$1="feet",Data_Input!$T119>40)),ABS(E117)>$G$4),"",E117),"") -> 
A118: 116 | B118: =Data_Input!O120 ->  | C118: =Data_Input!P120 ->  | D118: =Data_Input!Q120 ->  | E118: =Data_Input!R120 ->  | L118: =IFERROR(IF(OR(AND(Data_Input!$T$1="meters",Data_Input!$T120>12),(AND(Data_Input!$T$1="feet",Data_Input!$T120>40)),ABS(B118)>$G$4),"",B118),"") ->  | M118: =IFERROR(IF(OR(AND(Data_Input!$T$1="meters",Data_Input!$T120>12),(AND(Data_Input!$T$1="feet",Data_Input!$T120>40)),ABS(C118)>$G$4),"",C118),"") ->  | N118: =IFERROR(IF(OR(AND(Data_Input!$T$1="meters",Data_Input!$T120>12),(AND(Data_Input!$T$1="feet",Data_Input!$T120>40)),ABS(D118)>$G$4),"",D118),"") ->  | O118: =IFERROR(IF(OR(AND(Data_Input!$T$1="meters",Data_Input!$T120>12),(AND(Data_Input!$T$1="feet",Data_Input!$T120>40)),ABS(E118)>$G$4),"",E118),"") -> 
A119: 117 | B119: =Data_Input!O121 ->  | C119: =Data_Input!P121 ->  | D119: =Data_Input!Q121 ->  | E119: =Data_Input!R121 ->  | L119: =IFERROR(IF(OR(AND(Data_Input!$T$1="meters",Data_Input!$T121>12),(AND(Data_Input!$T$1="feet",Data_Input!$T121>40)),ABS(B119)>$G$4),"",B119),"") ->  | M119: =IFERROR(IF(OR(AND(Data_Input!$T$1="meters",Data_Input!$T121>12),(AND(Data_Input!$T$1="feet",Data_Input!$T121>40)),ABS(C119)>$G$4),"",C119),"") ->  | N119: =IFERROR(IF(OR(AND(Data_Input!$T$1="meters",Data_Input!$T121>12),(AND(Data_Input!$T$1="feet",Data_Input!$T121>40)),ABS(D119)>$G$4),"",D119),"") ->  | O119: =IFERROR(IF(OR(AND(Data_Input!$T$1="meters",Data_Input!$T121>12),(AND(Data_Input!$T$1="feet",Data_Input!$T121>40)),ABS(E119)>$G$4),"",E119),"") -> 
A120: 118 | B120: =Data_Input!O122 ->  | C120: =Data_Input!P122 ->  | D120: =Data_Input!Q122 ->  | E120: =Data_Input!R122 ->  | L120: =IFERROR(IF(OR(AND(Data_Input!$T$1="meters",Data_Input!$T122>12),(AND(Data_Input!$T$1="feet",Data_Input!$T122>40)),ABS(B120)>$G$4),"",B120),"") ->  | M120: =IFERROR(IF(OR(AND(Data_Input!$T$1="meters",Data_Input!$T122>12),(AND(Data_Input!$T$1="feet",Data_Input!$T122>40)),ABS(C120)>$G$4),"",C120),"") ->  | N120: =IFERROR(IF(OR(AND(Data_Input!$T$1="meters",Data_Input!$T122>12),(AND(Data_Input!$T$1="feet",Data_Input!$T122>40)),ABS(D120)>$G$4),"",D120),"") ->  | O120: =IFERROR(IF(OR(AND(Data_Input!$T$1="meters",Data_Input!$T122>12),(AND(Data_Input!$T$1="feet",Data_Input!$T122>40)),ABS(E120)>$G$4),"",E120),"") -> 
A121: 119 | B121: =Data_Input!O123 ->  | C121: =Data_Input!P123 ->  | D121: =Data_Input!Q123 ->  | E121: =Data_Input!R123 ->  | L121: =IFERROR(IF(OR(AND(Data_Input!$T$1="meters",Data_Input!$T123>12),(AND(Data_Input!$T$1="feet",Data_Input!$T123>40)),ABS(B121)>$G$4),"",B121),"") ->  | M121: =IFERROR(IF(OR(AND(Data_Input!$T$1="meters",Data_Input!$T123>12),(AND(Data_Input!$T$1="feet",Data_Input!$T123>40)),ABS(C121)>$G$4),"",C121),"") ->  | N121: =IFERROR(IF(OR(AND(Data_Input!$T$1="meters",Data_Input!$T123>12),(AND(Data_Input!$T$1="feet",Data_Input!$T123>40)),ABS(D121)>$G$4),"",D121),"") ->  | O121: =IFERROR(IF(OR(AND(Data_Input!$T$1="meters",Data_Input!$T123>12),(AND(Data_Input!$T$1="feet",Data_Input!$T123>40)),ABS(E121)>$G$4),"",E121),"") -> 
A122: 120 | B122: =Data_Input!O124 ->  | C122: =Data_Input!P124 ->  | D122: =Data_Input!Q124 ->  | E122: =Data_Input!R124 ->  | L122: =IFERROR(IF(OR(AND(Data_Input!$T$1="meters",Data_Input!$T124>12),(AND(Data_Input!$T$1="feet",Data_Input!$T124>40)),ABS(B122)>$G$4),"",B122),"") ->  | M122: =IFERROR(IF(OR(AND(Data_Input!$T$1="meters",Data_Input!$T124>12),(AND(Data_Input!$T$1="feet",Data_Input!$T124>40)),ABS(C122)>$G$4),"",C122),"") ->  | N122: =IFERROR(IF(OR(AND(Data_Input!$T$1="meters",Data_Input!$T124>12),(AND(Data_Input!$T$1="feet",Data_Input!$T124>40)),ABS(D122)>$G$4),"",D122),"") ->  | O122: =IFERROR(IF(OR(AND(Data_Input!$T$1="meters",Data_Input!$T124>12),(AND(Data_Input!$T$1="feet",Data_Input!$T124>40)),ABS(E122)>$G$4),"",E122),"") -> 
A123: 121 | B123: =Data_Input!O125 ->  | C123: =Data_Input!P125 ->  | D123: =Data_Input!Q125 ->  | E123: =Data_Input!R125 ->  | L123: =IFERROR(IF(OR(AND(Data_Input!$T$1="meters",Data_Input!$T125>12),(AND(Data_Input!$T$1="feet",Data_Input!$T125>40)),ABS(B123)>$G$4),"",B123),"") ->  | M123: =IFERROR(IF(OR(AND(Data_Input!$T$1="meters",Data_Input!$T125>12),(AND(Data_Input!$T$1="feet",Data_Input!$T125>40)),ABS(C123)>$G$4),"",C123),"") ->  | N123: =IFERROR(IF(OR(AND(Data_Input!$T$1="meters",Data_Input!$T125>12),(AND(Data_Input!$T$1="feet",Data_Input!$T125>40)),ABS(D123)>$G$4),"",D123),"") ->  | O123: =IFERROR(IF(OR(AND(Data_Input!$T$1="meters",Data_Input!$T125>12),(AND(Data_Input!$T$1="feet",Data_Input!$T125>40)),ABS(E123)>$G$4),"",E123),"") -> 
A124: 122 | B124: =Data_Input!O126 ->  | C124: =Data_Input!P126 ->  | D124: =Data_Input!Q126 ->  | E124: =Data_Input!R126 ->  | L124: =IFERROR(IF(OR(AND(Data_Input!$T$1="meters",Data_Input!$T126>12),(AND(Data_Input!$T$1="feet",Data_Input!$T126>40)),ABS(B124)>$G$4),"",B124),"") ->  | M124: =IFERROR(IF(OR(AND(Data_Input!$T$1="meters",Data_Input!$T126>12),(AND(Data_Input!$T$1="feet",Data_Input!$T126>40)),ABS(C124)>$G$4),"",C124),"") ->  | N124: =IFERROR(IF(OR(AND(Data_Input!$T$1="meters",Data_Input!$T126>12),(AND(Data_Input!$T$1="feet",Data_Input!$T126>40)),ABS(D124)>$G$4),"",D124),"") ->  | O124: =IFERROR(IF(OR(AND(Data_Input!$T$1="meters",Data_Input!$T126>12),(AND(Data_Input!$T$1="feet",Data_Input!$T126>40)),ABS(E124)>$G$4),"",E124),"") -> 
A125: 123 | B125: =Data_Input!O127 ->  | C125: =Data_Input!P127 ->  | D125: =Data_Input!Q127 ->  | E125: =Data_Input!R127 ->  | L125: =IFERROR(IF(OR(AND(Data_Input!$T$1="meters",Data_Input!$T127>12),(AND(Data_Input!$T$1="feet",Data_Input!$T127>40)),ABS(B125)>$G$4),"",B125),"") ->  | M125: =IFERROR(IF(OR(AND(Data_Input!$T$1="meters",Data_Input!$T127>12),(AND(Data_Input!$T$1="feet",Data_Input!$T127>40)),ABS(C125)>$G$4),"",C125),"") ->  | N125: =IFERROR(IF(OR(AND(Data_Input!$T$1="meters",Data_Input!$T127>12),(AND(Data_Input!$T$1="feet",Data_Input!$T127>40)),ABS(D125)>$G$4),"",D125),"") ->  | O125: =IFERROR(IF(OR(AND(Data_Input!$T$1="meters",Data_Input!$T127>12),(AND(Data_Input!$T$1="feet",Data_Input!$T127>40)),ABS(E125)>$G$4),"",E125),"") -> 
A126: 124 | B126: =Data_Input!O128 ->  | C126: =Data_Input!P128 ->  | D126: =Data_Input!Q128 ->  | E126: =Data_Input!R128 ->  | L126: =IFERROR(IF(OR(AND(Data_Input!$T$1="meters",Data_Input!$T128>12),(AND(Data_Input!$T$1="feet",Data_Input!$T128>40)),ABS(B126)>$G$4),"",B126),"") ->  | M126: =IFERROR(IF(OR(AND(Data_Input!$T$1="meters",Data_Input!$T128>12),(AND(Data_Input!$T$1="feet",Data_Input!$T128>40)),ABS(C126)>$G$4),"",C126),"") ->  | N126: =IFERROR(IF(OR(AND(Data_Input!$T$1="meters",Data_Input!$T128>12),(AND(Data_Input!$T$1="feet",Data_Input!$T128>40)),ABS(D126)>$G$4),"",D126),"") ->  | O126: =IFERROR(IF(OR(AND(Data_Input!$T$1="meters",Data_Input!$T128>12),(AND(Data_Input!$T$1="feet",Data_Input!$T128>40)),ABS(E126)>$G$4),"",E126),"") -> 
A127: 125 | B127: =Data_Input!O129 ->  | C127: =Data_Input!P129 ->  | D127: =Data_Input!Q129 ->  | E127: =Data_Input!R129 ->  | L127: =IFERROR(IF(OR(AND(Data_Input!$T$1="meters",Data_Input!$T129>12),(AND(Data_Input!$T$1="feet",Data_Input!$T129>40)),ABS(B127)>$G$4),"",B127),"") ->  | M127: =IFERROR(IF(OR(AND(Data_Input!$T$1="meters",Data_Input!$T129>12),(AND(Data_Input!$T$1="feet",Data_Input!$T129>40)),ABS(C127)>$G$4),"",C127),"") ->  | N127: =IFERROR(IF(OR(AND(Data_Input!$T$1="meters",Data_Input!$T129>12),(AND(Data_Input!$T$1="feet",Data_Input!$T129>40)),ABS(D127)>$G$4),"",D127),"") ->  | O127: =IFERROR(IF(OR(AND(Data_Input!$T$1="meters",Data_Input!$T129>12),(AND(Data_Input!$T$1="feet",Data_Input!$T129>40)),ABS(E127)>$G$4),"",E127),"") -> 
A128: 126 | B128: =Data_Input!O130 ->  | C128: =Data_Input!P130 ->  | D128: =Data_Input!Q130 ->  | E128: =Data_Input!R130 ->  | L128: =IFERROR(IF(OR(AND(Data_Input!$T$1="meters",Data_Input!$T130>12),(AND(Data_Input!$T$1="feet",Data_Input!$T130>40)),ABS(B128)>$G$4),"",B128),"") ->  | M128: =IFERROR(IF(OR(AND(Data_Input!$T$1="meters",Data_Input!$T130>12),(AND(Data_Input!$T$1="feet",Data_Input!$T130>40)),ABS(C128)>$G$4),"",C128),"") ->  | N128: =IFERROR(IF(OR(AND(Data_Input!$T$1="meters",Data_Input!$T130>12),(AND(Data_Input!$T$1="feet",Data_Input!$T130>40)),ABS(D128)>$G$4),"",D128),"") ->  | O128: =IFERROR(IF(OR(AND(Data_Input!$T$1="meters",Data_Input!$T130>12),(AND(Data_Input!$T$1="feet",Data_Input!$T130>40)),ABS(E128)>$G$4),"",E128),"") -> 
A129: 127 | B129: =Data_Input!O131 ->  | C129: =Data_Input!P131 ->  | D129: =Data_Input!Q131 ->  | E129: =Data_Input!R131 ->  | L129: =IFERROR(IF(OR(AND(Data_Input!$T$1="meters",Data_Input!$T131>12),(AND(Data_Input!$T$1="feet",Data_Input!$T131>40)),ABS(B129)>$G$4),"",B129),"") ->  | M129: =IFERROR(IF(OR(AND(Data_Input!$T$1="meters",Data_Input!$T131>12),(AND(Data_Input!$T$1="feet",Data_Input!$T131>40)),ABS(C129)>$G$4),"",C129),"") ->  | N129: =IFERROR(IF(OR(AND(Data_Input!$T$1="meters",Data_Input!$T131>12),(AND(Data_Input!$T$1="feet",Data_Input!$T131>40)),ABS(D129)>$G$4),"",D129),"") ->  | O129: =IFERROR(IF(OR(AND(Data_Input!$T$1="meters",Data_Input!$T131>12),(AND(Data_Input!$T$1="feet",Data_Input!$T131>40)),ABS(E129)>$G$4),"",E129),"") -> 
A130: 128 | B130: =Data_Input!O132 ->  | C130: =Data_Input!P132 ->  | D130: =Data_Input!Q132 ->  | E130: =Data_Input!R132 ->  | L130: =IFERROR(IF(OR(AND(Data_Input!$T$1="meters",Data_Input!$T132>12),(AND(Data_Input!$T$1="feet",Data_Input!$T132>40)),ABS(B130)>$G$4),"",B130),"") ->  | M130: =IFERROR(IF(OR(AND(Data_Input!$T$1="meters",Data_Input!$T132>12),(AND(Data_Input!$T$1="feet",Data_Input!$T132>40)),ABS(C130)>$G$4),"",C130),"") ->  | N130: =IFERROR(IF(OR(AND(Data_Input!$T$1="meters",Data_Input!$T132>12),(AND(Data_Input!$T$1="feet",Data_Input!$T132>40)),ABS(D130)>$G$4),"",D130),"") ->  | O130: =IFERROR(IF(OR(AND(Data_Input!$T$1="meters",Data_Input!$T132>12),(AND(Data_Input!$T$1="feet",Data_Input!$T132>40)),ABS(E130)>$G$4),"",E130),"") -> 
A131: 129 | B131: =Data_Input!O133 ->  | C131: =Data_Input!P133 ->  | D131: =Data_Input!Q133 ->  | E131: =Data_Input!R133 ->  | L131: =IFERROR(IF(OR(AND(Data_Input!$T$1="meters",Data_Input!$T133>12),(AND(Data_Input!$T$1="feet",Data_Input!$T133>40)),ABS(B131)>$G$4),"",B131),"") ->  | M131: =IFERROR(IF(OR(AND(Data_Input!$T$1="meters",Data_Input!$T133>12),(AND(Data_Input!$T$1="feet",Data_Input!$T133>40)),ABS(C131)>$G$4),"",C131),"") ->  | N131: =IFERROR(IF(OR(AND(Data_Input!$T$1="meters",Data_Input!$T133>12),(AND(Data_Input!$T$1="feet",Data_Input!$T133>40)),ABS(D131)>$G$4),"",D131),"") ->  | O131: =IFERROR(IF(OR(AND(Data_Input!$T$1="meters",Data_Input!$T133>12),(AND(Data_Input!$T$1="feet",Data_Input!$T133>40)),ABS(E131)>$G$4),"",E131),"") -> 
A132: 130 | B132: =Data_Input!O134 ->  | C132: =Data_Input!P134 ->  | D132: =Data_Input!Q134 ->  | E132: =Data_Input!R134 ->  | L132: =IFERROR(IF(OR(AND(Data_Input!$T$1="meters",Data_Input!$T134>12),(AND(Data_Input!$T$1="feet",Data_Input!$T134>40)),ABS(B132)>$G$4),"",B132),"") ->  | M132: =IFERROR(IF(OR(AND(Data_Input!$T$1="meters",Data_Input!$T134>12),(AND(Data_Input!$T$1="feet",Data_Input!$T134>40)),ABS(C132)>$G$4),"",C132),"") ->  | N132: =IFERROR(IF(OR(AND(Data_Input!$T$1="meters",Data_Input!$T134>12),(AND(Data_Input!$T$1="feet",Data_Input!$T134>40)),ABS(D132)>$G$4),"",D132),"") ->  | O132: =IFERROR(IF(OR(AND(Data_Input!$T$1="meters",Data_Input!$T134>12),(AND(Data_Input!$T$1="feet",Data_Input!$T134>40)),ABS(E132)>$G$4),"",E132),"") ->  | Q132: =IFERROR(ABS(L132),"") ->  | R132: =IFERROR(ABS(M132),"") ->  | S132: =IFERROR(ABS(N132),"") ->  | T132: =IFERROR(ABS(O132),"") -> 
A133: 131 | B133: =Data_Input!O135 ->  | C133: =Data_Input!P135 ->  | D133: =Data_Input!Q135 ->  | E133: =Data_Input!R135 ->  | L133: =IFERROR(IF(OR(AND(Data_Input!$T$1="meters",Data_Input!$T135>12),(AND(Data_Input!$T$1="feet",Data_Input!$T135>40)),ABS(B133)>$G$4),"",B133),"") ->  | M133: =IFERROR(IF(OR(AND(Data_Input!$T$1="meters",Data_Input!$T135>12),(AND(Data_Input!$T$1="feet",Data_Input!$T135>40)),ABS(C133)>$G$4),"",C133),"") ->  | N133: =IFERROR(IF(OR(AND(Data_Input!$T$1="meters",Data_Input!$T135>12),(AND(Data_Input!$T$1="feet",Data_Input!$T135>40)),ABS(D133)>$G$4),"",D133),"") ->  | O133: =IFERROR(IF(OR(AND(Data_Input!$T$1="meters",Data_Input!$T135>12),(AND(Data_Input!$T$1="feet",Data_Input!$T135>40)),ABS(E133)>$G$4),"",E133),"") -> 
A134: 132 | B134: =Data_Input!O136 ->  | C134: =Data_Input!P136 ->  | D134: =Data_Input!Q136 ->  | E134: =Data_Input!R136 ->  | L134: =IFERROR(IF(OR(AND(Data_Input!$T$1="meters",Data_Input!$T136>12),(AND(Data_Input!$T$1="feet",Data_Input!$T136>40)),ABS(B134)>$G$4),"",B134),"") ->  | M134: =IFERROR(IF(OR(AND(Data_Input!$T$1="meters",Data_Input!$T136>12),(AND(Data_Input!$T$1="feet",Data_Input!$T136>40)),ABS(C134)>$G$4),"",C134),"") ->  | N134: =IFERROR(IF(OR(AND(Data_Input!$T$1="meters",Data_Input!$T136>12),(AND(Data_Input!$T$1="feet",Data_Input!$T136>40)),ABS(D134)>$G$4),"",D134),"") ->  | O134: =IFERROR(IF(OR(AND(Data_Input!$T$1="meters",Data_Input!$T136>12),(AND(Data_Input!$T$1="feet",Data_Input!$T136>40)),ABS(E134)>$G$4),"",E134),"") -> 
A135: 133 | B135: =Data_Input!O137 ->  | C135: =Data_Input!P137 ->  | D135: =Data_Input!Q137 ->  | E135: =Data_Input!R137 ->  | L135: =IFERROR(IF(OR(AND(Data_Input!$T$1="meters",Data_Input!$T137>12),(AND(Data_Input!$T$1="feet",Data_Input!$T137>40)),ABS(B135)>$G$4),"",B135),"") ->  | M135: =IFERROR(IF(OR(AND(Data_Input!$T$1="meters",Data_Input!$T137>12),(AND(Data_Input!$T$1="feet",Data_Input!$T137>40)),ABS(C135)>$G$4),"",C135),"") ->  | N135: =IFERROR(IF(OR(AND(Data_Input!$T$1="meters",Data_Input!$T137>12),(AND(Data_Input!$T$1="feet",Data_Input!$T137>40)),ABS(D135)>$G$4),"",D135),"") ->  | O135: =IFERROR(IF(OR(AND(Data_Input!$T$1="meters",Data_Input!$T137>12),(AND(Data_Input!$T$1="feet",Data_Input!$T137>40)),ABS(E135)>$G$4),"",E135),"") -> 
A136: 134 | B136: =Data_Input!O138 ->  | C136: =Data_Input!P138 ->  | D136: =Data_Input!Q138 ->  | E136: =Data_Input!R138 ->  | L136: =IFERROR(IF(OR(AND(Data_Input!$T$1="meters",Data_Input!$T138>12),(AND(Data_Input!$T$1="feet",Data_Input!$T138>40)),ABS(B136)>$G$4),"",B136),"") ->  | M136: =IFERROR(IF(OR(AND(Data_Input!$T$1="meters",Data_Input!$T138>12),(AND(Data_Input!$T$1="feet",Data_Input!$T138>40)),ABS(C136)>$G$4),"",C136),"") ->  | N136: =IFERROR(IF(OR(AND(Data_Input!$T$1="meters",Data_Input!$T138>12),(AND(Data_Input!$T$1="feet",Data_Input!$T138>40)),ABS(D136)>$G$4),"",D136),"") ->  | O136: =IFERROR(IF(OR(AND(Data_Input!$T$1="meters",Data_Input!$T138>12),(AND(Data_Input!$T$1="feet",Data_Input!$T138>40)),ABS(E136)>$G$4),"",E136),"") -> 
A137: 135 | B137: =Data_Input!O139 ->  | C137: =Data_Input!P139 ->  | D137: =Data_Input!Q139 ->  | E137: =Data_Input!R139 ->  | L137: =IFERROR(IF(OR(AND(Data_Input!$T$1="meters",Data_Input!$T139>12),(AND(Data_Input!$T$1="feet",Data_Input!$T139>40)),ABS(B137)>$G$4),"",B137),"") ->  | M137: =IFERROR(IF(OR(AND(Data_Input!$T$1="meters",Data_Input!$T139>12),(AND(Data_Input!$T$1="feet",Data_Input!$T139>40)),ABS(C137)>$G$4),"",C137),"") ->  | N137: =IFERROR(IF(OR(AND(Data_Input!$T$1="meters",Data_Input!$T139>12),(AND(Data_Input!$T$1="feet",Data_Input!$T139>40)),ABS(D137)>$G$4),"",D137),"") ->  | O137: =IFERROR(IF(OR(AND(Data_Input!$T$1="meters",Data_Input!$T139>12),(AND(Data_Input!$T$1="feet",Data_Input!$T139>40)),ABS(E137)>$G$4),"",E137),"") -> 
A138: 136 | B138: =Data_Input!O140 ->  | C138: =Data_Input!P140 ->  | D138: =Data_Input!Q140 ->  | E138: =Data_Input!R140 ->  | L138: =IFERROR(IF(OR(AND(Data_Input!$T$1="meters",Data_Input!$T140>12),(AND(Data_Input!$T$1="feet",Data_Input!$T140>40)),ABS(B138)>$G$4),"",B138),"") ->  | M138: =IFERROR(IF(OR(AND(Data_Input!$T$1="meters",Data_Input!$T140>12),(AND(Data_Input!$T$1="feet",Data_Input!$T140>40)),ABS(C138)>$G$4),"",C138),"") ->  | N138: =IFERROR(IF(OR(AND(Data_Input!$T$1="meters",Data_Input!$T140>12),(AND(Data_Input!$T$1="feet",Data_Input!$T140>40)),ABS(D138)>$G$4),"",D138),"") ->  | O138: =IFERROR(IF(OR(AND(Data_Input!$T$1="meters",Data_Input!$T140>12),(AND(Data_Input!$T$1="feet",Data_Input!$T140>40)),ABS(E138)>$G$4),"",E138),"") -> 
A139: 137 | B139: =Data_Input!O141 ->  | C139: =Data_Input!P141 ->  | D139: =Data_Input!Q141 ->  | E139: =Data_Input!R141 ->  | L139: =IFERROR(IF(OR(AND(Data_Input!$T$1="meters",Data_Input!$T141>12),(AND(Data_Input!$T$1="feet",Data_Input!$T141>40)),ABS(B139)>$G$4),"",B139),"") ->  | M139: =IFERROR(IF(OR(AND(Data_Input!$T$1="meters",Data_Input!$T141>12),(AND(Data_Input!$T$1="feet",Data_Input!$T141>40)),ABS(C139)>$G$4),"",C139),"") ->  | N139: =IFERROR(IF(OR(AND(Data_Input!$T$1="meters",Data_Input!$T141>12),(AND(Data_Input!$T$1="feet",Data_Input!$T141>40)),ABS(D139)>$G$4),"",D139),"") ->  | O139: =IFERROR(IF(OR(AND(Data_Input!$T$1="meters",Data_Input!$T141>12),(AND(Data_Input!$T$1="feet",Data_Input!$T141>40)),ABS(E139)>$G$4),"",E139),"") -> 
A140: 138 | B140: =Data_Input!O142 ->  | C140: =Data_Input!P142 ->  | D140: =Data_Input!Q142 ->  | E140: =Data_Input!R142 ->  | L140: =IFERROR(IF(OR(AND(Data_Input!$T$1="meters",Data_Input!$T142>12),(AND(Data_Input!$T$1="feet",Data_Input!$T142>40)),ABS(B140)>$G$4),"",B140),"") ->  | M140: =IFERROR(IF(OR(AND(Data_Input!$T$1="meters",Data_Input!$T142>12),(AND(Data_Input!$T$1="feet",Data_Input!$T142>40)),ABS(C140)>$G$4),"",C140),"") ->  | N140: =IFERROR(IF(OR(AND(Data_Input!$T$1="meters",Data_Input!$T142>12),(AND(Data_Input!$T$1="feet",Data_Input!$T142>40)),ABS(D140)>$G$4),"",D140),"") ->  | O140: =IFERROR(IF(OR(AND(Data_Input!$T$1="meters",Data_Input!$T142>12),(AND(Data_Input!$T$1="feet",Data_Input!$T142>40)),ABS(E140)>$G$4),"",E140),"") -> 
A141: 139 | B141: =Data_Input!O143 ->  | C141: =Data_Input!P143 ->  | D141: =Data_Input!Q143 ->  | E141: =Data_Input!R143 ->  | L141: =IFERROR(IF(OR(AND(Data_Input!$T$1="meters",Data_Input!$T143>12),(AND(Data_Input!$T$1="feet",Data_Input!$T143>40)),ABS(B141)>$G$4),"",B141),"") ->  | M141: =IFERROR(IF(OR(AND(Data_Input!$T$1="meters",Data_Input!$T143>12),(AND(Data_Input!$T$1="feet",Data_Input!$T143>40)),ABS(C141)>$G$4),"",C141),"") ->  | N141: =IFERROR(IF(OR(AND(Data_Input!$T$1="meters",Data_Input!$T143>12),(AND(Data_Input!$T$1="feet",Data_Input!$T143>40)),ABS(D141)>$G$4),"",D141),"") ->  | O141: =IFERROR(IF(OR(AND(Data_Input!$T$1="meters",Data_Input!$T143>12),(AND(Data_Input!$T$1="feet",Data_Input!$T143>40)),ABS(E141)>$G$4),"",E141),"") -> 
A142: 140 | B142: =Data_Input!O144 ->  | C142: =Data_Input!P144 ->  | D142: =Data_Input!Q144 ->  | E142: =Data_Input!R144 ->  | L142: =IFERROR(IF(OR(AND(Data_Input!$T$1="meters",Data_Input!$T144>12),(AND(Data_Input!$T$1="feet",Data_Input!$T144>40)),ABS(B142)>$G$4),"",B142),"") ->  | M142: =IFERROR(IF(OR(AND(Data_Input!$T$1="meters",Data_Input!$T144>12),(AND(Data_Input!$T$1="feet",Data_Input!$T144>40)),ABS(C142)>$G$4),"",C142),"") ->  | N142: =IFERROR(IF(OR(AND(Data_Input!$T$1="meters",Data_Input!$T144>12),(AND(Data_Input!$T$1="feet",Data_Input!$T144>40)),ABS(D142)>$G$4),"",D142),"") ->  | O142: =IFERROR(IF(OR(AND(Data_Input!$T$1="meters",Data_Input!$T144>12),(AND(Data_Input!$T$1="feet",Data_Input!$T144>40)),ABS(E142)>$G$4),"",E142),"") -> 
A143: 141 | B143: =Data_Input!O145 ->  | C143: =Data_Input!P145 ->  | D143: =Data_Input!Q145 ->  | E143: =Data_Input!R145 ->  | L143: =IFERROR(IF(OR(AND(Data_Input!$T$1="meters",Data_Input!$T145>12),(AND(Data_Input!$T$1="feet",Data_Input!$T145>40)),ABS(B143)>$G$4),"",B143),"") ->  | M143: =IFERROR(IF(OR(AND(Data_Input!$T$1="meters",Data_Input!$T145>12),(AND(Data_Input!$T$1="feet",Data_Input!$T145>40)),ABS(C143)>$G$4),"",C143),"") ->  | N143: =IFERROR(IF(OR(AND(Data_Input!$T$1="meters",Data_Input!$T145>12),(AND(Data_Input!$T$1="feet",Data_Input!$T145>40)),ABS(D143)>$G$4),"",D143),"") ->  | O143: =IFERROR(IF(OR(AND(Data_Input!$T$1="meters",Data_Input!$T145>12),(AND(Data_Input!$T$1="feet",Data_Input!$T145>40)),ABS(E143)>$G$4),"",E143),"") -> 
A144: 142 | B144: =Data_Input!O146 ->  | C144: =Data_Input!P146 ->  | D144: =Data_Input!Q146 ->  | E144: =Data_Input!R146 ->  | L144: =IFERROR(IF(OR(AND(Data_Input!$T$1="meters",Data_Input!$T146>12),(AND(Data_Input!$T$1="feet",Data_Input!$T146>40)),ABS(B144)>$G$4),"",B144),"") ->  | M144: =IFERROR(IF(OR(AND(Data_Input!$T$1="meters",Data_Input!$T146>12),(AND(Data_Input!$T$1="feet",Data_Input!$T146>40)),ABS(C144)>$G$4),"",C144),"") ->  | N144: =IFERROR(IF(OR(AND(Data_Input!$T$1="meters",Data_Input!$T146>12),(AND(Data_Input!$T$1="feet",Data_Input!$T146>40)),ABS(D144)>$G$4),"",D144),"") ->  | O144: =IFERROR(IF(OR(AND(Data_Input!$T$1="meters",Data_Input!$T146>12),(AND(Data_Input!$T$1="feet",Data_Input!$T146>40)),ABS(E144)>$G$4),"",E144),"") -> 
A145: 143 | B145: =Data_Input!O147 ->  | C145: =Data_Input!P147 ->  | D145: =Data_Input!Q147 ->  | E145: =Data_Input!R147 ->  | L145: =IFERROR(IF(OR(AND(Data_Input!$T$1="meters",Data_Input!$T147>12),(AND(Data_Input!$T$1="feet",Data_Input!$T147>40)),ABS(B145)>$G$4),"",B145),"") ->  | M145: =IFERROR(IF(OR(AND(Data_Input!$T$1="meters",Data_Input!$T147>12),(AND(Data_Input!$T$1="feet",Data_Input!$T147>40)),ABS(C145)>$G$4),"",C145),"") ->  | N145: =IFERROR(IF(OR(AND(Data_Input!$T$1="meters",Data_Input!$T147>12),(AND(Data_Input!$T$1="feet",Data_Input!$T147>40)),ABS(D145)>$G$4),"",D145),"") ->  | O145: =IFERROR(IF(OR(AND(Data_Input!$T$1="meters",Data_Input!$T147>12),(AND(Data_Input!$T$1="feet",Data_Input!$T147>40)),ABS(E145)>$G$4),"",E145),"") -> 
A146: 144 | B146: =Data_Input!O148 ->  | C146: =Data_Input!P148 ->  | D146: =Data_Input!Q148 ->  | E146: =Data_Input!R148 ->  | L146: =IFERROR(IF(OR(AND(Data_Input!$T$1="meters",Data_Input!$T148>12),(AND(Data_Input!$T$1="feet",Data_Input!$T148>40)),ABS(B146)>$G$4),"",B146),"") ->  | M146: =IFERROR(IF(OR(AND(Data_Input!$T$1="meters",Data_Input!$T148>12),(AND(Data_Input!$T$1="feet",Data_Input!$T148>40)),ABS(C146)>$G$4),"",C146),"") ->  | N146: =IFERROR(IF(OR(AND(Data_Input!$T$1="meters",Data_Input!$T148>12),(AND(Data_Input!$T$1="feet",Data_Input!$T148>40)),ABS(D146)>$G$4),"",D146),"") ->  | O146: =IFERROR(IF(OR(AND(Data_Input!$T$1="meters",Data_Input!$T148>12),(AND(Data_Input!$T$1="feet",Data_Input!$T148>40)),ABS(E146)>$G$4),"",E146),"") -> 
A147: 145 | B147: =Data_Input!O149 ->  | C147: =Data_Input!P149 ->  | D147: =Data_Input!Q149 ->  | E147: =Data_Input!R149 ->  | L147: =IFERROR(IF(OR(AND(Data_Input!$T$1="meters",Data_Input!$T149>12),(AND(Data_Input!$T$1="feet",Data_Input!$T149>40)),ABS(B147)>$G$4),"",B147),"") ->  | M147: =IFERROR(IF(OR(AND(Data_Input!$T$1="meters",Data_Input!$T149>12),(AND(Data_Input!$T$1="feet",Data_Input!$T149>40)),ABS(C147)>$G$4),"",C147),"") ->  | N147: =IFERROR(IF(OR(AND(Data_Input!$T$1="meters",Data_Input!$T149>12),(AND(Data_Input!$T$1="feet",Data_Input!$T149>40)),ABS(D147)>$G$4),"",D147),"") ->  | O147: =IFERROR(IF(OR(AND(Data_Input!$T$1="meters",Data_Input!$T149>12),(AND(Data_Input!$T$1="feet",Data_Input!$T149>40)),ABS(E147)>$G$4),"",E147),"") -> 
A148: 146 | B148: =Data_Input!O150 ->  | C148: =Data_Input!P150 ->  | D148: =Data_Input!Q150 ->  | E148: =Data_Input!R150 ->  | L148: =IFERROR(IF(OR(AND(Data_Input!$T$1="meters",Data_Input!$T150>12),(AND(Data_Input!$T$1="feet",Data_Input!$T150>40)),ABS(B148)>$G$4),"",B148),"") ->  | M148: =IFERROR(IF(OR(AND(Data_Input!$T$1="meters",Data_Input!$T150>12),(AND(Data_Input!$T$1="feet",Data_Input!$T150>40)),ABS(C148)>$G$4),"",C148),"") ->  | N148: =IFERROR(IF(OR(AND(Data_Input!$T$1="meters",Data_Input!$T150>12),(AND(Data_Input!$T$1="feet",Data_Input!$T150>40)),ABS(D148)>$G$4),"",D148),"") ->  | O148: =IFERROR(IF(OR(AND(Data_Input!$T$1="meters",Data_Input!$T150>12),(AND(Data_Input!$T$1="feet",Data_Input!$T150>40)),ABS(E148)>$G$4),"",E148),"") -> 
A149: 147 | B149: =Data_Input!O151 ->  | C149: =Data_Input!P151 ->  | D149: =Data_Input!Q151 ->  | E149: =Data_Input!R151 ->  | L149: =IFERROR(IF(OR(AND(Data_Input!$T$1="meters",Data_Input!$T151>12),(AND(Data_Input!$T$1="feet",Data_Input!$T151>40)),ABS(B149)>$G$4),"",B149),"") ->  | M149: =IFERROR(IF(OR(AND(Data_Input!$T$1="meters",Data_Input!$T151>12),(AND(Data_Input!$T$1="feet",Data_Input!$T151>40)),ABS(C149)>$G$4),"",C149),"") ->  | N149: =IFERROR(IF(OR(AND(Data_Input!$T$1="meters",Data_Input!$T151>12),(AND(Data_Input!$T$1="feet",Data_Input!$T151>40)),ABS(D149)>$G$4),"",D149),"") ->  | O149: =IFERROR(IF(OR(AND(Data_Input!$T$1="meters",Data_Input!$T151>12),(AND(Data_Input!$T$1="feet",Data_Input!$T151>40)),ABS(E149)>$G$4),"",E149),"") -> 
A150: 148 | B150: =Data_Input!O152 ->  | C150: =Data_Input!P152 ->  | D150: =Data_Input!Q152 ->  | E150: =Data_Input!R152 ->  | L150: =IFERROR(IF(OR(AND(Data_Input!$T$1="meters",Data_Input!$T152>12),(AND(Data_Input!$T$1="feet",Data_Input!$T152>40)),ABS(B150)>$G$4),"",B150),"") ->  | M150: =IFERROR(IF(OR(AND(Data_Input!$T$1="meters",Data_Input!$T152>12),(AND(Data_Input!$T$1="feet",Data_Input!$T152>40)),ABS(C150)>$G$4),"",C150),"") ->  | N150: =IFERROR(IF(OR(AND(Data_Input!$T$1="meters",Data_Input!$T152>12),(AND(Data_Input!$T$1="feet",Data_Input!$T152>40)),ABS(D150)>$G$4),"",D150),"") ->  | O150: =IFERROR(IF(OR(AND(Data_Input!$T$1="meters",Data_Input!$T152>12),(AND(Data_Input!$T$1="feet",Data_Input!$T152>40)),ABS(E150)>$G$4),"",E150),"") -> 
A151: 149 | B151: =Data_Input!O153 ->  | C151: =Data_Input!P153 ->  | D151: =Data_Input!Q153 ->  | E151: =Data_Input!R153 ->  | L151: =IFERROR(IF(OR(AND(Data_Input!$T$1="meters",Data_Input!$T153>12),(AND(Data_Input!$T$1="feet",Data_Input!$T153>40)),ABS(B151)>$G$4),"",B151),"") ->  | M151: =IFERROR(IF(OR(AND(Data_Input!$T$1="meters",Data_Input!$T153>12),(AND(Data_Input!$T$1="feet",Data_Input!$T153>40)),ABS(C151)>$G$4),"",C151),"") ->  | N151: =IFERROR(IF(OR(AND(Data_Input!$T$1="meters",Data_Input!$T153>12),(AND(Data_Input!$T$1="feet",Data_Input!$T153>40)),ABS(D151)>$G$4),"",D151),"") ->  | O151: =IFERROR(IF(OR(AND(Data_Input!$T$1="meters",Data_Input!$T153>12),(AND(Data_Input!$T$1="feet",Data_Input!$T153>40)),ABS(E151)>$G$4),"",E151),"") -> 
A152: 150 | B152: =Data_Input!O154 ->  | C152: =Data_Input!P154 ->  | D152: =Data_Input!Q154 ->  | E152: =Data_Input!R154 ->  | L152: =IFERROR(IF(OR(AND(Data_Input!$T$1="meters",Data_Input!$T154>12),(AND(Data_Input!$T$1="feet",Data_Input!$T154>40)),ABS(B152)>$G$4),"",B152),"") ->  | M152: =IFERROR(IF(OR(AND(Data_Input!$T$1="meters",Data_Input!$T154>12),(AND(Data_Input!$T$1="feet",Data_Input!$T154>40)),ABS(C152)>$G$4),"",C152),"") ->  | N152: =IFERROR(IF(OR(AND(Data_Input!$T$1="meters",Data_Input!$T154>12),(AND(Data_Input!$T$1="feet",Data_Input!$T154>40)),ABS(D152)>$G$4),"",D152),"") ->  | O152: =IFERROR(IF(OR(AND(Data_Input!$T$1="meters",Data_Input!$T154>12),(AND(Data_Input!$T$1="feet",Data_Input!$T154>40)),ABS(E152)>$G$4),"",E152),"") -> 
A153: 151 | B153: =Data_Input!O155 ->  | C153: =Data_Input!P155 ->  | D153: =Data_Input!Q155 ->  | E153: =Data_Input!R155 ->  | L153: =IFERROR(IF(OR(AND(Data_Input!$T$1="meters",Data_Input!$T155>12),(AND(Data_Input!$T$1="feet",Data_Input!$T155>40)),ABS(B153)>$G$4),"",B153),"") ->  | M153: =IFERROR(IF(OR(AND(Data_Input!$T$1="meters",Data_Input!$T155>12),(AND(Data_Input!$T$1="feet",Data_Input!$T155>40)),ABS(C153)>$G$4),"",C153),"") ->  | N153: =IFERROR(IF(OR(AND(Data_Input!$T$1="meters",Data_Input!$T155>12),(AND(Data_Input!$T$1="feet",Data_Input!$T155>40)),ABS(D153)>$G$4),"",D153),"") ->  | O153: =IFERROR(IF(OR(AND(Data_Input!$T$1="meters",Data_Input!$T155>12),(AND(Data_Input!$T$1="feet",Data_Input!$T155>40)),ABS(E153)>$G$4),"",E153),"") -> 
A154: 152 | B154: =Data_Input!O156 ->  | C154: =Data_Input!P156 ->  | D154: =Data_Input!Q156 ->  | E154: =Data_Input!R156 ->  | L154: =IFERROR(IF(OR(AND(Data_Input!$T$1="meters",Data_Input!$T156>12),(AND(Data_Input!$T$1="feet",Data_Input!$T156>40)),ABS(B154)>$G$4),"",B154),"") ->  | M154: =IFERROR(IF(OR(AND(Data_Input!$T$1="meters",Data_Input!$T156>12),(AND(Data_Input!$T$1="feet",Data_Input!$T156>40)),ABS(C154)>$G$4),"",C154),"") ->  | N154: =IFERROR(IF(OR(AND(Data_Input!$T$1="meters",Data_Input!$T156>12),(AND(Data_Input!$T$1="feet",Data_Input!$T156>40)),ABS(D154)>$G$4),"",D154),"") ->  | O154: =IFERROR(IF(OR(AND(Data_Input!$T$1="meters",Data_Input!$T156>12),(AND(Data_Input!$T$1="feet",Data_Input!$T156>40)),ABS(E154)>$G$4),"",E154),"") -> 
A155: 153 | B155: =Data_Input!O157 ->  | C155: =Data_Input!P157 ->  | D155: =Data_Input!Q157 ->  | E155: =Data_Input!R157 ->  | L155: =IFERROR(IF(OR(AND(Data_Input!$T$1="meters",Data_Input!$T157>12),(AND(Data_Input!$T$1="feet",Data_Input!$T157>40)),ABS(B155)>$G$4),"",B155),"") ->  | M155: =IFERROR(IF(OR(AND(Data_Input!$T$1="meters",Data_Input!$T157>12),(AND(Data_Input!$T$1="feet",Data_Input!$T157>40)),ABS(C155)>$G$4),"",C155),"") ->  | N155: =IFERROR(IF(OR(AND(Data_Input!$T$1="meters",Data_Input!$T157>12),(AND(Data_Input!$T$1="feet",Data_Input!$T157>40)),ABS(D155)>$G$4),"",D155),"") ->  | O155: =IFERROR(IF(OR(AND(Data_Input!$T$1="meters",Data_Input!$T157>12),(AND(Data_Input!$T$1="feet",Data_Input!$T157>40)),ABS(E155)>$G$4),"",E155),"") -> 
A156: 154 | B156: =Data_Input!O158 ->  | C156: =Data_Input!P158 ->  | D156: =Data_Input!Q158 ->  | E156: =Data_Input!R158 ->  | L156: =IFERROR(IF(OR(AND(Data_Input!$T$1="meters",Data_Input!$T158>12),(AND(Data_Input!$T$1="feet",Data_Input!$T158>40)),ABS(B156)>$G$4),"",B156),"") ->  | M156: =IFERROR(IF(OR(AND(Data_Input!$T$1="meters",Data_Input!$T158>12),(AND(Data_Input!$T$1="feet",Data_Input!$T158>40)),ABS(C156)>$G$4),"",C156),"") ->  | N156: =IFERROR(IF(OR(AND(Data_Input!$T$1="meters",Data_Input!$T158>12),(AND(Data_Input!$T$1="feet",Data_Input!$T158>40)),ABS(D156)>$G$4),"",D156),"") ->  | O156: =IFERROR(IF(OR(AND(Data_Input!$T$1="meters",Data_Input!$T158>12),(AND(Data_Input!$T$1="feet",Data_Input!$T158>40)),ABS(E156)>$G$4),"",E156),"") -> 
A157: 155 | B157: =Data_Input!O159 ->  | C157: =Data_Input!P159 ->  | D157: =Data_Input!Q159 ->  | E157: =Data_Input!R159 ->  | L157: =IFERROR(IF(OR(AND(Data_Input!$T$1="meters",Data_Input!$T159>12),(AND(Data_Input!$T$1="feet",Data_Input!$T159>40)),ABS(B157)>$G$4),"",B157),"") ->  | M157: =IFERROR(IF(OR(AND(Data_Input!$T$1="meters",Data_Input!$T159>12),(AND(Data_Input!$T$1="feet",Data_Input!$T159>40)),ABS(C157)>$G$4),"",C157),"") ->  | N157: =IFERROR(IF(OR(AND(Data_Input!$T$1="meters",Data_Input!$T159>12),(AND(Data_Input!$T$1="feet",Data_Input!$T159>40)),ABS(D157)>$G$4),"",D157),"") ->  | O157: =IFERROR(IF(OR(AND(Data_Input!$T$1="meters",Data_Input!$T159>12),(AND(Data_Input!$T$1="feet",Data_Input!$T159>40)),ABS(E157)>$G$4),"",E157),"") -> 
A158: 156 | B158: =Data_Input!O160 ->  | C158: =Data_Input!P160 ->  | D158: =Data_Input!Q160 ->  | E158: =Data_Input!R160 ->  | L158: =IFERROR(IF(OR(AND(Data_Input!$T$1="meters",Data_Input!$T160>12),(AND(Data_Input!$T$1="feet",Data_Input!$T160>40)),ABS(B158)>$G$4),"",B158),"") ->  | M158: =IFERROR(IF(OR(AND(Data_Input!$T$1="meters",Data_Input!$T160>12),(AND(Data_Input!$T$1="feet",Data_Input!$T160>40)),ABS(C158)>$G$4),"",C158),"") ->  | N158: =IFERROR(IF(OR(AND(Data_Input!$T$1="meters",Data_Input!$T160>12),(AND(Data_Input!$T$1="feet",Data_Input!$T160>40)),ABS(D158)>$G$4),"",D158),"") ->  | O158: =IFERROR(IF(OR(AND(Data_Input!$T$1="meters",Data_Input!$T160>12),(AND(Data_Input!$T$1="feet",Data_Input!$T160>40)),ABS(E158)>$G$4),"",E158),"") -> 
A159: 157 | B159: =Data_Input!O161 ->  | C159: =Data_Input!P161 ->  | D159: =Data_Input!Q161 ->  | E159: =Data_Input!R161 ->  | L159: =IFERROR(IF(OR(AND(Data_Input!$T$1="meters",Data_Input!$T161>12),(AND(Data_Input!$T$1="feet",Data_Input!$T161>40)),ABS(B159)>$G$4),"",B159),"") ->  | M159: =IFERROR(IF(OR(AND(Data_Input!$T$1="meters",Data_Input!$T161>12),(AND(Data_Input!$T$1="feet",Data_Input!$T161>40)),ABS(C159)>$G$4),"",C159),"") ->  | N159: =IFERROR(IF(OR(AND(Data_Input!$T$1="meters",Data_Input!$T161>12),(AND(Data_Input!$T$1="feet",Data_Input!$T161>40)),ABS(D159)>$G$4),"",D159),"") ->  | O159: =IFERROR(IF(OR(AND(Data_Input!$T$1="meters",Data_Input!$T161>12),(AND(Data_Input!$T$1="feet",Data_Input!$T161>40)),ABS(E159)>$G$4),"",E159),"") -> 
A160: 158 | B160: =Data_Input!O162 ->  | C160: =Data_Input!P162 ->  | D160: =Data_Input!Q162 ->  | E160: =Data_Input!R162 ->  | L160: =IFERROR(IF(OR(AND(Data_Input!$T$1="meters",Data_Input!$T162>12),(AND(Data_Input!$T$1="feet",Data_Input!$T162>40)),ABS(B160)>$G$4),"",B160),"") ->  | M160: =IFERROR(IF(OR(AND(Data_Input!$T$1="meters",Data_Input!$T162>12),(AND(Data_Input!$T$1="feet",Data_Input!$T162>40)),ABS(C160)>$G$4),"",C160),"") ->  | N160: =IFERROR(IF(OR(AND(Data_Input!$T$1="meters",Data_Input!$T162>12),(AND(Data_Input!$T$1="feet",Data_Input!$T162>40)),ABS(D160)>$G$4),"",D160),"") ->  | O160: =IFERROR(IF(OR(AND(Data_Input!$T$1="meters",Data_Input!$T162>12),(AND(Data_Input!$T$1="feet",Data_Input!$T162>40)),ABS(E160)>$G$4),"",E160),"") -> 
A161: 159 | B161: =Data_Input!O163 ->  | C161: =Data_Input!P163 ->  | D161: =Data_Input!Q163 ->  | E161: =Data_Input!R163 ->  | L161: =IFERROR(IF(OR(AND(Data_Input!$T$1="meters",Data_Input!$T163>12),(AND(Data_Input!$T$1="feet",Data_Input!$T163>40)),ABS(B161)>$G$4),"",B161),"") ->  | M161: =IFERROR(IF(OR(AND(Data_Input!$T$1="meters",Data_Input!$T163>12),(AND(Data_Input!$T$1="feet",Data_Input!$T163>40)),ABS(C161)>$G$4),"",C161),"") ->  | N161: =IFERROR(IF(OR(AND(Data_Input!$T$1="meters",Data_Input!$T163>12),(AND(Data_Input!$T$1="feet",Data_Input!$T163>40)),ABS(D161)>$G$4),"",D161),"") ->  | O161: =IFERROR(IF(OR(AND(Data_Input!$T$1="meters",Data_Input!$T163>12),(AND(Data_Input!$T$1="feet",Data_Input!$T163>40)),ABS(E161)>$G$4),"",E161),"") -> 
A162: 160 | B162: =Data_Input!O164 ->  | C162: =Data_Input!P164 ->  | D162: =Data_Input!Q164 ->  | E162: =Data_Input!R164 ->  | L162: =IFERROR(IF(OR(AND(Data_Input!$T$1="meters",Data_Input!$T164>12),(AND(Data_Input!$T$1="feet",Data_Input!$T164>40)),ABS(B162)>$G$4),"",B162),"") ->  | M162: =IFERROR(IF(OR(AND(Data_Input!$T$1="meters",Data_Input!$T164>12),(AND(Data_Input!$T$1="feet",Data_Input!$T164>40)),ABS(C162)>$G$4),"",C162),"") ->  | N162: =IFERROR(IF(OR(AND(Data_Input!$T$1="meters",Data_Input!$T164>12),(AND(Data_Input!$T$1="feet",Data_Input!$T164>40)),ABS(D162)>$G$4),"",D162),"") ->  | O162: =IFERROR(IF(OR(AND(Data_Input!$T$1="meters",Data_Input!$T164>12),(AND(Data_Input!$T$1="feet",Data_Input!$T164>40)),ABS(E162)>$G$4),"",E162),"") -> 
A163: 161 | B163: =Data_Input!O165 ->  | C163: =Data_Input!P165 ->  | D163: =Data_Input!Q165 ->  | E163: =Data_Input!R165 ->  | L163: =IFERROR(IF(OR(AND(Data_Input!$T$1="meters",Data_Input!$T165>12),(AND(Data_Input!$T$1="feet",Data_Input!$T165>40)),ABS(B163)>$G$4),"",B163),"") ->  | M163: =IFERROR(IF(OR(AND(Data_Input!$T$1="meters",Data_Input!$T165>12),(AND(Data_Input!$T$1="feet",Data_Input!$T165>40)),ABS(C163)>$G$4),"",C163),"") ->  | N163: =IFERROR(IF(OR(AND(Data_Input!$T$1="meters",Data_Input!$T165>12),(AND(Data_Input!$T$1="feet",Data_Input!$T165>40)),ABS(D163)>$G$4),"",D163),"") ->  | O163: =IFERROR(IF(OR(AND(Data_Input!$T$1="meters",Data_Input!$T165>12),(AND(Data_Input!$T$1="feet",Data_Input!$T165>40)),ABS(E163)>$G$4),"",E163),"") -> 
A164: 162 | B164: =Data_Input!O166 ->  | C164: =Data_Input!P166 ->  | D164: =Data_Input!Q166 ->  | E164: =Data_Input!R166 ->  | L164: =IFERROR(IF(OR(AND(Data_Input!$T$1="meters",Data_Input!$T166>12),(AND(Data_Input!$T$1="feet",Data_Input!$T166>40)),ABS(B164)>$G$4),"",B164),"") ->  | M164: =IFERROR(IF(OR(AND(Data_Input!$T$1="meters",Data_Input!$T166>12),(AND(Data_Input!$T$1="feet",Data_Input!$T166>40)),ABS(C164)>$G$4),"",C164),"") ->  | N164: =IFERROR(IF(OR(AND(Data_Input!$T$1="meters",Data_Input!$T166>12),(AND(Data_Input!$T$1="feet",Data_Input!$T166>40)),ABS(D164)>$G$4),"",D164),"") ->  | O164: =IFERROR(IF(OR(AND(Data_Input!$T$1="meters",Data_Input!$T166>12),(AND(Data_Input!$T$1="feet",Data_Input!$T166>40)),ABS(E164)>$G$4),"",E164),"") -> 
A165: 163 | B165: =Data_Input!O167 ->  | C165: =Data_Input!P167 ->  | D165: =Data_Input!Q167 ->  | E165: =Data_Input!R167 ->  | L165: =IFERROR(IF(OR(AND(Data_Input!$T$1="meters",Data_Input!$T167>12),(AND(Data_Input!$T$1="feet",Data_Input!$T167>40)),ABS(B165)>$G$4),"",B165),"") ->  | M165: =IFERROR(IF(OR(AND(Data_Input!$T$1="meters",Data_Input!$T167>12),(AND(Data_Input!$T$1="feet",Data_Input!$T167>40)),ABS(C165)>$G$4),"",C165),"") ->  | N165: =IFERROR(IF(OR(AND(Data_Input!$T$1="meters",Data_Input!$T167>12),(AND(Data_Input!$T$1="feet",Data_Input!$T167>40)),ABS(D165)>$G$4),"",D165),"") ->  | O165: =IFERROR(IF(OR(AND(Data_Input!$T$1="meters",Data_Input!$T167>12),(AND(Data_Input!$T$1="feet",Data_Input!$T167>40)),ABS(E165)>$G$4),"",E165),"") -> 
A166: 164 | B166: =Data_Input!O168 ->  | C166: =Data_Input!P168 ->  | D166: =Data_Input!Q168 ->  | E166: =Data_Input!R168 ->  | L166: =IFERROR(IF(OR(AND(Data_Input!$T$1="meters",Data_Input!$T168>12),(AND(Data_Input!$T$1="feet",Data_Input!$T168>40)),ABS(B166)>$G$4),"",B166),"") ->  | M166: =IFERROR(IF(OR(AND(Data_Input!$T$1="meters",Data_Input!$T168>12),(AND(Data_Input!$T$1="feet",Data_Input!$T168>40)),ABS(C166)>$G$4),"",C166),"") ->  | N166: =IFERROR(IF(OR(AND(Data_Input!$T$1="meters",Data_Input!$T168>12),(AND(Data_Input!$T$1="feet",Data_Input!$T168>40)),ABS(D166)>$G$4),"",D166),"") ->  | O166: =IFERROR(IF(OR(AND(Data_Input!$T$1="meters",Data_Input!$T168>12),(AND(Data_Input!$T$1="feet",Data_Input!$T168>40)),ABS(E166)>$G$4),"",E166),"") -> 
A167: 165 | B167: =Data_Input!O169 ->  | C167: =Data_Input!P169 ->  | D167: =Data_Input!Q169 ->  | E167: =Data_Input!R169 ->  | L167: =IFERROR(IF(OR(AND(Data_Input!$T$1="meters",Data_Input!$T169>12),(AND(Data_Input!$T$1="feet",Data_Input!$T169>40)),ABS(B167)>$G$4),"",B167),"") ->  | M167: =IFERROR(IF(OR(AND(Data_Input!$T$1="meters",Data_Input!$T169>12),(AND(Data_Input!$T$1="feet",Data_Input!$T169>40)),ABS(C167)>$G$4),"",C167),"") ->  | N167: =IFERROR(IF(OR(AND(Data_Input!$T$1="meters",Data_Input!$T169>12),(AND(Data_Input!$T$1="feet",Data_Input!$T169>40)),ABS(D167)>$G$4),"",D167),"") ->  | O167: =IFERROR(IF(OR(AND(Data_Input!$T$1="meters",Data_Input!$T169>12),(AND(Data_Input!$T$1="feet",Data_Input!$T169>40)),ABS(E167)>$G$4),"",E167),"") -> 
A168: 166 | B168: =Data_Input!O170 ->  | C168: =Data_Input!P170 ->  | D168: =Data_Input!Q170 ->  | E168: =Data_Input!R170 ->  | L168: =IFERROR(IF(OR(AND(Data_Input!$T$1="meters",Data_Input!$T170>12),(AND(Data_Input!$T$1="feet",Data_Input!$T170>40)),ABS(B168)>$G$4),"",B168),"") ->  | M168: =IFERROR(IF(OR(AND(Data_Input!$T$1="meters",Data_Input!$T170>12),(AND(Data_Input!$T$1="feet",Data_Input!$T170>40)),ABS(C168)>$G$4),"",C168),"") ->  | N168: =IFERROR(IF(OR(AND(Data_Input!$T$1="meters",Data_Input!$T170>12),(AND(Data_Input!$T$1="feet",Data_Input!$T170>40)),ABS(D168)>$G$4),"",D168),"") ->  | O168: =IFERROR(IF(OR(AND(Data_Input!$T$1="meters",Data_Input!$T170>12),(AND(Data_Input!$T$1="feet",Data_Input!$T170>40)),ABS(E168)>$G$4),"",E168),"") -> 
A169: 167 | B169: =Data_Input!O171 ->  | C169: =Data_Input!P171 ->  | D169: =Data_Input!Q171 ->  | E169: =Data_Input!R171 ->  | L169: =IFERROR(IF(OR(AND(Data_Input!$T$1="meters",Data_Input!$T171>12),(AND(Data_Input!$T$1="feet",Data_Input!$T171>40)),ABS(B169)>$G$4),"",B169),"") ->  | M169: =IFERROR(IF(OR(AND(Data_Input!$T$1="meters",Data_Input!$T171>12),(AND(Data_Input!$T$1="feet",Data_Input!$T171>40)),ABS(C169)>$G$4),"",C169),"") ->  | N169: =IFERROR(IF(OR(AND(Data_Input!$T$1="meters",Data_Input!$T171>12),(AND(Data_Input!$T$1="feet",Data_Input!$T171>40)),ABS(D169)>$G$4),"",D169),"") ->  | O169: =IFERROR(IF(OR(AND(Data_Input!$T$1="meters",Data_Input!$T171>12),(AND(Data_Input!$T$1="feet",Data_Input!$T171>40)),ABS(E169)>$G$4),"",E169),"") -> 
A170: 168 | B170: =Data_Input!O172 ->  | C170: =Data_Input!P172 ->  | D170: =Data_Input!Q172 ->  | E170: =Data_Input!R172 ->  | L170: =IFERROR(IF(OR(AND(Data_Input!$T$1="meters",Data_Input!$T172>12),(AND(Data_Input!$T$1="feet",Data_Input!$T172>40)),ABS(B170)>$G$4),"",B170),"") ->  | M170: =IFERROR(IF(OR(AND(Data_Input!$T$1="meters",Data_Input!$T172>12),(AND(Data_Input!$T$1="feet",Data_Input!$T172>40)),ABS(C170)>$G$4),"",C170),"") ->  | N170: =IFERROR(IF(OR(AND(Data_Input!$T$1="meters",Data_Input!$T172>12),(AND(Data_Input!$T$1="feet",Data_Input!$T172>40)),ABS(D170)>$G$4),"",D170),"") ->  | O170: =IFERROR(IF(OR(AND(Data_Input!$T$1="meters",Data_Input!$T172>12),(AND(Data_Input!$T$1="feet",Data_Input!$T172>40)),ABS(E170)>$G$4),"",E170),"") -> 
A171: 169 | B171: =Data_Input!O173 ->  | C171: =Data_Input!P173 ->  | D171: =Data_Input!Q173 ->  | E171: =Data_Input!R173 ->  | L171: =IFERROR(IF(OR(AND(Data_Input!$T$1="meters",Data_Input!$T173>12),(AND(Data_Input!$T$1="feet",Data_Input!$T173>40)),ABS(B171)>$G$4),"",B171),"") ->  | M171: =IFERROR(IF(OR(AND(Data_Input!$T$1="meters",Data_Input!$T173>12),(AND(Data_Input!$T$1="feet",Data_Input!$T173>40)),ABS(C171)>$G$4),"",C171),"") ->  | N171: =IFERROR(IF(OR(AND(Data_Input!$T$1="meters",Data_Input!$T173>12),(AND(Data_Input!$T$1="feet",Data_Input!$T173>40)),ABS(D171)>$G$4),"",D171),"") ->  | O171: =IFERROR(IF(OR(AND(Data_Input!$T$1="meters",Data_Input!$T173>12),(AND(Data_Input!$T$1="feet",Data_Input!$T173>40)),ABS(E171)>$G$4),"",E171),"") -> 
A172: 170 | B172: =Data_Input!O174 ->  | C172: =Data_Input!P174 ->  | D172: =Data_Input!Q174 ->  | E172: =Data_Input!R174 ->  | L172: =IFERROR(IF(OR(AND(Data_Input!$T$1="meters",Data_Input!$T174>12),(AND(Data_Input!$T$1="feet",Data_Input!$T174>40)),ABS(B172)>$G$4),"",B172),"") ->  | M172: =IFERROR(IF(OR(AND(Data_Input!$T$1="meters",Data_Input!$T174>12),(AND(Data_Input!$T$1="feet",Data_Input!$T174>40)),ABS(C172)>$G$4),"",C172),"") ->  | N172: =IFERROR(IF(OR(AND(Data_Input!$T$1="meters",Data_Input!$T174>12),(AND(Data_Input!$T$1="feet",Data_Input!$T174>40)),ABS(D172)>$G$4),"",D172),"") ->  | O172: =IFERROR(IF(OR(AND(Data_Input!$T$1="meters",Data_Input!$T174>12),(AND(Data_Input!$T$1="feet",Data_Input!$T174>40)),ABS(E172)>$G$4),"",E172),"") -> 
A173: 171 | B173: =Data_Input!O175 ->  | C173: =Data_Input!P175 ->  | D173: =Data_Input!Q175 ->  | E173: =Data_Input!R175 ->  | L173: =IFERROR(IF(OR(AND(Data_Input!$T$1="meters",Data_Input!$T175>12),(AND(Data_Input!$T$1="feet",Data_Input!$T175>40)),ABS(B173)>$G$4),"",B173),"") ->  | M173: =IFERROR(IF(OR(AND(Data_Input!$T$1="meters",Data_Input!$T175>12),(AND(Data_Input!$T$1="feet",Data_Input!$T175>40)),ABS(C173)>$G$4),"",C173),"") ->  | N173: =IFERROR(IF(OR(AND(Data_Input!$T$1="meters",Data_Input!$T175>12),(AND(Data_Input!$T$1="feet",Data_Input!$T175>40)),ABS(D173)>$G$4),"",D173),"") ->  | O173: =IFERROR(IF(OR(AND(Data_Input!$T$1="meters",Data_Input!$T175>12),(AND(Data_Input!$T$1="feet",Data_Input!$T175>40)),ABS(E173)>$G$4),"",E173),"") -> 
A174: 172 | B174: =Data_Input!O176 ->  | C174: =Data_Input!P176 ->  | D174: =Data_Input!Q176 ->  | E174: =Data_Input!R176 ->  | L174: =IFERROR(IF(OR(AND(Data_Input!$T$1="meters",Data_Input!$T176>12),(AND(Data_Input!$T$1="feet",Data_Input!$T176>40)),ABS(B174)>$G$4),"",B174),"") ->  | M174: =IFERROR(IF(OR(AND(Data_Input!$T$1="meters",Data_Input!$T176>12),(AND(Data_Input!$T$1="feet",Data_Input!$T176>40)),ABS(C174)>$G$4),"",C174),"") ->  | N174: =IFERROR(IF(OR(AND(Data_Input!$T$1="meters",Data_Input!$T176>12),(AND(Data_Input!$T$1="feet",Data_Input!$T176>40)),ABS(D174)>$G$4),"",D174),"") ->  | O174: =IFERROR(IF(OR(AND(Data_Input!$T$1="meters",Data_Input!$T176>12),(AND(Data_Input!$T$1="feet",Data_Input!$T176>40)),ABS(E174)>$G$4),"",E174),"") -> 
A175: 173 | B175: =Data_Input!O177 ->  | C175: =Data_Input!P177 ->  | D175: =Data_Input!Q177 ->  | E175: =Data_Input!R177 ->  | L175: =IFERROR(IF(OR(AND(Data_Input!$T$1="meters",Data_Input!$T177>12),(AND(Data_Input!$T$1="feet",Data_Input!$T177>40)),ABS(B175)>$G$4),"",B175),"") ->  | M175: =IFERROR(IF(OR(AND(Data_Input!$T$1="meters",Data_Input!$T177>12),(AND(Data_Input!$T$1="feet",Data_Input!$T177>40)),ABS(C175)>$G$4),"",C175),"") ->  | N175: =IFERROR(IF(OR(AND(Data_Input!$T$1="meters",Data_Input!$T177>12),(AND(Data_Input!$T$1="feet",Data_Input!$T177>40)),ABS(D175)>$G$4),"",D175),"") ->  | O175: =IFERROR(IF(OR(AND(Data_Input!$T$1="meters",Data_Input!$T177>12),(AND(Data_Input!$T$1="feet",Data_Input!$T177>40)),ABS(E175)>$G$4),"",E175),"") -> 
A176: 174 | B176: =Data_Input!O178 ->  | C176: =Data_Input!P178 ->  | D176: =Data_Input!Q178 ->  | E176: =Data_Input!R178 ->  | L176: =IFERROR(IF(OR(AND(Data_Input!$T$1="meters",Data_Input!$T178>12),(AND(Data_Input!$T$1="feet",Data_Input!$T178>40)),ABS(B176)>$G$4),"",B176),"") ->  | M176: =IFERROR(IF(OR(AND(Data_Input!$T$1="meters",Data_Input!$T178>12),(AND(Data_Input!$T$1="feet",Data_Input!$T178>40)),ABS(C176)>$G$4),"",C176),"") ->  | N176: =IFERROR(IF(OR(AND(Data_Input!$T$1="meters",Data_Input!$T178>12),(AND(Data_Input!$T$1="feet",Data_Input!$T178>40)),ABS(D176)>$G$4),"",D176),"") ->  | O176: =IFERROR(IF(OR(AND(Data_Input!$T$1="meters",Data_Input!$T178>12),(AND(Data_Input!$T$1="feet",Data_Input!$T178>40)),ABS(E176)>$G$4),"",E176),"") -> 
A177: 175 | B177: =Data_Input!O179 ->  | C177: =Data_Input!P179 ->  | D177: =Data_Input!Q179 ->  | E177: =Data_Input!R179 ->  | L177: =IFERROR(IF(OR(AND(Data_Input!$T$1="meters",Data_Input!$T179>12),(AND(Data_Input!$T$1="feet",Data_Input!$T179>40)),ABS(B177)>$G$4),"",B177),"") ->  | M177: =IFERROR(IF(OR(AND(Data_Input!$T$1="meters",Data_Input!$T179>12),(AND(Data_Input!$T$1="feet",Data_Input!$T179>40)),ABS(C177)>$G$4),"",C177),"") ->  | N177: =IFERROR(IF(OR(AND(Data_Input!$T$1="meters",Data_Input!$T179>12),(AND(Data_Input!$T$1="feet",Data_Input!$T179>40)),ABS(D177)>$G$4),"",D177),"") ->  | O177: =IFERROR(IF(OR(AND(Data_Input!$T$1="meters",Data_Input!$T179>12),(AND(Data_Input!$T$1="feet",Data_Input!$T179>40)),ABS(E177)>$G$4),"",E177),"") -> 
A178: 176 | B178: =Data_Input!O180 ->  | C178: =Data_Input!P180 ->  | D178: =Data_Input!Q180 ->  | E178: =Data_Input!R180 ->  | L178: =IFERROR(IF(OR(AND(Data_Input!$T$1="meters",Data_Input!$T180>12),(AND(Data_Input!$T$1="feet",Data_Input!$T180>40)),ABS(B178)>$G$4),"",B178),"") ->  | M178: =IFERROR(IF(OR(AND(Data_Input!$T$1="meters",Data_Input!$T180>12),(AND(Data_Input!$T$1="feet",Data_Input!$T180>40)),ABS(C178)>$G$4),"",C178),"") ->  | N178: =IFERROR(IF(OR(AND(Data_Input!$T$1="meters",Data_Input!$T180>12),(AND(Data_Input!$T$1="feet",Data_Input!$T180>40)),ABS(D178)>$G$4),"",D178),"") ->  | O178: =IFERROR(IF(OR(AND(Data_Input!$T$1="meters",Data_Input!$T180>12),(AND(Data_Input!$T$1="feet",Data_Input!$T180>40)),ABS(E178)>$G$4),"",E178),"") -> 
A179: 177 | B179: =Data_Input!O181 ->  | C179: =Data_Input!P181 ->  | D179: =Data_Input!Q181 ->  | E179: =Data_Input!R181 ->  | L179: =IFERROR(IF(OR(AND(Data_Input!$T$1="meters",Data_Input!$T181>12),(AND(Data_Input!$T$1="feet",Data_Input!$T181>40)),ABS(B179)>$G$4),"",B179),"") ->  | M179: =IFERROR(IF(OR(AND(Data_Input!$T$1="meters",Data_Input!$T181>12),(AND(Data_Input!$T$1="feet",Data_Input!$T181>40)),ABS(C179)>$G$4),"",C179),"") ->  | N179: =IFERROR(IF(OR(AND(Data_Input!$T$1="meters",Data_Input!$T181>12),(AND(Data_Input!$T$1="feet",Data_Input!$T181>40)),ABS(D179)>$G$4),"",D179),"") ->  | O179: =IFERROR(IF(OR(AND(Data_Input!$T$1="meters",Data_Input!$T181>12),(AND(Data_Input!$T$1="feet",Data_Input!$T181>40)),ABS(E179)>$G$4),"",E179),"") -> 
A180: 178 | B180: =Data_Input!O182 ->  | C180: =Data_Input!P182 ->  | D180: =Data_Input!Q182 ->  | E180: =Data_Input!R182 ->  | L180: =IFERROR(IF(OR(AND(Data_Input!$T$1="meters",Data_Input!$T182>12),(AND(Data_Input!$T$1="feet",Data_Input!$T182>40)),ABS(B180)>$G$4),"",B180),"") ->  | M180: =IFERROR(IF(OR(AND(Data_Input!$T$1="meters",Data_Input!$T182>12),(AND(Data_Input!$T$1="feet",Data_Input!$T182>40)),ABS(C180)>$G$4),"",C180),"") ->  | N180: =IFERROR(IF(OR(AND(Data_Input!$T$1="meters",Data_Input!$T182>12),(AND(Data_Input!$T$1="feet",Data_Input!$T182>40)),ABS(D180)>$G$4),"",D180),"") ->  | O180: =IFERROR(IF(OR(AND(Data_Input!$T$1="meters",Data_Input!$T182>12),(AND(Data_Input!$T$1="feet",Data_Input!$T182>40)),ABS(E180)>$G$4),"",E180),"") -> 
A181: 179 | B181: =Data_Input!O183 ->  | C181: =Data_Input!P183 ->  | D181: =Data_Input!Q183 ->  | E181: =Data_Input!R183 ->  | L181: =IFERROR(IF(OR(AND(Data_Input!$T$1="meters",Data_Input!$T183>12),(AND(Data_Input!$T$1="feet",Data_Input!$T183>40)),ABS(B181)>$G$4),"",B181),"") ->  | M181: =IFERROR(IF(OR(AND(Data_Input!$T$1="meters",Data_Input!$T183>12),(AND(Data_Input!$T$1="feet",Data_Input!$T183>40)),ABS(C181)>$G$4),"",C181),"") ->  | N181: =IFERROR(IF(OR(AND(Data_Input!$T$1="meters",Data_Input!$T183>12),(AND(Data_Input!$T$1="feet",Data_Input!$T183>40)),ABS(D181)>$G$4),"",D181),"") ->  | O181: =IFERROR(IF(OR(AND(Data_Input!$T$1="meters",Data_Input!$T183>12),(AND(Data_Input!$T$1="feet",Data_Input!$T183>40)),ABS(E181)>$G$4),"",E181),"") -> 
A182: 180 | B182: =Data_Input!O184 ->  | C182: =Data_Input!P184 ->  | D182: =Data_Input!Q184 ->  | E182: =Data_Input!R184 ->  | L182: =IFERROR(IF(OR(AND(Data_Input!$T$1="meters",Data_Input!$T184>12),(AND(Data_Input!$T$1="feet",Data_Input!$T184>40)),ABS(B182)>$G$4),"",B182),"") ->  | M182: =IFERROR(IF(OR(AND(Data_Input!$T$1="meters",Data_Input!$T184>12),(AND(Data_Input!$T$1="feet",Data_Input!$T184>40)),ABS(C182)>$G$4),"",C182),"") ->  | N182: =IFERROR(IF(OR(AND(Data_Input!$T$1="meters",Data_Input!$T184>12),(AND(Data_Input!$T$1="feet",Data_Input!$T184>40)),ABS(D182)>$G$4),"",D182),"") ->  | O182: =IFERROR(IF(OR(AND(Data_Input!$T$1="meters",Data_Input!$T184>12),(AND(Data_Input!$T$1="feet",Data_Input!$T184>40)),ABS(E182)>$G$4),"",E182),"") -> 
A183: 181 | B183: =Data_Input!O185 ->  | C183: =Data_Input!P185 ->  | D183: =Data_Input!Q185 ->  | E183: =Data_Input!R185 ->  | L183: =IFERROR(IF(OR(AND(Data_Input!$T$1="meters",Data_Input!$T185>12),(AND(Data_Input!$T$1="feet",Data_Input!$T185>40)),ABS(B183)>$G$4),"",B183),"") ->  | M183: =IFERROR(IF(OR(AND(Data_Input!$T$1="meters",Data_Input!$T185>12),(AND(Data_Input!$T$1="feet",Data_Input!$T185>40)),ABS(C183)>$G$4),"",C183),"") ->  | N183: =IFERROR(IF(OR(AND(Data_Input!$T$1="meters",Data_Input!$T185>12),(AND(Data_Input!$T$1="feet",Data_Input!$T185>40)),ABS(D183)>$G$4),"",D183),"") ->  | O183: =IFERROR(IF(OR(AND(Data_Input!$T$1="meters",Data_Input!$T185>12),(AND(Data_Input!$T$1="feet",Data_Input!$T185>40)),ABS(E183)>$G$4),"",E183),"") -> 
A184: 182 | B184: =Data_Input!O186 ->  | C184: =Data_Input!P186 ->  | D184: =Data_Input!Q186 ->  | E184: =Data_Input!R186 ->  | L184: =IFERROR(IF(OR(AND(Data_Input!$T$1="meters",Data_Input!$T186>12),(AND(Data_Input!$T$1="feet",Data_Input!$T186>40)),ABS(B184)>$G$4),"",B184),"") ->  | M184: =IFERROR(IF(OR(AND(Data_Input!$T$1="meters",Data_Input!$T186>12),(AND(Data_Input!$T$1="feet",Data_Input!$T186>40)),ABS(C184)>$G$4),"",C184),"") ->  | N184: =IFERROR(IF(OR(AND(Data_Input!$T$1="meters",Data_Input!$T186>12),(AND(Data_Input!$T$1="feet",Data_Input!$T186>40)),ABS(D184)>$G$4),"",D184),"") ->  | O184: =IFERROR(IF(OR(AND(Data_Input!$T$1="meters",Data_Input!$T186>12),(AND(Data_Input!$T$1="feet",Data_Input!$T186>40)),ABS(E184)>$G$4),"",E184),"") -> 
A185: 183 | B185: =Data_Input!O187 ->  | C185: =Data_Input!P187 ->  | D185: =Data_Input!Q187 ->  | E185: =Data_Input!R187 ->  | L185: =IFERROR(IF(OR(AND(Data_Input!$T$1="meters",Data_Input!$T187>12),(AND(Data_Input!$T$1="feet",Data_Input!$T187>40)),ABS(B185)>$G$4),"",B185),"") ->  | M185: =IFERROR(IF(OR(AND(Data_Input!$T$1="meters",Data_Input!$T187>12),(AND(Data_Input!$T$1="feet",Data_Input!$T187>40)),ABS(C185)>$G$4),"",C185),"") ->  | N185: =IFERROR(IF(OR(AND(Data_Input!$T$1="meters",Data_Input!$T187>12),(AND(Data_Input!$T$1="feet",Data_Input!$T187>40)),ABS(D185)>$G$4),"",D185),"") ->  | O185: =IFERROR(IF(OR(AND(Data_Input!$T$1="meters",Data_Input!$T187>12),(AND(Data_Input!$T$1="feet",Data_Input!$T187>40)),ABS(E185)>$G$4),"",E185),"") -> 
A186: 184 | B186: =Data_Input!O188 ->  | C186: =Data_Input!P188 ->  | D186: =Data_Input!Q188 ->  | E186: =Data_Input!R188 ->  | L186: =IFERROR(IF(OR(AND(Data_Input!$T$1="meters",Data_Input!$T188>12),(AND(Data_Input!$T$1="feet",Data_Input!$T188>40)),ABS(B186)>$G$4),"",B186),"") ->  | M186: =IFERROR(IF(OR(AND(Data_Input!$T$1="meters",Data_Input!$T188>12),(AND(Data_Input!$T$1="feet",Data_Input!$T188>40)),ABS(C186)>$G$4),"",C186),"") ->  | N186: =IFERROR(IF(OR(AND(Data_Input!$T$1="meters",Data_Input!$T188>12),(AND(Data_Input!$T$1="feet",Data_Input!$T188>40)),ABS(D186)>$G$4),"",D186),"") ->  | O186: =IFERROR(IF(OR(AND(Data_Input!$T$1="meters",Data_Input!$T188>12),(AND(Data_Input!$T$1="feet",Data_Input!$T188>40)),ABS(E186)>$G$4),"",E186),"") -> 
A187: 185 | B187: =Data_Input!O189 ->  | C187: =Data_Input!P189 ->  | D187: =Data_Input!Q189 ->  | E187: =Data_Input!R189 ->  | L187: =IFERROR(IF(OR(AND(Data_Input!$T$1="meters",Data_Input!$T189>12),(AND(Data_Input!$T$1="feet",Data_Input!$T189>40)),ABS(B187)>$G$4),"",B187),"") ->  | M187: =IFERROR(IF(OR(AND(Data_Input!$T$1="meters",Data_Input!$T189>12),(AND(Data_Input!$T$1="feet",Data_Input!$T189>40)),ABS(C187)>$G$4),"",C187),"") ->  | N187: =IFERROR(IF(OR(AND(Data_Input!$T$1="meters",Data_Input!$T189>12),(AND(Data_Input!$T$1="feet",Data_Input!$T189>40)),ABS(D187)>$G$4),"",D187),"") ->  | O187: =IFERROR(IF(OR(AND(Data_Input!$T$1="meters",Data_Input!$T189>12),(AND(Data_Input!$T$1="feet",Data_Input!$T189>40)),ABS(E187)>$G$4),"",E187),"") -> 
A188: 186 | B188: =Data_Input!O190 ->  | C188: =Data_Input!P190 ->  | D188: =Data_Input!Q190 ->  | E188: =Data_Input!R190 ->  | L188: =IFERROR(IF(OR(AND(Data_Input!$T$1="meters",Data_Input!$T190>12),(AND(Data_Input!$T$1="feet",Data_Input!$T190>40)),ABS(B188)>$G$4),"",B188),"") ->  | M188: =IFERROR(IF(OR(AND(Data_Input!$T$1="meters",Data_Input!$T190>12),(AND(Data_Input!$T$1="feet",Data_Input!$T190>40)),ABS(C188)>$G$4),"",C188),"") ->  | N188: =IFERROR(IF(OR(AND(Data_Input!$T$1="meters",Data_Input!$T190>12),(AND(Data_Input!$T$1="feet",Data_Input!$T190>40)),ABS(D188)>$G$4),"",D188),"") ->  | O188: =IFERROR(IF(OR(AND(Data_Input!$T$1="meters",Data_Input!$T190>12),(AND(Data_Input!$T$1="feet",Data_Input!$T190>40)),ABS(E188)>$G$4),"",E188),"") -> 
A189: 187 | B189: =Data_Input!O191 ->  | C189: =Data_Input!P191 ->  | D189: =Data_Input!Q191 ->  | E189: =Data_Input!R191 ->  | L189: =IFERROR(IF(OR(AND(Data_Input!$T$1="meters",Data_Input!$T191>12),(AND(Data_Input!$T$1="feet",Data_Input!$T191>40)),ABS(B189)>$G$4),"",B189),"") ->  | M189: =IFERROR(IF(OR(AND(Data_Input!$T$1="meters",Data_Input!$T191>12),(AND(Data_Input!$T$1="feet",Data_Input!$T191>40)),ABS(C189)>$G$4),"",C189),"") ->  | N189: =IFERROR(IF(OR(AND(Data_Input!$T$1="meters",Data_Input!$T191>12),(AND(Data_Input!$T$1="feet",Data_Input!$T191>40)),ABS(D189)>$G$4),"",D189),"") ->  | O189: =IFERROR(IF(OR(AND(Data_Input!$T$1="meters",Data_Input!$T191>12),(AND(Data_Input!$T$1="feet",Data_Input!$T191>40)),ABS(E189)>$G$4),"",E189),"") -> 
A190: 188 | B190: =Data_Input!O192 ->  | C190: =Data_Input!P192 ->  | D190: =Data_Input!Q192 ->  | E190: =Data_Input!R192 ->  | L190: =IFERROR(IF(OR(AND(Data_Input!$T$1="meters",Data_Input!$T192>12),(AND(Data_Input!$T$1="feet",Data_Input!$T192>40)),ABS(B190)>$G$4),"",B190),"") ->  | M190: =IFERROR(IF(OR(AND(Data_Input!$T$1="meters",Data_Input!$T192>12),(AND(Data_Input!$T$1="feet",Data_Input!$T192>40)),ABS(C190)>$G$4),"",C190),"") ->  | N190: =IFERROR(IF(OR(AND(Data_Input!$T$1="meters",Data_Input!$T192>12),(AND(Data_Input!$T$1="feet",Data_Input!$T192>40)),ABS(D190)>$G$4),"",D190),"") ->  | O190: =IFERROR(IF(OR(AND(Data_Input!$T$1="meters",Data_Input!$T192>12),(AND(Data_Input!$T$1="feet",Data_Input!$T192>40)),ABS(E190)>$G$4),"",E190),"") -> 
A191: 189 | B191: =Data_Input!O193 ->  | C191: =Data_Input!P193 ->  | D191: =Data_Input!Q193 ->  | E191: =Data_Input!R193 ->  | L191: =IFERROR(IF(OR(AND(Data_Input!$T$1="meters",Data_Input!$T193>12),(AND(Data_Input!$T$1="feet",Data_Input!$T193>40)),ABS(B191)>$G$4),"",B191),"") ->  | M191: =IFERROR(IF(OR(AND(Data_Input!$T$1="meters",Data_Input!$T193>12),(AND(Data_Input!$T$1="feet",Data_Input!$T193>40)),ABS(C191)>$G$4),"",C191),"") ->  | N191: =IFERROR(IF(OR(AND(Data_Input!$T$1="meters",Data_Input!$T193>12),(AND(Data_Input!$T$1="feet",Data_Input!$T193>40)),ABS(D191)>$G$4),"",D191),"") ->  | O191: =IFERROR(IF(OR(AND(Data_Input!$T$1="meters",Data_Input!$T193>12),(AND(Data_Input!$T$1="feet",Data_Input!$T193>40)),ABS(E191)>$G$4),"",E191),"") -> 
A192: 190 | B192: =Data_Input!O194 ->  | C192: =Data_Input!P194 ->  | D192: =Data_Input!Q194 ->  | E192: =Data_Input!R194 ->  | L192: =IFERROR(IF(OR(AND(Data_Input!$T$1="meters",Data_Input!$T194>12),(AND(Data_Input!$T$1="feet",Data_Input!$T194>40)),ABS(B192)>$G$4),"",B192),"") ->  | M192: =IFERROR(IF(OR(AND(Data_Input!$T$1="meters",Data_Input!$T194>12),(AND(Data_Input!$T$1="feet",Data_Input!$T194>40)),ABS(C192)>$G$4),"",C192),"") ->  | N192: =IFERROR(IF(OR(AND(Data_Input!$T$1="meters",Data_Input!$T194>12),(AND(Data_Input!$T$1="feet",Data_Input!$T194>40)),ABS(D192)>$G$4),"",D192),"") ->  | O192: =IFERROR(IF(OR(AND(Data_Input!$T$1="meters",Data_Input!$T194>12),(AND(Data_Input!$T$1="feet",Data_Input!$T194>40)),ABS(E192)>$G$4),"",E192),"") -> 
A193: 191 | B193: =Data_Input!O195 ->  | C193: =Data_Input!P195 ->  | D193: =Data_Input!Q195 ->  | E193: =Data_Input!R195 ->  | L193: =IFERROR(IF(OR(AND(Data_Input!$T$1="meters",Data_Input!$T195>12),(AND(Data_Input!$T$1="feet",Data_Input!$T195>40)),ABS(B193)>$G$4),"",B193),"") ->  | M193: =IFERROR(IF(OR(AND(Data_Input!$T$1="meters",Data_Input!$T195>12),(AND(Data_Input!$T$1="feet",Data_Input!$T195>40)),ABS(C193)>$G$4),"",C193),"") ->  | N193: =IFERROR(IF(OR(AND(Data_Input!$T$1="meters",Data_Input!$T195>12),(AND(Data_Input!$T$1="feet",Data_Input!$T195>40)),ABS(D193)>$G$4),"",D193),"") ->  | O193: =IFERROR(IF(OR(AND(Data_Input!$T$1="meters",Data_Input!$T195>12),(AND(Data_Input!$T$1="feet",Data_Input!$T195>40)),ABS(E193)>$G$4),"",E193),"") -> 
A194: 192 | B194: =Data_Input!O196 ->  | C194: =Data_Input!P196 ->  | D194: =Data_Input!Q196 ->  | E194: =Data_Input!R196 ->  | L194: =IFERROR(IF(OR(AND(Data_Input!$T$1="meters",Data_Input!$T196>12),(AND(Data_Input!$T$1="feet",Data_Input!$T196>40)),ABS(B194)>$G$4),"",B194),"") ->  | M194: =IFERROR(IF(OR(AND(Data_Input!$T$1="meters",Data_Input!$T196>12),(AND(Data_Input!$T$1="feet",Data_Input!$T196>40)),ABS(C194)>$G$4),"",C194),"") ->  | N194: =IFERROR(IF(OR(AND(Data_Input!$T$1="meters",Data_Input!$T196>12),(AND(Data_Input!$T$1="feet",Data_Input!$T196>40)),ABS(D194)>$G$4),"",D194),"") ->  | O194: =IFERROR(IF(OR(AND(Data_Input!$T$1="meters",Data_Input!$T196>12),(AND(Data_Input!$T$1="feet",Data_Input!$T196>40)),ABS(E194)>$G$4),"",E194),"") -> 
A195: 193 | B195: =Data_Input!O197 ->  | C195: =Data_Input!P197 ->  | D195: =Data_Input!Q197 ->  | E195: =Data_Input!R197 ->  | L195: =IFERROR(IF(OR(AND(Data_Input!$T$1="meters",Data_Input!$T197>12),(AND(Data_Input!$T$1="feet",Data_Input!$T197>40)),ABS(B195)>$G$4),"",B195),"") ->  | M195: =IFERROR(IF(OR(AND(Data_Input!$T$1="meters",Data_Input!$T197>12),(AND(Data_Input!$T$1="feet",Data_Input!$T197>40)),ABS(C195)>$G$4),"",C195),"") ->  | N195: =IFERROR(IF(OR(AND(Data_Input!$T$1="meters",Data_Input!$T197>12),(AND(Data_Input!$T$1="feet",Data_Input!$T197>40)),ABS(D195)>$G$4),"",D195),"") ->  | O195: =IFERROR(IF(OR(AND(Data_Input!$T$1="meters",Data_Input!$T197>12),(AND(Data_Input!$T$1="feet",Data_Input!$T197>40)),ABS(E195)>$G$4),"",E195),"") -> 
A196: 194 | B196: =Data_Input!O198 ->  | C196: =Data_Input!P198 ->  | D196: =Data_Input!Q198 ->  | E196: =Data_Input!R198 ->  | L196: =IFERROR(IF(OR(AND(Data_Input!$T$1="meters",Data_Input!$T198>12),(AND(Data_Input!$T$1="feet",Data_Input!$T198>40)),ABS(B196)>$G$4),"",B196),"") ->  | M196: =IFERROR(IF(OR(AND(Data_Input!$T$1="meters",Data_Input!$T198>12),(AND(Data_Input!$T$1="feet",Data_Input!$T198>40)),ABS(C196)>$G$4),"",C196),"") ->  | N196: =IFERROR(IF(OR(AND(Data_Input!$T$1="meters",Data_Input!$T198>12),(AND(Data_Input!$T$1="feet",Data_Input!$T198>40)),ABS(D196)>$G$4),"",D196),"") ->  | O196: =IFERROR(IF(OR(AND(Data_Input!$T$1="meters",Data_Input!$T198>12),(AND(Data_Input!$T$1="feet",Data_Input!$T198>40)),ABS(E196)>$G$4),"",E196),"") ->  | Q196: =IFERROR(ABS(L196),"") ->  | R196: =IFERROR(ABS(M196),"") ->  | S196: =IFERROR(ABS(N196),"") ->  | T196: =IFERROR(ABS(O196),"") -> 
A197: 195 | B197: =Data_Input!O199 ->  | C197: =Data_Input!P199 ->  | D197: =Data_Input!Q199 ->  | E197: =Data_Input!R199 ->  | L197: =IFERROR(IF(OR(AND(Data_Input!$T$1="meters",Data_Input!$T199>12),(AND(Data_Input!$T$1="feet",Data_Input!$T199>40)),ABS(B197)>$G$4),"",B197),"") ->  | M197: =IFERROR(IF(OR(AND(Data_Input!$T$1="meters",Data_Input!$T199>12),(AND(Data_Input!$T$1="feet",Data_Input!$T199>40)),ABS(C197)>$G$4),"",C197),"") ->  | N197: =IFERROR(IF(OR(AND(Data_Input!$T$1="meters",Data_Input!$T199>12),(AND(Data_Input!$T$1="feet",Data_Input!$T199>40)),ABS(D197)>$G$4),"",D197),"") ->  | O197: =IFERROR(IF(OR(AND(Data_Input!$T$1="meters",Data_Input!$T199>12),(AND(Data_Input!$T$1="feet",Data_Input!$T199>40)),ABS(E197)>$G$4),"",E197),"") -> 
A198: 196 | B198: =Data_Input!O200 ->  | C198: =Data_Input!P200 ->  | D198: =Data_Input!Q200 ->  | E198: =Data_Input!R200 ->  | L198: =IFERROR(IF(OR(AND(Data_Input!$T$1="meters",Data_Input!$T200>12),(AND(Data_Input!$T$1="feet",Data_Input!$T200>40)),ABS(B198)>$G$4),"",B198),"") ->  | M198: =IFERROR(IF(OR(AND(Data_Input!$T$1="meters",Data_Input!$T200>12),(AND(Data_Input!$T$1="feet",Data_Input!$T200>40)),ABS(C198)>$G$4),"",C198),"") ->  | N198: =IFERROR(IF(OR(AND(Data_Input!$T$1="meters",Data_Input!$T200>12),(AND(Data_Input!$T$1="feet",Data_Input!$T200>40)),ABS(D198)>$G$4),"",D198),"") ->  | O198: =IFERROR(IF(OR(AND(Data_Input!$T$1="meters",Data_Input!$T200>12),(AND(Data_Input!$T$1="feet",Data_Input!$T200>40)),ABS(E198)>$G$4),"",E198),"") -> 
A199: 197 | B199: =Data_Input!O201 ->  | C199: =Data_Input!P201 ->  | D199: =Data_Input!Q201 ->  | E199: =Data_Input!R201 ->  | L199: =IFERROR(IF(OR(AND(Data_Input!$T$1="meters",Data_Input!$T201>12),(AND(Data_Input!$T$1="feet",Data_Input!$T201>40)),ABS(B199)>$G$4),"",B199),"") ->  | M199: =IFERROR(IF(OR(AND(Data_Input!$T$1="meters",Data_Input!$T201>12),(AND(Data_Input!$T$1="feet",Data_Input!$T201>40)),ABS(C199)>$G$4),"",C199),"") ->  | N199: =IFERROR(IF(OR(AND(Data_Input!$T$1="meters",Data_Input!$T201>12),(AND(Data_Input!$T$1="feet",Data_Input!$T201>40)),ABS(D199)>$G$4),"",D199),"") ->  | O199: =IFERROR(IF(OR(AND(Data_Input!$T$1="meters",Data_Input!$T201>12),(AND(Data_Input!$T$1="feet",Data_Input!$T201>40)),ABS(E199)>$G$4),"",E199),"") -> 
A200: 198 | B200: =Data_Input!O202 ->  | C200: =Data_Input!P202 ->  | D200: =Data_Input!Q202 ->  | E200: =Data_Input!R202 ->  | L200: =IFERROR(IF(OR(AND(Data_Input!$T$1="meters",Data_Input!$T202>12),(AND(Data_Input!$T$1="feet",Data_Input!$T202>40)),ABS(B200)>$G$4),"",B200),"") ->  | M200: =IFERROR(IF(OR(AND(Data_Input!$T$1="meters",Data_Input!$T202>12),(AND(Data_Input!$T$1="feet",Data_Input!$T202>40)),ABS(C200)>$G$4),"",C200),"") ->  | N200: =IFERROR(IF(OR(AND(Data_Input!$T$1="meters",Data_Input!$T202>12),(AND(Data_Input!$T$1="feet",Data_Input!$T202>40)),ABS(D200)>$G$4),"",D200),"") ->  | O200: =IFERROR(IF(OR(AND(Data_Input!$T$1="meters",Data_Input!$T202>12),(AND(Data_Input!$T$1="feet",Data_Input!$T202>40)),ABS(E200)>$G$4),"",E200),"") -> 
... 2802 more rows

Sheet A (hidden)
C31: Preoperative Corneal Astigmatism | E31: Postoperative Refractive Cylinder
B32: ≤ 0.25 D | C32: =Preoperative_data!N4 -> 80 | D32: =Preoperative_data!O4 -> 0.9411764706 | E32: ='Postoperative_data (2)'!BB4 -> 32 | F32: ='Postoperative_data (2)'!BC4 -> 0.3764705882
B33: ≤ 0.50 D | C33: =Preoperative_data!N5 -> 85 | D33: =Preoperative_data!O5 -> 1 | E33: ='Postoperative_data (2)'!BB5 -> 59 | F33: ='Postoperative_data (2)'!BC5 -> 0.6941176471
B34: ≤ 0.75 D | C34: =Preoperative_data!N6 -> 85 | D34: =Preoperative_data!O6 -> 1 | E34: ='Postoperative_data (2)'!BB6 -> 73 | F34: ='Postoperative_data (2)'!BC6 -> 0.8588235294
B35: ≤ 1.00 D | C35: =Preoperative_data!N7 -> 85 | D35: =Preoperative_data!O7 -> 1 | E35: ='Postoperative_data (2)'!BB7 -> 78 | F35: ='Postoperative_data (2)'!BC7 -> 0.9176470588
B36: ≤ 1.50 D | C36: =Preoperative_data!N8 -> 85 | D36: =Preoperative_data!O8 -> 1 | E36: ='Postoperative_data (2)'!BB8 -> 80 | F36: ='Postoperative_data (2)'!BC8 -> 0.9411764706
B37: ≤ 2.00 D | C37: =Preoperative_data!N9 -> 85 | D37: =Preoperative_data!O9 -> 1 | E37: ='Postoperative_data (2)'!BB9 -> 84 | F37: ='Postoperative_data (2)'!BC9 -> 0.9882352941

Sheet B (hidden)
Y3: N = | Z3: =Data_Input!Y5 -> 85
D33: Centroid : | E33: =Preoperative_data!R4 -> 0.02015520909 | F33: @ | G33: =Preoperative_data!S4 -> 90.78238405 | H33: ± | I33: =Preoperative_data!R5 -> 0.2192294471 | L33: Centroid : | M33: ='Postoperative_data (2)'!BF5 -> 0.2553156792 | N33: @ | O33: ='Postoperative_data (2)'!BH5 -> 167.9614063 | P33: ± | Q33: ='Postoperative_data (2)'!BF6 -> 0.6716777309
D34: Mean Absolute: | E34: =Preoperative_data!R7 -> 0.02011764706 | F34: ± | G34: =Preoperative_data!R8 -> 0.2179395173 | L34: Mean Absolute: | M34: ='Postoperative_data (2)'!BF8 -> 0.4970588235 | N34: ± | O34: ='Postoperative_data (2)'!BF9 -> 0.5137722625
M41: Adjusted scale for each ring: | Q41: 1 | R41: D

Sheet C (hidden)
D10: Postoperative refractive cylinder prediction error
D34: Centroid : | E34: ='Postoperative_data (2)'!BM5 -> 0.3382273607 | F34: @ | G34: ='Postoperative_data (2)'!BO5 -> 170.600049 | H34: ± | I34: ='Postoperative_data (2)'!BM6 -> 0.7516412634
D35: Mean Absolute: | E35: ='Postoperative_data (2)'!BM7 -> 0.6493470239 | F35: ± | G35: ='Postoperative_data (2)'!BN7 -> 0.5010630067
F43: Postoperative refractive astigmatism prediction error
F44: ≤ 0.25 D | G44: ='Postoperative_data (2)'!BM9 -> 19 | H44: ='Postoperative_data (2)'!BO9 -> 0.2235294118
F45: ≤ 0.50 D | G45: ='Postoperative_data (2)'!BM10 -> 35 | H45: ='Postoperative_data (2)'!BO10 -> 0.4117647059
F46: ≤ 0.75 D | G46: ='Postoperative_data (2)'!BM11 -> 62 | H46: ='Postoperative_data (2)'!BO11 -> 0.7294117647
F47: ≤ 1.00 D | G47: ='Postoperative_data (2)'!BM12 -> 70 | H47: ='Postoperative_data (2)'!BO12 -> 0.8235294118

Sheet D (hidden)
C29: MNE: | D29: ='Postoperative_data (2)'!BM17 -> -0.6205588235 | E29: ± | F29: ='Postoperative_data (2)'!BM18 -> 0.761417735 | G29: [ | H29: ='Postoperative_data (2)'!BM21 -> -2.715 | I29: to | J29: ='Postoperative_data (2)'!BM22 -> 0.36 | K29: ]
C31: MAE: | D31: ='Postoperative_data (2)'!BM19 -> 0.6579705882
C32: Median AE: | D32: ='Postoperative_data (2)'!BM20 -> 0.35

Sheet Terminology table (hidden)
A1: Suggested terminology | B1: Alpins terminology | C1: Description
A2: Predicted SIAcornea | B2: TIAincision | C2: The predicted change (vector) in total corneal astigmatism. This change can be induced either by the cataract incisions alone or by additional corneal incisions, such as limbal relaxing incisions and astigmatic keratotomy
A3: Actual SIAcornea | B3: SIAincision | C3: The actual change (vector) in total corneal astigmatism. This change can be induced either by the cataract incisions alone or by additional corneal incisions, such as limbal relaxing incisions and astigmatic keratotomy
A4: SIAcornea prediction error | B4: DVincision | C4: Actual SIAcornea - Predicted SIAcornea
A5: Predicted SIAIOL | B5: TIAIOL | C5: The predicted astigmatic change (vector) at the corneal plane, induced by a toric IOL, due to its toricity, and by either a toric or nontoric IOL, due to tilt and/or decentration
A6: Actual SIAIOL | B6: SIAIOL | C6: The actual astigmatic change (vector) at the corneal plane, induced by a toric IOL, due to its toricity, and by either a toric or nontoric IOL, due to tilt and/or decentration.
A7: SIAIOL prediction error | B7: DVIOL | C7: Actual SIAIOL - Predicted SIAIOL
A8: Predicted SIAtotal | B8: TIA | C8: The prediction of the total astigmatic change (vector) that was induced by the surgery. Predicted SIAcornea + Predicted SIAIOL
A9: Actual SIAtotal | B9: SIA | C9: The actual total astigmatic (vector) change that was induced by the surgery. Actual SIAcornea + Actual SIAIOL
A10: SIAtotal prediction error | B10: DV | C10: Actual SIAtotal - Predicted SIAtotal
A11: Predicted post-operative refractive astigmatism | B11: Targeted refractive cylinder | C11: The predicted postoperative refractive astigmatism at the corneal plane
A12: Actual postoperative refractive astigmatism | B12: Postoperative refractive cylinder | C12: The postoperative manifest refractive astigmatism at the corneal plane
A13: Postoperative refractive astigmatism prediction error | B13: -- | C13: The vector difference between the actual and the predicted postoperative refractive astigmatism

Sheet Preoperative_data (hidden)
A1: Preoperative corneal astigmatism
A2: No. | B2: Kflat | C2: @flat | D2: Ksteep | E2: @steep | F2: Corneal Astigmatism | G2: @ | J2: X | K2: Y
A3: 1 | B3: =IF(Data_Input!E5="","",Data_Input!E5) -> -0.25 | C3: =IF(Data_Input!F5="","",Data_Input!F5) -> 0.02 | D3: =IF(Data_Input!G5="","",Data_Input!G5) -> -0.23 | E3: =IF(D3="","",IF(C3>90,C3-90,C3+90)) -> 90.02 | F3: =IF(B3="","",D3-B3) -> 0.02 | G3: =IF(E3="","",E3) -> 90.02 | J3: =IF(F3="","",F3*COS(2*RADIANS(G3))) -> -0.01999999513 | K3: =IF(F3="","",F3*SIN(2*RADIANS(G3))) -> -1.396263288e-05
A4: 2 | B4: =IF(Data_Input!E6="","",Data_Input!E6) -> -0.16 | C4: =IF(Data_Input!F6="","",Data_Input!F6) -> -0.16 | D4: =IF(Data_Input!G6="","",Data_Input!G6) -> -0.16 | E4: 89.84 | F4: =IF(B4="","",D4-B4) -> 0 | G4: =IF(E4="","",E4) -> 89.84 | J4: =IF(F4="","",F4*COS(2*RADIANS(G4))) -> 0 | K4: =IF(F4="","",F4*SIN(2*RADIANS(G4))) -> 0 | M4: ≤ 0.25 D | N4: =COUNTIF(F$3:F$3002,"<=0.25") -> 80 | O4: =N4/COUNT($F$3:$F$3002) -> 0.9411764706 | Q4: Centroid | R4: =IFERROR(SQRT(V4^2+W4^2),"") -> 0.02015520909 | S4: =U4 -> 90.78238405 | T4: =IFERROR(0.5*DEGREES((ATAN(W4/V4))),"") -> 0.7823840487 | U4: =IFERROR(IF(V4>0,IF(W4>0,T4,T4+180),T4+90),"") -> 90.78238405 | V4: =AVERAGE(J3:J3002) -> -0.02014769312 | W4: =AVERAGE(K3:K3002) -> -0.0005503774991
A5: 3 | B5: =IF(Data_Input!E7="","",Data_Input!E7) -> -0.48 | C5: =IF(Data_Input!F7="","",Data_Input!F7) -> -0.47 | D5: =IF(Data_Input!G7="","",Data_Input!G7) -> -0.46 | E5: 89.53 | F5: =IF(B5="","",D5-B5) -> 0.02 | G5: 89.53 | J5: -0.01999730846 | K5: 0.00032810718 | M5: ≤ 0.50 D | N5: =COUNTIF(F$3:F$3002,"<=0.50") -> 85 | O5: 1 | Q5: SD | R5: =SQRT(V5+W5) -> 0.2192294471 | V5: =VAR(J3:J3002) -> 0.04792367235 | W5: =VAR(K3:K3002) -> 0.0001378781386
A6: 4 | B6: =IF(Data_Input!E8="","",Data_Input!E8) -> -0.46 | C6: =IF(Data_Input!F8="","",Data_Input!F8) -> -0.4 | D6: =IF(Data_Input!G8="","",Data_Input!G8) -> -0.33 | E6: 89.6 | F6: =IF(B6="","",D6-B6) -> 0.13 | G6: 89.6 | J6: -0.1299873281 | K6: 0.001815083444 | M6: ≤ 0.75 D | N6: =COUNTIF(F$3:F$3002,"<=0.75") -> 85 | O6: 1
A7: 5 | B7: =IF(Data_Input!E9="","",Data_Input!E9) -> -0.53 | C7: =IF(Data_Input!F9="","",Data_Input!F9) -> -0.57 | D7: =IF(Data_Input!G9="","",Data_Input!G9) -> -1.04 | E7: 89.43 | F7: -0.51 | G7: 89.43 | J7: 0.5098990537 | K7: -0.01014667476 | M7: ≤ 1.00 D | N7: =COUNTIF(F$3:F$3002,"<=1") -> 85 | O7: 1 | Q7: Mean | R7: =AVERAGE(F3:F3002) -> 0.02011764706
A8: 6 | B8: =IF(Data_Input!E10="","",Data_Input!E10) -> -0.34 | C8: =IF(Data_Input!F10="","",Data_Input!F10) -> -0.46 | D8: =IF(Data_Input!G10="","",Data_Input!G10) -> -0.25 | E8: 89.54 | F8: 0.09 | G8: 89.54 | J8: -0.08998839798 | K8: 0.001445070522 | M8: ≤ 1.50 D | N8: =COUNTIF(F$3:F$3002,"<=1.50") -> 85 | O8: 1 | Q8: SD | R8: =_xlfn.STDEV.P(F3:F3002) -> 0.2179395173
A9: 7 | B9: =IF(Data_Input!E11="","",Data_Input!E11) -> -2.65 | C9: =IF(Data_Input!F11="","",Data_Input!F11) -> -2.57 | D9: =IF(Data_Input!G11="","",Data_Input!G11) -> -3.36 | E9: 87.43 | F9: -0.71 | G9: 87.43 | J9: 0.7071449216 | K9: -0.06360864652 | M9: ≤ 2.00 D | N9: =COUNTIF(F$3:F$3002,"<=2") -> 85 | O9: 1
A10: 8 | B10: =IF(Data_Input!E12="","",Data_Input!E12) -> -0.12 | C10: =IF(Data_Input!F12="","",Data_Input!F12) -> -0.07 | D10: =IF(Data_Input!G12="","",Data_Input!G12) -> -0.2 | E10: 89.93 | F10: -0.08 | G10: 89.93 | J10: 0.07999976118 | K10: -0.0001954766817
A11: 9 | B11: =IF(Data_Input!E13="","",Data_Input!E13) -> -1.39 | C11: =IF(Data_Input!F13="","",Data_Input!F13) -> -1.13 | D11: =IF(Data_Input!G13="","",Data_Input!G13) -> -1.34 | E11: 88.87 | F11: 0.05 | G11: 88.87 | J11: -0.04996110844 | K11: 0.001971710676
A12: 10 | B12: =IF(Data_Input!E14="","",Data_Input!E14) -> -0.38 | C12: =IF(Data_Input!F14="","",Data_Input!F14) -> -0.43 | D12: =IF(Data_Input!G14="","",Data_Input!G14) -> -0.15 | E12: 89.57 | F12: 0.23 | G12: 89.57 | J12: -0.2299740916 | K12: 0.003452131632
A13: 11 | B13: =IF(Data_Input!E15="","",Data_Input!E15) -> -0.08 | C13: =IF(Data_Input!F15="","",Data_Input!F15) -> -0.32 | D13: =IF(Data_Input!G15="","",Data_Input!G15) -> -0.34 | E13: 89.68 | F13: -0.26 | G13: 89.68 | J13: 0.2599837799 | K13: -0.002904167482
A14: 12 | B14: =IF(Data_Input!E16="","",Data_Input!E16) -> -0.33 | C14: =IF(Data_Input!F16="","",Data_Input!F16) -> -0.05 | D14: =IF(Data_Input!G16="","",Data_Input!G16) -> -0.14 | E14: 89.95 | F14: 0.19 | G14: 89.95 | J14: -0.1899997106 | K14: 0.0003316123895
A15: 13 | B15: =IF(Data_Input!E17="","",Data_Input!E17) -> 0.2 | C15: =IF(Data_Input!F17="","",Data_Input!F17) -> 0.06 | D15: =IF(Data_Input!G17="","",Data_Input!G17) -> 0.35 | E15: 90.06 | F15: 0.15 | G15: 90.06 | J15: -0.149999671 | K15: -0.0003141590357
A16: 14 | B16: =IF(Data_Input!E18="","",Data_Input!E18) -> -0.69 | C16: =IF(Data_Input!F18="","",Data_Input!F18) -> -0.81 | D16: =IF(Data_Input!G18="","",Data_Input!G18) -> -0.5 | E16: 89.19 | F16: 0.19 | G16: 89.19 | J16: -0.1899240585 | K16: 0.005371407686
A17: 15 | B17: =IF(Data_Input!E19="","",Data_Input!E19) -> -1.41 | C17: =IF(Data_Input!F19="","",Data_Input!F19) -> -1.46 | D17: =IF(Data_Input!G19="","",Data_Input!G19) -> -1.18 | E17: 88.54 | F17: 0.23 | G17: 88.54 | J17: -0.2297013763 | K17: 0.01171655784
A18: 16 | B18: =IF(Data_Input!E20="","",Data_Input!E20) -> -0.1 | C18: =IF(Data_Input!F20="","",Data_Input!F20) -> 0.11 | D18: =IF(Data_Input!G20="","",Data_Input!G20) -> 0 | E18: 90.11 | F18: 0.1 | G18: 90.11 | J18: -0.09999926283 | K18: -0.0003839714919
A19: 17 | B19: =IF(Data_Input!E21="","",Data_Input!E21) -> -0.32 | C19: =IF(Data_Input!F21="","",Data_Input!F21) -> -0.79 | D19: =IF(Data_Input!G21="","",Data_Input!G21) -> -0.53 | E19: 89.21 | F19: -0.21 | G19: 89.21 | J19: 0.2099201581 | K19: -0.005790268528
A20: 18 | B20: =IF(Data_Input!E22="","",Data_Input!E22) -> -1.36 | C20: =IF(Data_Input!F22="","",Data_Input!F22) -> -1.15 | D20: =IF(Data_Input!G22="","",Data_Input!G22) -> -1.29 | E20: 88.85 | F20: 0.07 | G20: 88.85 | J20: -0.06994360766 | K20: 0.002809225477
A21: 19 | B21: =IF(Data_Input!E23="","",Data_Input!E23) -> -0.02 | C21: =IF(Data_Input!F23="","",Data_Input!F23) -> -0.15 | D21: =IF(Data_Input!G23="","",Data_Input!G23) -> 0.15 | E21: 89.85 | F21: 0.17 | G21: 89.85 | J21: -0.1699976697 | K21: 0.0008901138513
A22: 20 | B22: =IF(Data_Input!E24="","",Data_Input!E24) -> -0.33 | C22: =IF(Data_Input!F24="","",Data_Input!F24) -> -0.44 | D22: =IF(Data_Input!G24="","",Data_Input!G24) -> -0.24 | E22: 89.56 | F22: 0.09 | G22: 89.56 | J22: -0.0899893849 | K22: 0.001382246422
A23: 21 | B23: =IF(Data_Input!E25="","",Data_Input!E25) -> -0.17 | C23: =IF(Data_Input!F25="","",Data_Input!F25) -> -0.31 | D23: =IF(Data_Input!G25="","",Data_Input!G25) -> -0.14 | E23: 89.69 | F23: 0.03 | G23: 89.69 | J23: -0.02999824359 | K23: 0.0003246249055
A24: 22 | B24: =IF(Data_Input!E26="","",Data_Input!E26) -> -0.08 | C24: =IF(Data_Input!F26="","",Data_Input!F26) -> 0.1 | D24: =IF(Data_Input!G26="","",Data_Input!G26) -> -0.11 | E24: 90.1 | F24: -0.03 | G24: 90.1 | J24: 0.02999981723 | K24: 0.0001047195425
A25: 23 | B25: =IF(Data_Input!E27="","",Data_Input!E27) -> -0.61 | C25: =IF(Data_Input!F27="","",Data_Input!F27) -> -0.72 | D25: =IF(Data_Input!G27="","",Data_Input!G27) -> -0.39 | E25: 89.28 | F25: 0.22 | G25: 89.28 | J25: -0.2199305216 | K25: 0.005528620998
A26: 24 | B26: =IF(Data_Input!E28="","",Data_Input!E28) -> -1.55 | C26: =IF(Data_Input!F28="","",Data_Input!F28) -> -1.16 | D26: =IF(Data_Input!G28="","",Data_Input!G28) -> -1.33 | E26: 88.84 | F26: 0.22 | G26: 88.84 | J26: -0.2198196716 | K26: 0.008905726439
A27: 25 | B27: =IF(Data_Input!E29="","",Data_Input!E29) -> -0.21 | C27: =IF(Data_Input!F29="","",Data_Input!F29) -> 0.11 | D27: =IF(Data_Input!G29="","",Data_Input!G29) -> -0.13 | E27: 90.11 | F27: 0.08 | G27: 90.11 | J27: -0.07999941026 | K27: -0.0003071771935
A28: 26 | B28: =IF(Data_Input!E30="","",Data_Input!E30) -> -0.24 | C28: =IF(Data_Input!F30="","",Data_Input!F30) -> 0.24 | D28: =IF(Data_Input!G30="","",Data_Input!G30) -> 0.06 | E28: 90.24 | F28: 0.3 | G28: 90.24 | J28: -0.2999894725 | K28: -0.002513244724
A29: 27 | B29: =IF(Data_Input!E31="","",Data_Input!E31) -> -0.61 | C29: =IF(Data_Input!F31="","",Data_Input!F31) -> -0.7 | D29: =IF(Data_Input!G31="","",Data_Input!G31) -> -0.49 | E29: 89.3 | F29: 0.12 | G29: 89.3 | J29: -0.1199641788 | K29: 0.002931861378
A30: 28 | B30: =IF(Data_Input!E32="","",Data_Input!E32) -> -0.13 | C30: =IF(Data_Input!F32="","",Data_Input!F32) -> -0.09 | D30: =IF(Data_Input!G32="","",Data_Input!G32) -> -0.19 | E30: 89.91 | F30: -0.06 | G30: 89.91 | J30: 0.05999970391 | K30: -0.0001884952492
A31: 29 | B31: =IF(Data_Input!E33="","",Data_Input!E33) -> -0.38 | C31: =IF(Data_Input!F33="","",Data_Input!F33) -> -0.02 | D31: =IF(Data_Input!G33="","",Data_Input!G33) -> -0.18 | E31: 89.98 | F31: 0.2 | G31: 89.98 | J31: -0.1999999513 | K31: 0.0001396263288
A32: 30 | B32: =IF(Data_Input!E34="","",Data_Input!E34) -> -0.56 | C32: =IF(Data_Input!F34="","",Data_Input!F34) -> -0.64 | D32: =IF(Data_Input!G34="","",Data_Input!G34) -> -0.35 | E32: 89.36 | F32: 0.21 | G32: 89.36 | J32: -0.2099475982 | K32: 0.004691054801
A33: 31 | B33: =IF(Data_Input!E35="","",Data_Input!E35) -> -1.74 | C33: =IF(Data_Input!F35="","",Data_Input!F35) -> -1.4 | D33: =IF(Data_Input!G35="","",Data_Input!G35) -> -1.56 | E33: 88.6 | F33: 0.18 | G33: 88.6 | J33: -0.1797851047 | K33: 0.008792958563
A34: 32 | B34: =IF(Data_Input!E36="","",Data_Input!E36) -> -0.45 | C34: =IF(Data_Input!F36="","",Data_Input!F36) -> 0.05 | D34: =IF(Data_Input!G36="","",Data_Input!G36) -> -0.21 | E34: 90.05 | F34: 0.24 | G34: 90.05 | J34: -0.2399996345 | K34: -0.0004188788078
A35: 33 | B35: =IF(Data_Input!E37="","",Data_Input!E37) -> -2.68 | C35: =IF(Data_Input!F37="","",Data_Input!F37) -> -2.69 | D35: =IF(Data_Input!G37="","",Data_Input!G37) -> -2.31 | E35: 87.31 | F35: 0.37 | G35: 87.31 | J35: -0.368370059 | K35: 0.03469149264
A36: 34 | B36: =IF(Data_Input!E38="","",Data_Input!E38) -> -0.47 | C36: =IF(Data_Input!F38="","",Data_Input!F38) -> -0.4 | D36: =IF(Data_Input!G38="","",Data_Input!G38) -> -0.29 | E36: 89.6 | F36: 0.18 | G36: 89.6 | J36: -0.1799824543 | K36: 0.002513192461
A37: 35 | B37: =IF(Data_Input!E39="","",Data_Input!E39) -> -0.13 | C37: =IF(Data_Input!F39="","",Data_Input!F39) -> -0.28 | D37: =IF(Data_Input!G39="","",Data_Input!G39) -> 0.03 | E37: 89.72 | F37: 0.16 | G37: 89.72 | J37: -0.1599923578 | K37: 0.001563790112
A38: 36 | B38: =IF(Data_Input!E40="","",Data_Input!E40) -> -0.25 | C38: =IF(Data_Input!F40="","",Data_Input!F40) -> -0.32 | D38: =IF(Data_Input!G40="","",Data_Input!G40) -> -0.35 | E38: 89.68 | F38: -0.1 | G38: 89.68 | J38: 0.0999937615 | K38: -0.001116987493
A39: 37 | B39: =IF(Data_Input!E41="","",Data_Input!E41) -> -0.37 | C39: =IF(Data_Input!F41="","",Data_Input!F41) -> -0.43 | D39: =IF(Data_Input!G41="","",Data_Input!G41) -> -0.32 | E39: 89.57 | F39: 0.05 | G39: 89.57 | J39: -0.04999436773 | K39: 0.0007504633983
A40: 38 | B40: =IF(Data_Input!E42="","",Data_Input!E42) -> -0.46 | C40: =IF(Data_Input!F42="","",Data_Input!F42) -> -0.68 | D40: =IF(Data_Input!G42="","",Data_Input!G42) -> -0.35 | E40: 89.32 | F40: 0.11 | G40: 89.32 | J40: -0.1099690133 | K40: 0.002610767385
A41: 39 | B41: =IF(Data_Input!E43="","",Data_Input!E43) -> -0.11 | C41: =IF(Data_Input!F43="","",Data_Input!F43) -> -0.29 | D41: =IF(Data_Input!G43="","",Data_Input!G43) -> -0.11 | E41: 89.71 | F41: 0 | G41: 89.71 | J41: 0 | K41: 0
A42: 40 | B42: =IF(Data_Input!E44="","",Data_Input!E44) -> -0.19 | C42: =IF(Data_Input!F44="","",Data_Input!F44) -> -0.13 | D42: =IF(Data_Input!G44="","",Data_Input!G44) -> -0.15 | E42: 89.87 | F42: 0.04 | G42: 89.87 | J42: -0.03999958816 | K42: 0.0001815136192
A43: 41 | B43: =IF(Data_Input!E45="","",Data_Input!E45) -> -0.03 | C43: =IF(Data_Input!F45="","",Data_Input!F45) -> -0.06 | D43: =IF(Data_Input!G45="","",Data_Input!G45) -> -0.17 | E43: 89.94 | F43: -0.14 | G43: 89.94 | J43: 0.1399996929 | K43: -0.0002932151
A44: 42 | B44: =IF(Data_Input!E46="","",Data_Input!E46) -> -0.08 | C44: =IF(Data_Input!F46="","",Data_Input!F46) -> -0.26 | D44: =IF(Data_Input!G46="","",Data_Input!G46) -> -0.24 | E44: 89.74 | F44: -0.16 | G44: 89.74 | J44: 0.1599934106 | K44: -0.001452094003
A45: 43 | B45: =IF(Data_Input!E47="","",Data_Input!E47) -> -1.26 | C45: =IF(Data_Input!F47="","",Data_Input!F47) -> -1.35 | D45: =IF(Data_Input!G47="","",Data_Input!G47) -> -1.42 | E45: 88.65 | F45: -0.16 | G45: 88.65 | J45: 0.15982238 | K45: -0.007537032114
A46: 44 | B46: =IF(Data_Input!E48="","",Data_Input!E48) -> -0.35 | C46: =IF(Data_Input!F48="","",Data_Input!F48) -> -0.3 | D46: =IF(Data_Input!G48="","",Data_Input!G48) -> -0.32 | E46: 89.7 | F46: 0.03 | G46: 89.7 | J46: -0.02999835508 | K46: 0.0003141535235
A47: 45 | B47: =IF(Data_Input!E49="","",Data_Input!E49) -> -0.16 | C47: =IF(Data_Input!F49="","",Data_Input!F49) -> -0.11 | D47: =IF(Data_Input!G49="","",Data_Input!G49) -> -0.06 | E47: 89.89 | F47: 0.1 | G47: 89.89 | J47: -0.09999926283 | K47: 0.0003839714919
A48: 46 | B48: =IF(Data_Input!E50="","",Data_Input!E50) -> -2.75 | C48: =IF(Data_Input!F50="","",Data_Input!F50) -> -2.64 | D48: =IF(Data_Input!G50="","",Data_Input!G50) -> -2.47 | E48: 87.36 | F48: 0.28 | G48: 87.36 | J48: -0.2788119267 | K48: 0.02576644233
A49: 47 | B49: =IF(Data_Input!E51="","",Data_Input!E51) -> -0.42 | C49: =IF(Data_Input!F51="","",Data_Input!F51) -> -0.34 | D49: =IF(Data_Input!G51="","",Data_Input!G51) -> -0.43 | E49: 89.66 | F49: -0.01 | G49: 89.66 | J49: 0.009999295733 | K49: -0.000118679603
A50: 48 | B50: =IF(Data_Input!E52="","",Data_Input!E52) -> -0.48 | C50: =IF(Data_Input!F52="","",Data_Input!F52) -> -0.37 | D50: =IF(Data_Input!G52="","",Data_Input!G52) -> -0.32 | E50: 89.63 | F50: 0.16 | G50: 89.63 | J50: -0.1599866555 | K50: 0.002066412384
A51: 49 | B51: =IF(Data_Input!E53="","",Data_Input!E53) -> -0.18 | C51: =IF(Data_Input!F53="","",Data_Input!F53) -> 0.04 | D51: =IF(Data_Input!G53="","",Data_Input!G53) -> -0.21 | E51: 90.04 | F51: -0.03 | G51: 90.04 | J51: 0.02999997076 | K51: 4.188788844e-05
A52: 50 | B52: =IF(Data_Input!E54="","",Data_Input!E54) -> -0.3 | C52: =IF(Data_Input!F54="","",Data_Input!F54) -> -0.33 | D52: =IF(Data_Input!G54="","",Data_Input!G54) -> -0.06 | E52: 89.67 | F52: 0.24 | G52: 89.67 | J52: -0.2399840772 | K52: 0.002764540396
A53: 51 | B53: =IF(Data_Input!E55="","",Data_Input!E55) -> -0.8 | C53: =IF(Data_Input!F55="","",Data_Input!F55) -> -0.59 | D53: =IF(Data_Input!G55="","",Data_Input!G55) -> -0.95 | E53: 89.41 | F53: -0.15 | G53: 89.41 | J53: 0.1499681899 | K53: -0.003089014398
A54: 52 | B54: =IF(Data_Input!E56="","",Data_Input!E56) -> -0.21 | C54: =IF(Data_Input!F56="","",Data_Input!F56) -> -0.46 | D54: =IF(Data_Input!G56="","",Data_Input!G56) -> -0.23 | E54: 89.54 | F54: -0.02 | G54: 89.54 | J54: 0.01999742177 | K54: -0.0003211267827
A55: 53 | B55: =IF(Data_Input!E57="","",Data_Input!E57) -> -0.15 | C55: =IF(Data_Input!F57="","",Data_Input!F57) -> 0.27 | D55: =IF(Data_Input!G57="","",Data_Input!G57) -> -0.06 | E55: 90.27 | F55: 0.09 | G55: 90.27 | J55: -0.08999600284 | K55: -0.000848217459
A56: 54 | B56: =IF(Data_Input!E58="","",Data_Input!E58) -> -2.05 | C56: =IF(Data_Input!F58="","",Data_Input!F58) -> -2.11 | D56: =IF(Data_Input!G58="","",Data_Input!G58) -> -2.34 | E56: 87.89 | F56: -0.29 | G56: 87.89 | J56: 0.2892137669 | K56: -0.02134003311
A57: 55 | B57: =IF(Data_Input!E59="","",Data_Input!E59) -> -1.6 | C57: =IF(Data_Input!F59="","",Data_Input!F59) -> -1.5 | D57: =IF(Data_Input!G59="","",Data_Input!G59) -> -1.44 | E57: 88.5 | F57: 0.16 | G57: 88.5 | J57: -0.1597807256 | K57: 0.008373752999
A58: 56 | B58: =IF(Data_Input!E60="","",Data_Input!E60) -> -0.38 | C58: =IF(Data_Input!F60="","",Data_Input!F60) -> -0.6 | D58: =IF(Data_Input!G60="","",Data_Input!G60) -> -0.25 | E58: 89.4 | F58: 0.13 | G58: 89.4 | J58: -0.1299714889 | K58: 0.002722514585
A59: 57 | B59: =IF(Data_Input!E61="","",Data_Input!E61) -> -1.35 | C59: =IF(Data_Input!F61="","",Data_Input!F61) -> -1.28 | D59: =IF(Data_Input!G61="","",Data_Input!G61) -> -1.28 | E59: 88.72 | F59: 0.07 | G59: 88.72 | J59: -0.0699301397 | K59: 0.003126589488
A60: 58 | B60: =IF(Data_Input!E62="","",Data_Input!E62) -> -0.51 | C60: =IF(Data_Input!F62="","",Data_Input!F62) -> -0.45 | D60: =IF(Data_Input!G62="","",Data_Input!G62) -> -0.47 | E60: 89.55 | F60: 0.04 | G60: 89.55 | J60: -0.0399950653 | K60: 0.0006282926925
A61: 59 | B61: =IF(Data_Input!E63="","",Data_Input!E63) -> -0.4 | C61: =IF(Data_Input!F63="","",Data_Input!F63) -> -0.17 | D61: =IF(Data_Input!G63="","",Data_Input!G63) -> -0.55 | E61: 89.83 | F61: -0.15 | G61: 89.83 | J61: 0.149997359 | K61: -0.0008901126945
A62: 60 | B62: =IF(Data_Input!E64="","",Data_Input!E64) -> -0.46 | C62: =IF(Data_Input!F64="","",Data_Input!F64) -> -0.71 | D62: =IF(Data_Input!G64="","",Data_Input!G64) -> -0.49 | E62: 89.29 | F62: -0.03 | G62: 89.29 | J62: 0.02999078701 | K62: -0.0007434341492
A63: 61 | B63: =IF(Data_Input!E65="","",Data_Input!E65) -> -2.67 | C63: =IF(Data_Input!F65="","",Data_Input!F65) -> -2.59 | D63: =IF(Data_Input!G65="","",Data_Input!G65) -> -2.49 | E63: 87.41 | F63: 0.18 | G63: 87.41 | J63: -0.1792648754 | K63: 0.01625129018
A64: 62 | B64: =IF(Data_Input!E66="","",Data_Input!E66) -> -0.41 | C64: =IF(Data_Input!F66="","",Data_Input!F66) -> -0.64 | D64: =IF(Data_Input!G66="","",Data_Input!G66) -> -0.41 | E64: 89.36 | F64: 0 | G64: 89.36 | J64: 0 | K64: 0
A65: 63 | B65: =IF(Data_Input!E67="","",Data_Input!E67) -> -0.09 | C65: =IF(Data_Input!F67="","",Data_Input!F67) -> -0.12 | D65: =IF(Data_Input!G67="","",Data_Input!G67) -> -0.03 | E65: 89.88 | F65: 0.06 | G65: 89.88 | J65: -0.05999947362 | K65: 0.0002513266773
A66: 64 | B66: =IF(Data_Input!E68="","",Data_Input!E68) -> -2.05 | C66: =IF(Data_Input!F68="","",Data_Input!F68) -> -2.11 | D66: =IF(Data_Input!G68="","",Data_Input!G68) -> -2.34 | E66: 87.89 | F66: -0.29 | G66: 87.89 | J66: 0.2892137669 | K66: -0.02134003311
A67: 65 | B67: =IF(Data_Input!E69="","",Data_Input!E69) -> -0.68 | C67: =IF(Data_Input!F69="","",Data_Input!F69) -> -0.46 | D67: =IF(Data_Input!G69="","",Data_Input!G69) -> -0.91 | E67: =IF(D67="","",IF(C67>90,C67-90,C67+90)) -> 89.54 | F67: -0.23 | G67: 89.54 | J67: 0.2299703504 | K67: -0.003692958001
A68: 66 | B68: =IF(Data_Input!E70="","",Data_Input!E70) -> -2.37 | C68: =IF(Data_Input!F70="","",Data_Input!F70) -> -2.22 | D68: =IF(Data_Input!G70="","",Data_Input!G70) -> -2.56 | E68: 87.78 | F68: -0.19 | G68: =IF(E68="","",E68) -> 87.78 | J68: =IF(F68="","",F68*COS(2*RADIANS(G68))) -> 0.1894298004 | K68: =IF(F68="","",F68*SIN(2*RADIANS(G68))) -> -0.01470886587
A69: 67 | B69: =IF(Data_Input!E71="","",Data_Input!E71) -> -0.55 | C69: =IF(Data_Input!F71="","",Data_Input!F71) -> -0.54 | D69: =IF(Data_Input!G71="","",Data_Input!G71) -> -0.44 | E69: 89.46 | F69: 0.11 | G69: 89.46 | J69: -0.1099804588 | K69: 0.002073328369
A70: 68 | B70: =IF(Data_Input!E72="","",Data_Input!E72) -> -0.3 | C70: =IF(Data_Input!F72="","",Data_Input!F72) -> -0.21 | D70: =IF(Data_Input!G72="","",Data_Input!G72) -> -0.09 | E70: 89.79 | F70: =IF(B70="","",D70-B70) -> 0.21 | G70: 89.79 | J70: -0.2099943579 | K70: 0.001539366614
A71: 69 | B71: =IF(Data_Input!E73="","",Data_Input!E73) -> -0.31 | C71: =IF(Data_Input!F73="","",Data_Input!F73) -> -0.26 | D71: =IF(Data_Input!G73="","",Data_Input!G73) -> -0.5 | E71: 89.74 | F71: -0.19 | G71: 89.74 | J71: 0.189992175 | K71: -0.001724361629
A72: 70 | B72: =IF(Data_Input!E74="","",Data_Input!E74) -> -1.67 | C72: =IF(Data_Input!F74="","",Data_Input!F74) -> -1.1 | D72: =IF(Data_Input!G74="","",Data_Input!G74) -> -1.24 | E72: 88.9 | F72: 0.43 | G72: 88.9 | J72: -0.4296830541 | K72: 0.01650675791
A73: 71 | B73: =IF(Data_Input!E75="","",Data_Input!E75) -> -0.28 | C73: =IF(Data_Input!F75="","",Data_Input!F75) -> -0.27 | D73: =IF(Data_Input!G75="","",Data_Input!G75) -> -0.9 | E73: 89.73 | F73: -0.62 | G73: 89.73 | J73: 0.619972464 | K73: -0.005843275829
A74: 72 | B74: =IF(Data_Input!E76="","",Data_Input!E76) -> -1.08 | C74: =IF(Data_Input!F76="","",Data_Input!F76) -> -1.01 | D74: =IF(Data_Input!G76="","",Data_Input!G76) -> -1.22 | E74: 88.99 | F74: -0.14 | G74: 88.99 | J74: 0.1399130017 | K74: -0.004934768689
A75: 73 | B75: =IF(Data_Input!E77="","",Data_Input!E77) -> -1.71 | C75: =IF(Data_Input!F77="","",Data_Input!F77) -> -1.55 | D75: =IF(Data_Input!G77="","",Data_Input!G77) -> -1.95 | E75: 88.45 | F75: -0.24 | G75: 88.45 | J75: 0.2396488009 | K75: -0.01297891512
A76: 74 | B76: =IF(Data_Input!E78="","",Data_Input!E78) -> -0.1 | C76: =IF(Data_Input!F78="","",Data_Input!F78) -> 0.16 | D76: =IF(Data_Input!G78="","",Data_Input!G78) -> -0.48 | E76: 90.16 | F76: -0.38 | G76: 90.16 | J76: 0.3799940734 | K76: 0.002122309337
A77: 75 | B77: =IF(Data_Input!E79="","",Data_Input!E79) -> -0.44 | C77: =IF(Data_Input!F79="","",Data_Input!F79) -> -0.39 | D77: =IF(Data_Input!G79="","",Data_Input!G79) -> -0.28 | E77: 89.61 | F77: 0.16 | G77: 89.61 | J77: -0.1599851739 | K77: 0.002178103627
A78: 76 | B78: =IF(Data_Input!E80="","",Data_Input!E80) -> -0.43 | C78: =IF(Data_Input!F80="","",Data_Input!F80) -> -0.17 | D78: =IF(Data_Input!G80="","",Data_Input!G80) -> -0.39 | E78: 89.83 | F78: 0.04 | G78: 89.83 | J78: -0.03999929573 | K78: 0.0002373633852
A79: 77 | B79: =IF(Data_Input!E81="","",Data_Input!E81) -> -0.5 | C79: =IF(Data_Input!F81="","",Data_Input!F81) -> -0.56 | D79: =IF(Data_Input!G81="","",Data_Input!G81) -> -0.38 | E79: 89.44 | F79: 0.12 | G79: 89.44 | J79: -0.119977074 | K79: 0.002345573129
A80: 78 | B80: =IF(Data_Input!E82="","",Data_Input!E82) -> -0.14 | C80: =IF(Data_Input!F82="","",Data_Input!F82) -> -0.01 | D80: =IF(Data_Input!G82="","",Data_Input!G82) -> 0.13 | E80: =IF(D80="","",IF(C80>90,C80-90,C80+90)) -> 89.99 | F80: =IF(B80="","",D80-B80) -> 0.27 | G80: =IF(E80="","",E80) -> 89.99 | J80: =IF(F80="","",F80*COS(2*RADIANS(G80))) -> -0.2699999836 | K80: =IF(F80="","",F80*SIN(2*RADIANS(G80))) -> 9.424777769e-05
A81: 79 | B81: =IF(Data_Input!E83="","",Data_Input!E83) -> -0.27 | C81: =IF(Data_Input!F83="","",Data_Input!F83) -> -0.43 | D81: =IF(Data_Input!G83="","",Data_Input!G83) -> -0.16 | E81: 89.57 | F81: 0.11 | G81: 89.57 | J81: -0.109987609 | K81: 0.001651019476
A82: 80 | B82: =IF(Data_Input!E84="","",Data_Input!E84) -> -0.41 | C82: =IF(Data_Input!F84="","",Data_Input!F84) -> -0.3 | D82: =IF(Data_Input!G84="","",Data_Input!G84) -> -0.27 | E82: 89.7 | F82: 0.14 | G82: 89.7 | J82: -0.1399923237 | K82: 0.001466049776
A83: 81 | B83: =IF(Data_Input!E85="","",Data_Input!E85) -> -0.37 | C83: =IF(Data_Input!F85="","",Data_Input!F85) -> -0.33 | D83: =IF(Data_Input!G85="","",Data_Input!G85) -> -0.58 | E83: 89.67 | F83: -0.21 | G83: 89.67 | J83: 0.2099860676 | K83: -0.002418972846
A84: 82 | B84: =IF(Data_Input!E86="","",Data_Input!E86) -> -0.38 | C84: =IF(Data_Input!F86="","",Data_Input!F86) -> -0.14 | D84: =IF(Data_Input!G86="","",Data_Input!G86) -> -0.23 | E84: 89.86 | F84: 0.15 | G84: 89.86 | J84: -0.1499982089 | K84: 0.0007330353681
A85: 83 | B85: =IF(Data_Input!E87="","",Data_Input!E87) -> -2.13 | C85: =IF(Data_Input!F87="","",Data_Input!F87) -> -2.18 | D85: =IF(Data_Input!G87="","",Data_Input!G87) -> -2.85 | E85: 87.82 | F85: -0.72 | G85: 87.82 | J85: 0.7179163698 | K85: -0.05473651345
A86: 84 | B86: =IF(Data_Input!E88="","",Data_Input!E88) -> -0.25 | C86: =IF(Data_Input!F88="","",Data_Input!F88) -> 0.03 | D86: =IF(Data_Input!G88="","",Data_Input!G88) -> -0.11 | E86: 90.03 | F86: 0.14 | G86: 90.03 | J86: -0.1399999232 | K86: -0.0001466076304
A87: 85 | B87: =IF(Data_Input!E89="","",Data_Input!E89) -> -0.35 | C87: =IF(Data_Input!F89="","",Data_Input!F89) -> -0.25 | D87: =IF(Data_Input!G89="","",Data_Input!G89) -> -0.19 | E87: 89.75 | F87: 0.16 | G87: 89.75 | J87: -0.1599939077 | K87: 0.00139624568
A88: 86 | B88: =IF(Data_Input!E90="","",Data_Input!E90) ->  | C88: =IF(Data_Input!F90="","",Data_Input!F90) ->  | D88: =IF(Data_Input!G90="","",Data_Input!G90) -> 
A89: 87 | B89: =IF(Data_Input!E91="","",Data_Input!E91) ->  | C89: =IF(Data_Input!F91="","",Data_Input!F91) ->  | D89: =IF(Data_Input!G91="","",Data_Input!G91) -> 
A90: 88 | B90: =IF(Data_Input!E92="","",Data_Input!E92) ->  | C90: =IF(Data_Input!F92="","",Data_Input!F92) ->  | D90: =IF(Data_Input!G92="","",Data_Input!G92) -> 
A91: 89 | B91: =IF(Data_Input!E93="","",Data_Input!E93) ->  | C91: =IF(Data_Input!F93="","",Data_Input!F93) ->  | D91: =IF(Data_Input!G93="","",Data_Input!G93) -> 
A92: 90 | B92: =IF(Data_Input!E94="","",Data_Input!E94) ->  | C92: =IF(Data_Input!F94="","",Data_Input!F94) ->  | D92: =IF(Data_Input!G94="","",Data_Input!G94) -> 
A93: 91 | B93: =IF(Data_Input!E95="","",Data_Input!E95) ->  | C93: =IF(Data_Input!F95="","",Data_Input!F95) ->  | D93: =IF(Data_Input!G95="","",Data_Input!G95) -> 
A94: 92 | B94: =IF(Data_Input!E96="","",Data_Input!E96) ->  | C94: =IF(Data_Input!F96="","",Data_Input!F96) ->  | D94: =IF(Data_Input!G96="","",Data_Input!G96) -> 
A95: 93 | B95: =IF(Data_Input!E97="","",Data_Input!E97) ->  | C95: =IF(Data_Input!F97="","",Data_Input!F97) ->  | D95: =IF(Data_Input!G97="","",Data_Input!G97) -> 
A96: 94 | B96: =IF(Data_Input!E98="","",Data_Input!E98) ->  | C96: =IF(Data_Input!F98="","",Data_Input!F98) ->  | D96: =IF(Data_Input!G98="","",Data_Input!G98) -> 
A97: 95 | B97: =IF(Data_Input!E99="","",Data_Input!E99) ->  | C97: =IF(Data_Input!F99="","",Data_Input!F99) ->  | D97: =IF(Data_Input!G99="","",Data_Input!G99) -> 
A98: 96 | B98: =IF(Data_Input!E100="","",Data_Input!E100) ->  | C98: =IF(Data_Input!F100="","",Data_Input!F100) ->  | D98: =IF(Data_Input!G100="","",Data_Input!G100) -> 
A99: 97 | B99: =IF(Data_Input!E101="","",Data_Input!E101) ->  | C99: =IF(Data_Input!F101="","",Data_Input!F101) ->  | D99: =IF(Data_Input!G101="","",Data_Input!G101) -> 
A100: 98 | B100: =IF(Data_Input!E102="","",Data_Input!E102) ->  | C100: =IF(Data_Input!F102="","",Data_Input!F102) ->  | D100: =IF(Data_Input!G102="","",Data_Input!G102) -> 
A101: 99 | B101: =IF(Data_Input!E103="","",Data_Input!E103) ->  | C101: =IF(Data_Input!F103="","",Data_Input!F103) ->  | D101: =IF(Data_Input!G103="","",Data_Input!G103) -> 
A102: 100 | B102: =IF(Data_Input!E104="","",Data_Input!E104) ->  | C102: =IF(Data_Input!F104="","",Data_Input!F104) ->  | D102: =IF(Data_Input!G104="","",Data_Input!G104) -> 
A103: 101 | B103: =IF(Data_Input!E105="","",Data_Input!E105) ->  | C103: =IF(Data_Input!F105="","",Data_Input!F105) ->  | D103: =IF(Data_Input!G105="","",Data_Input!G105) -> 
A104: 102 | B104: =IF(Data_Input!E106="","",Data_Input!E106) ->  | C104: =IF(Data_Input!F106="","",Data_Input!F106) ->  | D104: =IF(Data_Input!G106="","",Data_Input!G106) -> 
A105: 103 | B105: =IF(Data_Input!E107="","",Data_Input!E107) ->  | C105: =IF(Data_Input!F107="","",Data_Input!F107) ->  | D105: =IF(Data_Input!G107="","",Data_Input!G107) -> 
A106: 104 | B106: =IF(Data_Input!E108="","",Data_Input!E108) ->  | C106: =IF(Data_Input!F108="","",Data_Input!F108) ->  | D106: =IF(Data_Input!G108="","",Data_Input!G108) -> 
A107: 105 | B107: =IF(Data_Input!E109="","",Data_Input!E109) ->  | C107: =IF(Data_Input!F109="","",Data_Input!F109) ->  | D107: =IF(Data_Input!G109="","",Data_Input!G109) -> 
A108: 106 | B108: =IF(Data_Input!E110="","",Data_Input!E110) ->  | C108: =IF(Data_Input!F110="","",Data_Input!F110) ->  | D108: =IF(Data_Input!G110="","",Data_Input!G110) -> 
A109: 107 | B109: =IF(Data_Input!E111="","",Data_Input!E111) ->  | C109: =IF(Data_Input!F111="","",Data_Input!F111) ->  | D109: =IF(Data_Input!G111="","",Data_Input!G111) -> 
A110: 108 | B110: =IF(Data_Input!E112="","",Data_Input!E112) ->  | C110: =IF(Data_Input!F112="","",Data_Input!F112) ->  | D110: =IF(Data_Input!G112="","",Data_Input!G112) -> 
A111: 109 | B111: =IF(Data_Input!E113="","",Data_Input!E113) ->  | C111: =IF(Data_Input!F113="","",Data_Input!F113) ->  | D111: =IF(Data_Input!G113="","",Data_Input!G113) -> 
A112: 110 | B112: =IF(Data_Input!E114="","",Data_Input!E114) ->  | C112: =IF(Data_Input!F114="","",Data_Input!F114) ->  | D112: =IF(Data_Input!G114="","",Data_Input!G114) -> 
A113: 111 | B113: =IF(Data_Input!E115="","",Data_Input!E115) ->  | C113: =IF(Data_Input!F115="","",Data_Input!F115) ->  | D113: =IF(Data_Input!G115="","",Data_Input!G115) -> 
A114: 112 | B114: =IF(Data_Input!E116="","",Data_Input!E116) ->  | C114: =IF(Data_Input!F116="","",Data_Input!F116) ->  | D114: =IF(Data_Input!G116="","",Data_Input!G116) -> 
A115: 113 | B115: =IF(Data_Input!E117="","",Data_Input!E117) ->  | C115: =IF(Data_Input!F117="","",Data_Input!F117) ->  | D115: =IF(Data_Input!G117="","",Data_Input!G117) -> 
A116: 114 | B116: =IF(Data_Input!E118="","",Data_Input!E118) ->  | C116: =IF(Data_Input!F118="","",Data_Input!F118) ->  | D116: =IF(Data_Input!G118="","",Data_Input!G118) -> 
A117: 115 | B117: =IF(Data_Input!E119="","",Data_Input!E119) ->  | C117: =IF(Data_Input!F119="","",Data_Input!F119) ->  | D117: =IF(Data_Input!G119="","",Data_Input!G119) -> 
A118: 116 | B118: =IF(Data_Input!E120="","",Data_Input!E120) ->  | C118: =IF(Data_Input!F120="","",Data_Input!F120) ->  | D118: =IF(Data_Input!G120="","",Data_Input!G120) -> 
A119: 117 | B119: =IF(Data_Input!E121="","",Data_Input!E121) ->  | C119: =IF(Data_Input!F121="","",Data_Input!F121) ->  | D119: =IF(Data_Input!G121="","",Data_Input!G121) -> 
A120: 118 | B120: =IF(Data_Input!E122="","",Data_Input!E122) ->  | C120: =IF(Data_Input!F122="","",Data_Input!F122) ->  | D120: =IF(Data_Input!G122="","",Data_Input!G122) -> 
A121: 119 | B121: =IF(Data_Input!E123="","",Data_Input!E123) ->  | C121: =IF(Data_Input!F123="","",Data_Input!F123) ->  | D121: =IF(Data_Input!G123="","",Data_Input!G123) -> 
A122: 120 | B122: =IF(Data_Input!E124="","",Data_Input!E124) ->  | C122: =IF(Data_Input!F124="","",Data_Input!F124) ->  | D122: =IF(Data_Input!G124="","",Data_Input!G124) -> 
A123: 121 | B123: =IF(Data_Input!E125="","",Data_Input!E125) ->  | C123: =IF(Data_Input!F125="","",Data_Input!F125) ->  | D123: =IF(Data_Input!G125="","",Data_Input!G125) -> 
A124: 122 | B124: =IF(Data_Input!E126="","",Data_Input!E126) ->  | C124: =IF(Data_Input!F126="","",Data_Input!F126) ->  | D124: =IF(Data_Input!G126="","",Data_Input!G126) -> 
A125: 123 | B125: =IF(Data_Input!E127="","",Data_Input!E127) ->  | C125: =IF(Data_Input!F127="","",Data_Input!F127) ->  | D125: =IF(Data_Input!G127="","",Data_Input!G127) -> 
A126: 124 | B126: =IF(Data_Input!E128="","",Data_Input!E128) ->  | C126: =IF(Data_Input!F128="","",Data_Input!F128) ->  | D126: =IF(Data_Input!G128="","",Data_Input!G128) -> 
A127: 125 | B127: =IF(Data_Input!E129="","",Data_Input!E129) ->  | C127: =IF(Data_Input!F129="","",Data_Input!F129) ->  | D127: =IF(Data_Input!G129="","",Data_Input!G129) -> 
A128: 126 | B128: =IF(Data_Input!E130="","",Data_Input!E130) ->  | C128: =IF(Data_Input!F130="","",Data_Input!F130) ->  | D128: =IF(Data_Input!G130="","",Data_Input!G130) -> 
A129: 127 | B129: =IF(Data_Input!E131="","",Data_Input!E131) ->  | C129: =IF(Data_Input!F131="","",Data_Input!F131) ->  | D129: =IF(Data_Input!G131="","",Data_Input!G131) -> 
A130: 128 | B130: =IF(Data_Input!E132="","",Data_Input!E132) ->  | C130: =IF(Data_Input!F132="","",Data_Input!F132) ->  | D130: =IF(Data_Input!G132="","",Data_Input!G132) -> 
A131: 129 | B131: =IF(Data_Input!E133="","",Data_Input!E133) ->  | C131: =IF(Data_Input!F133="","",Data_Input!F133) ->  | D131: =IF(Data_Input!G133="","",Data_Input!G133) -> 
A132: 130 | B132: =IF(Data_Input!E134="","",Data_Input!E134) ->  | C132: =IF(Data_Input!F134="","",Data_Input!F134) ->  | D132: =IF(Data_Input!G134="","",Data_Input!G134) -> 
A133: 131 | B133: =IF(Data_Input!E135="","",Data_Input!E135) ->  | C133: =IF(Data_Input!F135="","",Data_Input!F135) ->  | D133: =IF(Data_Input!G135="","",Data_Input!G135) -> 
A134: 132 | B134: =IF(Data_Input!E136="","",Data_Input!E136) ->  | C134: =IF(Data_Input!F136="","",Data_Input!F136) ->  | D134: =IF(Data_Input!G136="","",Data_Input!G136) -> 
A135: 133 | B135: =IF(Data_Input!E137="","",Data_Input!E137) ->  | C135: =IF(Data_Input!F137="","",Data_Input!F137) ->  | D135: =IF(Data_Input!G137="","",Data_Input!G137) -> 
A136: 134 | B136: =IF(Data_Input!E138="","",Data_Input!E138) ->  | C136: =IF(Data_Input!F138="","",Data_Input!F138) ->  | D136: =IF(Data_Input!G138="","",Data_Input!G138) -> 
A137: 135 | B137: =IF(Data_Input!E139="","",Data_Input!E139) ->  | C137: =IF(Data_Input!F139="","",Data_Input!F139) ->  | D137: =IF(Data_Input!G139="","",Data_Input!G139) -> 
A138: 136 | B138: =IF(Data_Input!E140="","",Data_Input!E140) ->  | C138: =IF(Data_Input!F140="","",Data_Input!F140) ->  | D138: =IF(Data_Input!G140="","",Data_Input!G140) -> 
A139: 137 | B139: =IF(Data_Input!E141="","",Data_Input!E141) ->  | C139: =IF(Data_Input!F141="","",Data_Input!F141) ->  | D139: =IF(Data_Input!G141="","",Data_Input!G141) -> 
A140: 138 | B140: =IF(Data_Input!E142="","",Data_Input!E142) ->  | C140: =IF(Data_Input!F142="","",Data_Input!F142) ->  | D140: =IF(Data_Input!G142="","",Data_Input!G142) -> 
A141: 139 | B141: =IF(Data_Input!E143="","",Data_Input!E143) ->  | C141: =IF(Data_Input!F143="","",Data_Input!F143) ->  | D141: =IF(Data_Input!G143="","",Data_Input!G143) -> 
A142: 140 | B142: =IF(Data_Input!E144="","",Data_Input!E144) ->  | C142: =IF(Data_Input!F144="","",Data_Input!F144) ->  | D142: =IF(Data_Input!G144="","",Data_Input!G144) -> 
A143: 141 | B143: =IF(Data_Input!E145="","",Data_Input!E145) ->  | C143: =IF(Data_Input!F145="","",Data_Input!F145) ->  | D143: =IF(Data_Input!G145="","",Data_Input!G145) -> 
A144: 142 | B144: =IF(Data_Input!E146="","",Data_Input!E146) ->  | C144: =IF(Data_Input!F146="","",Data_Input!F146) ->  | D144: =IF(Data_Input!G146="","",Data_Input!G146) ->  | E144: =IF(D144="","",IF(C144>90,C144-90,C144+90)) ->  | F144: =IF(B144="","",D144-B144) ->  | G144: =IF(E144="","",E144) ->  | J144: =IF(F144="","",F144*COS(2*RADIANS(G144))) ->  | K144: =IF(F144="","",F144*SIN(2*RADIANS(G144))) -> 
A145: 143 | B145: =IF(Data_Input!E147="","",Data_Input!E147) ->  | C145: =IF(Data_Input!F147="","",Data_Input!F147) ->  | D145: =IF(Data_Input!G147="","",Data_Input!G147) -> 
A146: 144 | B146: =IF(Data_Input!E148="","",Data_Input!E148) ->  | C146: =IF(Data_Input!F148="","",Data_Input!F148) ->  | D146: =IF(Data_Input!G148="","",Data_Input!G148) -> 
A147: 145 | B147: =IF(Data_Input!E149="","",Data_Input!E149) ->  | C147: =IF(Data_Input!F149="","",Data_Input!F149) ->  | D147: =IF(Data_Input!G149="","",Data_Input!G149) -> 
A148: 146 | B148: =IF(Data_Input!E150="","",Data_Input!E150) ->  | C148: =IF(Data_Input!F150="","",Data_Input!F150) ->  | D148: =IF(Data_Input!G150="","",Data_Input!G150) -> 
A149: 147 | B149: =IF(Data_Input!E151="","",Data_Input!E151) ->  | C149: =IF(Data_Input!F151="","",Data_Input!F151) ->  | D149: =IF(Data_Input!G151="","",Data_Input!G151) -> 
A150: 148 | B150: =IF(Data_Input!E152="","",Data_Input!E152) ->  | C150: =IF(Data_Input!F152="","",Data_Input!F152) ->  | D150: =IF(Data_Input!G152="","",Data_Input!G152) -> 
A151: 149 | B151: =IF(Data_Input!E153="","",Data_Input!E153) ->  | C151: =IF(Data_Input!F153="","",Data_Input!F153) ->  | D151: =IF(Data_Input!G153="","",Data_Input!G153) -> 
A152: 150 | B152: =IF(Data_Input!E154="","",Data_Input!E154) ->  | C152: =IF(Data_Input!F154="","",Data_Input!F154) ->  | D152: =IF(Data_Input!G154="","",Data_Input!G154) -> 
A153: 151 | B153: =IF(Data_Input!E155="","",Data_Input!E155) ->  | C153: =IF(Data_Input!F155="","",Data_Input!F155) ->  | D153: =IF(Data_Input!G155="","",Data_Input!G155) -> 
A154: 152 | B154: =IF(Data_Input!E156="","",Data_Input!E156) ->  | C154: =IF(Data_Input!F156="","",Data_Input!F156) ->  | D154: =IF(Data_Input!G156="","",Data_Input!G156) -> 
A155: 153 | B155: =IF(Data_Input!E157="","",Data_Input!E157) ->  | C155: =IF(Data_Input!F157="","",Data_Input!F157) ->  | D155: =IF(Data_Input!G157="","",Data_Input!G157) -> 
A156: 154 | B156: =IF(Data_Input!E158="","",Data_Input!E158) ->  | C156: =IF(Data_Input!F158="","",Data_Input!F158) ->  | D156: =IF(Data_Input!G158="","",Data_Input!G158) -> 
A157: 155 | B157: =IF(Data_Input!E159="","",Data_Input!E159) ->  | C157: =IF(Data_Input!F159="","",Data_Input!F159) ->  | D157: =IF(Data_Input!G159="","",Data_Input!G159) -> 
A158: 156 | B158: =IF(Data_Input!E160="","",Data_Input!E160) ->  | C158: =IF(Data_Input!F160="","",Data_Input!F160) ->  | D158: =IF(Data_Input!G160="","",Data_Input!G160) -> 
A159: 157 | B159: =IF(Data_Input!E161="","",Data_Input!E161) ->  | C159: =IF(Data_Input!F161="","",Data_Input!F161) ->  | D159: =IF(Data_Input!G161="","",Data_Input!G161) -> 
A160: 158 | B160: =IF(Data_Input!E162="","",Data_Input!E162) ->  | C160: =IF(Data_Input!F162="","",Data_Input!F162) ->  | D160: =IF(Data_Input!G162="","",Data_Input!G162) -> 
A161: 159 | B161: =IF(Data_Input!E163="","",Data_Input!E163) ->  | C161: =IF(Data_Input!F163="","",Data_Input!F163) ->  | D161: =IF(Data_Input!G163="","",Data_Input!G163) -> 
A162: 160 | B162: =IF(Data_Input!E164="","",Data_Input!E164) ->  | C162: =IF(Data_Input!F164="","",Data_Input!F164) ->  | D162: =IF(Data_Input!G164="","",Data_Input!G164) -> 
A163: 161 | B163: =IF(Data_Input!E165="","",Data_Input!E165) ->  | C163: =IF(Data_Input!F165="","",Data_Input!F165) ->  | D163: =IF(Data_Input!G165="","",Data_Input!G165) -> 
A164: 162 | B164: =IF(Data_Input!E166="","",Data_Input!E166) ->  | C164: =IF(Data_Input!F166="","",Data_Input!F166) ->  | D164: =IF(Data_Input!G166="","",Data_Input!G166) -> 
A165: 163 | B165: =IF(Data_Input!E167="","",Data_Input!E167) ->  | C165: =IF(Data_Input!F167="","",Data_Input!F167) ->  | D165: =IF(Data_Input!G167="","",Data_Input!G167) -> 
A166: 164 | B166: =IF(Data_Input!E168="","",Data_Input!E168) ->  | C166: =IF(Data_Input!F168="","",Data_Input!F168) ->  | D166: =IF(Data_Input!G168="","",Data_Input!G168) -> 
A167: 165 | B167: =IF(Data_Input!E169="","",Data_Input!E169) ->  | C167: =IF(Data_Input!F169="","",Data_Input!F169) ->  | D167: =IF(Data_Input!G169="","",Data_Input!G169) -> 
A168: 166 | B168: =IF(Data_Input!E170="","",Data_Input!E170) ->  | C168: =IF(Data_Input!F170="","",Data_Input!F170) ->  | D168: =IF(Data_Input!G170="","",Data_Input!G170) -> 
A169: 167 | B169: =IF(Data_Input!E171="","",Data_Input!E171) ->  | C169: =IF(Data_Input!F171="","",Data_Input!F171) ->  | D169: =IF(Data_Input!G171="","",Data_Input!G171) -> 
A170: 168 | B170: =IF(Data_Input!E172="","",Data_Input!E172) ->  | C170: =IF(Data_Input!F172="","",Data_Input!F172) ->  | D170: =IF(Data_Input!G172="","",Data_Input!G172) -> 
A171: 169 | B171: =IF(Data_Input!E173="","",Data_Input!E173) ->  | C171: =IF(Data_Input!F173="","",Data_Input!F173) ->  | D171: =IF(Data_Input!G173="","",Data_Input!G173) -> 
A172: 170 | B172: =IF(Data_Input!E174="","",Data_Input!E174) ->  | C172: =IF(Data_Input!F174="","",Data_Input!F174) ->  | D172: =IF(Data_Input!G174="","",Data_Input!G174) -> 
A173: 171 | B173: =IF(Data_Input!E175="","",Data_Input!E175) ->  | C173: =IF(Data_Input!F175="","",Data_Input!F175) ->  | D173: =IF(Data_Input!G175="","",Data_Input!G175) -> 
A174: 172 | B174: =IF(Data_Input!E176="","",Data_Input!E176) ->  | C174: =IF(Data_Input!F176="","",Data_Input!F176) ->  | D174: =IF(Data_Input!G176="","",Data_Input!G176) -> 
A175: 173 | B175: =IF(Data_Input!E177="","",Data_Input!E177) ->  | C175: =IF(Data_Input!F177="","",Data_Input!F177) ->  | D175: =IF(Data_Input!G177="","",Data_Input!G177) -> 
A176: 174 | B176: =IF(Data_Input!E178="","",Data_Input!E178) ->  | C176: =IF(Data_Input!F178="","",Data_Input!F178) ->  | D176: =IF(Data_Input!G178="","",Data_Input!G178) -> 
A177: 175 | B177: =IF(Data_Input!E179="","",Data_Input!E179) ->  | C177: =IF(Data_Input!F179="","",Data_Input!F179) ->  | D177: =IF(Data_Input!G179="","",Data_Input!G179) -> 
A178: 176 | B178: =IF(Data_Input!E180="","",Data_Input!E180) ->  | C178: =IF(Data_Input!F180="","",Data_Input!F180) ->  | D178: =IF(Data_Input!G180="","",Data_Input!G180) -> 
A179: 177 | B179: =IF(Data_Input!E181="","",Data_Input!E181) ->  | C179: =IF(Data_Input!F181="","",Data_Input!F181) ->  | D179: =IF(Data_Input!G181="","",Data_Input!G181) -> 
A180: 178 | B180: =IF(Data_Input!E182="","",Data_Input!E182) ->  | C180: =IF(Data_Input!F182="","",Data_Input!F182) ->  | D180: =IF(Data_Input!G182="","",Data_Input!G182) -> 
A181: 179 | B181: =IF(Data_Input!E183="","",Data_Input!E183) ->  | C181: =IF(Data_Input!F183="","",Data_Input!F183) ->  | D181: =IF(Data_Input!G183="","",Data_Input!G183) -> 
A182: 180 | B182: =IF(Data_Input!E184="","",Data_Input!E184) ->  | C182: =IF(Data_Input!F184="","",Data_Input!F184) ->  | D182: =IF(Data_Input!G184="","",Data_Input!G184) -> 
A183: 181 | B183: =IF(Data_Input!E185="","",Data_Input!E185) ->  | C183: =IF(Data_Input!F185="","",Data_Input!F185) ->  | D183: =IF(Data_Input!G185="","",Data_Input!G185) -> 
A184: 182 | B184: =IF(Data_Input!E186="","",Data_Input!E186) ->  | C184: =IF(Data_Input!F186="","",Data_Input!F186) ->  | D184: =IF(Data_Input!G186="","",Data_Input!G186) -> 
A185: 183 | B185: =IF(Data_Input!E187="","",Data_Input!E187) ->  | C185: =IF(Data_Input!F187="","",Data_Input!F187) ->  | D185: =IF(Data_Input!G187="","",Data_Input!G187) -> 
A186: 184 | B186: =IF(Data_Input!E188="","",Data_Input!E188) ->  | C186: =IF(Data_Input!F188="","",Data_Input!F188) ->  | D186: =IF(Data_Input!G188="","",Data_Input!G188) -> 
A187: 185 | B187: =IF(Data_Input!E189="","",Data_Input!E189) ->  | C187: =IF(Data_Input!F189="","",Data_Input!F189) ->  | D187: =IF(Data_Input!G189="","",Data_Input!G189) -> 
A188: 186 | B188: =IF(Data_Input!E190="","",Data_Input!E190) ->  | C188: =IF(Data_Input!F190="","",Data_Input!F190) ->  | D188: =IF(Data_Input!G190="","",Data_Input!G190) -> 
A189: 187 | B189: =IF(Data_Input!E191="","",Data_Input!E191) ->  | C189: =IF(Data_Input!F191="","",Data_Input!F191) ->  | D189: =IF(Data_Input!G191="","",Data_Input!G191) -> 
A190: 188 | B190: =IF(Data_Input!E192="","",Data_Input!E192) ->  | C190: =IF(Data_Input!F192="","",Data_Input!F192) ->  | D190: =IF(Data_Input!G192="","",Data_Input!G192) -> 
A191: 189 | B191: =IF(Data_Input!E193="","",Data_Input!E193) ->  | C191: =IF(Data_Input!F193="","",Data_Input!F193) ->  | D191: =IF(Data_Input!G193="","",Data_Input!G193) -> 
A192: 190 | B192: =IF(Data_Input!E194="","",Data_Input!E194) ->  | C192: =IF(Data_Input!F194="","",Data_Input!F194) ->  | D192: =IF(Data_Input!G194="","",Data_Input!G194) -> 
A193: 191 | B193: =IF(Data_Input!E195="","",Data_Input!E195) ->  | C193: =IF(Data_Input!F195="","",Data_Input!F195) ->  | D193: =IF(Data_Input!G195="","",Data_Input!G195) -> 
A194: 192 | B194: =IF(Data_Input!E196="","",Data_Input!E196) ->  | C194: =IF(Data_Input!F196="","",Data_Input!F196) ->  | D194: =IF(Data_Input!G196="","",Data_Input!G196) -> 
A195: 193 | B195: =IF(Data_Input!E197="","",Data_Input!E197) ->  | C195: =IF(Data_Input!F197="","",Data_Input!F197) ->  | D195: =IF(Data_Input!G197="","",Data_Input!G197) -> 
A196: 194 | B196: =IF(Data_Input!E198="","",Data_Input!E198) ->  | C196: =IF(Data_Input!F198="","",Data_Input!F198) ->  | D196: =IF(Data_Input!G198="","",Data_Input!G198) -> 
A197: 195 | B197: =IF(Data_Input!E199="","",Data_Input!E199) ->  | C197: =IF(Data_Input!F199="","",Data_Input!F199) ->  | D197: =IF(Data_Input!G199="","",Data_Input!G199) -> 
A198: 196 | B198: =IF(Data_Input!E200="","",Data_Input!E200) ->  | C198: =IF(Data_Input!F200="","",Data_Input!F200) ->  | D198: =IF(Data_Input!G200="","",Data_Input!G200) -> 
A199: 197 | B199: =IF(Data_Input!E201="","",Data_Input!E201) ->  | C199: =IF(Data_Input!F201="","",Data_Input!F201) ->  | D199: =IF(Data_Input!G201="","",Data_Input!G201) -> 
A200: 198 | B200: =IF(Data_Input!E202="","",Data_Input!E202) ->  | C200: =IF(Data_Input!F202="","",Data_Input!F202) ->  | D200: =IF(Data_Input!G202="","",Data_Input!G202) -> 
... 2802 more rows

Sheet Postoperative_data (2) (hidden)
B1: Postoperative Refraction | O1: Predicted Postoperative Refraction | W1: Minus - Predicted Postoperative Refraction | AO1: Post-op refractive prediction error
A2: No. | B2: Sphere | C2: Cylinder | D2: Axis | E2: SEQ | F2: S | G2: Cy | H2: Axis | K2: X | L2: Y | O2: Sphere | P2: Cylinder | Q2: Axis | R2: SEQ | S2: S | T2: Cy | U2: Axis | W2: Sphere | X2: Cylinder | Y2: Axis | Z2: S | AA2: Cy | AB2: Axis | AD2: S1 | AE2: C1 | AF2: A1 | AG2: S2 | AH2: C2 | AI2: A2 | AJ2: alpha | AK2: Tan 2beta | AL2: 2beta | AM2: teta | AN2: SC | AO2: S3 | AP2: C3 | AQ2: A3 | AR2: S4 | AS2: C4 | AT2: A4 | AU2: NE | AV2: AE | AX2: X | AY2: Y
A3: =Preoperative_data!A3 -> 1 | B3: =IF(Data_Input!J5="","",Data_Input!J5) -> 0 | C3: =IF(Data_Input!K5="","",Data_Input!K5) -> -0.5 | D3: =IF(Data_Input!L5="","",Data_Input!L5) -> 80 | E3: =IF(B3="","",B3+C3/2) -> -0.25 | F3: =IF(OR(B3="",C3=""),"",IF(C3>=0,B3,B3+C3)) -> -0.5 | G3: =IF(C3="","",IF(C3>=0,C3,-C3)) -> 0.5 | H3: =IF(D3="","",IF(C3>=0,D3,IF(D3>90,D3-90,D3+90))) -> 170 | K3: =IF(G3="","",G3*COS(2*RADIANS(H3))) -> 0.4698463104 | L3: =IF(G3="","",G3*SIN(2*RADIANS(H3))) -> -0.1710100717 | O3: =IF(Data_Input!O5="",IF(Data_Input!#REF!="","",Data_Input!#REF!),Data_Input!O5) -> 0 | P3: =IF(Data_Input!P5="","",Data_Input!P5) -> -0.27 | Q3: =IF(Data_Input!Q5="","",Data_Input!Q5) -> -0.02 | R3: =IF(O3="","",O3+P3/2) -> -0.135 | S3: =IF(OR(O3="",P3=""),"",IF(P3>=0,O3,O3+P3)) -> -0.27 | T3: =IF(P3="","",IF(P3>=0,P3,-P3)) -> 0.27 | U3: =IF(Q3="","",IF(P3>=0,Q3,IF(Q3>90,Q3-90,Q3+90))) -> 89.98 | W3: =IF(S3="","",-S3) -> 0.27 | X3: =IF(T3="","",-T3) -> -0.27 | Y3: =U3 -> 89.98 | Z3: =IF(W3="","",W3+X3) -> 0 | AA3: =IF(X3="","",-X3) -> 0.27 | AB3: =IF(Y3="","",IF(Y3>90,Y3-90,Y3+90)) -> 179.98 | AD3: =IF(H3<=AB3,F3,Z3) -> -0.5 | AE3: =IF(H3<=AB3,G3,AA3) -> 0.5 | AF3: =IF(H3<=AB3,H3,AB3) -> 170 | AG3: =IF(H3>AB3,F3,Z3) -> 0 | AH3: =IF(H3>AB3,G3,AA3) -> 0.27 | AI3: =IF(H3>AB3,H3,AB3) -> 179.98 | AJ3: =IFERROR(AI3-AF3,"") -> 9.98 | AK3: =IFERROR((AH3*SIN(2*RADIANS(AJ3)))/(AE3+AH3*COS(2*RADIANS(AJ3))),"") -> 0.1222745566 | AL3: =IF(AK3="","",DEGREES(ATAN(AK3))) -> 6.97121113 | AM3: =IF(AL3="","",(AL3+180)/2) -> 93.48560556 | AN3: =IFERROR(AE3*SIN(RADIANS(AM3))^2+AH3*SIN(RADIANS(AJ3-AM3))^2,"") -> 0.7646977137 | AO3: =IFERROR(AD3+AG3+AN3,"") -> 0.2646977137 | AP3: =IFERROR(AE3+AH3-2*AN3,"") -> -0.7593954273 | AQ3: =IFERROR(AF3+AM3,"") -> 263.4856056 | AR3: =IF(AP3>=0,AO3,AO3+AP3) -> -0.4946977137 | AS3: =IF(AP3>=0,AP3,-AP3) -> 0.7593954273 | AT3: =IF(AQ3="","",IF(AP3>=0,AQ3,IF(AQ3>90,AQ3-90,AQ3+90))) -> 173.4856056 | AU3: =IFERROR(AR3+AS3/2,"") -> -0.115 | AV3: =IFERROR(ABS(AU3),"") -> 0.115 | AX3: =IF(AS3="","",AS3*COS(2*RADIANS(AT3))) -> 0.7398462446 | AY3: =IF(AS3="","",AS3*SIN(2*RADIANS(AT3))) -> -0.1711985672 | BA3: Postoperative Refraction | BB3: Cyl | BL3: Postoperative RC Precition Error
A4: =Preoperative_data!A4 -> 2 | B4: =IF(Data_Input!J6="","",Data_Input!J6) -> 0 | C4: =IF(Data_Input!K6="","",Data_Input!K6) -> -0.75 | D4: =IF(Data_Input!L6="","",Data_Input!L6) -> 175 | E4: =IF(B4="","",B4+C4/2) -> -0.375 | F4: =IF(OR(B4="",C4=""),"",B4+C4) -> -0.75 | G4: =IF(C4="","",-C4) -> 0.75 | H4: =IF(D4="","",IF(D4>90,D4-90,D4+90)) -> 85 | K4: =IF(G4="","",G4*COS(2*RADIANS(H4))) -> -0.7386058148 | L4: =IF(G4="","",G4*SIN(2*RADIANS(H4))) -> 0.1302361333 | O4: =IF(Data_Input!O6="",IF(Data_Input!#REF!="","",Data_Input!#REF!),Data_Input!O6) -> -0.215 | P4: =IF(Data_Input!P6="","",Data_Input!P6) -> -0.215 | Q4: =IF(Data_Input!Q6="","",Data_Input!Q6) -> -0.215 | R4: -0.3225 | S4: =IF(O4="","",O4+P4) -> -0.43 | T4: =IF(P4="","",-P4) -> 0.215 | U4: =IF(Q4="","",IF(Q4>90,Q4-90,Q4+90)) -> 89.785 | W4: =IF(S4="","",-S4) -> 0.43 | X4: =IF(T4="","",-T4) -> -0.215 | Y4: =U4 -> 89.785 | Z4: =IF(W4="","",W4+X4) -> 0.215 | AA4: =IF(X4="","",-X4) -> 0.215 | AB4: =IF(Y4="","",IF(Y4>90,Y4-90,Y4+90)) -> 179.785 | AD4: =IF(H4<=AB4,F4,Z4) -> -0.75 | AE4: =IF(H4<=AB4,G4,AA4) -> 0.75 | AF4: =IF(H4<=AB4,H4,AB4) -> 85 | AG4: =IF(H4>AB4,F4,Z4) -> 0.215 | AH4: =IF(H4>AB4,G4,AA4) -> 0.215 | AI4: =IF(H4>AB4,H4,AB4) -> 179.785 | AJ4: =IFERROR(AI4-AF4,"") -> 94.785 | AK4: =IFERROR((AH4*SIN(2*RADIANS(AJ4)))/(AE4+AH4*COS(2*RADIANS(AJ4))),"") -> -0.06644015384 | AL4: =IF(AK4="","",DEGREES(ATAN(AK4))) -> -3.801153837 | AM4: =IF(AL4="","",(AL4+180)/2) -> 88.09942308 | AN4: =IFERROR(AE4*SIN(RADIANS(AM4))^2+AH4*SIN(RADIANS(AJ4-AM4))^2,"") -> 0.7520891137 | AO4: =IFERROR(AD4+AG4+AN4,"") -> 0.2170891137 | AP4: =IFERROR(AE4+AH4-2*AN4,"") -> -0.5391782275 | AQ4: =IFERROR(AF4+AM4,"") -> 173.0994231 | AR4: =IF(AP4>=0,AO4,AO4+AP4) -> -0.3220891137 | AS4: =IF(AP4>=0,AP4,-AP4) -> 0.5391782275 | AT4: =IF(AQ4="","",IF(AP4>=0,AQ4,IF(AQ4>90,AQ4-90,AQ4+90))) -> 83.09942308 | AU4: =IFERROR(AR4+AS4/2,"") -> -0.0525 | AV4: =IFERROR(ABS(AU4),"") -> 0.0525 | AX4: =IF(AS4="","",AS4*COS(2*RADIANS(AT4))) -> -0.5236118695 | AY4: =IF(AS4="","",AS4*SIN(2*RADIANS(AT4))) -> 0.1286225915 | BA4: ≤ 0.25 D | BB4: =COUNTIF(G$3:G$3002,"<=0.25") -> 32 | BC4: =BB4/COUNT(($G$3:$G$3002)) -> 0.3764705882 | BF4: Postoperative Cylinder | BG4: angle | BH4: @ | BI4: X | BJ4: Y | BM4: Refractive Cyl prediction error | BN4: angle | BO4: @ | BP4: X-PE | BQ4: Y-PE
A5: =Preoperative_data!A5 -> 3 | B5: =IF(Data_Input!J7="","",Data_Input!J7) -> -1.5 | C5: =IF(Data_Input!K7="","",Data_Input!K7) -> 0 | D5: =IF(Data_Input!L7="","",Data_Input!L7) -> 0 | E5: -1.5 | F5: -1.5 | G5: 0 | H5: 90 | K5: 0 | L5: 0 | O5: =IF(Data_Input!O7="",IF(Data_Input!#REF!="","",Data_Input!#REF!),Data_Input!O7) -> -1.02 | P5: =IF(Data_Input!P7="","",Data_Input!P7) -> -1.03 | Q5: =IF(Data_Input!Q7="","",Data_Input!Q7) -> -1.04 | R5: -1.535 | S5: -2.05 | T5: 1.03 | U5: 88.96 | W5: 2.05 | X5: -1.03 | Y5: 88.96 | Z5: 1.02 | AA5: 1.03 | AB5: 178.96 | AD5: -1.5 | AE5: 0 | AF5: 90 | AG5: 1.02 | AH5: 1.03 | AI5: 178.96 | AJ5: 88.96 | AK5: -0.03631880466 | AL5: -2.08 | AM5: 88.96 | AN5: 6.336250796e-32 | AO5: -0.48 | AP5: 1.03 | AQ5: 178.96 | AR5: -0.48 | AS5: 1.03 | AT5: 178.96 | AU5: 0.035 | AV5: 0.035 | AX5: 1.029321358 | AY5: -0.03738372132 | BA5: ≤ 0.50 D | BB5: =COUNTIF(G$3:G$3002,"<=0.50") -> 59 | BC5: 0.6941176471 | BE5: Centroid | BF5: =IFERROR(SQRT(BI5^2+BJ5^2),"") -> 0.2553156792 | BG5: =IFERROR(0.5*DEGREES((ATAN(BJ5/BI5))),"") -> -12.03859372 | BH5: =IFERROR(IF(BI5>0,IF(BJ5>0,BG5,BG5+180),BG5+90),"") -> 167.9614063 | BI5: =AVERAGE(K3:K3002) -> 0.2331023683 | BJ5: =AVERAGE(L3:L3002) -> -0.1041603664 | BL5: Centroid | BM5: =IFERROR(SQRT(BP5^2+BQ5^2),"") -> 0.3382273607 | BN5: =IFERROR(0.5*DEGREES((ATAN(BQ5/BP5))),"") -> -9.399951036 | BO5: =IFERROR(IF(BP5>0,IF(BQ5>0,BN5,BN5+180),BN5+90),"") -> 170.600049 | BP5: =AVERAGE(AX3:AX3002) -> 0.320182867 | BQ5: =AVERAGE(AY3:AY3002) -> -0.1089985283
A6: =Preoperative_data!A6 -> 4 | B6: =IF(Data_Input!J8="","",Data_Input!J8) -> -1.75 | C6: =IF(Data_Input!K8="","",Data_Input!K8) -> 0 | D6: =IF(Data_Input!L8="","",Data_Input!L8) -> 0 | E6: -1.75 | F6: -1.75 | G6: 0 | H6: 90 | K6: 0 | L6: 0 | O6: =IF(Data_Input!O8="",IF(Data_Input!#REF!="","",Data_Input!#REF!),Data_Input!O8) -> -1.29 | P6: =IF(Data_Input!P8="","",Data_Input!P8) -> -1.35 | Q6: =IF(Data_Input!Q8="","",Data_Input!Q8) -> -1.42 | R6: -1.965 | S6: -2.64 | T6: 1.35 | U6: 88.58 | W6: 2.64 | X6: -1.35 | Y6: 88.58 | Z6: 1.29 | AA6: 1.35 | AB6: 178.58 | AD6: -1.75 | AE6: 0 | AF6: 90 | AG6: 1.29 | AH6: 1.35 | AI6: 178.58 | AJ6: 88.58 | AK6: -0.04960798507 | AL6: -2.84 | AM6: 88.58 | AN6: 0 | AO6: -0.46 | AP6: 1.35 | AQ6: 178.58 | AR6: -0.46 | AS6: 1.35 | AT6: 178.58 | AU6: 0.215 | AV6: 0.215 | AX6: 1.348341917 | AY6: -0.06688852568 | BA6: ≤ 0.75 D | BB6: =COUNTIF(G$3:G$3002,"<=0.75") -> 73 | BC6: 0.8588235294 | BE6: SD | BF6: =SQRT(BI6+BJ6) -> 0.6716777309 | BI6: =VAR(K3:K3002) -> 0.2861528605 | BJ6: =VAR(L3:L3002) -> 0.1649981138 | BL6: SD / VAR | BM6: =SQRT(BP6+BQ6) -> 0.7516412634 | BP6: =VAR(AX3:AX3002) -> 0.4010023231 | BQ6: =VAR(AY3:AY3002) -> 0.1639622657
A7: =Preoperative_data!A7 -> 5 | B7: =IF(Data_Input!J9="","",Data_Input!J9) -> 0 | C7: =IF(Data_Input!K9="","",Data_Input!K9) -> -0.25 | D7: =IF(Data_Input!L9="","",Data_Input!L9) -> 20 | E7: -0.125 | F7: -0.25 | G7: 0.25 | H7: 110 | K7: -0.1915111108 | L7: -0.1606969024 | O7: =IF(Data_Input!O9="",IF(Data_Input!#REF!="","",Data_Input!#REF!),Data_Input!O9) -> 0.405 | P7: =IF(Data_Input!P9="","",Data_Input!P9) -> 0.445 | Q7: =IF(Data_Input!Q9="","",Data_Input!Q9) -> 0.915 | R7: 0.6275 | S7: 0.85 | T7: -0.445 | U7: 90.915 | W7: -0.85 | X7: 0.445 | Y7: 90.915 | Z7: -0.405 | AA7: -0.445 | AB7: 0.915 | AD7: -0.405 | AE7: -0.445 | AF7: 0.915 | AG7: -0.25 | AH7: 0.25 | AI7: 110 | AJ7: 109.085 | AK7: 0.2408235963 | AL7: 13.5403435 | AM7: 96.77017175 | AN7: -0.427443245 | AO7: -1.082443245 | AP7: 0.6598864901 | AQ7: 97.68517175 | AR7: -1.082443245 | AS7: 0.6598864901 | AT7: 97.68517175 | AU7: -0.7525 | AV7: 0.7525 | AX7: -0.6362841504 | AY7: -0.1749075748 | BA7: ≤ 1.00 D | BB7: =COUNTIF(G$3:G$3002,"<=1.0") -> 78 | BC7: 0.9176470588 | BL7: Mean Absolute ± SD | BM7: =AVERAGE(AS3:AS3002) -> 0.6493470239 | BN7: =STDEVP(AS3:AS3002) -> 0.5010630067
A8: =Preoperative_data!A8 -> 6 | B8: =IF(Data_Input!J10="","",Data_Input!J10) -> -0.5 | C8: =IF(Data_Input!K10="","",Data_Input!K10) -> -0.5 | D8: =IF(Data_Input!L10="","",Data_Input!L10) -> 150 | E8: -0.75 | F8: -1 | G8: 0.5 | H8: 60 | K8: -0.25 | L8: 0.4330127019 | O8: =IF(Data_Input!O10="",IF(Data_Input!#REF!="","",Data_Input!#REF!),Data_Input!O10) -> -0.41 | P8: =IF(Data_Input!P10="","",Data_Input!P10) -> -0.29 | Q8: =IF(Data_Input!Q10="","",Data_Input!Q10) -> -0.5 | R8: -0.555 | S8: -0.7 | T8: 0.29 | U8: 89.5 | W8: 0.7 | X8: -0.29 | Y8: 89.5 | Z8: 0.41 | AA8: 0.29 | AB8: 179.5 | AD8: -1 | AE8: 0.5 | AF8: 60 | AG8: 0.41 | AH8: 0.29 | AI8: 179.5 | AJ8: 119.5 | AK8: -0.7089301155 | AL8: -35.33397608 | AM8: 72.33301196 | AN8: 0.6099063507 | AO8: 0.01990635069 | AP8: -0.4298127014 | AQ8: 132.333012 | AR8: -0.4099063507 | AS8: 0.4298127014 | AT8: 42.33301196 | AU8: -0.195 | AV8: 0.195 | AX8: 0.0399558316 | AY8: 0.427951504 | BA8: ≤ 1.50 D | BB8: =COUNTIF(G$3:G$3002,"<=1.50") -> 80 | BC8: 0.9411764706 | BE8: Mean | BF8: =AVERAGE(G3:G3002) -> 0.4970588235 | BL8: Postoperative RA Prediction Error
A9: =Preoperative_data!A9 -> 7 | B9: =IF(Data_Input!J11="","",Data_Input!J11) -> -1.5 | C9: =IF(Data_Input!K11="","",Data_Input!K11) -> -2 | D9: =IF(Data_Input!L11="","",Data_Input!L11) -> 80 | E9: -2.5 | F9: -3.5 | G9: 2 | H9: 170 | K9: 1.879385242 | L9: -0.6840402867 | O9: =IF(Data_Input!O11="",IF(Data_Input!#REF!="","",Data_Input!#REF!),Data_Input!O11) -> 0.15 | P9: =IF(Data_Input!P11="","",Data_Input!P11) -> 0.07 | Q9: =IF(Data_Input!Q11="","",Data_Input!Q11) -> 0.86 | R9: 0.185 | S9: 0.22 | T9: -0.07 | U9: 90.86 | W9: -0.22 | X9: 0.07 | Y9: 90.86 | Z9: -0.15 | AA9: -0.07 | AB9: 0.86 | AD9: -0.15 | AE9: -0.07 | AF9: 0.86 | AG9: -3.5 | AH9: 2 | AI9: 170 | AJ9: 169.14 | AK9: -0.4139481381 | AL9: -22.48701821 | AM9: 78.7564909 | AN9: 1.932571578 | AO9: -1.717428422 | AP9: -1.935143156 | AQ9: 79.6164909 | AR9: -3.652571578 | AS9: 1.935143156 | AT9: 169.6164909 | AU9: -2.685 | AV9: 2.685 | AX9: 1.809416781 | AY9: -0.6861413475 | BA9: ≤ 2.00 D | BB9: =COUNTIF(G$3:G$3002,"<=2.00") -> 84 | BC9: 0.9882352941 | BE9: SD | BF9: =_xlfn.STDEV.P(G3:G3002) -> 0.5137722625 | BL9: ≤ 0.25 D | BM9: =COUNTIF(AS$3:AS$3002,"<=0.25") -> 19 | BO9: =BM9/COUNT($W$3:$W$3002) -> 0.2235294118
A10: =Preoperative_data!A10 -> 8 | B10: =IF(Data_Input!J12="","",Data_Input!J12) -> 0.75 | C10: =IF(Data_Input!K12="","",Data_Input!K12) -> -0.75 | D10: =IF(Data_Input!L12="","",Data_Input!L12) -> 70 | E10: 0.375 | F10: 0 | G10: 0.75 | H10: 160 | K10: 0.5745333323 | L10: -0.4820907073 | O10: =IF(Data_Input!O12="",IF(Data_Input!#REF!="","",Data_Input!#REF!),Data_Input!O12) -> 0.495 | P10: =IF(Data_Input!P12="","",Data_Input!P12) -> 0.445 | Q10: =IF(Data_Input!Q12="","",Data_Input!Q12) -> 0.575 | R10: 0.7175 | S10: 0.94 | T10: -0.445 | U10: 90.575 | W10: -0.94 | X10: 0.445 | Y10: 90.575 | Z10: -0.495 | AA10: -0.445 | AB10: 0.575 | AD10: -0.495 | AE10: -0.445 | AF10: 0.575 | AG10: 0 | AH10: 0.75 | AI10: 160 | AJ10: 159.425 | AK10: -4.121562453 | AL10: -76.36206397 | AM10: 51.81896802 | AN10: 0.4064215187 | AO10: -0.08857848132 | AP10: -0.5078430374 | AQ10: 52.39396802 | AR10: -0.5964215187 | AS10: 0.5078430374 | AT10: 142.393968 | AU10: -0.3425 | AV10: 0.3425 | AX10: 0.1296229649 | AY10: -0.49102183 | BL10: ≤ 0.50 D | BM10: =COUNTIF(AS$3:AS$3002,"<=0.50") -> 35 | BO10: 0.4117647059
A11: =Preoperative_data!A11 -> 9 | B11: =IF(Data_Input!J13="","",Data_Input!J13) -> -0.5 | C11: =IF(Data_Input!K13="","",Data_Input!K13) -> -1.5 | D11: =IF(Data_Input!L13="","",Data_Input!L13) -> 80 | E11: -1.25 | F11: -2 | G11: 1.5 | H11: 170 | K11: 1.409538931 | L11: -0.513030215 | O11: =IF(Data_Input!O13="",IF(Data_Input!#REF!="","",Data_Input!#REF!),Data_Input!O13) -> 0.14 | P11: =IF(Data_Input!P13="","",Data_Input!P13) -> -0.12 | Q11: =IF(Data_Input!Q13="","",Data_Input!Q13) -> 0.09 | R11: 0.08 | S11: 0.02 | T11: 0.12 | U11: 90.09 | W11: -0.02 | X11: -0.12 | Y11: 90.09 | Z11: -0.14 | AA11: 0.12 | AB11: 0.09 | AD11: -0.14 | AE11: 0.12 | AF11: 0.09 | AG11: -2 | AH11: 1.5 | AI11: 170 | AJ11: 169.91 | AK11: -0.3386668083 | AL11: -18.70953442 | AM11: 80.64523279 | AN11: 1.616582429 | AO11: -0.523417571 | AP11: -1.613164858 | AQ11: 80.73523279 | AR11: -2.136582429 | AS11: 1.613164858 | AT11: 170.7352328 | AU11: -1.33 | AV11: 1.33 | AX11: 1.529538339 | AY11: -0.5126532245 | BL11: ≤ 0.75 D | BM11: =COUNTIF(AS$3:AS$3002,"<=0.75") -> 62 | BO11: 0.7294117647
A12: =Preoperative_data!A12 -> 10 | B12: =IF(Data_Input!J14="","",Data_Input!J14) -> 0 | C12: =IF(Data_Input!K14="","",Data_Input!K14) -> -0.5 | D12: =IF(Data_Input!L14="","",Data_Input!L14) -> 70 | E12: -0.25 | F12: -0.5 | G12: 0.5 | H12: 160 | K12: 0.3830222216 | L12: -0.3213938048 | O12: =IF(Data_Input!O14="",IF(Data_Input!#REF!="","",Data_Input!#REF!),Data_Input!O14) -> 0.13 | P12: =IF(Data_Input!P14="","",Data_Input!P14) -> 0.18 | Q12: =IF(Data_Input!Q14="","",Data_Input!Q14) -> -0.1 | R12: 0.22 | S12: 0.31 | T12: -0.18 | U12: 89.9 | W12: -0.31 | X12: 0.18 | Y12: 89.9 | Z12: -0.13 | AA12: -0.18 | AB12: 179.9 | AD12: -0.5 | AE12: 0.5 | AF12: 160 | AG12: -0.13 | AH12: -0.18 | AI12: 179.9 | AJ12: 19.9 | AK12: -0.3185426871 | AL12: -17.66889771 | AM12: 81.16555115 | AN12: 0.3498084335 | AO12: -0.2801915665 | AP12: -0.3796168671 | AQ12: 241.1655511 | AR12: -0.6598084335 | AS12: 0.3796168671 | AT12: 151.1655511 | AU12: -0.47 | AV12: 0.47 | AX12: 0.2030233182 | AY12: -0.3207654876 | BL12: ≤ 1.00 D | BM12: =COUNTIF(AS$3:AS$3002,"<=1.0") -> 70 | BO12: 0.8235294118
A13: =Preoperative_data!A13 -> 11 | B13: =IF(Data_Input!J15="","",Data_Input!J15) -> 0 | C13: =IF(Data_Input!K15="","",Data_Input!K15) -> -0.75 | D13: =IF(Data_Input!L15="","",Data_Input!L15) -> 40 | E13: -0.375 | F13: -0.75 | G13: 0.75 | H13: 130 | K13: -0.1302361333 | L13: -0.7386058148 | O13: =IF(Data_Input!O15="",IF(Data_Input!#REF!="","",Data_Input!#REF!),Data_Input!O15) -> -0.295 | P13: =IF(Data_Input!P15="","",Data_Input!P15) -> -0.055 | Q13: =IF(Data_Input!Q15="","",Data_Input!Q15) -> -0.035 | R13: -0.3225 | S13: -0.35 | T13: 0.055 | U13: 89.965 | W13: 0.35 | X13: -0.055 | Y13: 89.965 | Z13: 0.295 | AA13: 0.055 | AB13: 179.965 | AD13: -0.75 | AE13: 0.75 | AF13: 130 | AG13: 0.295 | AH13: 0.055 | AI13: 179.965 | AJ13: 49.965 | AK13: 0.07315991629 | AL13: 4.184299747 | AM13: 92.09214987 | AN13: 0.7737473224 | AO13: 0.3187473224 | AP13: -0.7424946448 | AQ13: 222.0921499 | AR13: -0.4237473224 | AS13: 0.7424946448 | AT13: 132.0921499 | AU13: -0.0525 | AV13: 0.0525 | AX13: -0.0752361743 | AY13: -0.7386730099 | BL13: ≤ 1.50 D | BM13: =COUNTIF(AS$3:AS$3002,"<=1.50") -> 77 | BO13: 0.9058823529
A14: =Preoperative_data!A14 -> 12 | B14: =IF(Data_Input!J16="","",Data_Input!J16) -> 0 | C14: =IF(Data_Input!K16="","",Data_Input!K16) -> -0.5 | D14: =IF(Data_Input!L16="","",Data_Input!L16) -> 60 | E14: -0.25 | F14: -0.5 | G14: 0.5 | H14: 150 | K14: 0.25 | L14: -0.4330127019 | O14: =IF(Data_Input!O16="",IF(Data_Input!#REF!="","",Data_Input!#REF!),Data_Input!O16) -> 0.08 | P14: =IF(Data_Input!P16="","",Data_Input!P16) -> -0.2 | Q14: =IF(Data_Input!Q16="","",Data_Input!Q16) -> -0.11 | R14: -0.02 | S14: -0.12 | T14: 0.2 | U14: 89.89 | W14: 0.12 | X14: -0.2 | Y14: 89.89 | Z14: -0.08 | AA14: 0.2 | AB14: 179.89 | AD14: -0.5 | AE14: 0.5 | AF14: 150 | AG14: -0.08 | AH14: 0.2 | AI14: 179.89 | AJ14: 29.89 | AK14: 0.2877144961 | AL14: 16.05129411 | AM14: 98.02564706 | AN14: 0.662515728 | AO14: 0.08251572799 | AP14: -0.625031456 | AQ14: 248.0256471 | AR14: -0.542515728 | AS14: 0.625031456 | AT14: 158.0256471 | AU14: -0.23 | AV14: 0.23 | AX14: 0.4499985257 | AY14: -0.4337806449 | BL14: ≤ 2.00 D | BM14: =COUNTIF(AS$3:AS$3002,"<=2.00") -> 82 | BO14: 0.9647058824
A15: =Preoperative_data!A15 -> 13 | B15: =IF(Data_Input!J17="","",Data_Input!J17) -> 0 | C15: =IF(Data_Input!K17="","",Data_Input!K17) -> -0.5 | D15: =IF(Data_Input!L17="","",Data_Input!L17) -> 60 | E15: -0.25 | F15: -0.5 | G15: 0.5 | H15: 150 | K15: 0.25 | L15: -0.4330127019 | O15: =IF(Data_Input!O17="",IF(Data_Input!#REF!="","",Data_Input!#REF!),Data_Input!O17) -> -0.45 | P15: =IF(Data_Input!P17="","",Data_Input!P17) -> -0.31 | Q15: =IF(Data_Input!Q17="","",Data_Input!Q17) -> -0.6 | R15: -0.605 | S15: -0.76 | T15: 0.31 | U15: 89.4 | W15: 0.76 | X15: -0.31 | Y15: 89.4 | Z15: 0.45 | AA15: 0.31 | AB15: 179.4 | AD15: -0.5 | AE15: 0.5 | AF15: 150 | AG15: 0.45 | AH15: 0.31 | AI15: 179.4 | AJ15: 29.4 | AK15: 0.4014041596 | AL15: 21.87073142 | AM15: 100.9353657 | AN15: 0.760910232 | AO15: 0.710910232 | AP15: -0.711820464 | AQ15: 250.9353657 | AR15: -0.0009102319777 | AS15: 0.711820464 | AT15: 160.9353657 | AU15: 0.355 | AV15: 0.355 | AX15: 0.5599320119 | AY15: -0.4395048521
A16: =Preoperative_data!A16 -> 14 | B16: =IF(Data_Input!J18="","",Data_Input!J18) -> -0.25 | C16: =IF(Data_Input!K18="","",Data_Input!K18) -> -0.5 | D16: =IF(Data_Input!L18="","",Data_Input!L18) -> 80 | E16: -0.5 | F16: -0.75 | G16: 0.5 | H16: 170 | K16: 0.4698463104 | L16: -0.1710100717 | O16: =IF(Data_Input!O18="",IF(Data_Input!#REF!="","",Data_Input!#REF!),Data_Input!O18) -> 0.19 | P16: =IF(Data_Input!P18="","",Data_Input!P18) -> 0.31 | Q16: =IF(Data_Input!Q18="","",Data_Input!Q18) -> 0 | R16: 0.345 | S16: 0.5 | T16: -0.31 | U16: 90 | W16: -0.5 | X16: 0.31 | Y16: 90 | Z16: -0.19 | AA16: -0.31 | AB16: 180 | AD16: -0.75 | AE16: 0.5 | AF16: 170 | AG16: -0.19 | AH16: -0.31 | AI16: 180 | AJ16: 10 | AK16: -0.5080433088 | AL16: -26.93254191 | AM16: 76.53372905 | AN16: 0.2120419664 | AO16: -0.7279580336 | AP16: -0.2340839327 | AQ16: 246.533729 | AR16: -0.9620419664 | AS16: 0.2340839327 | AT16: 156.533729 | AU16: -0.845 | AV16: 0.845 | AX16: 0.1598463104 | AY16: -0.1710100717
A17: =Preoperative_data!A17 -> 15 | B17: =IF(Data_Input!J19="","",Data_Input!J19) -> -1.25 | C17: =IF(Data_Input!K19="","",Data_Input!K19) -> -0.5 | D17: =IF(Data_Input!L19="","",Data_Input!L19) -> 70 | E17: -1.5 | F17: -1.75 | G17: 0.5 | H17: 160 | K17: 0.3830222216 | L17: -0.3213938048 | O17: =IF(Data_Input!O19="",IF(Data_Input!#REF!="","",Data_Input!#REF!),Data_Input!O19) -> -0.09 | P17: =IF(Data_Input!P19="","",Data_Input!P19) -> -0.04 | Q17: =IF(Data_Input!Q19="","",Data_Input!Q19) -> -0.32 | R17: -0.11 | S17: -0.13 | T17: 0.04 | U17: 89.68 | W17: 0.13 | X17: -0.04 | Y17: 89.68 | Z17: 0.09 | AA17: 0.04 | AB17: 179.68 | AD17: -1.75 | AE17: 0.5 | AF17: 160 | AG17: 0.09 | AH17: 0.04 | AI17: 179.68 | AJ17: 19.68 | AK17: 0.04777988813 | AL17: 2.735505556 | AM17: 91.36775278 | AN17: 0.5357663732 | AO17: -1.124233627 | AP17: -0.5315327463 | AQ17: 251.3677528 | AR17: -1.655766373 | AS17: 0.5315327463 | AT17: 161.3677528 | AU17: -1.39 | AV17: 1.39 | AX17: 0.4230197262 | AY17: -0.3218405998 | BL17: Post-op MNE | BM17: =AVERAGE(AU3:AU3002) -> -0.6205588235
A18: =Preoperative_data!A18 -> 16 | B18: =IF(Data_Input!J20="","",Data_Input!J20) -> -0.5 | C18: =IF(Data_Input!K20="","",Data_Input!K20) -> -0.5 | D18: =IF(Data_Input!L20="","",Data_Input!L20) -> 90 | E18: -0.75 | F18: -1 | G18: 0.5 | H18: 180 | K18: 0.5 | L18: -1.225148455e-16 | O18: =IF(Data_Input!O20="",IF(Data_Input!#REF!="","",Data_Input!#REF!),Data_Input!O20) -> -0.65 | P18: =IF(Data_Input!P20="","",Data_Input!P20) -> -0.86 | Q18: =IF(Data_Input!Q20="","",Data_Input!Q20) -> -0.75 | R18: -1.08 | S18: -1.51 | T18: 0.86 | U18: 89.25 | W18: 1.51 | X18: -0.86 | Y18: 89.25 | Z18: 0.65 | AA18: 0.86 | AB18: 179.25 | AD18: 0.65 | AE18: 0.86 | AF18: 179.25 | AG18: -1 | AH18: 0.5 | AI18: 180 | AJ18: 0.75 | AK18: 0.009625090657 | AL18: 0.551460043 | AM18: 90.27573002 | AN18: 1.359945825 | AO18: 1.009945825 | AP18: -1.35989165 | AQ18: 269.52573 | AR18: -0.349945825 | AS18: 1.35989165 | AT18: 179.52573 | AU18: 0.33 | AV18: 0.33 | AX18: 1.359705299 | AY18: -0.02251217554 | BL18: SD | BM18: =_xlfn.STDEV.P(AU3:AU3002) -> 0.761417735
A19: =Preoperative_data!A19 -> 17 | B19: =IF(Data_Input!J21="","",Data_Input!J21) -> -0.5 | C19: =IF(Data_Input!K21="","",Data_Input!K21) -> -0.75 | D19: =IF(Data_Input!L21="","",Data_Input!L21) -> 100 | E19: -0.875 | F19: -1.25 | G19: 0.75 | H19: 10 | K19: 0.7047694656 | L19: 0.2565151075 | O19: =IF(Data_Input!O21="",IF(Data_Input!#REF!="","",Data_Input!#REF!),Data_Input!O21) -> -0.555 | P19: =IF(Data_Input!P21="","",Data_Input!P21) -> -0.085 | Q19: =IF(Data_Input!Q21="","",Data_Input!Q21) -> -0.345 | R19: -0.5975 | S19: -0.64 | T19: 0.085 | U19: 89.655 | W19: 0.64 | X19: -0.085 | Y19: 89.655 | Z19: 0.555 | AA19: 0.085 | AB19: 179.655 | AD19: -1.25 | AE19: 0.75 | AF19: 10 | AG19: 0.555 | AH19: 0.085 | AI19: 179.655 | AJ19: 169.655 | AK19: -0.03620353531 | AL19: -2.073404226 | AM19: 88.96329789 | AN19: 0.8325307151 | AO19: 0.1375307151 | AP19: -0.8300614302 | AQ19: 98.96329789 | AR19: -0.6925307151 | AS19: 0.8300614302 | AT19: 8.963297887 | AU19: -0.2775 | AV19: 0.2775 | AX19: 0.789763302 | AY19: 0.2554914966 | BL19: Post-op MAE | BM19: =AVERAGE(AV3:AV3002) -> 0.6579705882
A20: =Preoperative_data!A20 -> 18 | B20: =IF(Data_Input!J22="","",Data_Input!J22) -> 0 | C20: =IF(Data_Input!K22="","",Data_Input!K22) -> -2 | D20: =IF(Data_Input!L22="","",Data_Input!L22) -> 60 | E20: -1 | F20: -2 | G20: 2 | H20: 150 | K20: 1 | L20: -1.732050808 | O20: =IF(Data_Input!O22="",IF(Data_Input!#REF!="","",Data_Input!#REF!),Data_Input!O22) -> 0.36 | P20: =IF(Data_Input!P22="","",Data_Input!P22) -> 0.15 | Q20: =IF(Data_Input!Q22="","",Data_Input!Q22) -> 0.29 | R20: 0.435 | S20: 0.51 | T20: -0.15 | U20: 90.29 | W20: -0.51 | X20: 0.15 | Y20: 90.29 | Z20: -0.36 | AA20: -0.15 | AB20: 0.29 | AD20: -0.36 | AE20: -0.15 | AF20: 0.29 | AG20: -2 | AH20: 2 | AI20: 150 | AJ20: 149.71 | AK20: -2.092806352 | AL20: -64.46025576 | AM20: 57.76987212 | AN20: 1.890372376 | AO20: -0.4696276238 | AP20: -1.930744752 | AQ20: 58.05987212 | AR20: -2.400372376 | AS20: 1.930744752 | AT20: 148.0598721 | AU20: -1.435 | AV20: 1.435 | AX20: 0.8500076854 | AY20: -1.733569218 | BL20: Post-op Median AE | BM20: =MEDIAN(AV3:AV3002) -> 0.35
A21: =Preoperative_data!A21 -> 19 | B21: =IF(Data_Input!J23="","",Data_Input!J23) -> 0 | C21: =IF(Data_Input!K23="","",Data_Input!K23) -> -0.5 | D21: =IF(Data_Input!L23="","",Data_Input!L23) -> 90 | E21: -0.25 | F21: -0.5 | G21: 0.5 | H21: 180 | K21: 0.5 | L21: -1.225148455e-16 | O21: =IF(Data_Input!O23="",IF(Data_Input!#REF!="","",Data_Input!#REF!),Data_Input!O23) -> -0.23 | P21: =IF(Data_Input!P23="","",Data_Input!P23) -> -0.1 | Q21: =IF(Data_Input!Q23="","",Data_Input!Q23) -> -0.4 | R21: -0.28 | S21: -0.33 | T21: 0.1 | U21: 89.6 | W21: 0.33 | X21: -0.1 | Y21: 89.6 | Z21: 0.23 | AA21: 0.1 | AB21: 179.6 | AD21: 0.23 | AE21: 0.1 | AF21: 179.6 | AG21: -0.5 | AH21: 0.5 | AI21: 180 | AJ21: 0.4 | AK21: 0.01163609548 | AL21: 0.6666690735 | AM21: 90.33333454 | AN21: 0.5999959385 | AO21: 0.3299959385 | AP21: -0.5999918769 | AQ21: 269.9333345 | AR21: -0.2699959385 | AS21: 0.5999918769 | AT21: 179.9333345 | AU21: 0.03 | AV21: 0.03 | AX21: 0.5999902524 | AY21: -0.001396218034 | BL21: Min | BM21: =MIN(AU3:AU3002) -> -2.715
A22: =Preoperative_data!A22 -> 20 | B22: =IF(Data_Input!J24="","",Data_Input!J24) -> 0 | C22: =IF(Data_Input!K24="","",Data_Input!K24) -> -0.5 | D22: =IF(Data_Input!L24="","",Data_Input!L24) -> 80 | E22: -0.25 | F22: -0.5 | G22: 0.5 | H22: 170 | K22: 0.4698463104 | L22: -0.1710100717 | O22: =IF(Data_Input!O24="",IF(Data_Input!#REF!="","",Data_Input!#REF!),Data_Input!O24) -> 0.08 | P22: =IF(Data_Input!P24="","",Data_Input!P24) -> 0.19 | Q22: =IF(Data_Input!Q24="","",Data_Input!Q24) -> -0.01 | R22: 0.175 | S22: 0.27 | T22: -0.19 | U22: 89.99 | W22: -0.27 | X22: 0.19 | Y22: 89.99 | Z22: -0.08 | AA22: -0.19 | AB22: 179.99 | AD22: -0.5 | AE22: 0.5 | AF22: 170 | AG22: -0.08 | AH22: -0.19 | AI22: 179.99 | AJ22: 9.99 | AK22: -0.2019735038 | AL22: -11.41861556 | AM22: 84.29069222 | AN22: 0.3189632042 | AO22: -0.2610367958 | AP22: -0.3279264084 | AQ22: 254.2906922 | AR22: -0.5889632042 | AS22: 0.3279264084 | AT22: 164.2906922 | AU22: -0.425 | AV22: 0.425 | AX22: 0.279846322 | AY22: -0.1709437492 | BL22: Max | BM22: =MAX(AU3:AU3002) -> 0.36
A23: =Preoperative_data!A23 -> 21 | B23: =IF(Data_Input!J25="","",Data_Input!J25) -> 0 | C23: =IF(Data_Input!K25="","",Data_Input!K25) -> 0 | D23: =IF(Data_Input!L25="","",Data_Input!L25) -> 0 | E23: 0 | F23: 0 | G23: 0 | H23: 90 | K23: 0 | L23: 0 | O23: =IF(Data_Input!O25="",IF(Data_Input!#REF!="","",Data_Input!#REF!),Data_Input!O25) -> 0.17 | P23: =IF(Data_Input!P25="","",Data_Input!P25) -> 0.31 | Q23: =IF(Data_Input!Q25="","",Data_Input!Q25) -> 0.14 | R23: 0.325 | S23: 0.48 | T23: -0.31 | U23: 90.14 | W23: -0.48 | X23: 0.31 | Y23: 90.14 | Z23: -0.17 | AA23: -0.31 | AB23: 0.14 | AD23: -0.17 | AE23: -0.31 | AF23: 0.14 | AG23: 0 | AH23: 0 | AI23: 90 | AJ23: 89.86 | AK23: 0 | AL23: 0 | AM23: 90 | AN23: -0.31 | AO23: -0.48 | AP23: 0.31 | AQ23: 90.14 | AR23: -0.48 | AS23: 0.31 | AT23: 90.14 | AU23: -0.325 | AV23: 0.325 | AX23: -0.3099962983 | AY23: -0.001514939761
A24: =Preoperative_data!A24 -> 22 | B24: =IF(Data_Input!J26="","",Data_Input!J26) -> 0 | C24: =IF(Data_Input!K26="","",Data_Input!K26) -> 0 | D24: =IF(Data_Input!L26="","",Data_Input!L26) -> 0 | E24: 0 | F24: 0 | G24: 0 | H24: 90 | K24: 0 | L24: 0 | O24: =IF(Data_Input!O26="",IF(Data_Input!#REF!="","",Data_Input!#REF!),Data_Input!O26) -> 0.08 | P24: =IF(Data_Input!P26="","",Data_Input!P26) -> -0.1 | Q24: =IF(Data_Input!Q26="","",Data_Input!Q26) -> 0.11 | R24: 0.03 | S24: -0.02 | T24: 0.1 | U24: 90.11 | W24: 0.02 | X24: -0.1 | Y24: 90.11 | Z24: -0.08 | AA24: 0.1 | AB24: 0.11 | AD24: -0.08 | AE24: 0.1 | AF24: 0.11 | AG24: 0 | AH24: 0 | AI24: 90 | AJ24: 89.89 | AK24: 0 | AL24: 0 | AM24: 90 | AN24: 0.1 | AO24: 0.02 | AP24: -0.1 | AQ24: 90.11 | AR24: -0.08 | AS24: 0.1 | AT24: 0.11 | AU24: -0.03 | AV24: 0.03 | AX24: 0.09999926283 | AY24: 0.0003839714919 | BL24: < -1.50 | BM24: =COUNTIF($AU$3:$AU$3002,"<-1.50") -> 11 | BN24: =BM24/COUNT($AU$3:$AU$300) -> 0.1294117647
A25: =Preoperative_data!A25 -> 23 | B25: =IF(Data_Input!J27="","",Data_Input!J27) -> -1 | C25: =IF(Data_Input!K27="","",Data_Input!K27) -> -0.75 | D25: =IF(Data_Input!L27="","",Data_Input!L27) -> 130 | E25: -1.375 | F25: -1.75 | G25: 0.75 | H25: 40 | K25: 0.1302361333 | L25: 0.7386058148 | O25: =IF(Data_Input!O27="",IF(Data_Input!#REF!="","",Data_Input!#REF!),Data_Input!O27) -> -0.765 | P25: =IF(Data_Input!P27="","",Data_Input!P27) -> -0.655 | Q25: =IF(Data_Input!Q27="","",Data_Input!Q27) -> -0.985 | R25: -1.0925 | S25: -1.42 | T25: 0.655 | U25: 89.015 | W25: 1.42 | X25: -0.655 | Y25: 89.015 | Z25: 0.765 | AA25: 0.655 | AB25: 179.015 | AD25: -1.75 | AE25: 0.75 | AF25: 40 | AG25: 0.765 | AH25: 0.655 | AI25: 179.015 | AJ25: 139.015 | AK25: -0.7707419088 | AL25: -37.62294765 | AM25: 71.18852617 | AN25: 1.233718407 | AO25: 0.2487184067 | AP25: -1.062436813 | AQ25: 111.1885262 | AR25: -0.8137184067 | AS25: 1.062436813 | AT25: 21.18852617 | AU25: -0.2825 | AV25: 0.2825 | AX25: 0.7848490042 | AY25: 0.7160893958 | BL25: -1.50 to -1.01 | BM25: =COUNTIFS($AU$3:$AU$3002,">=-1.50", $AU$3:$AU$3002, "<-1.0") -> 8 | BN25: 0.09411764706
A26: =Preoperative_data!A26 -> 24 | B26: =IF(Data_Input!J28="","",Data_Input!J28) -> 0 | C26: =IF(Data_Input!K28="","",Data_Input!K28) -> -1.75 | D26: =IF(Data_Input!L28="","",Data_Input!L28) -> 170 | E26: -0.875 | F26: -1.75 | G26: 1.75 | H26: 80 | K26: -1.644462086 | L26: 0.5985352508 | O26: =IF(Data_Input!O28="",IF(Data_Input!#REF!="","",Data_Input!#REF!),Data_Input!O28) -> 0.675 | P26: =IF(Data_Input!P28="","",Data_Input!P28) -> 0.285 | Q26: =IF(Data_Input!Q28="","",Data_Input!Q28) -> 0.455 | R26: 0.8175 | S26: 0.96 | T26: -0.285 | U26: 90.455 | W26: -0.96 | X26: 0.285 | Y26: 90.455 | Z26: -0.675 | AA26: -0.285 | AB26: 0.455 | AD26: -0.675 | AE26: -0.285 | AF26: 0.455 | AG26: -1.75 | AH26: 1.75 | AI26: 80 | AJ26: 79.545 | AK26: -0.3253429881 | AL26: -18.02193417 | AM26: 80.98903292 | AN26: -0.2768973254 | AO26: -2.701897325 | AP26: 2.018794651 | AQ26: 81.44403292 | AR26: -2.701897325 | AS26: 2.018794651 | AT26: 81.44403292 | AU26: -1.6925 | AV26: 1.6925 | AX26: -1.929426141 | AY26: 0.5940089297 | BL26: -1.00 to -0.51 | BM26: =COUNTIFS($AU$3:$AU$3002,">=-1.00", $AU$3:$AU$3002, "<-0.50") -> 11 | BN26: 0.1294117647
A27: =Preoperative_data!A27 -> 25 | B27: =IF(Data_Input!J29="","",Data_Input!J29) -> -0.25 | C27: =IF(Data_Input!K29="","",Data_Input!K29) -> -0.5 | D27: =IF(Data_Input!L29="","",Data_Input!L29) -> 10 | E27: -0.5 | F27: -0.75 | G27: 0.5 | H27: 100 | K27: -0.4698463104 | L27: -0.1710100717 | O27: =IF(Data_Input!O29="",IF(Data_Input!#REF!="","",Data_Input!#REF!),Data_Input!O29) -> -0.29 | P27: =IF(Data_Input!P29="","",Data_Input!P29) -> -0.61 | Q27: =IF(Data_Input!Q29="","",Data_Input!Q29) -> -0.37 | R27: -0.595 | S27: -0.9 | T27: 0.61 | U27: 89.63 | W27: 0.9 | X27: -0.61 | Y27: 89.63 | Z27: 0.29 | AA27: 0.61 | AB27: 179.63 | AD27: -0.75 | AE27: 0.5 | AF27: 100 | AG27: 0.29 | AH27: 0.61 | AI27: 179.63 | AJ27: 79.63 | AK27: -3.065380896 | AL27: -71.93244483 | AM27: 54.03377759 | AN27: 0.4413890287 | AO27: -0.01861097125 | AP27: 0.2272219425 | AQ27: 154.0337776 | AR27: -0.01861097125 | AS27: 0.2272219425 | AT27: 154.0337776 | AU27: 0.095 | AV27: 0.095 | AX27: 0.1401028137 | AY27: -0.1788882689 | BL27: -0.50 to -0.26 | BM27: =COUNTIFS($AU$3:$AU$3002,">=-0.50", $AU$3:$AU$3002, "<-0.25") -> 23 | BN27: 0.2705882353
A28: =Preoperative_data!A28 -> 26 | B28: =IF(Data_Input!J30="","",Data_Input!J30) -> 0.25 | C28: =IF(Data_Input!K30="","",Data_Input!K30) -> -0.5 | D28: =IF(Data_Input!L30="","",Data_Input!L30) -> 45 | E28: 0 | F28: -0.25 | G28: 0.5 | H28: 135 | K28: -9.188613412e-17 | L28: -0.5 | O28: =IF(Data_Input!O30="",IF(Data_Input!#REF!="","",Data_Input!#REF!),Data_Input!O30) -> 0.24 | P28: =IF(Data_Input!P30="","",Data_Input!P30) -> -0.24 | Q28: =IF(Data_Input!Q30="","",Data_Input!Q30) -> -0.06 | R28: 0.12 | S28: 0 | T28: 0.24 | U28: 89.94 | W28: 0 | X28: -0.24 | Y28: 89.94 | Z28: -0.24 | AA28: 0.24 | AB28: 179.94 | AD28: -0.25 | AE28: 0.5 | AF28: 135 | AG28: -0.24 | AH28: 0.24 | AI28: 179.94 | AJ28: 44.94 | AK28: 0.4795168846 | AL28: 25.61850445 | AM28: 102.8092522 | AN28: 0.6475349773 | AO28: 0.1575349773 | AP28: -0.5550699546 | AQ28: 237.8092522 | AR28: -0.3975349773 | AS28: 0.5550699546 | AT28: 147.8092522 | AU28: -0.12 | AV28: 0.12 | AX28: 0.2399994736 | AY28: -0.5005026545 | BL28: -0.25 to 0.25 | BM28: =COUNTIFS($AU$3:$AU$3002,">=-0.25", $AU$3:$AU$3002, "<=0.25") -> 29 | BN28: 0.3411764706
A29: =Preoperative_data!A29 -> 27 | B29: =IF(Data_Input!J31="","",Data_Input!J31) -> 0 | C29: =IF(Data_Input!K31="","",Data_Input!K31) -> -0.75 | D29: =IF(Data_Input!L31="","",Data_Input!L31) -> 90 | E29: -0.375 | F29: -0.75 | G29: 0.75 | H29: 180 | K29: 0.75 | L29: -1.837722682e-16 | O29: =IF(Data_Input!O31="",IF(Data_Input!#REF!="","",Data_Input!#REF!),Data_Input!O31) -> 0.235 | P29: =IF(Data_Input!P31="","",Data_Input!P31) -> 0.325 | Q29: =IF(Data_Input!Q31="","",Data_Input!Q31) -> 0.115 | R29: 0.3975 | S29: 0.56 | T29: -0.325 | U29: 90.115 | W29: -0.56 | X29: 0.325 | Y29: 90.115 | Z29: -0.235 | AA29: -0.325 | AB29: 0.115 | AD29: -0.235 | AE29: -0.325 | AF29: 0.115 | AG29: -0.75 | AH29: 0.75 | AI29: 180 | AJ29: 179.885 | AK29: -0.007084065133 | AL29: -0.4058802445 | AM29: 89.79705988 | AN29: 0.4250023105 | AO29: -0.5599976895 | AP29: -0.425004621 | AQ29: 89.91205988 | AR29: -0.9850023105 | AS29: 0.425004621 | AT29: 179.9120599 | AU29: -0.7725 | AV29: 0.7725 | AX29: 0.4250026186 | AY29: -0.001304630112 | BL29: 0.26 to 0.50 | BM29: =COUNTIFS($AU$3:$AU$3002,">0.25", $AU$3:$AU$3002, "<=0.50") -> 3 | BN29: 0.03529411765
A30: =Preoperative_data!A30 -> 28 | B30: =IF(Data_Input!J32="","",Data_Input!J32) -> 0.5 | C30: =IF(Data_Input!K32="","",Data_Input!K32) -> -1 | D30: =IF(Data_Input!L32="","",Data_Input!L32) -> 70 | E30: 0 | F30: -0.5 | G30: 1 | H30: 160 | K30: 0.7660444431 | L30: -0.6427876097 | O30: =IF(Data_Input!O32="",IF(Data_Input!#REF!="","",Data_Input!#REF!),Data_Input!O32) -> 0.13 | P30: =IF(Data_Input!P32="","",Data_Input!P32) -> 0.09 | Q30: =IF(Data_Input!Q32="","",Data_Input!Q32) -> 0.19 | R30: 0.175 | S30: 0.22 | T30: -0.09 | U30: 90.19 | W30: -0.22 | X30: 0.09 | Y30: 90.19 | Z30: -0.13 | AA30: -0.09 | AB30: 0.19 | AD30: -0.13 | AE30: -0.09 | AF30: 0.19 | AG30: -0.5 | AH30: 1 | AI30: 160 | AJ30: 159.81 | AK30: -0.96440648 | AL30: -43.96195856 | AM30: 68.01902072 | AN30: 0.9216321866 | AO30: 0.2916321866 | AP30: -0.9332643733 | AQ30: 68.20902072 | AR30: -0.6416321866 | AS30: 0.9332643733 | AT30: 158.2090207 | AU30: -0.175 | AV30: 0.175 | AX30: 0.6760464225 | AY30: -0.6433845079 | BL30: 0.51 to 1 | BM30: =COUNTIFS($AU$3:$AU$3002,">0.5", $AU$3:$AU$3002, "<=1.0") -> 0 | BN30: 0
A31: =Preoperative_data!A31 -> 29 | B31: =IF(Data_Input!J33="","",Data_Input!J33) -> -0.5 | C31: =IF(Data_Input!K33="","",Data_Input!K33) -> 0 | D31: =IF(Data_Input!L33="","",Data_Input!L33) -> 0 | E31: -0.5 | F31: -0.5 | G31: 0 | H31: 90 | K31: 0 | L31: 0 | O31: =IF(Data_Input!O33="",IF(Data_Input!#REF!="","",Data_Input!#REF!),Data_Input!O33) -> -0.12 | P31: =IF(Data_Input!P33="","",Data_Input!P33) -> -0.48 | Q31: =IF(Data_Input!Q33="","",Data_Input!Q33) -> -0.32 | R31: -0.36 | S31: -0.6 | T31: 0.48 | U31: 89.68 | W31: 0.6 | X31: -0.48 | Y31: 89.68 | Z31: 0.12 | AA31: 0.48 | AB31: 179.68 | AD31: -0.5 | AE31: 0 | AF31: 90 | AG31: 0.12 | AH31: 0.48 | AI31: 179.68 | AJ31: 89.68 | AK31: -0.01117057181 | AL31: -0.64 | AM31: 89.68 | AN31: 0 | AO31: -0.38 | AP31: 0.48 | AQ31: 179.68 | AR31: -0.38 | AS31: 0.48 | AT31: 179.68 | AU31: -0.14 | AV31: 0.14 | AX31: 0.4799700552 | AY31: -0.005361539966 | BL31: 1.01 to 1.5 | BM31: =COUNTIFS($AU$3:$AU$3002,">1", $AU$3:$AU$3002, "<=1.5") -> 0 | BN31: 0
A32: =Preoperative_data!A32 -> 30 | B32: =IF(Data_Input!J34="","",Data_Input!J34) -> 0 | C32: =IF(Data_Input!K34="","",Data_Input!K34) -> 0 | D32: =IF(Data_Input!L34="","",Data_Input!L34) -> 0 | E32: 0 | F32: 0 | G32: 0 | H32: 90 | K32: 0 | L32: 0 | O32: =IF(Data_Input!O34="",IF(Data_Input!#REF!="","",Data_Input!#REF!),Data_Input!O34) -> 0.56 | P32: =IF(Data_Input!P34="","",Data_Input!P34) -> 0.64 | Q32: =IF(Data_Input!Q34="","",Data_Input!Q34) -> 0.35 | R32: 0.88 | S32: 1.2 | T32: -0.64 | U32: 90.35 | W32: -1.2 | X32: 0.64 | Y32: 90.35 | Z32: -0.56 | AA32: -0.64 | AB32: 0.35 | AD32: -0.56 | AE32: -0.64 | AF32: 0.35 | AG32: 0 | AH32: 0 | AI32: 90 | AJ32: 89.65 | AK32: 0 | AL32: 0 | AM32: 90 | AN32: -0.64 | AO32: -1.2 | AP32: 0.64 | AQ32: 90.35 | AR32: -1.2 | AS32: 0.64 | AT32: 90.35 | AU32: -0.88 | AV32: 0.88 | AX32: -0.6399522366 | AY32: -0.007818880535 | BL32: > 1.50 | BM32: =COUNTIF($AU$3:$AU$3002,">1.50") -> 0 | BN32: 0
A33: =Preoperative_data!A33 -> 31 | B33: =IF(Data_Input!J35="","",Data_Input!J35) -> -0.75 | C33: =IF(Data_Input!K35="","",Data_Input!K35) -> 0 | D33: =IF(Data_Input!L35="","",Data_Input!L35) -> 0 | E33: -0.75 | F33: -0.75 | G33: 0 | H33: 90 | K33: 0 | L33: 0 | O33: =IF(Data_Input!O35="",IF(Data_Input!#REF!="","",Data_Input!#REF!),Data_Input!O35) -> 0.99 | P33: =IF(Data_Input!P35="","",Data_Input!P35) -> 0.65 | Q33: =IF(Data_Input!Q35="","",Data_Input!Q35) -> 0.81 | R33: 1.315 | S33: 1.64 | T33: -0.65 | U33: 90.81 | W33: -1.64 | X33: 0.65 | Y33: 90.81 | Z33: -0.99 | AA33: -0.65 | AB33: 0.81 | AD33: -0.99 | AE33: -0.65 | AF33: 0.81 | AG33: -0.75 | AH33: 0 | AI33: 90 | AJ33: 89.19 | AK33: 0 | AL33: 0 | AM33: 90 | AN33: -0.65 | AO33: -2.39 | AP33: 0.65 | AQ33: 90.81 | AR33: -2.39 | AS33: 0.65 | AT33: 90.81 | AU33: -2.065 | AV33: 2.065 | AX33: -0.6497402 | AY33: -0.0183758684 | BL33: ± 0.25 D : | BM33: =COUNTIF(AV3:AV3002,"<=0.25") -> 29 | BN33: =BM33/COUNT(AV3:AV3002) -> 0.3411764706
A34: =Preoperative_data!A34 -> 32 | B34: =IF(Data_Input!J36="","",Data_Input!J36) -> 0 | C34: =IF(Data_Input!K36="","",Data_Input!K36) -> 0 | D34: =IF(Data_Input!L36="","",Data_Input!L36) -> 0 | E34: 0 | F34: 0 | G34: 0 | H34: 90 | K34: 0 | L34: 0 | O34: =IF(Data_Input!O36="",IF(Data_Input!#REF!="","",Data_Input!#REF!),Data_Input!O36) -> 0.45 | P34: =IF(Data_Input!P36="","",Data_Input!P36) -> -0.05 | Q34: =IF(Data_Input!Q36="","",Data_Input!Q36) -> 0.21 | R34: 0.425 | S34: 0.4 | T34: 0.05 | U34: 90.21 | W34: -0.4 | X34: -0.05 | Y34: 90.21 | Z34: -0.45 | AA34: 0.05 | AB34: 0.21 | AD34: -0.45 | AE34: 0.05 | AF34: 0.21 | AG34: 0 | AH34: 0 | AI34: 90 | AJ34: 89.79 | AK34: 0 | AL34: 0 | AM34: 90 | AN34: 0.05 | AO34: -0.4 | AP34: -0.05 | AQ34: 90.21 | AR34: -0.45 | AS34: 0.05 | AT34: 0.21 | AU34: -0.425 | AV34: 0.425 | AX34: 0.04999865664 | AY34: 0.0003665158605 | BL34: ± 0.50 D : | BM34: =COUNTIF(AV3:AV3002,"<=0.50") -> 55 | BN34: =BM34/COUNT(AV3:AV3002) -> 0.6470588235
A35: =Preoperative_data!A35 -> 33 | B35: =IF(Data_Input!J37="","",Data_Input!J37) -> -2.75 | C35: =IF(Data_Input!K37="","",Data_Input!K37) -> 0 | D35: =IF(Data_Input!L37="","",Data_Input!L37) -> 0 | E35: -2.75 | F35: -2.75 | G35: 0 | H35: 90 | K35: 0 | L35: 0 | O35: =IF(Data_Input!O37="",IF(Data_Input!#REF!="","",Data_Input!#REF!),Data_Input!O37) -> -0.07 | P35: =IF(Data_Input!P37="","",Data_Input!P37) -> -0.06 | Q35: =IF(Data_Input!Q37="","",Data_Input!Q37) -> -0.44 | R35: -0.1 | S35: -0.13 | T35: 0.06 | U35: 89.56 | W35: 0.13 | X35: -0.06 | Y35: 89.56 | Z35: 0.07 | AA35: 0.06 | AB35: 179.56 | AD35: -2.75 | AE35: 0 | AF35: 90 | AG35: 0.07 | AH35: 0.06 | AI35: 179.56 | AJ35: 89.56 | AK35: -0.01536010523 | AL35: -0.88 | AM35: 89.56 | AN35: 0 | AO35: -2.68 | AP35: 0.06 | AQ35: 179.56 | AR35: -2.68 | AS35: 0.06 | AT35: 179.56 | AU35: -2.65 | AV35: 2.65 | AX35: 0.05999292327 | AY35: -0.0009214976145 | BL35: ± 1.00 D : | BM35: =COUNTIF(AV3:AV3002,"<=1") -> 66 | BN35: =BM35/COUNT(AV3:AV3002) -> 0.7764705882
A36: =Preoperative_data!A36 -> 34 | B36: =IF(Data_Input!J38="","",Data_Input!J38) -> 0 | C36: =IF(Data_Input!K38="","",Data_Input!K38) -> -0.75 | D36: =IF(Data_Input!L38="","",Data_Input!L38) -> 75 | E36: -0.375 | F36: -0.75 | G36: 0.75 | H36: 165 | K36: 0.6495190528 | L36: -0.375 | O36: =IF(Data_Input!O38="",IF(Data_Input!#REF!="","",Data_Input!#REF!),Data_Input!O38) -> 0.095 | P36: =IF(Data_Input!P38="","",Data_Input!P38) -> 0.025 | Q36: =IF(Data_Input!Q38="","",Data_Input!Q38) -> -0.085 | R36: 0.1075 | S36: 0.12 | T36: -0.025 | U36: 89.915 | W36: -0.12 | X36: 0.025 | Y36: 89.915 | Z36: -0.095 | AA36: -0.025 | AB36: 179.915 | AD36: -0.75 | AE36: 0.75 | AF36: 165 | AG36: -0.095 | AH36: -0.025 | AI36: 179.915 | AJ36: 14.915 | AK36: -0.01707468776 | AL36: -0.9782124883 | AM36: 89.51089376 | AN36: 0.7267092661 | AO36: -0.1182907339 | AP36: -0.7284185322 | AQ36: 254.5108938 | AR36: -0.8467092661 | AS36: 0.7284185322 | AT36: 164.5108938 | AU36: -0.4825 | AV36: 0.4825 | AX36: 0.6245191629 | AY36: -0.3749258236
A37: =Preoperative_data!A37 -> 35 | B37: =IF(Data_Input!J39="","",Data_Input!J39) -> 0.5 | C37: =IF(Data_Input!K39="","",Data_Input!K39) -> -0.75 | D37: =IF(Data_Input!L39="","",Data_Input!L39) -> 65 | E37: 0.125 | F37: -0.25 | G37: 0.75 | H37: 155 | K37: 0.4820907073 | L37: -0.5745333323 | O37: =IF(Data_Input!O39="",IF(Data_Input!#REF!="","",Data_Input!#REF!),Data_Input!O39) -> 0.255 | P37: =IF(Data_Input!P39="","",Data_Input!P39) -> 0.405 | Q37: =IF(Data_Input!Q39="","",Data_Input!Q39) -> 0.095 | R37: 0.4575 | S37: 0.66 | T37: -0.405 | U37: 90.095 | W37: -0.66 | X37: 0.405 | Y37: 90.095 | Z37: -0.255 | AA37: -0.405 | AB37: 0.095 | AD37: -0.255 | AE37: -0.405 | AF37: 0.095 | AG37: -0.25 | AH37: 0.75 | AI37: 155 | AJ37: 154.905 | AK37: -7.663036927 | AL37: -82.56511138 | AM37: 48.71744431 | AN37: 0.463006843 | AO37: -0.04199315699 | AP37: -0.581013686 | AQ37: 48.81244431 | AR37: -0.623006843 | AS37: 0.581013686 | AT37: 138.8124443 | AU37: -0.3325 | AV37: 0.3325 | AX37: 0.07709293409 | AY37: -0.5758763607
A38: =Preoperative_data!A38 -> 36 | B38: =IF(Data_Input!J40="","",Data_Input!J40) -> 0 | C38: =IF(Data_Input!K40="","",Data_Input!K40) -> -0.75 | D38: =IF(Data_Input!L40="","",Data_Input!L40) -> 70 | E38: -0.375 | F38: -0.75 | G38: 0.75 | H38: 160 | K38: 0.5745333323 | L38: -0.4820907073 | O38: =IF(Data_Input!O40="",IF(Data_Input!#REF!="","",Data_Input!#REF!),Data_Input!O40) -> -0.125 | P38: =IF(Data_Input!P40="","",Data_Input!P40) -> -0.055 | Q38: =IF(Data_Input!Q40="","",Data_Input!Q40) -> -0.025 | R38: -0.1525 | S38: -0.18 | T38: 0.055 | U38: 89.975 | W38: 0.18 | X38: -0.055 | Y38: 89.975 | Z38: 0.125 | AA38: 0.055 | AB38: 179.975 | AD38: -0.75 | AE38: 0.75 | AF38: 160 | AG38: 0.125 | AH38: 0.055 | AI38: 179.975 | AJ38: 19.975 | AK38: 0.04458239668 | AL38: 2.55269283 | AM38: 91.27634642 | AN38: 0.7989750685 | AO38: 0.1739750685 | AP38: -0.7929501371 | AQ38: 251.2763464 | AR38: -0.6189750685 | AS38: 0.7929501371 | AT38: 161.2763464 | AU38: -0.2225 | AV38: 0.2225 | AX38: 0.6295333114 | AY38: -0.4821387038
A39: =Preoperative_data!A39 -> 37 | B39: =IF(Data_Input!J41="","",Data_Input!J41) -> -0.25 | C39: =IF(Data_Input!K41="","",Data_Input!K41) -> -0.75 | D39: =IF(Data_Input!L41="","",Data_Input!L41) -> 120 | E39: -0.625 | F39: -1 | G39: 0.75 | H39: 30 | K39: 0.375 | L39: 0.6495190528 | O39: =IF(Data_Input!O41="",IF(Data_Input!#REF!="","",Data_Input!#REF!),Data_Input!O41) -> -0.255 | P39: =IF(Data_Input!P41="","",Data_Input!P41) -> -0.195 | Q39: =IF(Data_Input!Q41="","",Data_Input!Q41) -> -0.305 | R39: -0.3525 | S39: -0.45 | T39: 0.195 | U39: 89.695 | W39: 0.45 | X39: -0.195 | Y39: 89.695 | Z39: 0.255 | AA39: 0.195 | AB39: 179.695 | AD39: -1 | AE39: 0.75 | AF39: 30 | AG39: 0.255 | AH39: 0.195 | AI39: 179.695 | AJ39: 149.695 | AK39: -0.2009034943 | AL39: -11.35969921 | AM39: 84.3201504 | AN39: 0.9037974233 | AO39: 0.1587974233 | AP39: -0.8625948467 | AQ39: 114.3201504 | AR39: -0.7037974233 | AS39: 0.8625948467 | AT39: 24.3201504 | AU39: -0.2725 | AV39: 0.2725 | AX39: 0.5699889487 | AY39: 0.6474430229
A40: =Preoperative_data!A40 -> 38 | B40: =IF(Data_Input!J42="","",Data_Input!J42) -> -1 | C40: =IF(Data_Input!K42="","",Data_Input!K42) -> 0 | D40: =IF(Data_Input!L42="","",Data_Input!L42) -> 0 | E40: -1 | F40: -1 | G40: 0 | H40: 90 | K40: 0 | L40: 0 | O40: =IF(Data_Input!O42="",IF(Data_Input!#REF!="","",Data_Input!#REF!),Data_Input!O42) -> -0.54 | P40: =IF(Data_Input!P42="","",Data_Input!P42) -> -0.32 | Q40: =IF(Data_Input!Q42="","",Data_Input!Q42) -> -0.65 | R40: -0.7 | S40: -0.86 | T40: 0.32 | U40: 89.35 | W40: 0.86 | X40: -0.32 | Y40: 89.35 | Z40: 0.54 | AA40: 0.32 | AB40: 179.35 | AD40: -1 | AE40: 0 | AF40: 90 | AG40: 0.54 | AH40: 0.32 | AI40: 179.35 | AJ40: 89.35 | AK40: -0.02269317458 | AL40: -1.3 | AM40: 89.35 | AN40: 0 | AO40: -0.46 | AP40: 0.32 | AQ40: 179.35 | AR40: -0.46 | AS40: 0.32 | AT40: 179.35 | AU40: -0.3 | AV40: 0.3 | AX40: 0.319917635 | AY40: -0.007259946743
A41: =Preoperative_data!A41 -> 39 | B41: =IF(Data_Input!J43="","",Data_Input!J43) -> 0 | C41: =IF(Data_Input!K43="","",Data_Input!K43) -> -0.5 | D41: =IF(Data_Input!L43="","",Data_Input!L43) -> 140 | E41: -0.25 | F41: -0.5 | G41: 0.5 | H41: 50 | K41: -0.08682408883 | L41: 0.4924038765 | O41: =IF(Data_Input!O43="",IF(Data_Input!#REF!="","",Data_Input!#REF!),Data_Input!O43) -> -0.14 | P41: =IF(Data_Input!P43="","",Data_Input!P43) -> 0.04 | Q41: =IF(Data_Input!Q43="","",Data_Input!Q43) -> -0.14 | R41: -0.12 | S41: -0.1 | T41: -0.04 | U41: 89.86 | W41: 0.1 | X41: 0.04 | Y41: 89.86 | Z41: 0.14 | AA41: -0.04 | AB41: 179.86 | AD41: -0.5 | AE41: 0.5 | AF41: 50 | AG41: 0.14 | AH41: -0.04 | AI41: 179.86 | AJ41: 129.86 | AK41: 0.07760780786 | AL41: 4.437704722 | AM41: 92.21885236 | AN41: 0.4843316489 | AO41: 0.1243316489 | AP41: -0.5086632978 | AQ41: 142.2188524 | AR41: -0.3843316489 | AS41: 0.5086632978 | AT41: 52.21885236 | AU41: -0.13 | AV41: 0.13 | AX41: -0.1268236112 | AY41: 0.4925993526
A42: =Preoperative_data!A42 -> 40 | B42: =IF(Data_Input!J44="","",Data_Input!J44) -> 0 | C42: =IF(Data_Input!K44="","",Data_Input!K44) -> -0.5 | D42: =IF(Data_Input!L44="","",Data_Input!L44) -> 80 | E42: -0.25 | F42: -0.5 | G42: 0.5 | H42: 170 | K42: 0.4698463104 | L42: -0.1710100717 | O42: =IF(Data_Input!O44="",IF(Data_Input!#REF!="","",Data_Input!#REF!),Data_Input!O44) -> -0.06 | P42: =IF(Data_Input!P44="","",Data_Input!P44) -> -0.12 | Q42: =IF(Data_Input!Q44="","",Data_Input!Q44) -> -0.1 | R42: -0.12 | S42: -0.18 | T42: 0.12 | U42: 89.9 | W42: 0.18 | X42: -0.12 | Y42: 89.9 | Z42: 0.06 | AA42: 0.12 | AB42: 179.9 | AD42: -0.5 | AE42: 0.5 | AF42: 170 | AG42: 0.06 | AH42: 0.12 | AI42: 179.9 | AJ42: 9.9 | AK42: 0.06632105223 | AL42: 3.794359755 | AM42: 91.89717988 | AN42: 0.6171260703 | AO42: 0.1771260703 | AP42: -0.6142521406 | AQ42: 261.8971799 | AR42: -0.4371260703 | AS42: 0.6142521406 | AT42: 171.8971799 | AU42: -0.13 | AV42: 0.13 | AX42: 0.5898455793 | AY42: -0.1714289498
A43: =Preoperative_data!A43 -> 41 | B43: =IF(Data_Input!J45="","",Data_Input!J45) -> -0.25 | C43: =IF(Data_Input!K45="","",Data_Input!K45) -> 0 | D43: =IF(Data_Input!L45="","",Data_Input!L45) -> 0 | E43: -0.25 | F43: -0.25 | G43: 0 | H43: 90 | K43: 0 | L43: 0 | O43: =IF(Data_Input!O45="",IF(Data_Input!#REF!="","",Data_Input!#REF!),Data_Input!O45) -> -0.22 | P43: =IF(Data_Input!P45="","",Data_Input!P45) -> -0.19 | Q43: =IF(Data_Input!Q45="","",Data_Input!Q45) -> -0.08 | R43: -0.315 | S43: -0.41 | T43: 0.19 | U43: 89.92 | W43: 0.41 | X43: -0.19 | Y43: 89.92 | Z43: 0.22 | AA43: 0.19 | AB43: 179.92 | AD43: -0.25 | AE43: 0 | AF43: 90 | AG43: 0.22 | AH43: 0.19 | AI43: 179.92 | AJ43: 89.92 | AK43: -0.002792534062 | AL43: -0.16 | AM43: 89.92 | AN43: 0 | AO43: -0.03 | AP43: 0.19 | AQ43: 179.92 | AR43: -0.03 | AS43: 0.19 | AT43: 179.92 | AU43: 0.065 | AV43: 0.065 | AX43: 0.1899992592 | AY43: -0.000530579403
A44: =Preoperative_data!A44 -> 42 | B44: =IF(Data_Input!J46="","",Data_Input!J46) -> 0 | C44: =IF(Data_Input!K46="","",Data_Input!K46) -> -0.5 | D44: =IF(Data_Input!L46="","",Data_Input!L46) -> 90 | E44: -0.25 | F44: -0.5 | G44: 0.5 | H44: 180 | K44: 0.5 | L44: -1.225148455e-16 | O44: =IF(Data_Input!O46="",IF(Data_Input!#REF!="","",Data_Input!#REF!),Data_Input!O46) -> -0.17 | P44: =IF(Data_Input!P46="","",Data_Input!P46) -> 0.01 | Q44: =IF(Data_Input!Q46="","",Data_Input!Q46) -> -0.01 | R44: -0.165 | S44: -0.16 | T44: -0.01 | U44: 89.99 | W44: 0.16 | X44: 0.01 | Y44: 89.99 | Z44: 0.17 | AA44: -0.01 | AB44: 179.99 | AD44: 0.17 | AE44: -0.01 | AF44: 179.99 | AG44: -0.5 | AH44: 0.5 | AI44: 180 | AJ44: 0.01 | AK44: 0.0003561896582 | AL44: 0.02040816326 | AM44: 90.01020408 | AN44: 0.4900000003 | AO44: 0.1600000003 | AP44: -0.4900000006 | AQ44: 270.0002041 | AR44: -0.3300000003 | AS44: 0.4900000006 | AT44: 180.0002041 | AU44: -0.085 | AV44: 0.085 | AX44: 0.4900000006 | AY44: 3.490658433e-06
A45: =Preoperative_data!A45 -> 43 | B45: =IF(Data_Input!J47="","",Data_Input!J47) -> -1.25 | C45: =IF(Data_Input!K47="","",Data_Input!K47) -> 0 | D45: =IF(Data_Input!L47="","",Data_Input!L47) -> 0 | E45: -1.25 | F45: -1.25 | G45: 0 | H45: 90 | K45: 0 | L45: 0 | O45: =IF(Data_Input!O47="",IF(Data_Input!#REF!="","",Data_Input!#REF!),Data_Input!O47) -> 0.01 | P45: =IF(Data_Input!P47="","",Data_Input!P47) -> 0.1 | Q45: =IF(Data_Input!Q47="","",Data_Input!Q47) -> 0.17 | R45: 0.06 | S45: 0.11 | T45: -0.1 | U45: 90.17 | W45: -0.11 | X45: 0.1 | Y45: 90.17 | Z45: -0.01 | AA45: -0.1 | AB45: 0.17 | AD45: -0.01 | AE45: -0.1 | AF45: 0.17 | AG45: -1.25 | AH45: 0 | AI45: 90 | AJ45: 89.83 | AK45: 0 | AL45: 0 | AM45: 90 | AN45: -0.1 | AO45: -1.36 | AP45: 0.1 | AQ45: 90.17 | AR45: -1.36 | AS45: 0.1 | AT45: 90.17 | AU45: -1.31 | AV45: 1.31 | AX45: -0.09999823932 | AY45: -0.000593408463
A46: =Preoperative_data!A46 -> 44 | B46: =IF(Data_Input!J48="","",Data_Input!J48) -> -0.25 | C46: =IF(Data_Input!K48="","",Data_Input!K48) -> 0 | D46: =IF(Data_Input!L48="","",Data_Input!L48) -> 0 | E46: -0.25 | F46: -0.25 | G46: 0 | H46: 90 | K46: 0 | L46: 0 | O46: =IF(Data_Input!O48="",IF(Data_Input!#REF!="","",Data_Input!#REF!),Data_Input!O48) -> 0.1 | P46: =IF(Data_Input!P48="","",Data_Input!P48) -> 0.05 | Q46: =IF(Data_Input!Q48="","",Data_Input!Q48) -> 0.07 | R46: 0.125 | S46: 0.15 | T46: -0.05 | U46: 90.07 | W46: -0.15 | X46: 0.05 | Y46: 90.07 | Z46: -0.1 | AA46: -0.05 | AB46: 0.07 | AD46: -0.1 | AE46: -0.05 | AF46: 0.07 | AG46: -0.25 | AH46: 0 | AI46: 90 | AJ46: 89.93 | AK46: 0 | AL46: 0 | AM46: 90 | AN46: -0.05 | AO46: -0.4 | AP46: 0.05 | AQ46: 90.07 | AR46: -0.4 | AS46: 0.05 | AT46: 90.07 | AU46: -0.375 | AV46: 0.375 | AX46: -0.04999985074 | AY46: -0.0001221729261
A47: =Preoperative_data!A47 -> 45 | B47: =IF(Data_Input!J49="","",Data_Input!J49) -> -0.25 | C47: =IF(Data_Input!K49="","",Data_Input!K49) -> 0 | D47: =IF(Data_Input!L49="","",Data_Input!L49) -> 0 | E47: -0.25 | F47: -0.25 | G47: 0 | H47: 90 | K47: 0 | L47: 0 | O47: =IF(Data_Input!O49="",IF(Data_Input!#REF!="","",Data_Input!#REF!),Data_Input!O49) -> -0.09 | P47: =IF(Data_Input!P49="","",Data_Input!P49) -> -0.14 | Q47: =IF(Data_Input!Q49="","",Data_Input!Q49) -> -0.19 | R47: -0.16 | S47: -0.23 | T47: 0.14 | U47: 89.81 | W47: 0.23 | X47: -0.14 | Y47: 89.81 | Z47: 0.09 | AA47: 0.14 | AB47: 179.81 | AD47: -0.25 | AE47: 0 | AF47: 90 | AG47: 0.09 | AH47: 0.14 | AI47: 179.81 | AJ47: 89.81 | AK47: -0.006632348403 | AL47: -0.38 | AM47: 89.81 | AN47: 0 | AO47: -0.16 | AP47: 0.14 | AQ47: 179.81 | AR47: -0.16 | AS47: 0.14 | AT47: 179.81 | AU47: -0.09 | AV47: 0.09 | AX47: 0.1399969209 | AY47: -0.000928508355
A48: =Preoperative_data!A48 -> 46 | B48: =IF(Data_Input!J50="","",Data_Input!J50) -> -3 | C48: =IF(Data_Input!K50="","",Data_Input!K50) -> -0.5 | D48: =IF(Data_Input!L50="","",Data_Input!L50) -> 150 | E48: -3.25 | F48: -3.5 | G48: 0.5 | H48: 60 | K48: -0.25 | L48: 0.4330127019 | O48: =IF(Data_Input!O50="",IF(Data_Input!#REF!="","",Data_Input!#REF!),Data_Input!O50) -> -0.5 | P48: =IF(Data_Input!P50="","",Data_Input!P50) -> -0.61 | Q48: =IF(Data_Input!Q50="","",Data_Input!Q50) -> -0.78 | R48: -0.805 | S48: -1.11 | T48: 0.61 | U48: 89.22 | W48: 1.11 | X48: -0.61 | Y48: 89.22 | Z48: 0.5 | AA48: 0.61 | AB48: 179.22 | AD48: -3.5 | AE48: 0.5 | AF48: 60 | AG48: 0.5 | AH48: 0.61 | AI48: 179.22 | AJ48: 119.22 | AK48: -2.875961074 | AL48: -70.82693319 | AM48: 54.58653341 | AN48: 0.8301505915 | AO48: -2.169849409 | AP48: -0.5503011829 | AQ48: 114.5865334 | AR48: -2.720150591 | AS48: 0.5503011829 | AT48: 24.58653341 | AU48: -2.445 | AV48: 2.445 | AX48: 0.3597739123 | AY48: 0.4164062007
A49: =Preoperative_data!A49 -> 47 | B49: =IF(Data_Input!J51="","",Data_Input!J51) -> -0.5 | C49: =IF(Data_Input!K51="","",Data_Input!K51) -> 0 | D49: =IF(Data_Input!L51="","",Data_Input!L51) -> 0 | E49: -0.5 | F49: -0.5 | G49: 0 | H49: 90 | K49: 0 | L49: 0 | O49: =IF(Data_Input!O51="",IF(Data_Input!#REF!="","",Data_Input!#REF!),Data_Input!O51) -> -0.08 | P49: =IF(Data_Input!P51="","",Data_Input!P51) -> -0.16 | Q49: =IF(Data_Input!Q51="","",Data_Input!Q51) -> -0.07 | R49: -0.16 | S49: -0.24 | T49: 0.16 | U49: 89.93 | W49: 0.24 | X49: -0.16 | Y49: 89.93 | Z49: 0.08 | AA49: 0.16 | AB49: 179.93 | AD49: -0.5 | AE49: 0 | AF49: 90 | AG49: 0.08 | AH49: 0.16 | AI49: 179.93 | AJ49: 89.93 | AK49: -0.002443465816 | AL49: -0.14 | AM49: 89.93 | AN49: 0 | AO49: -0.42 | AP49: 0.16 | AQ49: 179.93 | AR49: -0.42 | AS49: 0.16 | AT49: 179.93 | AU49: -0.34 | AV49: 0.34 | AX49: 0.1599995224 | AY49: -0.0003909533634
A50: =Preoperative_data!A50 -> 48 | B50: =IF(Data_Input!J52="","",Data_Input!J52) -> 0 | C50: =IF(Data_Input!K52="","",Data_Input!K52) -> -0.5 | D50: =IF(Data_Input!L52="","",Data_Input!L52) -> 30 | E50: -0.25 | F50: -0.5 | G50: 0.5 | H50: 120 | K50: -0.25 | L50: -0.4330127019 | O50: =IF(Data_Input!O52="",IF(Data_Input!#REF!="","",Data_Input!#REF!),Data_Input!O52) -> 0.23 | P50: =IF(Data_Input!P52="","",Data_Input!P52) -> 0.12 | Q50: =IF(Data_Input!Q52="","",Data_Input!Q52) -> 0.07 | R50: 0.29 | S50: 0.35 | T50: -0.12 | U50: 90.07 | W50: -0.35 | X50: 0.12 | Y50: 90.07 | Z50: -0.23 | AA50: -0.12 | AB50: 0.07 | AD50: -0.23 | AE50: -0.12 | AF50: 0.07 | AG50: -0.5 | AH50: 0.5 | AI50: 120 | AJ50: 119.93 | AK50: 1.165320132 | AL50: 49.366008 | AM50: 114.683004 | AN50: -0.09489197626 | AO50: -0.8248919763 | AP50: 0.5697839525 | AQ50: 114.753004 | AR50: -0.8248919763 | AS50: 0.5697839525 | AT50: 114.753004 | AU50: -0.54 | AV50: 0.54 | AX50: -0.3699996418 | AY50: -0.4333059169
A51: =Preoperative_data!A51 -> 49 | B51: =IF(Data_Input!J53="","",Data_Input!J53) -> -0.5 | C51: =IF(Data_Input!K53="","",Data_Input!K53) -> 0 | D51: =IF(Data_Input!L53="","",Data_Input!L53) -> 0 | E51: -0.5 | F51: -0.5 | G51: 0 | H51: 90 | K51: 0 | L51: 0 | O51: =IF(Data_Input!O53="",IF(Data_Input!#REF!="","",Data_Input!#REF!),Data_Input!O53) -> -0.32 | P51: =IF(Data_Input!P53="","",Data_Input!P53) -> -0.54 | Q51: =IF(Data_Input!Q53="","",Data_Input!Q53) -> -0.29 | R51: -0.59 | S51: -0.86 | T51: 0.54 | U51: 89.71 | W51: 0.86 | X51: -0.54 | Y51: 89.71 | Z51: 0.32 | AA51: 0.54 | AB51: 179.71 | AD51: -0.5 | AE51: 0 | AF51: 90 | AG51: 0.32 | AH51: 0.54 | AI51: 179.71 | AJ51: 89.71 | AK51: -0.01012325545 | AL51: -0.58 | AM51: 89.71 | AN51: 0 | AO51: -0.18 | AP51: 0.54 | AQ51: 179.71 | AR51: -0.18 | AS51: 0.54 | AT51: 179.71 | AU51: 0.09 | AV51: 0.09 | AX51: 0.5399723324 | AY51: -0.005466277858
A52: =Preoperative_data!A52 -> 50 | B52: =IF(Data_Input!J54="","",Data_Input!J54) -> -0.25 | C52: =IF(Data_Input!K54="","",Data_Input!K54) -> 0 | D52: =IF(Data_Input!L54="","",Data_Input!L54) -> 0 | E52: -0.25 | F52: -0.25 | G52: 0 | H52: 90 | K52: 0 | L52: 0 | O52: =IF(Data_Input!O54="",IF(Data_Input!#REF!="","",Data_Input!#REF!),Data_Input!O54) -> 0.05 | P52: =IF(Data_Input!P54="","",Data_Input!P54) -> 0.08 | Q52: =IF(Data_Input!Q54="","",Data_Input!Q54) -> -0.19 | R52: 0.09 | S52: 0.13 | T52: -0.08 | U52: 89.81 | W52: -0.13 | X52: 0.08 | Y52: 89.81 | Z52: -0.05 | AA52: -0.08 | AB52: 179.81 | AD52: -0.25 | AE52: 0 | AF52: 90 | AG52: -0.05 | AH52: -0.08 | AI52: 179.81 | AJ52: 89.81 | AK52: -0.006632348403 | AL52: -0.38 | AM52: 89.81 | AN52: 0 | AO52: -0.3 | AP52: -0.08 | AQ52: 179.81 | AR52: -0.38 | AS52: 0.08 | AT52: 89.81 | AU52: -0.34 | AV52: 0.34 | AX52: -0.07999824054 | AY52: 0.0005305762029
A53: =Preoperative_data!A53 -> 51 | B53: =IF(Data_Input!J55="","",Data_Input!J55) -> 0.25 | C53: =IF(Data_Input!K55="","",Data_Input!K55) -> -0.75 | D53: =IF(Data_Input!L55="","",Data_Input!L55) -> 70 | E53: -0.125 | F53: -0.5 | G53: 0.75 | H53: 160 | K53: 0.5745333323 | L53: -0.4820907073 | O53: =IF(Data_Input!O55="",IF(Data_Input!#REF!="","",Data_Input!#REF!),Data_Input!O55) -> 0.675 | P53: =IF(Data_Input!P55="","",Data_Input!P55) -> 0.465 | Q53: =IF(Data_Input!Q55="","",Data_Input!Q55) -> 0.825 | R53: 0.9075 | S53: 1.14 | T53: -0.465 | U53: 90.825 | W53: -1.14 | X53: 0.465 | Y53: 90.825 | Z53: -0.675 | AA53: -0.465 | AB53: 0.825 | AD53: -0.675 | AE53: -0.465 | AF53: 0.825 | AG53: -0.5 | AH53: 0.75 | AI53: 160 | AJ53: 159.175 | AK53: -5.223917511 | AL53: -79.16312917 | AM53: 50.41843541 | AN53: 0.3962420695 | AO53: -0.7787579305 | AP53: -0.5074841391 | AQ53: 51.24343541 | AR53: -1.28624207 | AS53: 0.5074841391 | AT53: 141.2434354 | AU53: -1.0325 | AV53: 1.0325 | AX53: 0.1097261361 | AY53: -0.4954798951
A54: =Preoperative_data!A54 -> 52 | B54: =IF(Data_Input!J56="","",Data_Input!J56) -> -0.5 | C54: =IF(Data_Input!K56="","",Data_Input!K56) -> -0.75 | D54: =IF(Data_Input!L56="","",Data_Input!L56) -> 80 | E54: -0.875 | F54: -1.25 | G54: 0.75 | H54: 170 | K54: 0.7047694656 | L54: -0.2565151075 | O54: =IF(Data_Input!O56="",IF(Data_Input!#REF!="","",Data_Input!#REF!),Data_Input!O56) -> -0.665 | P54: =IF(Data_Input!P56="","",Data_Input!P56) -> -0.415 | Q54: =IF(Data_Input!Q56="","",Data_Input!Q56) -> -0.645 | R54: -0.8725 | S54: -1.08 | T54: 0.415 | U54: 89.355 | W54: 1.08 | X54: -0.415 | Y54: 89.355 | Z54: 0.665 | AA54: 0.415 | AB54: 179.355 | AD54: -1.25 | AE54: 0.75 | AF54: 170 | AG54: 0.665 | AH54: 0.415 | AI54: 179.355 | AJ54: 9.355 | AK54: 0.1164610293 | AL54: 6.642800833 | AM54: 93.32140042 | AN54: 1.157897375 | AO54: 0.5728973747 | AP54: -1.150794749 | AQ54: 263.3214004 | AR54: -0.5778973747 | AS54: 1.150794749 | AT54: 173.3214004 | AU54: -0.0025 | AV54: 0.0025 | AX54: 1.119664285 | AY54: -0.2658579383
A55: =Preoperative_data!A55 -> 53 | B55: =IF(Data_Input!J57="","",Data_Input!J57) -> -0.5 | C55: =IF(Data_Input!K57="","",Data_Input!K57) -> -0.5 | D55: =IF(Data_Input!L57="","",Data_Input!L57) -> 90 | E55: -0.75 | F55: -1 | G55: 0.5 | H55: 180 | K55: 0.5 | L55: -1.225148455e-16 | O55: =IF(Data_Input!O57="",IF(Data_Input!#REF!="","",Data_Input!#REF!),Data_Input!O57) -> -0.6 | P55: =IF(Data_Input!P57="","",Data_Input!P57) -> -1.02 | Q55: =IF(Data_Input!Q57="","",Data_Input!Q57) -> -0.69 | R55: -1.11 | S55: -1.62 | T55: 1.02 | U55: 89.31 | W55: 1.62 | X55: -1.02 | Y55: 89.31 | Z55: 0.6 | AA55: 1.02 | AB55: 179.31 | AD55: 0.6 | AE55: 1.02 | AF55: 179.31 | AG55: -1 | AH55: 0.5 | AI55: 180 | AJ55: 0.69 | AK55: 0.007922866115 | AL55: 0.453937292 | AM55: 90.22696865 | AN55: 1.51995134 | AO55: 1.11995134 | AP55: -1.51990268 | AQ55: 269.5369686 | AR55: -0.39995134 | AS55: 1.51990268 | AT55: 179.5369686 | AU55: 0.36 | AV55: 0.36 | AX55: 1.519704156 | AY55: -0.02456487932
A56: =Preoperative_data!A56 -> 54 | B56: =IF(Data_Input!J58="","",Data_Input!J58) -> -2 | C56: =IF(Data_Input!K58="","",Data_Input!K58) -> 0 | D56: =IF(Data_Input!L58="","",Data_Input!L58) -> 0 | E56: -2 | F56: -2 | G56: 0 | H56: 90 | K56: 0 | L56: 0 | O56: =IF(Data_Input!O58="",IF(Data_Input!#REF!="","",Data_Input!#REF!),Data_Input!O58) -> 0.05 | P56: =IF(Data_Input!P58="","",Data_Input!P58) -> 0.11 | Q56: =IF(Data_Input!Q58="","",Data_Input!Q58) -> 0.34 | R56: 0.105 | S56: 0.16 | T56: -0.11 | U56: 90.34 | W56: -0.16 | X56: 0.11 | Y56: 90.34 | Z56: -0.05 | AA56: -0.11 | AB56: 0.34 | AD56: -0.05 | AE56: -0.11 | AF56: 0.34 | AG56: -2 | AH56: 0 | AI56: 90 | AJ56: 89.66 | AK56: 0 | AL56: 0 | AM56: 90 | AN56: -0.11 | AO56: -2.16 | AP56: 0.11 | AQ56: 90.34 | AR56: -2.16 | AS56: 0.11 | AT56: 90.34 | AU56: -2.105 | AV56: 2.105 | AX56: -0.1099922531 | AY56: -0.001305475633
A57: =Preoperative_data!A57 -> 55 | B57: =IF(Data_Input!J59="","",Data_Input!J59) -> -1.5 | C57: =IF(Data_Input!K59="","",Data_Input!K59) -> -0.5 | D57: =IF(Data_Input!L59="","",Data_Input!L59) -> 60 | E57: -1.75 | F57: -2 | G57: 0.5 | H57: 150 | K57: 0.25 | L57: -0.4330127019 | O57: =IF(Data_Input!O59="",IF(Data_Input!#REF!="","",Data_Input!#REF!),Data_Input!O59) -> -0.15 | P57: =IF(Data_Input!P59="","",Data_Input!P59) -> -0.25 | Q57: =IF(Data_Input!Q59="","",Data_Input!Q59) -> -0.31 | R57: -0.275 | S57: -0.4 | T57: 0.25 | U57: 89.69 | W57: 0.4 | X57: -0.25 | Y57: 89.69 | Z57: 0.15 | AA57: 0.25 | AB57: 179.69 | AD57: -2 | AE57: 0.5 | AF57: 150 | AG57: 0.15 | AH57: 0.25 | AI57: 179.69 | AJ57: 29.69 | AK57: 0.3429442222 | AL57: 18.92910877 | AM57: 99.46455439 | AN57: 0.7066004599 | AO57: -1.14339954 | AP57: -0.6632009199 | AQ57: 249.4645544 | AR57: -1.80660046 | AS57: 0.6632009199 | AT57: 159.4645544 | AU57: -1.475 | AV57: 1.475 | AX57: 0.4999853633 | AY57: -0.4357179094
A58: =Preoperative_data!A58 -> 56 | B58: =IF(Data_Input!J60="","",Data_Input!J60) -> 0 | C58: =IF(Data_Input!K60="","",Data_Input!K60) -> -0.5 | D58: =IF(Data_Input!L60="","",Data_Input!L60) -> 150 | E58: -0.25 | F58: -0.5 | G58: 0.5 | H58: 60 | K58: -0.25 | L58: 0.4330127019 | O58: =IF(Data_Input!O60="",IF(Data_Input!#REF!="","",Data_Input!#REF!),Data_Input!O60) -> 0.13 | P58: =IF(Data_Input!P60="","",Data_Input!P60) -> 0.35 | Q58: =IF(Data_Input!Q60="","",Data_Input!Q60) -> 0 | R58: 0.305 | S58: 0.48 | T58: -0.35 | U58: 90 | W58: -0.48 | X58: 0.35 | Y58: 90 | Z58: -0.13 | AA58: -0.35 | AB58: 180 | AD58: -0.5 | AE58: 0.5 | AF58: 60 | AG58: -0.13 | AH58: -0.35 | AI58: 180 | AJ58: 120 | AK58: 0.4490502094 | AL58: 24.18247436 | AM58: 102.0912372 | AN58: 0.4449662147 | AO58: -0.1850337853 | AP58: -0.7399324293 | AQ58: 162.0912372 | AR58: -0.9249662147 | AS58: 0.7399324293 | AT58: 72.09123718 | AU58: -0.555 | AV58: 0.555 | AX58: -0.6 | AY58: 0.4330127019
A59: =Preoperative_data!A59 -> 57 | B59: =IF(Data_Input!J61="","",Data_Input!J61) -> -1.5 | C59: =IF(Data_Input!K61="","",Data_Input!K61) -> 0 | D59: =IF(Data_Input!L61="","",Data_Input!L61) -> 0 | E59: -1.5 | F59: -1.5 | G59: 0 | H59: 90 | K59: 0 | L59: 0 | O59: =IF(Data_Input!O61="",IF(Data_Input!#REF!="","",Data_Input!#REF!),Data_Input!O61) -> -0.15 | P59: =IF(Data_Input!P61="","",Data_Input!P61) -> -0.22 | Q59: =IF(Data_Input!Q61="","",Data_Input!Q61) -> -0.22 | R59: -0.26 | S59: -0.37 | T59: 0.22 | U59: 89.78 | W59: 0.37 | X59: -0.22 | Y59: 89.78 | Z59: 0.15 | AA59: 0.22 | AB59: 179.78 | AD59: -1.5 | AE59: 0 | AF59: 90 | AG59: 0.15 | AH59: 0.22 | AI59: 179.78 | AJ59: 89.78 | AK59: -0.007679599675 | AL59: -0.44 | AM59: 89.78 | AN59: 0 | AO59: -1.35 | AP59: 0.22 | AQ59: 179.78 | AR59: -1.35 | AS59: 0.22 | AT59: 179.78 | AU59: -1.24 | AV59: 1.24 | AX59: 0.2199935129 | AY59: -0.00168946211
A60: =Preoperative_data!A60 -> 58 | B60: =IF(Data_Input!J62="","",Data_Input!J62) -> 1 | C60: =IF(Data_Input!K62="","",Data_Input!K62) -> -2.25 | D60: =IF(Data_Input!L62="","",Data_Input!L62) -> 110 | E60: -0.125 | F60: -1.25 | G60: 2.25 | H60: 20 | K60: 1.723599997 | L60: 1.446272122 | O60: =IF(Data_Input!O62="",IF(Data_Input!#REF!="","",Data_Input!#REF!),Data_Input!O62) -> 0.385 | P60: =IF(Data_Input!P62="","",Data_Input!P62) -> 0.325 | Q60: =IF(Data_Input!Q62="","",Data_Input!Q62) -> 0.345 | R60: 0.5475 | S60: 0.71 | T60: -0.325 | U60: 90.345 | W60: -0.71 | X60: 0.325 | Y60: 90.345 | Z60: -0.385 | AA60: -0.325 | AB60: 0.345 | AD60: -0.385 | AE60: -0.325 | AF60: 0.345 | AG60: -1.25 | AH60: 2.25 | AI60: 20 | AJ60: 19.655 | AK60: 1.00672305 | AL60: 45.19195521 | AM60: 112.5959776 | AN60: 1.967057786 | AO60: 0.3320577863 | AP60: -2.009115573 | AQ60: 112.9409776 | AR60: -1.677057786 | AS60: 2.009115573 | AT60: 22.94097761 | AU60: -0.6725 | AV60: 0.6725 | AX60: 1.398623564 | AY60: 1.442358316
A61: =Preoperative_data!A61 -> 59 | B61: =IF(Data_Input!J63="","",Data_Input!J63) -> -0.5 | C61: =IF(Data_Input!K63="","",Data_Input!K63) -> 0 | D61: =IF(Data_Input!L63="","",Data_Input!L63) -> 0 | E61: -0.5 | F61: -0.5 | G61: 0 | H61: 90 | K61: 0 | L61: 0 | O61: =IF(Data_Input!O63="",IF(Data_Input!#REF!="","",Data_Input!#REF!),Data_Input!O63) -> -0.1 | P61: =IF(Data_Input!P63="","",Data_Input!P63) -> -0.33 | Q61: =IF(Data_Input!Q63="","",Data_Input!Q63) -> 0.05 | R61: -0.265 | S61: -0.43 | T61: 0.33 | U61: 90.05 | W61: 0.43 | X61: -0.33 | Y61: 90.05 | Z61: 0.1 | AA61: 0.33 | AB61: 0.05 | AD61: 0.1 | AE61: 0.33 | AF61: 0.05 | AG61: -0.5 | AH61: 0 | AI61: 90 | AJ61: 89.95 | AK61: 0 | AL61: 0 | AM61: 90 | AN61: 0.33 | AO61: -0.07 | AP61: -0.33 | AQ61: 90.05 | AR61: -0.4 | AS61: 0.33 | AT61: 0.05 | AU61: -0.235 | AV61: 0.235 | AX61: 0.3299994974 | AY61: 0.0005759583607
A62: =Preoperative_data!A62 -> 60 | B62: =IF(Data_Input!J64="","",Data_Input!J64) -> 0 | C62: =IF(Data_Input!K64="","",Data_Input!K64) -> -1.5 | D62: =IF(Data_Input!L64="","",Data_Input!L64) -> 90 | E62: -0.75 | F62: -1.5 | G62: 1.5 | H62: 180 | K62: 1.5 | L62: -3.675445365e-16 | O62: =IF(Data_Input!O64="",IF(Data_Input!#REF!="","",Data_Input!#REF!),Data_Input!O64) -> -0.29 | P62: =IF(Data_Input!P64="","",Data_Input!P64) -> -0.04 | Q62: =IF(Data_Input!Q64="","",Data_Input!Q64) -> -0.26 | R62: -0.31 | S62: -0.33 | T62: 0.04 | U62: 89.74 | W62: 0.33 | X62: -0.04 | Y62: 89.74 | Z62: 0.29 | AA62: 0.04 | AB62: 179.74 | AD62: 0.29 | AE62: 0.04 | AF62: 179.74 | AG62: -1.5 | AH62: 1.5 | AI62: 180 | AJ62: 0.26 | AK62: 0.008840212591 | AL62: 0.5064936777 | AM62: 90.25324684 | AN62: 1.539999198 | AO62: 0.3299991977 | AP62: -1.539998395 | AQ62: 269.9932468 | AR62: -1.209999198 | AS62: 1.539998395 | AT62: 179.9932468 | AU62: -0.44 | AV62: 0.44 | AX62: 1.539998353 | AY62: -0.0003630235007
A63: =Preoperative_data!A63 -> 61 | B63: =IF(Data_Input!J65="","",Data_Input!J65) -> -2.5 | C63: =IF(Data_Input!K65="","",Data_Input!K65) -> 0 | D63: =IF(Data_Input!L65="","",Data_Input!L65) -> 0 | E63: -2.5 | F63: -2.5 | G63: 0 | H63: 90 | K63: 0 | L63: 0 | O63: =IF(Data_Input!O65="",IF(Data_Input!#REF!="","",Data_Input!#REF!),Data_Input!O65) -> 0.17 | P63: =IF(Data_Input!P65="","",Data_Input!P65) -> 0.09 | Q63: =IF(Data_Input!Q65="","",Data_Input!Q65) -> -0.01 | R63: 0.215 | S63: 0.26 | T63: -0.09 | U63: 89.99 | W63: -0.26 | X63: 0.09 | Y63: 89.99 | Z63: -0.17 | AA63: -0.09 | AB63: 179.99 | AD63: -2.5 | AE63: 0 | AF63: 90 | AG63: -0.17 | AH63: -0.09 | AI63: 179.99 | AJ63: 89.99 | AK63: -0.0003490658646 | AL63: -0.02 | AM63: 89.99 | AN63: 0 | AO63: -2.67 | AP63: -0.09 | AQ63: 179.99 | AR63: -2.76 | AS63: 0.09 | AT63: 89.99 | AU63: -2.715 | AV63: 2.715 | AX63: -0.08999999452 | AY63: 3.14159259e-05
A64: =Preoperative_data!A64 -> 62 | B64: =IF(Data_Input!J66="","",Data_Input!J66) -> -1 | C64: =IF(Data_Input!K66="","",Data_Input!K66) -> 0 | D64: =IF(Data_Input!L66="","",Data_Input!L66) -> 0 | E64: -1 | F64: -1 | G64: 0 | H64: 90 | K64: 0 | L64: 0 | O64: =IF(Data_Input!O66="",IF(Data_Input!#REF!="","",Data_Input!#REF!),Data_Input!O66) -> -0.59 | P64: =IF(Data_Input!P66="","",Data_Input!P66) -> -0.36 | Q64: =IF(Data_Input!Q66="","",Data_Input!Q66) -> -0.59 | R64: -0.77 | S64: -0.95 | T64: 0.36 | U64: 89.41 | W64: 0.95 | X64: -0.36 | Y64: 89.41 | Z64: 0.59 | AA64: 0.36 | AB64: 179.41 | AD64: -1 | AE64: 0 | AF64: 90 | AG64: 0.59 | AH64: 0.36 | AI64: 179.41 | AJ64: 89.41 | AK64: -0.02059779744 | AL64: -1.18 | AM64: 89.41 | AN64: 0 | AO64: -0.41 | AP64: 0.36 | AQ64: 179.41 | AR64: -0.41 | AS64: 0.36 | AT64: 179.41 | AU64: -0.23 | AV64: 0.23 | AX64: 0.3599236558 | AY64: -0.007413634555
A65: =Preoperative_data!A65 -> 63 | B65: =IF(Data_Input!J67="","",Data_Input!J67) -> 0 | C65: =IF(Data_Input!K67="","",Data_Input!K67) -> -0.5 | D65: =IF(Data_Input!L67="","",Data_Input!L67) -> 60 | E65: -0.25 | F65: -0.5 | G65: 0.5 | H65: 150 | K65: 0.25 | L65: -0.4330127019 | O65: =IF(Data_Input!O67="",IF(Data_Input!#REF!="","",Data_Input!#REF!),Data_Input!O67) -> -0.16 | P65: =IF(Data_Input!P67="","",Data_Input!P67) -> -0.13 | Q65: =IF(Data_Input!Q67="","",Data_Input!Q67) -> -0.22 | R65: -0.225 | S65: -0.29 | T65: 0.13 | U65: 89.78 | W65: 0.29 | X65: -0.13 | Y65: 89.78 | Z65: 0.16 | AA65: 0.13 | AB65: 179.78 | AD65: -0.5 | AE65: 0.5 | AF65: 150 | AG65: 0.16 | AH65: 0.13 | AI65: 179.78 | AJ65: 29.78 | AK65: 0.1980707209 | AL65: 11.20360512 | AM65: 95.60180256 | AN65: 0.6034279167 | AO65: 0.2634279167 | AP65: -0.5768558334 | AQ65: 245.6018026 | AR65: -0.3134279167 | AS65: 0.5768558334 | AT65: 155.6018026 | AU65: -0.025 | AV65: 0.025 | AX65: 0.3799961667 | AY65: -0.4340110204
A66: =Preoperative_data!A66 -> 64 | B66: =IF(Data_Input!J68="","",Data_Input!J68) -> -2 | C66: =IF(Data_Input!K68="","",Data_Input!K68) -> 0 | D66: =IF(Data_Input!L68="","",Data_Input!L68) -> 0 | E66: -2 | F66: -2 | G66: 0 | H66: 90 | K66: 0 | L66: 0 | O66: =IF(Data_Input!O68="",IF(Data_Input!#REF!="","",Data_Input!#REF!),Data_Input!O68) -> 0.05 | P66: =IF(Data_Input!P68="","",Data_Input!P68) -> 0.11 | Q66: =IF(Data_Input!Q68="","",Data_Input!Q68) -> 0.34 | R66: 0.105 | S66: 0.16 | T66: -0.11 | U66: 90.34 | W66: -0.16 | X66: 0.11 | Y66: 90.34 | Z66: -0.05 | AA66: -0.11 | AB66: 0.34 | AD66: -0.05 | AE66: -0.11 | AF66: 0.34 | AG66: -2 | AH66: 0 | AI66: 90 | AJ66: 89.66 | AK66: 0 | AL66: 0 | AM66: 90 | AN66: -0.11 | AO66: -2.16 | AP66: 0.11 | AQ66: 90.34 | AR66: -2.16 | AS66: 0.11 | AT66: 90.34 | AU66: -2.105 | AV66: 2.105 | AX66: -0.1099922531 | AY66: -0.001305475633
A67: =Preoperative_data!A67 -> 65 | B67: =IF(Data_Input!J69="","",Data_Input!J69) -> 0 | C67: =IF(Data_Input!K69="","",Data_Input!K69) -> -0.75 | D67: =IF(Data_Input!L69="","",Data_Input!L69) -> 90 | E67: =IF(B67="","",B67+C67/2) -> -0.375 | F67: -0.75 | G67: 0.75 | H67: 180 | K67: 0.75 | L67: -1.837722682e-16 | O67: =IF(Data_Input!O69="",IF(Data_Input!#REF!="","",Data_Input!#REF!),Data_Input!O69) -> 0.305 | P67: =IF(Data_Input!P69="","",Data_Input!P69) -> 0.085 | Q67: =IF(Data_Input!Q69="","",Data_Input!Q69) -> 0.535 | R67: =IF(O67="","",O67+P67/2) -> 0.3475 | S67: 0.39 | T67: -0.085 | U67: 90.535 | W67: -0.39 | X67: 0.085 | Y67: 90.535 | Z67: -0.305 | AA67: -0.085 | AB67: 0.535 | AD67: -0.305 | AE67: -0.085 | AF67: 0.535 | AG67: -0.75 | AH67: 0.75 | AI67: 180 | AJ67: 179.465 | AK67: -0.02106497445 | AL67: -1.20675566 | AM67: 89.39662217 | AN67: 0.665008358 | AO67: -0.389991642 | AP67: -0.665016716 | AQ67: 89.93162217 | AR67: -1.055008358 | AS67: 0.665016716 | AT67: 179.9316222 | AU67: -0.7225 | AV67: 0.7225 | AX67: 0.6650148217 | AY67: -0.001587284688
